{"text_format":"1","workbook":"xlsx","n_sheets":5,"sheets":["INFO","CIP","Plan","Dynamique","Inser"],"not_rendered":{"charts":0,"images":31,"macros":1,"external_links":0,"defined_names":4,"comments":2,"pivot_tables":0},"unopened":[],"bounds":{"document_bytes":16777216,"sheet_cells":100000,"rows_first":2000,"rows_last":500,"rows_between":2000,"halvings":0,"cell_chars":16384,"cell_head_chars":4096},"cells_cut":0,"cells_raw":0,"read":"whole","date_system":"1900"}

{"sheet":"INFO","index":0,"n_rows":2,"n_cols":2,"rows_kept":2,"cut":false,"hidden":false,"merged":[[1,1,2,4]]}
[]
[null,"500 calibres référencés"]

{"sheet":"CIP","index":1,"n_rows":1006,"n_cols":82,"rows_kept":1006,"cut":false,"hidden":false,"merged":[]}
["ORD1","ORD2","Calibre","L1","L2","L3","L4","L5","L6","R","R1","R3","E","E1","EMIN","DELTA","F","BETA","P1","P2","ALPHA","S","R1MIN","R2","H1","H2","G1","G2","L3PG","PO","TYPE","AM","SH","COL","PIL","PMAX","PK","PE","M","EE","FC","ZC","B","N","U","ORIG","MS","ARME",null,null,null,null,null,null,null,null,null,null,null,null,null,null,null,null,null,null,null,null,null,null,null,null,null,null,null,null,null,null,null,"(Source C.I.P.)"]
[1,287,"4 Bore Rifle",null,null,101.5,null,null,119.3,1.5,31.3,null,null,27.8,0.5,null,null,null,28,null,null,null,null,null,null,27.15,25.4,18,115.1,"US","b",null,null,null,null,2500,2875,3125,25,10500,24.91,25.4,6.5,8,null,"C.I.P.","pouce","carabine",null,null,null,null,null,null,null,null,null,null,null,null,null,null,null,null,null,null,null,null,null,null,null,null,null,null,null,null,null,null,null,"SYNONYMES","CALIBRES","INFO"]
[2,326,"4,6 x 30",23.02,26.03,30.5,null,null,38.5,1.1000000000000001,8,null,2.87,6.8,0.9,"35°",0.25,"45°",8.02,7.75,"44°07'37\"",32.85,1.7,2,5.31,5.31,4.6500000000000004,null,37.549999999999997,"DE","p /g",null,null,null,null,4000,4600,5200,17.5,null,4.5199999999999996,4.6500000000000004,1.21,6,160,"C.I.P.","metrique","revolvers et pistolets",null,null,null,null,null,null,null,null,null,null,null,null,null,null,null,null,null,null,null,null,null,null,null,null,null,null,null,null,null,null,null,"10 x 38","401 Win. SL"]
[3,1,"5 mm /35 SMc",27.51,31.72,39.520000000000003,null,null,53.34,1.37,12.01,null,3.85,10.39,1.4,"36°",0.4,"45°",11.96,11.6,null,null,null,0.32,5.95,5.94,5.18,null,44.75,"US","g",null,null,null,null,4400,5060,5500,17.5,1650,5.05,5.18,1.3,6,305,"C.I.P.","metrique","carabine",null,null,null,null,null,null,null,null,null,null,null,null,null,null,null,null,null,null,null,null,null,null,null,null,null,null,null,null,null,null,null,"10 x 65,5","405 Win."]
[4,null,"5.2 x 68 Mondragón",62.3,64.460000000000008,68.010000000000005,null,null,77.290000000000006,1.63,12.54,null,3.73,10.3,0.6,null,0.5,"45°",12.48,11.39,null,null,null,null,6.31,6.08,5.24,null,null,null,"b",null,null,null,null,null,null,null,null,null,null,null,null,null,null,"E.C.R.A.",null,null,null,null,null,null,null,null,null,null,null,null,null,null,null,null,null,null,null,null,null,null,null,null,null,null,null,null,null,null,null,null,null,"10,2 x 76 R","400 Purdey 3‘‘"]
[5,2,"5,45 x 39",30,34,39.82,null,null,57,1.5,10,null,3.2,8.6,1,"45°",0.5,"45°",10,9.25,"40°36'32\"",42.5,null,null,6.29,6.29,5.6,null,44.79,"SU","g",null,null,null,null,3800,4370,4750,17.5,1505,5.4,5.6,2.6,4,255,"C.I.P.","metrique","carabine",null,null,null,null,null,null,null,null,null,null,null,null,null,null,null,null,null,null,null,null,null,null,null,null,null,null,null,null,null,null,null,"10,3 mm M 30 Schweiz","10,3 x 60 R"]
[6,327,"5,45 x 18",12.07,14,18.03,null,null,25,1.1299999999999999,7.64,null,2.9,6.58,null,"16°40'10\"",null,null,7.64,7.4,"32°54'28\"",24.6,null,null,6.26,6.26,5.63,null,21.89,"SU","p /g",null,null,null,null,1750,2013,2275,9,null,5.45,5.6,2,6,270,"C.I.P.","metrique","revolvers et pistolets",null,null,null,null,null,null,null,null,null,null,null,null,null,null,null,null,null,null,null,null,null,null,null,null,null,null,null,null,null,null,null,"10,3 x 38","401 Win. SL"]
[7,156,"5,6 x 35 R",20,25,35.5,null,null,43.5,1.4,8.85,null,null,null,null,null,null,null,7.55,7.05,"8°00'29\"",70.36,0.5,0.5,6.35,6.33,5.63,null,55.3,"DE","b",null,null,null,null,2700,3105,3510,17.5,855,5.35,5.58,2.4,4,360,"C.I.P.","metrique","carabine",null,null,null,null,null,null,null,null,null,null,null,null,null,null,null,null,null,null,null,null,null,null,null,null,null,null,null,null,null,null,null,"10,3 x 60 R Schw.","10,3 x 60 R"]
[8,3,"5,6 x 39",27,32.200000000000003,38.700000000000003,null,null,48.7,1.5,11.35,null,3.2,9.56,1,"51°58'13\"",null,null,11.35,10.199999999999999,"41°12'31\"",40.57,0.5,2,6.29,6.29,5.67,null,49.01,"RU","g",null,null,null,null,3500,4025,4375,17.5,2100,5.45,5.59,2,6,420,"C.I.P.","metrique","carabine",null,null,null,null,null,null,null,null,null,null,null,null,null,null,null,null,null,null,null,null,null,null,null,null,null,null,null,null,null,null,null,"10,3 x 60 R Schweiz M 30","10,3 x 60 R"]
[9,7,"5,7 x 28",23.15,24.27,28.9,null,31.44,40.5,1.1399999999999999,7.8,null,3.38,6.6,0.79,"25°",0.28000000000000003,"45°",7.95,7.95,"70°03'10\"",28.82,null,1,6.38,6.38,5.7,5.26,35.35,"BE","g",null,null,null,null,3450,3968,4313,12,1500,5.53,5.62,1.63,8,228.6,"C.I.P.","metrique","carabine",null,null,null,null,null,null,null,null,null,null,null,null,null,null,null,null,null,null,null,null,null,null,null,null,null,null,null,null,null,null,null,"10,3 x 60 R Swiss","10,3 x 60 R"]
[10,4,"5,6 x 50 Mag.",40.26,43.23,50,null,null,61.3,1.1399999999999999,9.6,null,3.1,8.44,0.8,"25°45'",0.5,"45°",9.56,9,"45°58'38\"",50.87,0.5,0.5,6.48,6.48,5.7,null,51.8,"DE","g",null,null,null,null,3800,4370,4750,25,1915,5.56,5.69,2,6,350,"C.I.P.","metrique","carabine",null,null,null,null,null,null,null,null,null,null,null,null,null,null,null,null,null,null,null,null,null,null,null,null,null,null,null,null,null,null,null,"10,5 x 17 - 442 kurz","442 Webley","N"]
[11,157,"5,6 x 50 R Mag.",40.26,43.23,50,null,null,61,1.4,10.9,null,null,null,null,null,0.5,"45°",9.59,9,"45°58'38\"",50.87,0.5,0.5,6.48,6.48,5.7,null,51.8,"DE","b",null,null,null,null,3400,3910,4250,25,1950,5.56,5.69,2,6,350,"C.I.P.","metrique","carabine",null,null,null,null,null,null,null,null,null,null,null,null,null,null,null,null,null,null,null,null,null,null,null,null,null,null,null,null,null,null,null,"10,5 x 65 R","405 Win."]
[12,161,"5,6 x 70 R",59.84,61.12,70,null,null,87,1.52,10.7,null,null,null,null,null,0.3,"45°",9.0299999999999994,7.52,"40°",70.17,0.5,0.5,6.59,6.59,5.7,null,74.06,"DE","b",null,null,null,null,2600,2990,3250,25,1785,5.56,5.69,2,6,290,"C.I.P.","metrique","carabine",null,null,null,null,null,null,null,null,null,null,null,null,null,null,null,null,null,null,null,null,null,null,null,null,null,null,null,null,null,null,null,"10,5 x 74","416 Rigby"]
[13,5,"5,6 x 57",44.51,50.41,56.7,null,null,69,1.3,11.95,null,3.2,10.5,1,"37°52'48\"",0.3,"45°",11.9,10.94,"34°49'06\"",61.95,0.5,0.5,7.24,7.1,5.7,null,67.5,"DE","g",null,null,null,null,4400,5060,5500,25,2725,5.54,5.69,2,6,250,"C.I.P.","metrique","carabine",null,null,null,null,null,null,null,null,null,null,null,null,null,null,null,null,null,null,null,null,null,null,null,null,null,null,null,null,null,null,null,"10,75 (10,5) mm Mauser","10,75 x 68"]
[14,159,"5,6 x 57 R",44.37,50.28,56.7,null,null,69,1.4,13.32,null,null,null,null,null,0.3,"45°",11.94,10.94,"34°49'05\"",61.82,0.5,0.5,7.24,7.1,5.7,null,67.5,"DE","b",null,null,null,null,4400,5060,5500,25,2720,5.54,5.69,2,6,250,"C.I.P.","metrique","carabine",null,null,null,null,null,null,null,null,null,null,null,null,null,null,null,null,null,null,null,null,null,null,null,null,null,null,null,null,null,null,null,"10,75 mm Mauser","10,75 x 68"]
[15,160,"5,6 x 61 R SE v. H.",44,53.05,61,null,null,80,1.6,13.6,null,null,null,null,null,0.3,"45°",12.22,11.6,"30°",65.650000000000006,0.5,0.5,6.75,6.68,5.76,null,76,"DE","b",null,null,null,null,3800,4370,4750,25,2945,5.58,5.76,2.6,4,220,"C.I.P.","metrique","carabine",null,null,null,null,null,null,null,null,null,null,null,null,null,null,null,null,null,null,null,null,null,null,null,null,null,null,null,null,null,null,null,"10,75 x 33,3 USA Win.Rep.","44-40 Win."]
[16,328,"5,75 Velodog",null,null,29.6,32.799999999999997,null,35.6,1.3,7.8,null,null,null,null,null,0.3,"45°",6.42,null,null,null,null,null,null,6.3,5.79,5.65,32.6,"FR","p /b",null,null,null,null,680,782,884,17.5,null,5.5,5.75,2.2999999999999998,4,454,"C.I.P.","metrique","revolvers et pistolets",null,null,null,null,null,null,null,null,null,null,null,null,null,null,null,null,null,null,null,null,null,null,null,null,null,null,null,null,null,null,null,"10,75 x 68 Mauser","10,75 x 68"]
[17,158,"5,6 x 52 R",35.03,41.62,52,null,null,63.75,1.6,12.5,null,null,null,null,null,0.3,"45°",10.62,9.1999999999999993,"23°59'16\"",56.68,0.5,0.5,6.4,6.4,5.79,null,70,"DE","b",null,null,null,null,3300,3795,4125,25,1830,5.55,5.75,2,6,270,"C.I.P.","metrique","carabine",null,null,null,null,null,null,null,null,null,null,null,null,null,null,null,null,null,null,null,null,null,null,null,null,null,null,null,null,null,null,null,"10,75 x 73","404 Riml. N.E."]
[18,6,"5,6 x 61 SE.v.H.",44.01,53.06,61,null,null,80,1.5,12.2,null,3,10.5,1,"59°31'48\"",0.3,"45°",12.2,11.6,"30°00'02\"",65.66,0.5,0.5,6.75,6.68,5.79,null,75.5,"DE","g",null,null,null,null,4400,5060,5500,25,3005,5.58,5.76,2,6,220,"C.I.P.","metrique","carabine",null,null,null,null,null,null,null,null,null,null,null,null,null,null,null,null,null,null,null,null,null,null,null,null,null,null,null,null,null,null,null,"10,9 x 17,5 - R.N. 442 k","442 Webley","N"]
[19,466,"6 mm PPC ITA",27.3,31,37.9,null,null,55.7,1.5,11.18,null,3.5,9.6,1.2,"43°43'12\"",0.4,"35°",11.13,10.92,"60°",36.76,1.52,1.52,6.63,6.63,6.17,null,42.08,"ITA","g",null,null,null,null,4050,4658,5265,17.5,2250,6.02,6.17,2.29,6,551,"C.I.P.","metrique","carabine",null,null,null,null,null,null,null,null,null,null,null,null,null,null,null,null,null,null,null,null,null,null,null,null,null,null,null,null,null,null,null,"10.4 x 22 mm","41 ACT EXP"]
[20,14,"6 mm PPC",27.3,31,38.18,null,null,55.7,1.5,11.18,null,3.5,9.6,1.2,"43°43'12\"",0.4,"35°",11.13,10.92,"60°",36.76,null,null,6.65,6.65,6.17,null,43.76,"US","g",null,null,null,null,4050,4658,5060,17.5,2250,6.02,6.17,2.29,6,551,"C.I.P.","metrique","carabine",null,null,null,null,null,null,null,null,null,null,null,null,null,null,null,null,null,null,null,null,null,null,null,null,null,null,null,null,null,null,null,"11 x 18 - 450 kurz","450 Short"]
[21,8,"6 x 47 ATZL",37.08,39.93,47,null,null,63,1.1399999999999999,9.6,null,3.11,8.43,0.76,"25°",0.45,"35°",9.56,9.07,"46°00'30\"",47.46,0.64,2.54,6.65,6.65,6.17,null,52.57,"AT","g",null,null,null,null,4050,4660,5060,25,2100,6.02,6.17,2.29,6,356,"C.I.P.","metrique","carabine",null,null,null,null,null,null,null,null,null,null,null,null,null,null,null,null,null,null,null,null,null,null,null,null,null,null,null,null,null,null,null,"11 x 33 R","44-40 Win."]
[22,10,"6 x 51 ATZL",40.270000000000003,43.03,51,null,null,68,1.1399999999999999,9.6,null,3.1,8.44,0.8,"25°46'09\"",0.5,"45°",9.56,9,"46°07'17\"",50.84,0.5,0.5,6.65,6.65,6.17,null,56.57,"AT","g",null,null,null,null,4050,4658,5060,25,2100,6.02,6.17,2.29,6,356,"C.I.P.","metrique","carabine",null,null,null,null,null,null,null,null,null,null,null,null,null,null,null,null,null,null,null,null,null,null,null,null,null,null,null,null,null,null,null,"11 x 71,5 Roth","11,2 x 72 Schueler","N"]
[23,162,"6 x 50 R Scheiring",40.26,42.87,50,null,null,69,1.4,10.9,null,null,null,null,null,0.5,"45°",9.59,9,"46°04'44\"",50.84,0.5,0.5,6.78,6.75,6.17,null,56,"AT","b",null,null,null,null,4400,5060,5500,25,2100,6.02,6.17,1.73,6,254,"C.I.P.","metrique","carabine",null,null,null,null,null,null,null,null,null,null,null,null,null,null,null,null,null,null,null,null,null,null,null,null,null,null,null,null,null,null,null,"11,15 mm Mauser","11,15 x 60 R"]
[24,465,"6 mm D.B.G.",32.82,35.909999999999997,41,null,null,58,1.24,10.72,null,3.15,9.09,0.84,"36°",0.38,"35°",10.65,10.34,"60°",41.77,null,null,6.77,6.77,6.17,null,44.84,"ITA","g",null,null,null,null,4150,4773,5188,25,2100,6.02,6.17,1.73,6,254,"C.I.P.","metrique","carabine",null,null,null,null,null,null,null,null,null,null,null,null,null,null,null,null,null,null,null,null,null,null,null,null,null,null,null,null,null,null,null,"11,15 x 59,8 Roth","11,2 x 60","N"]
[25,164,"6 x 52 R Bretschneider",35.04,40.729999999999997,52,null,null,68.5,1.6,12.5,null,null,null,null,null,0.3,"45°",10.62,9.1999999999999993,"24°00'38\"",56.67,0.5,0.5,6.78,6.78,6.17,null,58.67,"DE","b",null,null,null,null,3300,3795,4125,25,2205,6.02,6.17,1.73,6,254,"C.I.P.","metrique","carabine",null,null,null,null,null,null,null,null,null,null,null,null,null,null,null,null,null,null,null,null,null,null,null,null,null,null,null,null,null,null,null,"11,15 x 59,8 Schueler","11,2 x 60","N"]
[26,464,"6 mm BR Farè",30.31,33.17,39.24,null,null,62,1.37,11.97,null,3.83,10.39,1.4,"36°",0.4,"45°",11.93,11.64,"80°14'19\"",37.22,0.25,1.5,6.82,6.82,6.17,null,46.03,"ITA","g",null,null,null,null,4400,5060,5500,17.5,2545,6.02,6.17,2.29,6,203.2,"C.I.P.","metrique","carabine",null,null,null,null,null,null,null,null,null,null,null,null,null,null,null,null,null,null,null,null,null,null,null,null,null,null,null,null,null,null,null,"11,15 x 60 R Mauser Mle 1871","11,15 x 60 R"]
[27,15,"6 mm PPC-USA",27.3,30.87,38.479999999999997,null,null,55.7,1.5,11.3,null,3.5,9.6,1.1000000000000001,"42°43'12\"",0.4,"45°",11.26,10.95,"60°05'34\"",36.770000000000003,1,3,6.82,6.82,6.17,null,43.96,"FI","g",null,null,null,null,4050,4658,5060,17.5,2020,6,6.14,2.2799999999999998,6,305,"C.I.P.","metrique","carabine",null,null,null,null,null,null,null,null,null,null,null,null,null,null,null,null,null,null,null,null,null,null,null,null,null,null,null,null,null,null,null,"11,15 x 65 R Lancaster","11,15 x 65 R Express","N"]
[28,163,"6 x 52 R BB2",40.83,44.4,52,null,null,69,1.6,12.5,null,null,null,null,null,0.3,"45°",10.62,9.1999999999999993,"36°",54.99,0.5,0.5,6.88,6.88,6.17,null,58.67,"DE","b",null,null,null,null,3300,3795,4125,25,2200,6.02,6.17,1.73,6,254,"C.I.P.","metrique","carabine",null,null,null,null,null,null,null,null,null,null,null,null,null,null,null,null,null,null,null,null,null,null,null,null,null,null,null,null,null,null,null,"11,2 x 60 Schueler","11,2 x 60","N"]
[29,166,"6 x 70 R",60,60.69,70,null,null,87,1.52,10.7,null,null,null,null,null,0.3,"45°",9,7.52,"40°33'54\"",70.17,0.5,0.5,7.01,7.01,6.17,null,75.180000000000007,"DE","b",null,null,null,null,2600,2990,3250,25,1785,6.02,6.17,1.73,6,254,"C.I.P.","metrique","carabine",null,null,null,null,null,null,null,null,null,null,null,null,null,null,null,null,null,null,null,null,null,null,null,null,null,null,null,null,null,null,null,"11,2 x 72","11,2 x 72 Schueler","N"]
[30,13,"6 mm BR Rem.",27.3,31.44,39.619999999999997,null,null,55.88,1.37,12.01,null,3.85,10.39,1.4,"36°",0.46,"35°",11.96,11.68,"60°",37.42,0.64,1.27,6.9,6.87,6.18,null,44.44,"US","g",null,null,null,null,4050,4658,5060,17.5,2525,6.02,6.17,2.29,6,228.6,"C.I.P.","metrique","carabine",null,null,null,null,null,null,null,null,null,null,null,null,null,null,null,null,null,null,null,null,null,null,null,null,null,null,null,null,null,null,null,"11,4 x 53,5 R","45-70 Govt."]
[31,9,"6 x 47 SM",34.69,38.74,47,null,null,66,1.37,12.01,null,3.85,10.39,1.4,"36°",0.45,"45°",11.96,11.59,"60°30'",44.63,1.5,1.5,6.87,6.87,6.18,null,52.98,"CH","g",null,null,null,null,3900,4485,4875,25,2730,6.01,6.17,2.15,6,205,"C.I.P.","metrique","carabine",null,null,null,null,null,null,null,null,null,null,null,null,null,null,null,null,null,null,null,null,null,null,null,null,null,null,null,null,null,null,null,"11,4 x 59 R","577/450 Sld. Mart.H"]
[null,null,"6mm Creedmoor",37.85,41.94,48.77,null,null,71,1.37,11.99,null,3.84,10.39,1.4,"36°",0.38,"35°",11.95,11.73,"30°",48.01,null,null,7.01,7.01,6.18,null,null,null,"g",null,null,null,null,null,null,null,null,null,null,null,null,null,null,"SAAMI","pouce","carabine",null,null,null,null,null,null,null,null,null,null,null,null,null,null,null,null,null,null,null,null,null,null,null,null,null,null,null,null,null,null,null,"11,4 x 82 R","500/465 N.E."]
[32,12,"6mm BR Norma",27.3,31.44,39.619999999999997,null,null,62,1.37,12.01,null,3.85,10.39,1.4,"36°",0.4,"45°",11.96,11.68,"60°",37.42,0.64,1.5,6.9,6.87,6.18,null,45.61,"SE","g",null,null,null,null,4050,4658,5060,17.5,2545,6.02,6.17,2.29,6,203.2,"C.I.P.","metrique","carabine",null,null,null,null,null,null,null,null,null,null,null,null,null,null,null,null,null,null,null,null,null,null,null,null,null,null,null,null,null,null,null,"11,43 x 60 R (61 R)","577/450 Sld. Mart.H"]
[33,11,"6 x 62 Freres",49.4,55.75,61.75,null,null,82,1.3,12.1,null,3.2,10.5,1,"41°37'48\"",0.3,"45°",12.1,11.53,"39°58'51\"",65.25,0.5,0.5,6.91,6.91,6.18,null,68.42,"DE","g",null,null,null,null,4300,4945,5375,25,3300,6.02,6.17,1.73,6,260,"C.I.P.","metrique","carabine",null,null,null,null,null,null,null,null,null,null,null,null,null,null,null,null,null,null,null,null,null,null,null,null,null,null,null,null,null,null,null,"11,6 x 82,4","450 N.E. 3‘‘1/4"]
[34,165,"6 x 62 R Freres",49.4,55.75,61.75,null,null,82,1.4,13.5,null,null,null,null,null,null,null,12.12,11.53,"39°58'50\"",65.25,null,null,6.91,6.91,6.18,null,68.42,"DE","b",null,null,null,null,4300,4945,5375,25,3435,6.02,6.17,1.73,6,260,"C.I.P.","metrique","carabine",null,null,null,null,null,null,null,null,null,null,null,null,null,null,null,null,null,null,null,null,null,null,null,null,null,null,null,null,null,null,null,"11,7 x 22.0 - R.N. 455","455 Eley"]
[35,17,"6 XC",36.85,40.81,48.3,null,null,70,1.35,11.95,null,3.86,10.3,1.4,"36°",0.4,"45°",11.92,11.53,"60°",46.84,1,1.5,6.96,6.96,6.18,null,57.87,"SE","g",null,null,null,null,4400,5060,5500,25,3080,6,6.2,2.29,4,203.2,"C.I.P.","metrique","carabine",null,null,null,null,null,null,null,null,null,null,null,null,null,null,null,null,null,null,null,null,null,null,null,null,null,null,null,null,null,null,null,"11,9 x 82 R","470 N.E."]
[36,16,"6 mm Rem.",43.81,47.81,56.72,null,null,71.760000000000005,1.24,12.01,null,3.4,10.36,0.94,"34°",0.38,"35°",12.01,10.91,"52°",55,0.64,2.54,7.01,7.01,6.18,null,61.24,"US","g",null,null,null,null,4300,4945,5375,25,3180,6.02,6.17,2.29,6,228.6,"C.I.P.","metrique","carabine",null,null,null,null,null,null,null,null,null,null,null,null,null,null,null,null,null,null,null,null,null,null,null,null,null,null,null,null,null,null,null,"12 x 82,5 R","470 N.E."]
[37,425,"6 mm T/CU",37.299999999999997,38.5,44.2,null,null,63.5,1.1399999999999999,9.6,null,3.11,8.4499999999999993,0.76,null,null,null,9.5500000000000007,8.99,"080°",null,null,null,6.75,6.73,6.17,null,null,"US","g",null,10,1,"24",null,null,null,null,null,null,null,null,null,null,"SPEER",null,null,null,null,null,null,null,null,null,null,null,null,null,null,null,null,null,null,null,null,null,null,null,null,null,null,null,null,null,null,null,null,null,"12 x 89 R","475 N° 2 N.E. 3‘‘1/2"]
[38,467,"6,3 x 57 Farè",45.75,48.35,56.26,null,null,75,1.2,11.94,null,3.09,10.45,1,"40°",0.2,"45°",11.94,11.53,"80°",52.61,0.76,1.17,7.16,7.16,6.52,null,62.38,"ITA","g",null,null,null,null,4400,5060,5500,25,3300,6.35,6.52,2.5,6,254,"C.I.P.","metrique","carabine",null,null,null,null,null,null,null,null,null,null,null,null,null,null,null,null,null,null,null,null,null,null,null,null,null,null,null,null,null,null,null,"12,7 x 70 Schueler","12,5 x 70 Schueler","N"]
[39,329,"6,35 Browning",null,null,15.55,null,null,23,1.1000000000000001,7.65,null,2.77,6.35,0.75,"20°",0.3,"45°",7.02,null,null,null,null,null,null,7,6.38,null,19.07,"BE","p /g",null,null,null,null,1200,1380,1560,9,null,6.17,6.35,2.25,6,254,"C.I.P.","metrique","revolvers et pistolets",null,null,null,null,null,null,null,null,null,null,null,null,null,null,null,null,null,null,null,null,null,null,null,null,null,null,null,null,null,null,null,"12,7 x 76 R","500 N.E. 3‘‘"]
[40,429,"6,5-06",49.48,55.28,63.35,null,null,79.349999999999994,1.24,12.01,null,3.16,10.39,0.84,null,0.38,null,11.94,11.23,null,null,null,null,7.54,7.52,6.7,null,null,"US","g",null,3,1,"26",null,null,null,null,null,null,null,null,null,null,"NET",null,null,null,null,null,null,null,null,null,null,null,null,null,null,null,null,null,null,null,null,null,null,null,null,null,null,null,null,null,null,null,null,null,"12,7 x 76 R","577 N.E. 3‘‘"]
[41,18,"6,5 - 284 Norma",44.98,48.2,55.12,null,null,82,1.37,12.01,null,3.78,10.39,1.02,"40°",0.35,"45°",12.72,12.06,"70°14'46\"",53.55,0.76,3.18,7.53,7.53,6.71,null,67.34,"SE","g",null,null,null,null,4100,4715,5125,25,3200,6.5,6.71,2.29,6,228.6,"C.I.P.","metrique","carabine",null,null,null,null,null,null,null,null,null,null,null,null,null,null,null,null,null,null,null,null,null,null,null,null,null,null,null,null,null,null,null,"14,5 x 51 R","577 Sld. Snider"]
[42,472,"6,5 x 39",30.5,32.81,39,null,null,56,1.5,11.35,null,3.2,9.56,1,"52°",0.25,"45°",11.35,10.07,"60°",39.22,1,1.5,7.4,7.4,6.7,null,46.35,"RUS","g",null,null,null,null,4100,4715,5125,25,2500,6.5,6.7,2.5,4,250,"C.I.P.","metrique","carabine",null,null,null,null,null,null,null,null,null,null,null,null,null,null,null,null,null,null,null,null,null,null,null,null,null,null,null,null,null,null,null,"15,2 x 76 R","600 N.E."]
[43,19,"6,5 x 47 Lapua",35.68,39.31,47,null,null,71,1.37,12.01,null,3.85,10.39,1.4,"36°",0.38,"45°",11.95,11.59,"60°",45.720999999999997,1,1.5,7.4,7.4,6.71,null,55.7,"FI","g",null,null,null,null,4350,5003,5438,25,3300,6.5,6.7,2.29,6,200,"C.I.P.","metrique","carabine",null,null,null,null,null,null,null,null,null,null,null,null,null,null,null,null,null,null,null,null,null,null,null,null,null,null,null,null,null,null,null,"15,5 x 76 R","600 N.E."]
[44,167,"6,5 x 50 R",41.97,43.23,49.5,null,null,68,1.4,10.9,null,null,null,null,null,0.3,"45°",9.59,9.4,"80°08'44\"",47.56,null,null,7.28,7.27,6.7,null,55.5,"DE","b",null,null,null,null,3650,4198,4563,25,2500,6.45,6.7,3.6,4,228,"C.I.P.","metrique","carabine",null,null,null,null,null,null,null,null,null,null,null,null,null,null,null,null,null,null,null,null,null,null,null,null,null,null,null,null,null,null,null,"17 AMA","17 Rem."]
[45,168,"6,5 x 51 R (Arisaka)",38.92,43.4,51,null,null,76,1.5,12.08,null,2.2999999999999998,10.4,0.6,"60°",0.3,"45°",11.45,10.4,"37°",54.46,0.5,0.5,7.4,7.37,6.63,null,69.5,"JP","b",null,null,null,null,2950,3393,3688,25,2625,6.33,6.63,3.5,4,200,"C.I.P.","metrique","carabine",null,null,null,null,null,null,null,null,null,null,null,null,null,null,null,null,null,null,null,null,null,null,null,null,null,null,null,null,null,null,null,"17 T 216","17 Rem."]
[46,20,"6,5 x 52 Carcano",41.2,44.96,52.5,null,null,76.5,1.3,11.45,null,3.2,9.9499999999999993,1.7,"74°40'48\"",0.3,"45°",11.41,10.94,"48°32'",53.33,3,2.25,7.55,7.55,6.8,null,76.900000000000006,"IT","g",null,null,null,null,2850,3278,3560,25,2465,6.5,6.8,3,4,201.5,"C.I.P.","metrique","carabine",null,null,null,null,null,null,null,null,null,null,null,null,null,null,null,null,null,null,null,null,null,null,null,null,null,null,null,null,null,null,null,"17 USA","17 Rem."]
[47,169,"6,5 x 52 R",35,40,52,null,null,64.5,1.6,12.6,null,null,null,null,null,0.3,"45°",10.6,9.1999999999999993,"22°50'24\"",57.77,0.5,0.5,7.18,7.18,6.58,null,68,"DE","b",null,null,null,null,2450,2818,3060,25,1810,6.3,6.55,3.5,4,260,"C.I.P.","metrique","carabine",null,null,null,null,null,null,null,null,null,null,null,null,null,null,null,null,null,null,null,null,null,null,null,null,null,null,null,null,null,null,null,"19,9 x 23,7 -S.&W. 44","44 S&W Russian"]
[48,487,"6,5 x 52 R K&S",42.32,44.18,51.8,null,null,71.12,1.6,12.85,null,null,null,null,null,0.38,"35°",10.72,10.42,"80°",48.53,1,1,7.3,7.3,6.72,null,60.15,"DE","b",null,null,null,null,3250,3738,4063,25,2450,6.45,6.7,3.5,4,200,"C.I.P.","metrique","carabine",null,null,null,null,null,null,null,null,null,null,null,null,null,null,null,null,null,null,null,null,null,null,null,null,null,null,null,null,null,null,null,"22 Center Fire Magnum","22 Rem.Jet Mag."]
[49,428,"6,5 x 53 R Mannlicher",41.57,45,53.59,null,null,77.47,1.25,13.4,null,null,null,null,null,0.3,"45°",11.48,10.75,"50°",null,null,null,7.55,7.55,6.7,null,null,null,"b",null,7,1,"26",2800,null,null,null,null,6.48,6.78,0,null,null,"MALFATI",null,null,null,null,null,null,null,null,null,null,null,null,null,null,null,null,null,null,null,null,null,null,null,null,null,null,null,null,null,null,null,null,null,"22 Experimental","222 Rem. Mag."]
[50,21,"6,5 x 54 Mauser",36.5,43.05,54,null,null,68,1.5,11.8,null,3.6,10.199999999999999,1,"38°30'",0.3,"45°",11.95,11.1,"29°59'56\"",57.21,0.5,0.5,7.59,7.59,6.64,null,68,"DE","g",null,null,null,null,3050,3508,3810,25,2380,6.4,6.64,3.5,4,200,"C.I.P.","metrique","carabine",null,null,null,null,null,null,null,null,null,null,null,null,null,null,null,null,null,null,null,null,null,null,null,null,null,null,null,null,null,null,null,"22 High Power","22 Savage"]
[51,22,"6,5 x 54 Mannl. Sch.",41.82,45.6,53.65,null,57.2,77.8,1.05,11.52,null,3.4,9.6999999999999993,1,"33°15'",null,"45°",11.47,10.87,"47°17'26\"",54.24,0.5,0.5,7.56,7.49,6.7,6.7,74.8,"AT","g",null,null,null,null,3650,4198,4560,25,2430,6.48,6.78,3.5,4,200,"C.I.P.","metrique","carabine",null,null,null,null,null,null,null,null,null,null,null,null,null,null,null,null,null,null,null,null,null,null,null,null,null,null,null,null,null,null,null,"22 Jet","22 Rem.Jet Mag."]
[52,23,"6,5 x 55 SE.",43.49,47.13,55,null,null,80,1.5,12.2,null,3.25,10.5,0.9,"45°",0.5,"45°",12.2,11.04,"50°35'02\"",55.17,3.5,3.7,7.6,7.52,6.71,null,69.099999999999994,"SE","g",null,null,null,null,3800,4370,4750,25,3395,6.5,6.73,2.5,4,220,"C.I.P.","metrique","carabine",null,null,null,null,null,null,null,null,null,null,null,null,null,null,null,null,null,null,null,null,null,null,null,null,null,null,null,null,null,null,null,"22 Rem. Centerfire Mag.","22 Rem.Jet Mag."]
[53,473,"6,5 x 55 T.R.I.",43.59,47.06,54.7,null,null,85,1.5,12.13,null,3.23,10.5,0.9,"45°",0.5,"45°",12.15,11.52,"60°",53.56,null,1.52,7.51,7.51,6.7,null,64.150000000000006,"ITA","g",null,null,null,null,3800,4370,4750,25,3400,6.5,6.7,2.5,4,203.2,"C.I.P.","metrique","carabine",null,null,null,null,null,null,null,null,null,null,null,null,null,null,null,null,null,null,null,null,null,null,null,null,null,null,null,null,null,null,null,"22 Rem. Jet","22 Rem.Jet Mag."]
[54,24,"6,5 x 57",44.5,49.3,56.7,null,59,82,1.3,11.95,null,3.2,10.5,1,"37°52'48\"",0.3,"45°",11.9,10.94,"37°50'02\"",60.46,0.5,0.5,7.65,7.65,6.7,6.7,86.7,"DE","g",null,null,null,null,3900,4485,4875,25,3260,6.45,6.7,3.5,4,200,"C.I.P.","metrique","carabine",null,null,null,null,null,null,null,null,null,null,null,null,null,null,null,null,null,null,null,null,null,null,null,null,null,null,null,null,null,null,null,"22 Savage HP","22 Savage"]
[55,170,"6,5 x 57 R",44.5,49.3,56.7,null,null,82,1.4,13.32,null,null,null,null,null,0.3,"45°",11.92,10.94,"37°50'02\"",60.46,0.5,0.5,7.65,7.65,6.7,null,86.7,"DE","b",null,null,null,null,3300,3795,4125,25,3055,6.45,6.7,3.5,4,200,"C.I.P.","metrique","carabine",null,null,null,null,null,null,null,null,null,null,null,null,null,null,null,null,null,null,null,null,null,null,null,null,null,null,null,null,null,null,null,"22 Varminter","22-250 Rem."]
[56,171,"6,5 x 58 R",null,47.5,58.5,null,null,78,1.1499999999999999,12.75,null,null,null,null,null,0.3,"45°",11.1,null,null,null,null,null,7.57,7.57,6.64,null,88.5,"DE","b",null,null,null,null,2800,3220,3500,25,2300,6.4,6.64,3.5,4,200,"C.I.P.","metrique","carabine",null,null,null,null,null,null,null,null,null,null,null,null,null,null,null,null,null,null,null,null,null,null,null,null,null,null,null,null,null,null,null,"22 W.C.F. Hornet","22 Hornet"]
[57,25,"6,5 x 58 Mauser",42.52,48.58,58,null,null,82.5,1.5,11.8,null,3.4,10.199999999999999,1,"45°",0.3,"45°",11.95,10.95,"30°01'18\"",62.94,0.5,0.5,7.7,7.7,6.7,null,88,"DE","g",null,null,null,null,3550,4083,4440,25,3330,6.45,6.7,3.5,4,200,"C.I.P.","metrique","carabine",null,null,null,null,null,null,null,null,null,null,null,null,null,null,null,null,null,null,null,null,null,null,null,null,null,null,null,null,null,null,null,"22 W.R.A. Hornet","22 Hornet"]
[58,27,"6,5 x 64",51.97,54.32,64,null,null,84,1.3,11.95,null,3.2,10.5,1,"36°15'",0.3,"45°",11.82,11.6,"80°05'21\"",58.87,null,null,7.65,7.64,6.7,null,72,"DE","g",null,null,null,null,4300,4945,5375,25,3645,6.45,6.7,3.6,4,228,"C.I.P.","metrique","carabine",null,null,null,null,null,null,null,null,null,null,null,null,null,null,null,null,null,null,null,null,null,null,null,null,null,null,null,null,null,null,null,"22 Winchester Hornet","22 Hornet"]
[59,28,"6,5 x 64 Brenneke",49.5,55.4,64.52,null,null,84.84,1.24,12.01,null,3.27,10.39,0.9,"36°",0.91,"72°",11.97,11.21,"35°20'54\"",67.09,1.02,3.18,7.45,7.42,6.7,null,71.099999999999994,"DE","g",null,null,null,null,4300,4945,5190,25,3645,6.45,6.7,3.5,4,255,"C.I.P.","metrique","carabine",null,null,null,null,null,null,null,null,null,null,null,null,null,null,null,null,null,null,null,null,null,null,null,null,null,null,null,null,null,null,null,"22 x 36 HO","22 Hornet"]
[60,172,"6,5 x 65 R RWS",53.85,58.52,65,null,null,85,1.5,13.5,null,null,null,null,null,null,null,12.08,10.97,"40°",68.92,null,null,7.57,7.57,6.7,null,74.959999999999994,"DE","b",null,null,null,null,3800,4170,4750,25,3675,6.45,6.7,3.5,4,200,"C.I.P.","metrique","carabine",null,null,null,null,null,null,null,null,null,null,null,null,null,null,null,null,null,null,null,null,null,null,null,null,null,null,null,null,null,null,null,"220 Russian","5,6 x 39"]
[61,29,"6,5 x 65 RWS",53.85,58.52,65,null,null,85,1.3,11.95,null,3.2,10.5,1,"40°33'",0.3,"45°",12.04,10.97,"40°00'02\"",68.92,null,null,7.57,7.57,6.7,null,74.959999999999994,"DE","g",null,null,null,null,4150,4773,5190,25,3955,6.45,6.7,3.5,4,200,"C.I.P.","metrique","carabine",null,null,null,null,null,null,null,null,null,null,null,null,null,null,null,null,null,null,null,null,null,null,null,null,null,null,null,null,null,null,null,"220 WOS","22-250 Rem."]
[62,30,"6,5 x 68",51.75,60.5,67.5,null,67.900000000000006,86.5,1.4,13,null,3.5,11.2,1,"43°40'12\"",0.3,"45°",13.3,12.18,"29°19'56\"",75.02,0.5,0.5,7.6,7.6,6.7,6.7,97.5,"DE","g",null,null,null,null,4400,5060,5500,25,4045,6.45,6.7,3.5,4,250,"C.I.P.","metrique","carabine",null,null,null,null,null,null,null,null,null,null,null,null,null,null,null,null,null,null,null,null,null,null,null,null,null,null,null,null,null,null,null,"221 Fireball","221 Rem. Fireball"]
[63,173,"6,5 x 68 R",51.78,60.53,67.5,null,null,87.5,1.75,15,null,null,null,null,null,0.3,"45°",13.34,12.18,"29°19'59\"",75.05,0.5,0.5,7.6,7.6,6.7,null,97.5,"DE","b",null,null,null,null,3900,4485,4875,25,3810,6.45,6.7,3.5,4,250,"C.I.P.","metrique","carabine",null,null,null,null,null,null,null,null,null,null,null,null,null,null,null,null,null,null,null,null,null,null,null,null,null,null,null,null,null,null,null,"221 Remington","221 Rem. Fireball"]
[64,174,"6,5 x 70 R",null,60,70,null,null,90,1.52,10.7,null,null,null,null,null,0.3,"45°",9,null,null,null,null,null,7.52,7.42,6.64,null,100,"DE/AT","b",null,null,null,null,2800,3220,3500,25,1730,6.4,6.64,3.5,4,200,"C.I.P.","metrique","carabine",null,null,null,null,null,null,null,null,null,null,null,null,null,null,null,null,null,null,null,null,null,null,null,null,null,null,null,null,null,null,null,"222 Rem. Special","223 Rem."]
[65,469,"6,5 Grendel",29.23,32.25,38.61,null,null,57.4,1.5,11.2,null,3.5,9.6,1.19,"45,00°",0.25,"55°",11.22,10.92,"60,00°",38.68,0.76,1.27,7.44,7.44,6.71,null,45.93,"USA","g",null,null,null,null,4050,4658,5063,25,2800,6.5,6.71,2.29,6,200,"C.I.P.","metrique","carabine",null,null,null,null,null,null,null,null,null,null,null,null,null,null,null,null,null,null,null,null,null,null,null,null,null,null,null,null,null,null,null,"223 Armalite","223 Rem."]
[66,426,"6,5 mm JDJ",41.4,43.43,48.26,null,null,68.58,1.24,12.01,null,null,null,null,null,null,null,10.76,10.39,"080°",null,null,null,7.44,7.37,6.7,null,null,"US","b",null,11,1,"26",null,null,null,null,null,null,null,null,null,null,"SPEER",null,null,null,null,null,null,null,null,null,null,null,null,null,null,null,null,null,null,null,null,null,null,null,null,null,null,null,null,null,null,null,null,null,"223 Rem.Special","223 Rem."]
[67,427,"6,5 mm T/CU",36.520000000000003,37.94,44.42,null,null,63.5,1.1399999999999999,9.6,null,3.13,8.43,0.76,"25°",0.45,"35°",9.58,9,null,null,null,null,7.42,7.42,6.72,null,null,"US","g",null,10,null,"26",null,null,null,null,null,null,null,null,null,null,"NET",null,null,null,null,null,null,null,null,null,null,null,null,null,null,null,null,null,null,null,null,null,null,null,null,null,null,null,null,null,null,null,null,null,"244 Rem.","6 mm Rem."]
[68,470,"6,5 mm D.B.G.",38.92,44.19,51.9,null,null,72,1.27,13.56,null,3.75,12.07,0.94,"32°",0.41,"35°",14,13.59,"60°02'18\"",50.68,null,null,7.5,7.5,6.71,null,58.62,"ITA","g",null,null,null,null,4400,5060,5500,25,3800,6.5,6.71,1.73,6,254,"C.I.P.","metrique","carabine",null,null,null,null,null,null,null,null,null,null,null,null,null,null,null,null,null,null,null,null,null,null,null,null,null,null,null,null,null,null,null,"25 - 6,35 mm Auto","6,35 Browning"]
[69,26,"6,5 x 63 Messner Mag.",51.55,55.96,63,null,null,84.5,1.3,12.63,null,3.2,11.2,1,"43°",0.3,"45°",12.85,12.4,"57°54'38\"",62.76,0.67,2,7.52,7.52,6.71,null,89.41,"FR","g",null,null,null,null,4400,5060,5500,25,4200,6.45,6.7,3.5,4,200,"C.I.P.","metrique","carabine",null,null,null,null,null,null,null,null,null,null,null,null,null,null,null,null,null,null,null,null,null,null,null,null,null,null,null,null,null,null,null,"25 ACP","6,35 Browning"]
[70,471,"6,5 mm Lahoz",33.520000000000003,37.299999999999997,42.87,null,null,57.4,1.5,11.45,null,3.2,9.9499999999999993,1.5,"74°40'48\"",0.3,"45°",11.41,10.94,"48°18'15\"",45.72,3,2,7.55,7.55,6.71,null,48.49,"FR","g",null,null,null,null,3450,3968,4313,25,2010,6.5,6.7,2.42,6,228.6,"C.I.P.","metrique","carabine",null,null,null,null,null,null,null,null,null,null,null,null,null,null,null,null,null,null,null,null,null,null,null,null,null,null,null,null,null,null,null,"25 ASP","6,35 Browning"]
[71,468,"6,5 Creedmoor",37.840000000000003,41.52,48.77,null,null,71.760000000000005,1.37,12.01,null,3.84,10.39,1.4,"36°",0.38,"35°",11.95,11.74,"60°",48.01,0.76,3.18,7.49,7.49,6.72,null,58.42,"USA","g",null,null,null,null,4350,5003,5438,25,3400,6.5,6.71,2.29,6,203,"C.I.P.","metrique","carabine",null,null,null,null,null,null,null,null,null,null,null,null,null,null,null,null,null,null,null,null,null,null,null,null,null,null,null,null,null,null,null,"25 Auto","6,35 Browning"]
[72,288,"6,5 mm Rem. Mag.",43.18,48.49,55.12,null,null,71.12,1.27,13.51,13.51,5.59,12.07,0.94,"35°",0.41,"35°",13.03,12.58,"50°",56.67,0.76,2.54,7.63,7.57,6.72,null,62.17,"US","m",null,null,null,null,4350,5003,5438,25,3885,6.5,6.71,2.41,6,229,"C.I.P.","metrique","carabine magnum",null,null,null,null,null,null,null,null,null,null,null,null,null,null,null,null,null,null,null,null,null,null,null,null,null,null,null,null,null,null,null,"25 Colt Automatic","6,35 Browning"]
[null,null,"6.5 PRC",39.85,44.66,51.56,null,null,69.98,1.27,13.51,null,3.24,12.07,0.94,"35°",0.41,"35°",13.51,13.1,"60°",51.18,null,null,7.54,7.54,6.71,null,null,null,"g",null,null,null,null,null,null,null,null,null,null,null,null,null,null,"SAAMI","pouce","carabine",null,null,null,null,null,null,null,null,null,null,null,null,null,null,null,null,null,null,null,null,null,null,null,null,null,null,null,null,null,null,null,"25 Niedner","25-06 Rem."]
[null,null,"6.5-284 NORMA",44.98,48.2,55.12,null,null,73,1.37,12.01,null,3.77,10.39,1.02,"40°",0.35,"45°",12.7,12.06,"70°14'46''",53.55,null,null,7.53,7.53,6.71,null,null,null,"g",null,null,null,null,null,null,null,null,null,null,null,null,null,null,"SAAMI","pouce","carabine",null,null,null,null,null,null,null,null,null,null,null,null,null,null,null,null,null,null,null,null,null,null,null,null,null,null,null,null,null,null,null,"25/30-06 Springfield","25-06 Rem."]
[null,null,"6.5-300 Weatherby Magnum",58.38,64.150000000000006,71.760000000000005,null,null,91,1.3,13.5,13.5,5.56,11.61,1.24,"45°",0.31,"45°",13,12.5,null,null,3.05,4.62,7.49,7.49,6.72,null,null,null,"m",null,null,null,null,null,null,null,null,null,null,null,null,null,null,"SAAMI","pouce","carabine",null,null,null,null,null,null,null,null,null,null,null,null,null,null,null,null,null,null,null,null,null,null,null,null,null,null,null,null,null,null,null,"25/32-20 W.C.F.","25-20 Win."]
[73,31,"6,8 mm Rem. SPC",33.049999999999997,35.909999999999997,42.84,null,null,57.4,1.24,10.72,null,3.2,9.09,0.84,"36°",0.38,"35°",10.72,10.199999999999999,"46°",45.05,0.64,2.54,7.77,7.77,7.06,null,48.41,"US","g",null,null,null,null,4050,4658,5063,25,2993,6.86,7.04,4.0599999999999996,4,254,"C.I.P.","metrique","carabine",null,null,null,null,null,null,null,null,null,null,null,null,null,null,null,null,null,null,null,null,null,null,null,null,null,null,null,null,null,null,null,"250-3000","250 Savage"]
[74,32,"7 x 33 Sako",26.68,29.1,33.33,null,null,44.44,1.27,10,null,3.05,8.8000000000000007,0.9,"32°42'",0.3,"45°",9.93,9.52,"35°56'39\"",41.35,null,null,7.95,7.9,7.26,null,41.4,"FI","g",null,null,null,null,2800,3220,3500,17.5,1715,6.98,7.23,3.6,4,401,"C.I.P.","metrique","carabine",null,null,null,null,null,null,null,null,null,null,null,null,null,null,null,null,null,null,null,null,null,null,null,null,null,null,null,null,null,null,null,"250-3000 Savage","250 Savage"]
[75,474,"7 X 44 Penna",35,38.67,44.5,null,null,60,1.1399999999999999,9.6,null,3.13,8.43,0.76,"25°",0.45,"35°",9.58,9.0299999999999994,"22°02'56\"",58.17,0.6,2.5,7.6,7.6,7.04,null,59.66,"ITA","g",null,null,null,null,4400,5060,5500,25,2000,6.86,7.03,0.85,6,254,"C.I.P.","metrique","carabine",null,null,null,null,null,null,null,null,null,null,null,null,null,null,null,null,null,null,null,null,null,null,null,null,null,null,null,null,null,null,null,"25-06","25-06 Rem."]
[76,330,"7 x 49 GJW",42.32,43.23,49,null,null,73.5,1.1399999999999999,9.6,null,3.1,8.44,0.8,"25°22'18\"",0.5,"45°",9.5399999999999991,9.3000000000000007,"80°06'18\"",47.85,null,null,7.77,7.77,7.25,null,61.09,"DE","p /g",null,null,null,null,4700,5405,6110,25,null,6.96,7.2,3.7,4,228,"C.I.P.","metrique","revolvers et pistolets",null,null,null,null,null,null,null,null,null,null,null,null,null,null,null,null,null,null,null,null,null,null,null,null,null,null,null,null,null,null,null,"25-06 (.25 Niedner)","25-06 Rem."]
[77,176,"7 x 50 R",41.97,42.9,49.5,null,null,68,1.4,10.9,null,null,null,null,null,0.3,"45°",9.59,9.4,"80°20'05\"",47.54,null,null,7.83,7.82,7.25,null,56,"DE","b",null,null,null,null,3650,4198,4560,25,2940,6.98,7.24,4.0999999999999996,4,228,"C.I.P.","metrique","carabine",null,null,null,null,null,null,null,null,null,null,null,null,null,null,null,null,null,null,null,null,null,null,null,null,null,null,null,null,null,null,null,"250-Hi Power","250 Savage"]
[78,177,"7 x 57 R",43.8,47.37,57,null,null,78,1.6,13.5,null,null,null,null,null,0.3,"45°",12.05,10.92,"41°00'24\"",58.4,0.5,0.5,8.25,8.25,7.25,null,76.69,"DE","b",null,null,null,null,3400,3910,4250,25,3390,6.98,7.24,3.7,4,228,"C.I.P.","metrique","carabine",null,null,null,null,null,null,null,null,null,null,null,null,null,null,null,null,null,null,null,null,null,null,null,null,null,null,null,null,null,null,null,"25-20 W.C.F.","25-20 Win."]
[79,33,"7 x 57",43.84,47.41,57,null,null,78,1.1499999999999999,12.1,null,3.04,10.7,0.84,"32°",0.3,"45°",12.01,10.92,"40°54'05\"",58.48,0.5,0.5,8.25,8.25,7.25,null,76.2,"DE","g",null,null,null,null,3900,4485,4875,25,3450,6.98,7.24,3.9,4,220,"C.I.P.","metrique","carabine",null,null,null,null,null,null,null,null,null,null,null,null,null,null,null,null,null,null,null,null,null,null,null,null,null,null,null,null,null,null,null,"256 Ball","6,5 x 51 R (Arisaka)"]
[80,34,"7 x 64",51.5,55.37,64,70.400000000000006,null,84,1.3,11.95,null,3.2,10.5,1,"36°52'12\"",0.3,"45°",11.85,10.8,"40°25'44\"",66.17,0.5,0.5,7.95,7.95,7.25,7.25,98,"DE","g",null,null,null,null,4150,4773,5190,25,4270,6.98,7.24,3.7,4,220,"C.I.P.","metrique","carabine",null,null,null,null,null,null,null,null,null,null,null,null,null,null,null,null,null,null,null,null,null,null,null,null,null,null,null,null,null,null,null,"256 Jap. Arisaka","6,5 x 51 R (Arisaka)"]
[81,179,"7 x 65 R",51.5,55.36,65,null,null,83.6,1.4,13.32,null,null,null,null,null,0.3,"45°",11.89,10.8,"40°31'32\"",66.13,0.5,0.5,7.95,7.95,7.25,null,98,"DE","b",null,null,null,null,3800,4370,4750,25,4170,6.98,7.24,3.7,4,220,"C.I.P.","metrique","carabine",null,null,null,null,null,null,null,null,null,null,null,null,null,null,null,null,null,null,null,null,null,null,null,null,null,null,null,null,null,null,null,"256 Krag-Jörgensen","6,5 x 55 SE."]
[82,180,"7 x 67 R Luyven",53.53,60.05,66.7,null,null,90,1.6,13.49,null,null,null,null,null,null,null,12.27,11.47,"27°49'24\"",76.680000000000007,null,null,8.24,8.24,7.25,null,86.38,"DE","b",null,null,null,null,3800,4370,4750,25,3800,6.98,7.24,3.7,4,228,"C.I.P.","metrique","carabine",null,null,null,null,null,null,null,null,null,null,null,null,null,null,null,null,null,null,null,null,null,null,null,null,null,null,null,null,null,null,null,"256 Mannlicher","6,5 x 53 R Mannlicher"]
[83,289,"7 x 61 Super",50.8,52.85,61,64.5,null,83,1.3,13.5,13.5,5.6,12.2,1.1000000000000001,"35°",0.41,"35°",13.05,11.91,"85°45'",57.21,2,1.5,8.1,8.06,7.2,7.2,88,"SE","m",null,null,null,null,4050,4658,5060,25,4620,7,7.22,2.7,6,229,"C.I.P.","metrique","carabine magnum",null,null,null,null,null,null,null,null,null,null,null,null,null,null,null,null,null,null,null,null,null,null,null,null,null,null,null,null,null,null,null,"256 Mannlicher Rim.","6,5 x 53 R Mannlicher"]
[84,181,"7 x 72 R",52,60,72,null,null,92,1.3,12.35,null,null,null,null,null,0.3,"45°",10.85,8.6,"4°39'10\"",157.85,null,null,7.95,7.92,7.25,null,91.2,"DE","b",null,null,null,null,2800,3220,3500,25,2890,6.98,7.24,3.9,4,220,"C.I.P.","metrique","carabine",null,null,null,null,null,null,null,null,null,null,null,null,null,null,null,null,null,null,null,null,null,null,null,null,null,null,null,null,null,null,null,"256 Mannlicher Schönauer","6,5 x 54 Mannl. Sch."]
[85,182,"7 x 75 R SE v. H.",59,66.8,75,null,null,97,1.4,13.35,null,null,null,null,null,0.3,"45°",11.9,10.7,"19°59'42\"",89.35,0.5,0.5,7.95,7.95,7.24,null,94,"DE","b",null,null,null,null,4150,4773,5190,25,4830,6.98,7.24,3.7,4,240,"C.I.P.","metrique","carabine",null,null,null,null,null,null,null,null,null,null,null,null,null,null,null,null,null,null,null,null,null,null,null,null,null,null,null,null,null,null,null,"256 Winchester","256 Win. Mag."]
[86,175,"7-30 Waters",40.29,44.02,51.82,null,null,64.77,1.6,12.85,null,null,null,null,null,0.38,"35°",10.71,10.14,"34°24'",56.67,4.57,6.35,7.83,7.78,7.23,null,58.73,"US","b",null,null,null,null,3400,3910,4250,25,2760,7.04,7.21,2.79,6,241.3,"C.I.P.","metrique","carabine",null,null,null,null,null,null,null,null,null,null,null,null,null,null,null,null,null,null,null,null,null,null,null,null,null,null,null,null,null,null,null,"275 HV Rigby","7 x 57"]
[87,475,"7-47 GS",35.68,38.9,47,null,null,71,1.37,12.01,null,3.84,10.39,1.4,"36°",0.38,"45°",11.95,11.59,"61°21'",45.45,1,1.5,7.77,7.77,7.06,null,52.57,"ITA","g",null,null,null,null,4350,5003,5438,25,3600,6.86,7.04,4.0599999999999996,4,280,"C.I.P.","metrique","carabine",null,null,null,null,null,null,null,null,null,null,null,null,null,null,null,null,null,null,null,null,null,null,null,null,null,null,null,null,null,null,null,"275 Rigby","7 x 57"]
[88,35,"7 mm - 08 Rem.",39.619999999999997,44.47,51.69,null,null,71.12,1.37,12.01,null,3.85,10.39,1.4,"36°",0.38,"35°",11.96,11.53,"40°",55.46,0.76,3.18,8,8,7.23,null,56.93,"US","g",null,null,null,null,4150,4773,5190,25,3720,7.04,7.21,2.79,6,241,"C.I.P.","metrique","carabine",null,null,null,null,null,null,null,null,null,null,null,null,null,null,null,null,null,null,null,null,null,null,null,null,null,null,null,null,null,null,null,"275 Rigby Mauser","7 x 57"]
[89,431,"7 mm International Rimmed",37.67,39.119999999999997,51.79,null,null,71,1.6,12.85,null,1.6,0,0,null,0.38,"35°",10.71,10.210000000000001,"076°",null,null,null,7.9,7.87,7.21,null,null,"US","b",null,2,2,"28",null,null,null,null,null,null,null,null,null,null,"NET",null,null,null,null,null,null,null,null,null,null,null,null,null,null,null,null,null,null,null,null,null,null,null,null,null,null,null,null,null,null,null,null,null,"275 Rimless","7 x 57"]
[90,430,"7 mm IHMSA",34.799999999999997,38.51,47.4,null,null,69.849999999999994,1.24,12.01,null,3.18,10.39,0.84,null,0.38,"35°",11.96,11.38,"076°",null,null,null,7.94,7.91,7.21,null,null,"US","g",null,3,1,"28",null,null,null,null,null,null,null,null,null,null,"NET",null,null,null,null,null,null,null,null,null,null,null,null,null,null,null,null,null,null,null,null,null,null,null,null,null,null,null,null,null,null,null,null,null,"276 Brenneke","7 x 64"]
[91,332,"7 mm Penna",null,null,23,25,null,34.5,1.2,7.95,null,2.92,6.8,1.1499999999999999,"45°",0.1,"45°",7.95,null,null,null,null,null,null,7.9,7.04,7.04,27.25,"IT","p /g",null,null,null,null,2500,2875,3250,12.5,null,6.86,7.03,0.85,6,254,"C.I.P.","metrique","revolvers et pistolets",null,null,null,null,null,null,null,null,null,null,null,null,null,null,null,null,null,null,null,null,null,null,null,null,null,null,null,null,null,null,null,"276 Mauser","7 x 57"]
[92,178,"7 mm Penna L",null,null,28,30,null,41,1.2,7.95,null,2.92,6.8,1.1499999999999999,"45°",0.1,"45°",7.95,null,null,null,null,null,null,7.9,7.04,7.04,32.25,"IT","p /g",null,null,null,null,2750,3163,3575,12.5,null,6.86,7.03,0.85,6,354,"C.I.P.","metrique","revolvers et pistolets",null,null,null,null,null,null,null,null,null,null,null,null,null,null,null,null,null,null,null,null,null,null,null,null,null,null,null,null,null,null,null,"295-10-80","300/295 Rook Rifle"]
[93,292,"7 mm Mag. FI. H&H",49.53,54.61,63.5,null,null,82.8,1.0900000000000001,12.95,null,null,null,null,null,null,null,11.68,10.29,"24°31'59\"",73.19,null,null,8.08,8.08,7.21,null,69.040000000000006,"GB","b",null,null,null,null,3300,3795,4125,25,3150,6.96,7.2,null,null,220,"C.I.P.","metrique","carabine",null,null,null,null,null,null,null,null,null,null,null,null,null,null,null,null,null,null,null,null,null,null,null,null,null,null,null,null,null,null,null,"297/20 Long","297/230 Morris lg"]
[94,36,"7 mm Weath. Mag.",52.55,54.66,64.739999999999995,null,null,85.34,1.3,13.5,13.5,5.56,11.61,1.24,"45°",0.3,"45°",13,12.49,"94°17'36\"",58.34,3.3,3.84,7.92,7.92,7.22,null,79.78,"US","m",null,null,null,null,4400,5060,5500,25,5040,7.02,7.21,2.87,6,254,"C.I.P.","metrique","carabine magnum",null,null,null,null,null,null,null,null,null,null,null,null,null,null,null,null,null,null,null,null,null,null,null,null,null,null,null,null,null,null,null,"297/230 Morris lg","297/230 Morris lg"]
[95,489,"7 mm Blaser Mag.",47.24,51.65,59.7,null,null,80,1.37,13.59,null,3.61,12.19,1.42,"45°",0.3,"35°",13.84,13.09,"60°",58.58,1.5,2,8,8,7.22,null,68.959999999999994,"SE","g",null,null,null,null,4200,4830,5250,25,4585,7.04,7.21,4.0599999999999996,4,254,"C.I.P.","metrique","carabine",null,null,null,null,null,null,null,null,null,null,null,null,null,null,null,null,null,null,null,null,null,null,null,null,null,null,null,null,null,null,null,"297/230 Morris Short","297/230 Morris sh"]
[96,37,"7 mm Rosè",55.78,60.52,66.55,null,null,83.57,1.27,13.51,13.51,5.59,12.07,0.94,"35°",0.41,"35°",13.03,12.42,"50°",69.099999999999994,1.02,2.54,8,8,7.22,68.61,72.56,"ITA","m",null,null,null,null,4300,4945,5375,25,5000,7.04,7.21,2.79,6,241,"C.I.P.","metrique","carabine",null,null,null,null,null,null,null,null,null,null,null,null,null,null,null,null,null,null,null,null,null,null,null,null,null,null,null,null,null,null,null,"297/230 Short","297/230 Morris sh"]
[97,38,"7 mm BR Rem.",27.3,30.61,38.61,null,null,54.42,1.37,12.01,null,3.85,10.39,1.4,"36°",0.46,"35°",11.96,11.68,"60°",37.42,0.64,1.27,7.86,7.84,7.23,null,43.62,"US","g",null,null,null,null,4050,4658,5060,17.5,3150,7.04,7.21,2.79,6,241.3,"C.I.P.","metrique","carabine",null,null,null,null,null,null,null,null,null,null,null,null,null,null,null,null,null,null,null,null,null,null,null,null,null,null,null,null,null,null,null,"297/230-3-38 Morris","297/230 Morris sh"]
[98,290,"7 mm Exp. Rem.",50.78,55.87,64.52,null,null,84.58,1.24,12.01,null,3.17,10.39,0.84,"36°",0.38,"35°",11.97,11.21,"35°",68.56,0.64,2.54,8,8,7.23,null,69.27,"US","g",null,null,null,null,4050,4658,5060,25,3930,7.04,7.21,2.79,6,241,"C.I.P.","metrique","carabine",null,null,null,null,null,null,null,null,null,null,null,null,null,null,null,null,null,null,null,null,null,null,null,null,null,null,null,null,null,null,null,"297/230-5-38 Morris","297/230 Morris lg"]
[99,291,"7 mm Rem. Mag.",51.82,56.61,63.5,null,null,83.57,1.27,13.51,13.51,5.59,12.07,0.94,"35°",0.41,"35°",13.03,12.47,"50°",65.19,1.02,3.18,8,8,7.23,68.61,68.61,"US","m",null,null,null,null,4300,4945,5375,25,4515,7.04,7.21,2.79,6,241,"C.I.P.","metrique","carabine magnum",null,null,null,null,null,null,null,null,null,null,null,null,null,null,null,null,null,null,null,null,null,null,null,null,null,null,null,null,null,null,null,"30 (7,63) Mauser","7,63 Mauser"]
[100,432,"7 mm STW",60.69,65.319999999999993,72.39,null,null,92.71,1.27,13.51,13.51,5.58,12.07,0.94,"35°",0.41,"35°",13.03,12.37,"50°",73.95,1.02,3.18,8.0500000000000007,8.0500000000000007,7.23,null,80.010000000000005,"US","m",null,null,null,null,4400,5060,5500,25,5250,7.02,7.21,2.87,6,241,"C.I.P.","metrique","carabine magnum",null,null,null,null,null,null,null,null,null,null,null,null,null,null,null,null,null,null,null,null,null,null,null,null,null,null,null,null,null,null,null,"30 Automatic (M & B)","7,63 Mauser"]
[101,39,"7 mm T/CU",36.83,38.270000000000003,44.7,null,null,67.94,1.1399999999999999,9.6,null,3.13,8.43,0.76,null,0.45,"35°",9.58,9.3699999999999992,null,null,null,null,7.87,7.87,7.21,null,null,"US","g",null,10,0,"28",null,null,null,null,null,null,null,null,null,null,"NET",null,null,null,null,null,null,null,null,null,null,null,null,null,null,null,null,null,null,null,null,null,null,null,null,null,null,null,null,null,null,null,null,null,"30 Browning","30-06 Spring."]
[102,40,"7 mm KM",54.9,60.72,69.2,null,null,93.5,1.52,14.93,null,3.12,13.24,0.9,"50°",0.5,"45°",14.91,13.82,"52°01'19\"",69.05,null,2,8.14,8.1199999999999992,7.23,null,76.319999999999993,"DE","g",null,null,null,null,4400,5060,5500,25,5670,7.04,7.21,2.79,6,216,"C.I.P.","metrique","carabine",null,null,null,null,null,null,null,null,null,null,null,null,null,null,null,null,null,null,null,null,null,null,null,null,null,null,null,null,null,null,null,"30 Browning","7,65 Browning"]
[103,43,"7 mm Rem. SA Ultra Mag.",39.07,43.79,51.69,null,null,71.760000000000005,1.27,13.56,null,3.75,12.07,0.94,"32°",0.41,"35°",14,13.58,"60°",50.83,null,3.18,8.1300000000000008,8.1300000000000008,7.23,7.04,59.88,"US","g",null,null,null,null,4400,5060,5500,25,4500,7.04,7.21,2.79,6,254,"C.I.P.","metrique","carabine",null,null,null,null,null,null,null,null,null,null,null,null,null,null,null,null,null,null,null,null,null,null,null,null,null,null,null,null,null,null,null,"30 Cal. T 65","308 Win."]
[104,41,"7 mm Win. Short Mag.",43.23,47.16,53.34,null,null,72.64,1.37,13.59,null,3.35,12.19,1.02,"45°",0.36,"35°",14.12,13.66,"70°",52.98,1.27,2.54,8.15,8.15,7.23,null,58.56,"US","g",null,null,null,null,4400,5060,5500,25,4830,7.04,7.21,2.79,6,241,"C.I.P.","metrique","carabine",null,null,null,null,null,null,null,null,null,null,null,null,null,null,null,null,null,null,null,null,null,null,null,null,null,null,null,null,null,null,null,"30 Carbine M1","30 Carbine"]
[105,42,"7 mm Rem. Ultra Mag.",60.64,65.099999999999994,72.39,null,null,91.44,1.27,13.56,null,3.75,12.07,0.94,"32°",0.41,"35°",13.99,13.33,"60°",72.180000000000007,0.76,3.18,8.18,8.18,7.23,null,88.2,"US","g",null,null,null,null,4400,5060,5500,25,5250,7.04,7.21,2.79,6,241.3,"C.I.P.","metrique","carabine",null,null,null,null,null,null,null,null,null,null,null,null,null,null,null,null,null,null,null,null,null,null,null,null,null,null,null,null,null,null,null,"30 Krag-Jörgensen","30-40 Krag"]
[106,331,"7 mm SE v. H.",53.6,57.52,66,null,null,84,1.3,13,null,3.7,11.5,1,"40°",0.3,"45°",13.85,12.7,"60°02'21\"",64.59,0.5,0.5,8.17,8.17,7.24,null,81,"DE","g",null,null,null,null,4400,5060,5500,25,4525,6.98,7.24,4,4,260,"C.I.P.","metrique","carabine",null,null,null,null,null,null,null,null,null,null,null,null,null,null,null,null,null,null,null,null,null,null,null,null,null,null,null,null,null,null,null,"30 Light Rifle","300 Savage"]
[107,44,"7,21 Firebird",58.7,63.91,71.37,null,null,92.2,1.65,14.76,null,3.99,12.95,1.4,"45°",0.64,"45°",14.73,14.22,"60°01'59\"",71.010000000000005,1.57,3.18,8.1999999999999993,8.15,7.24,null,76.459999999999994,"FI","g",null,null,null,null,4400,5060,5500,25,6375,7.04,7.21,4.0599999999999996,4,254,"C.I.P.","metrique","carabine",null,null,null,null,null,null,null,null,null,null,null,null,null,null,null,null,null,null,null,null,null,null,null,null,null,null,null,null,null,null,null,"30 Luger","7,65 Parabellum"]
[108,433,"7,35 x 51 Carcano",41.58,43.1,51.5,null,null,73.5,1.3,11.4,null,3.2,9.9499999999999993,1.7,"74°40'48\"",0.3,"45°",11.1,10.85,"48°60'",null,null,null,8.32,8.32,7.57,null,null,"IT",null,null,9,1,null,3300,null,null,null,null,7.35,7.57,null,null,null,"MALFATI",null,null,null,null,null,null,null,null,null,null,null,null,null,null,null,null,null,null,null,null,null,null,null,null,null,null,null,null,null,null,null,null,null,"30 M1 Carbine","30 Carbine"]
[109,46,"7,5 x 55 Suisse",44.58,47.08,55.6,null,null,77.7,1.65,12.65,null,3.46,10.3,0.89,"51°49'16\"",0.5,"45°",12.64,11.63,"61°",54.45,2,2,8.68,8.58,7.78,null,62.47,"CH","g",null,null,null,null,3800,4370,4750,25,3965,7.51,7.77,3.75,4,270,"C.I.P.","metrique","carabine",null,null,null,null,null,null,null,null,null,null,null,null,null,null,null,null,null,null,null,null,null,null,null,null,null,null,null,null,null,null,null,"30 Mauser Automatic","7,63 Mauser"]
[110,45,"7,5 x 54 MAS",42.79,46.42,54,null,null,76,1.4,12.34,null,3.2,10.5,0.8,"41°11'9\"",0.3,"45°",12.25,11.3,"40°",58.33,2,3.2,8.66,8.6199999999999992,7.84,null,67.58,"FR","g",null,null,null,null,3800,4370,4750,25,3575,7.57,7.85,3.7,4,270,"C.I.P.","metrique","carabine",null,null,null,null,null,null,null,null,null,null,null,null,null,null,null,null,null,null,null,null,null,null,null,null,null,null,null,null,null,null,null,"30 Nato","308 Win."]
[111,492,"7,5 FK",21.01,23,27,null,null,35,1.4,10.8,null,3.65,8.6,1.1499999999999999,"45°",0.5,"45°",10.8,10.75,"60°",30.31,0.5,2,8.4499999999999993,8.4499999999999993,7.8,null,33.57,"CZE","p /g",null,null,null,null,3500,4025,4550,17.5,null,7.51,7.77,3.75,4,270,"C.I.P.","metrique","revolvers et pistolets",null,null,null,null,null,null,null,null,null,null,null,null,null,null,null,null,null,null,null,null,null,null,null,null,null,null,null,null,null,null,null,"30 Springfield","30-06 Spring."]
[112,333,"7,5 Ord. Suisse",null,null,22.8,null,null,34.6,1.5,10.4,null,null,null,null,null,0.5,"45°",9,null,null,null,null,null,null,8.4,8,null,25.88,"CH","p /b",null,null,null,null,1850,2128,2405,12.5,null,7.65,8,2.4,4,350,"C.I.P.","metrique","revolvers et pistolets",null,null,null,null,null,null,null,null,null,null,null,null,null,null,null,null,null,null,null,null,null,null,null,null,null,null,null,null,null,null,null,"30 US Gov't","30-40 Krag"]
[113,334,"7,62 x 25 Tokarev",19.600000000000001,21.04,25,null,null,35.200000000000003,1.32,9.9499999999999993,null,3.34,8.65,1,"30°",0.6,"45°",9.83,9.48,"38°",33.369999999999997,0.5,2,8.49,8.49,7.9,null,34.799999999999997,"SU","p /g",null,null,null,null,2400,2760,3120,17.5,null,7.62,7.92,3.81,4,240,"C.I.P.","metrique","revolvers et pistolets",null,null,null,null,null,null,null,null,null,null,null,null,null,null,null,null,null,null,null,null,null,null,null,null,null,null,null,null,null,null,null,"30 US-Army","30-40 Krag"]
[114,47,"7,62 x 39",30.5,33,38.700000000000003,null,null,56,1.5,11.35,null,3.2,9.56,1,"51°58'12\"",0.25,"45°",11.35,10.07,"32°46'",47.28,4,3,8.6,8.6,7.92,null,46.7,"SU","g",null,null,null,null,3550,4083,4440,25,2510,7.62,7.92,3.81,4,240,"C.I.P.","metrique","carabine",null,null,null,null,null,null,null,null,null,null,null,null,null,null,null,null,null,null,null,null,null,null,null,null,null,null,null,null,null,null,null,"30 W.C.F.","30-30 Win."]
[115,48,"7,62 x 45",36.200000000000003,38.25,45,null,null,60,1.5,11.3,null,3.99,9.6999999999999993,1.1000000000000001,"30°",0.5,"45°",11.3,10.56,"49°43'39\"",47.59,0.5,0.5,8.66,8.66,7.83,null,65.930000000000007,"CS","g",null,null,null,null,4300,4945,5375,25,2515,7.62,7.88,3.5,4,280,"C.I.P.","metrique","carabine",null,null,null,null,null,null,null,null,null,null,null,null,null,null,null,null,null,null,null,null,null,null,null,null,null,null,null,null,null,null,null,"30/06 Springfield","30-06 Spring."]
[116,183,"7,62 x 53 R",39.61,44.05,53.5,null,null,77,1.6,14.4,null,null,null,null,null,0.6,"20°",12.42,11.61,"38°01'38\"",56.46,0.5,3,8.5500000000000007,8.5,7.85,null,76.02,"FI","b",null,null,null,null,3900,4485,4875,25,3960,7.59,7.83,4.2,4,300,"C.I.P.","metrique","carabine",null,null,null,null,null,null,null,null,null,null,null,null,null,null,null,null,null,null,null,null,null,null,null,null,null,null,null,null,null,null,null,"300 C.F. Long","300/295 Rook Rifle"]
[117,184,"7,62 x 54 R",39.700000000000003,44.3,53.72,null,57,77.16,1.6,14.48,null,null,null,null,null,0.6,"20°",12.37,11.61,"37°01'09\"",57.04,0.5,0.5,8.5299999999999994,8.5299999999999994,7.92,7.87,74.8,"SU","b",null,null,null,null,3900,4485,4875,25,3960,7.62,7.92,3.81,4,240,"C.I.P.","metrique","carabine",null,null,null,null,null,null,null,null,null,null,null,null,null,null,null,null,null,null,null,null,null,null,null,null,null,null,null,null,null,null,null,"300 Long C.F.","300/295 Rook Rifle"]
[118,335,"7,62 Nagant",20,20,38.799999999999997,null,null,37.299999999999997,1.25,10.3,null,null,null,null,null,0.44,"30°",9.06,8.51,null,null,null,null,8.51,8.42,7.82,null,41.23,"BE","p /b",null,null,null,null,770,886,1001,17.5,null,7.62,7.82,3.81,4,240,"C.I.P.","metrique","revolvers et pistolets",null,null,null,null,null,null,null,null,null,null,null,null,null,null,null,null,null,null,null,null,null,null,null,null,null,null,null,null,null,null,null,"300 Long Revolver","300/295 Rook Rifle"]
[119,49,"7,62 UKM",41.57,48.96,57,null,null,79,1.52,14.93,null,3.12,13.24,0.9,"50°01'33\"",0.5,"45°",14.91,14.08,"40°08'26\"",60.84,null,2,8.68,8.68,7.85,null,64.89,"DE","g",null,null,null,null,4400,5060,5500,25,5565,7.62,7.82,2.79,6,254,"C.I.P.","metrique","carabine",null,null,null,null,null,null,null,null,null,null,null,null,null,null,null,null,null,null,null,null,null,null,null,null,null,null,null,null,null,null,null,"300 Rook","300/295 Rook Rifle"]
[120,336,"7,63 Mauser",19.28,21.1,25.15,null,null,35.08,1.27,9.98,null,3.72,8.73,0.9,"20°",0.3,"45°",9.86,9.6,"34°46'47\"",34.61,null,2.5,8.4600000000000009,8.4600000000000009,7.86,null,28.22,"DE","p /g",null,null,null,null,2600,2990,3380,17.5,null,7.62,7.85,2.65,6,250,"C.I.P.","metrique","revolvers et pistolets",null,null,null,null,null,null,null,null,null,null,null,null,null,null,null,null,null,null,null,null,null,null,null,null,null,null,null,null,null,null,null,"300-10-80","300/295 Rook Rifle"]
[121,50,"7,65 x 53 Arg.",44.6,47.2,53.6,null,null,76,1,12.05,null,3.2,10.4,1.1000000000000001,"35°41'24\"",0.3,"45°",12.01,10.9,"44°21'38\"",57.97,2.2000000000000002,2.2000000000000002,8.7799999999999994,8.7799999999999994,7.94,null,73.599999999999994,"DE","g",null,null,null,null,3900,4485,4875,25,3700,7.65,7.92,4.2,4,280,"C.I.P.","metrique","carabine",null,null,null,null,null,null,null,null,null,null,null,null,null,null,null,null,null,null,null,null,null,null,null,null,null,null,null,null,null,null,null,"30-06","30-06 Spring."]
[122,339,"7,65 Parabellum",15.58,17.62,21.59,null,null,29.85,1.22,9.98,null,3.69,8.7899999999999991,0.9,"20°",0.3,"45°",9.93,9.61,"30°57'41\"",32.93,null,2.5,8.48,8.43,7.85,null,27.05,"DE","p /g",null,null,null,null,2350,2703,3055,12.5,null,7.62,7.83,3.05,4,275,"C.I.P.","metrique","revolvers et pistolets",null,null,null,null,null,null,null,null,null,null,null,null,null,null,null,null,null,null,null,null,null,null,null,null,null,null,null,null,null,null,null,"30-06 USA Springfield","30-06 Spring."]
[123,337,"7,65 Browning",null,null,17.2,null,null,25,1.25,9.1,null,3.01,7.85,0.8,"20°",0.6,"45°",8.5500000000000007,null,null,null,null,null,null,8.52,7.85,null,21.21,"BE","p /g",null,null,null,null,1600,1840,2080,10.5,null,7.63,7.83,2.69,6,250,"C.I.P.","metrique","revolvers et pistolets",null,null,null,null,null,null,null,null,null,null,null,null,null,null,null,null,null,null,null,null,null,null,null,null,null,null,null,null,null,null,null,"301 british","303 Savage"]
[124,338,"7,65 Long",null,null,19.8,21.9,null,30.5,1.05,8.5500000000000007,null,3.5,7.5,1.1000000000000001,"21°15'02\"",0.5,"45°",8.5500000000000007,null,null,null,null,null,null,8.5500000000000007,7.88,7.88,29.8,"FR","p /g",null,null,null,null,1650,1898,2145,10.5,null,7.65,7.91,4.2300000000000004,4,254,"C.I.P.","metrique","revolvers et pistolets",null,null,null,null,null,null,null,null,null,null,null,null,null,null,null,null,null,null,null,null,null,null,null,null,null,null,null,null,null,null,null,"301 Mauser","7,65 x 53 Arg."]
[125,434,"7,7 x 58 Japanese Arisaka",47.55,49.99,57.66,null,null,80.010000000000005,1.22,11.94,null,3.81,10.41,0,null,0.24,"35°",11.96,10.9,"025°30'",null,null,null,8.59,8.56,7.9,null,null,"JA","g",null,3,1,"31",null,null,null,null,null,null,null,null,null,null,"SIERRA",null,null,null,null,null,null,null,null,null,null,null,null,null,null,null,null,null,null,null,null,null,null,null,null,null,null,null,null,null,null,null,null,null,"301 Savage England","303 Savage"]
[126,435,"7.82 Patriot",39.4,44.54,51.64,null,null,70.36,1.4,14.69,null,4,12.67,1.3,null,null,null,14.65,14.19,"060°00'00\"",null,null,null,8.6199999999999992,8.57,7.82,null,null,"US",null,null,null,null,null,null,null,null,null,null,null,null,null,null,null,"E.C.R.A.",null,null,null,null,null,null,null,null,null,null,null,null,null,null,null,null,null,null,null,null,null,null,null,null,null,null,null,null,null,null,null,null,null,"30-200-06","30-06 Spring."]
[127,51,"7,82 Warbird",58.7,63.4,71.37,null,null,92.2,1.65,14.76,null,3.94,12.95,1.4,"45°",0.64,"45°",14.73,14.22,"60°01'36\"",71.010000000000005,1.57,1.57,8.7899999999999991,8.76,7.84,null,76.33,"FI","g",null,null,null,null,4400,5060,5500,25,6760,7.62,7.82,2.91,6,305,"C.I.P.","metrique","carabine",null,null,null,null,null,null,null,null,null,null,null,null,null,null,null,null,null,null,null,null,null,null,null,null,null,null,null,null,null,null,null,"303 Bren","303 British"]
[128,52,"7,92 x 24 VBR",null,null,24,25.24,null,32.1,1.27,9.14,null,2.9,7.87,0.84,"37°",0.38,"35°",9.06,null,null,null,null,null,null,8.6199999999999992,7.92,7.92,29.09,"BE","g",null,null,null,null,3310,3807,4300,17.5,660,7.62,7.82,2.92,6,250,"C.I.P.","metrique","carabine",null,null,null,null,null,null,null,null,null,null,null,null,null,null,null,null,null,null,null,null,null,null,null,null,null,null,null,null,null,null,null,"303 Lee Enfield M1892","303 British"]
[129,53,"7,92 x 33 kurz",24.38,28.03,33,null,null,48,1.3,11.95,null,3.5,10.5,1,"31°",0.3,"45°",11.94,11.4,"34°58'34\"",42.47,0.5,0.5,9.1,9.0399999999999991,8.2200000000000006,null,39.53,"DE","g",null,null,null,null,3400,3910,4250,25,1770,7.89,8.1999999999999993,4.4000000000000004,4,240,"C.I.P.","metrique","carabine",null,null,null,null,null,null,null,null,null,null,null,null,null,null,null,null,null,null,null,null,null,null,null,null,null,null,null,null,null,null,null,"303 Lee Metford","303 British"]
[130,185,"8 x 50 R",38.29,44.17,50.2,null,null,76,1.4,14.2,null,null,null,null,null,0.5,"30°",12.6,12.09,"29°04'45\"",61.6,10,2,9.0399999999999991,8.9,8.2200000000000006,null,73.150000000000006,"AT","b",null,null,null,null,3550,4083,4440,25,3000,7.95,8.35,3.5,4,250,"C.I.P.","metrique","carabine",null,null,null,null,null,null,null,null,null,null,null,null,null,null,null,null,null,null,null,null,null,null,null,null,null,null,null,null,null,null,null,"303 MK II","303 British"]
[131,54,"8 x 51 (Mauser K)",38.090000000000003,42.16,50.7,null,null,68,1.3,11.95,null,3.2,10.5,0.9,"36°",0.3,"45°",11.95,11.15,"29°59'08\"",58.91,0.5,0.5,8.9700000000000006,8.9700000000000006,8.07,null,85.7,"DE","g",null,null,null,null,3400,3910,4250,25,2635,7.8,8.07,4.4000000000000004,4,240,"C.I.P.","metrique","carabine",null,null,null,null,null,null,null,null,null,null,null,null,null,null,null,null,null,null,null,null,null,null,null,null,null,null,null,null,null,null,null,"303 Vickers","303 British"]
[132,186,"8 x 56 R M30S",37.03,49.53,55.75,null,null,76.5,1.5,14.2,null,null,null,null,null,0.5,"30°",12.55,12.15,"13°54'41\"",86.82,10,15,9.1,9.1,8.4,null,74.5,"AT","b",null,null,null,null,3550,4083,4440,25,3933,7.95,8.35,3.5,4,250,"C.I.P.","metrique","carabine",null,null,null,null,null,null,null,null,null,null,null,null,null,null,null,null,null,null,null,null,null,null,null,null,null,null,null,null,null,null,null,"30-30","30-30 Win."]
[133,55,"8 x 56 M.-Sch.",46,48.3,56.4,null,56.7,77.8,1.2,11.85,null,3.3,10.3,1,"33°45'",null,"90°",11.77,10.8,"43°49'02\"",59.43,0.5,0.5,8.9499999999999993,8.9,8.25,8.25,77.5,"AT","g",null,null,null,null,3200,3680,4000,25,2860,7.95,8.3000000000000007,3.8,4,250,"C.I.P.","metrique","carabine",null,null,null,null,null,null,null,null,null,null,null,null,null,null,null,null,null,null,null,null,null,null,null,null,null,null,null,null,null,null,null,"30-30 - 165","30-30 Win."]
[134,187,"8 x 56 R M89 Port.Krop.",38.65,44.25,56,null,null,81,2,15.9,null,null,null,null,null,1,"23°",13.85,12,"30°",61.04,10,15,9,9,8.1999999999999993,null,76,"PT","b",null,null,null,null,3400,3910,4250,25,2520,7.85,8.1999999999999993,4.4000000000000004,4,250,"C.I.P.","metrique","carabine",null,null,null,null,null,null,null,null,null,null,null,null,null,null,null,null,null,null,null,null,null,null,null,null,null,null,null,null,null,null,null,"31 Jap.","7,7 x 58 Japanese Arisaka"]
[135,58,"8 x 57 PCC",45.82,48.49,57,null,null,82,1.4,13.6,null,3.74,11.7,1.2,"45°",null,null,13.97,13.53,"79°51'50\"",53.9,1.3,1.52,9.06,9.0500000000000007,8.1999999999999993,null,90.54,"IT","g",null,null,null,null,4400,5060,5500,25,5200,7.89,8.1999999999999993,4.4000000000000004,4,240,"C.I.P.","metrique","carabine",null,null,null,null,null,null,null,null,null,null,null,null,null,null,null,null,null,null,null,null,null,null,null,null,null,null,null,null,null,null,null,"32 - 7,65 mm Auto","7,65 Browning"]
[136,188,"8 x 57 R 360",46,48,57,null,null,77,1.35,12.4,null,null,null,null,null,0.3,"45°",11,9.6999999999999993,"25°54'20\"",67.09,0.5,0.5,8.7799999999999994,8.7799999999999994,8.09,null,91,"DE","b",null,null,null,null,2450,2818,3060,25,2170,7.8,8.07,4.4000000000000004,4,240,"C.I.P.","metrique","carabine",null,null,null,null,null,null,null,null,null,null,null,null,null,null,null,null,null,null,null,null,null,null,null,null,null,null,null,null,null,null,null,"32 Automatic","7,65 Browning"]
[137,56,"8 x 57 J",46.2,49.03,57,null,null,82,1.3,11.95,null,3.2,10.5,1,"38°39'36\"",0.3,"45°",11.94,10.95,"38°12'02\"",62.01,0.5,0.5,8.99,8.99,8.09,null,99,"DE","g",null,null,null,null,3800,4370,4750,25,3950,7.8,8.07,4.4000000000000004,4,240,"C.I.P.","metrique","carabine",null,null,null,null,null,null,null,null,null,null,null,null,null,null,null,null,null,null,null,null,null,null,null,null,null,null,null,null,null,null,null,"32 Automatic Pistole","7,65 Browning"]
[138,57,"8 x 57 JS",46.2,48.9,57,null,null,82,1.3,11.95,null,3.19,10.5,0.9,"36°",0.3,"45°",11.94,10.95,"38°12'06\"",62.01,0.5,0.5,9.08,9.08,8.2200000000000006,null,92,"DE","g",null,null,null,null,3900,4485,4875,25,4300,7.89,8.1999999999999993,4.4000000000000004,4,240,"C.I.P.","metrique","carabine",null,null,null,null,null,null,null,null,null,null,null,null,null,null,null,null,null,null,null,null,null,null,null,null,null,null,null,null,null,null,null,"32 C.L.M.R.","32-20 Win."]
[139,189,"8 x 57 JR",46,48.99,57,null,null,82,1.4,13.32,null,null,null,null,null,0.3,"45°",11.92,10.95,"36°21'",62.68,0.5,0.5,8.99,8.99,8.09,null,99,"DE","b",null,null,null,null,"3200b","3680b","4000b",25,"3315J",7.8,8.07,4.4000000000000004,4,240,"C.I.P.","metrique","carabine",null,null,null,null,null,null,null,null,null,null,null,null,null,null,null,null,null,null,null,null,null,null,null,null,null,null,null,null,null,null,null,"32 Colt","32 Long Colt"]
[140,190,"8 x 57 JRS",46,48.85,57,null,null,82,1.4,13.32,null,null,null,null,null,0.3,"45°",11.92,10.95,"36°19'34\"",62.69,0.5,0.5,9.08,9.08,8.2200000000000006,null,92,"DE","b",null,null,null,null,3300,3795,4125,25,3955,7.89,8.1999999999999993,4.4000000000000004,4,240,"C.I.P.","metrique","carabine",null,null,null,null,null,null,null,null,null,null,null,null,null,null,null,null,null,null,null,null,null,null,null,null,null,null,null,null,null,null,null,"32 Colt Automatic","7,65 Browning"]
[141,191,"8 x 58 R",null,45.5,58.5,null,null,78,1.1000000000000001,12.75,null,null,null,null,"45°",0.3,"45°",11.05,null,null,null,null,null,8.7799999999999994,8.7799999999999994,8.09,null,100.5,"DE","b",null,null,null,null,2200,2530,2750,25,2270,7.8,8.07,4.4000000000000004,4,240,"C.I.P.","metrique","carabine",null,null,null,null,null,null,null,null,null,null,null,null,null,null,null,null,null,null,null,null,null,null,null,null,null,null,null,null,null,null,null,"32 Colt N.P.","32 S&W Long"]
[142,59,"8 x 60",48.2,51.04,60,null,null,82,1.3,11.95,null,3.2,10.5,1,"39°25'12\"",0.3,"45°",11.98,10.95,"38°15'22\"",63.99,0.5,0.5,8.98,8.98,8.09,null,99,"DE","g",null,null,null,null,4050,4658,5060,25,3900,7.8,8.07,4.4000000000000004,4,240,"C.I.P.","metrique","carabine",null,null,null,null,null,null,null,null,null,null,null,null,null,null,null,null,null,null,null,null,null,null,null,null,null,null,null,null,null,null,null,"32 Colt New Police","32 S&W Long"]
[143,192,"8 x 60 R",48.22,51.05,60,null,null,82,1.4,13.4,null,null,null,null,null,0.3,"45°",12.03,10.95,"38°12'02\"",64.03,0.5,0.5,8.99,8.99,8.09,null,99,"DE","b",null,null,null,null,"3400b","3910b","4250b",25,"3780J",7.8,8.07,4.4000000000000004,4,240,"C.I.P.","metrique","carabine",null,null,null,null,null,null,null,null,null,null,null,null,null,null,null,null,null,null,null,null,null,null,null,null,null,null,null,null,null,null,null,"32 Colt Police Positive","32 S&W Long"]
[144,61,"8 x 64",51.8,55.79,63.7,null,null,86,1.3,12,null,3.2,10.6,1,"36°52'12\"",0.3,"45°",11.95,10.85,"28°00'18\"",73.55,0.5,0.5,8.86,8.86,8.09,null,97.7,"DE","g",null,null,null,null,4050,4658,5060,25,4375,7.8,8.07,4.4000000000000004,4,240,"C.I.P.","metrique","carabine",null,null,null,null,null,null,null,null,null,null,null,null,null,null,null,null,null,null,null,null,null,null,null,null,null,null,null,null,null,null,null,"32 L.C","32 Long Colt"]
[145,62,"8 x 64 S",51.8,55.59,64,null,67.099999999999994,87.5,1.3,12,null,3.2,10.6,1,"36°48'",0.3,"45°",11.95,10.85,"28°00'05\"",73.56,0.5,0.5,8.9600000000000009,8.9600000000000009,8.2200000000000006,8.18,98,"DE","g",null,null,null,null,4050,4658,5060,25,4595,7.89,8.1999999999999993,4.4000000000000004,4,240,"C.I.P.","metrique","carabine",null,null,null,null,null,null,null,null,null,null,null,null,null,null,null,null,null,null,null,null,null,null,null,null,null,null,null,null,null,null,null,"32 L.C.F","32 Long Colt"]
[146,194,"8 x 65 R",51.8,55.79,64.7,null,null,86,1.4,13.32,null,null,null,null,null,0.3,"45°",11.95,10.85,"28°00'18\"",73.55,null,null,8.86,8.86,8.09,null,98.7,"DE","b",null,null,null,null,3900,4485,4875,25,4410,7.8,8.07,4.4000000000000004,4,240,"C.I.P.","metrique","carabine",null,null,null,null,null,null,null,null,null,null,null,null,null,null,null,null,null,null,null,null,null,null,null,null,null,null,null,null,null,null,null,"32 Long","32 Long Colt"]
[147,195,"8 x 65 RS",51.8,55.59,65,null,null,87.5,1.4,13.32,null,null,null,null,null,0.3,"45°",11.99,10.85,"28°",73.56,0.5,0.5,8.9600000000000009,8.9600000000000009,8.2200000000000006,null,98,"DE","b",null,null,null,null,4050,4658,5060,25,4620,7.89,8.1999999999999993,4.4000000000000004,4,240,"C.I.P.","metrique","carabine",null,null,null,null,null,null,null,null,null,null,null,null,null,null,null,null,null,null,null,null,null,null,null,null,null,null,null,null,null,null,null,"32 Long Centerfire","32 Long Colt"]
[148,193,"8 x 60 RS",48.22,50.92,60,null,null,83.6,1.4,13.4,null,null,null,null,null,0.3,"45°",12.03,10.95,"38°12'06\"",64.03,0.5,0.5,9.08,9.08,8.2200000000000006,null,94,"DE","b",null,null,null,null,3400,3910,4250,25,4120,7.89,8.1999999999999993,4.4000000000000004,4,240,"C.I.P.","metrique","carabine",null,null,null,null,null,null,null,null,null,null,null,null,null,null,null,null,null,null,null,null,null,null,null,null,null,null,null,null,null,null,null,"32 Long Colt (Outs.Lubr.)","32 Long Colt"]
[149,60,"8 x 60 S",48.2,50.9,60,63.2,null,83.6,1.3,11.95,null,3.2,10.5,1,"39°25'48\"",0.3,"45°",11.98,10.95,"38°12'06\"",64.010000000000005,0.5,0.5,9.08,9.08,8.2200000000000006,8.18,94,"DE","g",null,null,null,null,4050,4658,5060,25,4285,7.89,8.1999999999999993,4.4000000000000004,4,240,"C.I.P.","metrique","carabine",null,null,null,null,null,null,null,null,null,null,null,null,null,null,null,null,null,null,null,null,null,null,null,null,null,null,null,null,null,null,null,"32 Magnum","32 H&R Mag."]
[150,63,"8 x 68 S",53.2,59,67.5,70.599999999999994,null,87,1.4,13,null,3.5,11.2,1,"43°42'",0.3,"45°",13.3,12.15,"29°05'34\"",76.61,0.5,0.5,9.14,9.14,8.2200000000000006,8.18,101.5,"DE","g",null,null,null,null,4400,5060,5500,25,5975,7.89,8.1999999999999993,4.4000000000000004,4,280,"C.I.P.","metrique","carabine",null,null,null,null,null,null,null,null,null,null,null,null,null,null,null,null,null,null,null,null,null,null,null,null,null,null,null,null,null,null,null,"32 Marlin","32-20 Win."]
[151,196,"8 x 72 R",null,60,72,null,null,98,1.3,12.35,null,null,null,null,null,0.3,"45°",10.85,null,null,null,null,null,8.75,8.7200000000000006,8.09,null,106,"DE","b",null,null,null,null,2800,3220,3500,25,2565,7.8,8.07,4.4000000000000004,4,240,"C.I.P.","metrique","carabine",null,null,null,null,null,null,null,null,null,null,null,null,null,null,null,null,null,null,null,null,null,null,null,null,null,null,null,null,null,null,null,"32 Police","32 S&W Long"]
[152,197,"8 x 75 RS",66.2,69.06,74.599999999999994,null,null,96,1.4,13.35,null,null,null,null,null,0.3,"45°",11.9,10.4,"26°",88.72,0.5,0.5,9.08,9.08,8.2200000000000006,null,108.6,"DE","b",null,null,null,null,3800,4370,4750,25,4790,7.89,8.1999999999999993,4.4000000000000004,4,240,"C.I.P.","metrique","carabine",null,null,null,null,null,null,null,null,null,null,null,null,null,null,null,null,null,null,null,null,null,null,null,null,null,null,null,null,null,null,null,"32 Rimless","32 Rem."]
[153,64,"8 x 75 S",66.2,69.06,74.7,null,null,96,1.3,11.9,null,3.2,10.3,1,"40°54'",0.3,"45°",11.86,10.4,"25°59'21\"",88.73,0.5,0.5,9.08,9.08,8.2200000000000006,null,108.7,"DE","g",null,null,null,null,4400,5060,5500,25,4750,7.89,8.1999999999999993,4.4000000000000004,4,240,"C.I.P.","metrique","carabine",null,null,null,null,null,null,null,null,null,null,null,null,null,null,null,null,null,null,null,null,null,null,null,null,null,null,null,null,null,null,null,"32 S & W Long (C.N.P.)","32 S&W Long"]
[154,437,"8mm-06",49.48,52.98,63.35,null,null,82.5,1.24,12.01,null,3.16,10.39,0.84,null,0.8,"35°",11.95,11.2,"035°",null,null,null,8.99,8.99,8.1999999999999993,null,null,"US","g","lr",3,1,"32",null,null,null,null,null,7.89,8.1999999999999993,null,null,null,"SPEER",null,null,null,null,null,null,null,null,null,null,null,null,null,null,null,null,null,null,null,null,null,null,null,null,null,null,null,null,null,null,null,null,null,"32 S & W Long N.P.","32 S&W Long"]
[155,198,"8 mm – 348 Win.",41.91,46.88,57.28,null,null,82,1.78,15.49,null,null,null,null,null,0.38,"35°",14.05,12.32,"38°10'45\"",59.71,0.76,2.54,8.8800000000000008,8.85,8.2200000000000006,null,66.77,"FR","b",null,null,null,null,3000,3450,3750,25,2600,7.89,8.1999999999999993,4.05,4,240,"C.I.P.","metrique","carabine",null,null,null,null,null,null,null,null,null,null,null,null,null,null,null,null,null,null,null,null,null,null,null,null,null,null,null,null,null,null,null,"32 S & W Long Revolver","32 S&W Long"]
[156,340,"8 mm Gasser",null,null,27,null,null,36,1.1000000000000001,9.68,null,null,null,null,null,null,null,8.6,null,null,null,null,null,null,8.56,8.11,null,27.99,"AT","p /b",null,null,null,null,1000,1150,1300,12.5,null,7.85,8.0500000000000007,3,6,150,"C.I.P.","metrique","revolvers et pistolets",null,null,null,null,null,null,null,null,null,null,null,null,null,null,null,null,null,null,null,null,null,null,null,null,null,null,null,null,null,null,null,"32 S & WL","32 S&W Long"]
[157,342,"8 mm Steyr",null,null,18.649999999999999,null,null,28.7,1.1000000000000001,8.85,null,3.3,7.85,1.1000000000000001,"24°26'38\"",0.3,"45°",8.85,null,null,null,null,null,null,8.8000000000000007,8.15,null,23.15,"AT","p /g",null,null,null,null,2100,2415,2730,10.5,null,7.9,8.15,3,4,250,"C.I.P.","metrique","revolvers et pistolets",null,null,null,null,null,null,null,null,null,null,null,null,null,null,null,null,null,null,null,null,null,null,null,null,null,null,null,null,null,null,null,"32 S&W Revolver","32 S&W"]
[158,293,"8 mm Rem. Mag.",60.69,64.27,72.39,null,null,91.44,1.27,13.51,13.51,5.59,12.07,0.94,"35°",0.41,"35°",13.03,12.36,"50°",73.94,1.02,3.18,9.02,8.99,8.2200000000000006,null,77.819999999999993,"US","m",null,null,null,null,4400,5060,5500,25,5355,8,8.1999999999999993,3.1,6,254,"C.I.P.","metrique","carabine magnum",null,null,null,null,null,null,null,null,null,null,null,null,null,null,null,null,null,null,null,null,null,null,null,null,null,null,null,null,null,null,null,"32 S&W Short","32 S&W"]
[159,341,"8 mm Lebel",null,null,27.4,32,null,37,1.5,10.5,null,null,null,null,null,0.75,"45°",9.1,null,null,null,null,null,null,8.9,8.2799999999999994,null,29.9,"FR","p /b",null,null,null,null,1250,1438,1625,12.5,null,8,8.3000000000000007,4.1900000000000004,4,240,"C.I.P.","metrique","revolvers et pistolets",null,null,null,null,null,null,null,null,null,null,null,null,null,null,null,null,null,null,null,null,null,null,null,null,null,null,null,null,null,null,null,"32 S.& W. SA","32 S&W"]
[160,436,"8 mm Nambu",15.37,17.649999999999999,21.8,null,null,30.5,0.95,10.49,null,2.65,9.1,0.9,null,0.3,"45°",10.36,9.98,null,null,null,null,8.8699999999999992,8.8000000000000007,8.1199999999999992,null,null,"JA",null,null,25,2,"32",null,null,null,null,null,null,null,null,null,null,"WEB",null,null,null,null,null,null,null,null,null,null,null,null,null,null,null,null,null,null,null,null,null,null,null,null,null,null,null,null,null,null,null,null,null,"32 S.C.F.","32 Short Colt"]
[161,199,"8,15 x 46 R",30,40,46.5,null,null,62.3,1.5,12.35,null,null,null,null,null,0.3,"45°",10.75,9.9,"6°07'30\"",122.52,0.5,0.5,8.83,8.83,8.3800000000000008,null,72,"DE","b",null,null,null,null,1650,1898,2060,25,1785,7.6,8.0299999999999994,3,6,360,"C.I.P.","metrique","carabine",null,null,null,null,null,null,null,null,null,null,null,null,null,null,null,null,null,null,null,null,null,null,null,null,null,null,null,null,null,null,null,"32 Short C.F.","32 Short Colt"]
[162,438,"8 x 51 R Lebel",36.46,40.94,50.5,null,null,75,1.7,16,null,null,null,null,"29°",1,"30°",13.77,11.42,"032°",null,null,null,8.94,8.85,8.3000000000000007,null,null,"FR","b",null,null,0,"32",2800,null,null,null,null,8,8.3000000000000007,null,null,null,"MALFATI",null,"Donne incomplette",null,null,null,null,null,null,null,null,null,null,null,null,null,null,null,null,null,null,null,null,null,null,null,null,null,null,null,null,null,null,null,"32 Spl.","32 Win. Spec."]
[163,200,"8,2 x 53 R",39.61,43.55,53.3,null,null,76,1.6,14.4,null,null,null,null,null,0.6,"70°",12.42,11.61,"37°57'24\"",56.49,null,null,8.9,8.82,8.2200000000000006,null,71.819999999999993,"FI","b",null,null,null,null,3400,3910,4250,25,4040,7.96,8.1999999999999993,3.75,4,254,"C.I.P.","metrique","carabine",null,null,null,null,null,null,null,null,null,null,null,null,null,null,null,null,null,null,null,null,null,null,null,null,null,null,null,null,null,null,null,"32 W.C.F.","32-20 Win."]
[164,65,"8,5 x 63",53.42,54.69,63,null,null,84,1.24,12.01,null,3.2,10.4,1,"37°48'36\"",0.3,"45°",11.89,11.47,"80°13'46\"",60.23,null,null,9.33,9.32,8.59,null,72,"DE","g",null,null,null,null,4300,4945,5375,25,5540,8.3800000000000008,8.59,2.79,6,254,"C.I.P.","metrique","carabine",null,null,null,null,null,null,null,null,null,null,null,null,null,null,null,null,null,null,null,null,null,null,null,null,null,null,null,null,null,null,null,"32 W.C.F.","32-20 Win."]
[165,201,"8,5 x 63 R",53.39,54.66,63,null,null,84,1.4,13.32,null,null,null,null,null,0.3,"45°",11.89,11.47,"80°13'45\"",60.2,null,null,9.33,9.32,8.59,null,72,"DE","b",null,null,null,null,3800,4370,4750,25,5145,8.3800000000000008,8.59,2.79,6,254,"C.I.P.","metrique","carabine",null,null,null,null,null,null,null,null,null,null,null,null,null,null,null,null,null,null,null,null,null,null,null,null,null,null,null,null,null,null,null,"32 Webley","32 Short Colt"]
[166,477,"8,5 x 68 Fanzoj",53.2,58.4,67.5,null,null,87,1.4,13,null,3.5,11.2,1,"43°42'",0.3,"45°",13.3,12.15,"29°06'26\"",76.599999999999994,0.5,3,9.4499999999999993,9.4499999999999993,8.59,null,73.7,"DE","g",null,null,null,null,4400,5060,5500,25,5975,8.3800000000000008,8.59,2.79,6,254,"C.I.P.","metrique","carabine",null,null,null,null,null,null,null,null,null,null,null,null,null,null,null,null,null,null,null,null,null,null,null,null,null,null,null,null,null,null,null,"32 Winchester","32-20 Win."]
[167,488,"8,5 x 75 R Scheiring",67.3,68.5,74.7,null,null,96,1.4,13.35,null,null,null,null,null,0.3,"45°",11.9,11.43,"80°",74.099999999999994,null,null,9.41,9.3800000000000008,8.61,null,83.7,"AUT","b",null,null,null,null,3800,4370,4750,25,5500,8.3800000000000008,8.59,2.79,6,254,"C.I.P.","metrique","carabine",null,null,null,null,null,null,null,null,null,null,null,null,null,null,null,null,null,null,null,null,null,null,null,null,null,null,null,null,null,null,null,"32 Winchester C.F.","32-20 Win."]
[168,476,"8,5 mm Messner Mag.",50.88,55.01,63.85,null,null,88,1.38,13.6,null,3.48,12.19,1.02,"45°",0.36,"35°",14.35,13.93,"58°",63.44,0.66,1.85,9.35,9.35,8.59,null,75.099999999999994,"FR","g",null,null,null,null,4400,5060,5500,25,6400,8.3800000000000008,8.59,2.79,6,254,"C.I.P.","metrique","carabine",null,null,null,null,null,null,null,null,null,null,null,null,null,null,null,null,null,null,null,null,null,null,null,null,null,null,null,null,null,null,null,"32.40-165","32-40 Win."]
[169,343,"9 x 18",null,null,18,null,null,25.5,1.25,9.5,null,2.93,8.25,1,"49°59'24\"",0.6,"45°",9.8699999999999992,null,null,null,null,null,null,9.68,9.02,null,20.58,"DE/AT","p /g",null,null,null,null,1800,2070,2340,9,null,8.82,9.02,2.4900000000000002,6,250,"C.I.P.","metrique","revolvers et pistolets",null,null,null,null,null,null,null,null,null,null,null,null,null,null,null,null,null,null,null,null,null,null,null,null,null,null,null,null,null,null,null,"32.Long, S. & W.","32 S&W Long"]
[170,345,"9 x 21",null,null,21.15,null,null,29.75,1.27,9.9600000000000009,null,2.98,8.7899999999999991,0.9,"35°",0.3,"45°",9.93,null,null,null,null,null,null,9.6300000000000008,9.0299999999999994,null,30.6,"IL","p /g",null,null,null,null,2350,2703,3055,12.5,null,8.7899999999999991,9.0299999999999994,3.8,4,254,"C.I.P.","metrique","revolvers et pistolets",null,null,null,null,null,null,null,null,null,null,null,null,null,null,null,null,null,null,null,null,null,null,null,null,null,null,null,null,null,null,null,"32.short","32 Short Colt"]
[171,344,"9 x 20 VGW",null,null,20.149999999999999,null,null,30.69,1.27,9.9600000000000009,null,2.98,8.7899999999999991,0.9,"35°",0.3,"45°",9.93,null,null,null,null,null,null,9.65,9.0299999999999994,null,27.65,"AT","p /g",null,null,null,null,3000,3450,3900,12.5,null,8.82,9.02,2.4900000000000002,6,250,"C.I.P.","metrique","revolvers et pistolets",null,null,null,null,null,null,null,null,null,null,null,null,null,null,null,null,null,null,null,null,null,null,null,null,null,null,null,null,null,null,null,"320 (7 mm) REVOLVER","320 Short"]
[172,346,"9 x 22 MJR",14.95,16.809999999999999,22,null,null,29,1.4,10.77,null,3.52,8.81,1.1399999999999999,"45°",0.51,"35°",10.77,10.74,"31°31'27\"",33.979999999999997,0.5,0.5,9.69,9.68,9.0299999999999994,null,28.1,"AT","p /g",null,null,null,null,2550,2933,3315,12.5,null,8.82,9.02,2.4900000000000002,6,250,"C.I.P.","metrique","revolvers et pistolets",null,null,null,null,null,null,null,null,null,null,null,null,null,null,null,null,null,null,null,null,null,null,null,null,null,null,null,null,null,null,null,"320 C.F.","320 Short"]
[173,347,"9 x 25 Super Auto G",18.510000000000002,20,25.35,null,null,32.700000000000003,1.4,10.85,null,3.62,8.85,1.25,"45°",0.4,"45°",10.8,10.72,"39°50'34\"",33.299999999999997,0.5,0.5,9.64,9.6300000000000008,9.0299999999999994,null,28.7,"AT","p /g",null,null,null,null,2550,2933,3315,12.5,null,8.82,9.02,2.4900000000000002,6,250,"C.I.P.","metrique","revolvers et pistolets",null,null,null,null,null,null,null,null,null,null,null,null,null,null,null,null,null,null,null,null,null,null,null,null,null,null,null,null,null,null,null,"320 Long C.F.","320 Long"]
[174,202,"9 x 53 R",39.68,42.45,53,null,null,67,1.6,14.48,null,null,null,null,null,0.57999999999999996,"19°40",12.42,11.61,"35°03'40\"",58.06,null,null,9.86,9.86,9.27,null,60.7,"RU","b",null,null,null,null,3400,3910,4250,25,3800,9,9.25,3,6,240,"C.I.P.","metrique","carabine",null,null,null,null,null,null,null,null,null,null,null,null,null,null,null,null,null,null,null,null,null,null,null,null,null,null,null,null,null,null,null,"320 Long Revolver","320 Long"]
[175,66,"9 x 56 M.-Sch.",46.48,48,56.3,null,null,81,1.2,11.9,null,3.2,10.3,1,"36°52'12\"",0.3,"45°",11.8,10.7,"38°06'33\"",61.97,0.5,0.5,9.65,9.65,9.08,null,71.5,"AT","g",null,null,null,null,2080,2392,2600,25,2815,8.8000000000000007,9.15,4.4000000000000004,4,280,"C.I.P.","metrique","carabine",null,null,null,null,null,null,null,null,null,null,null,null,null,null,null,null,null,null,null,null,null,null,null,null,null,null,null,null,null,null,null,"320 REVOLVER","320 Short"]
[176,67,"9 x 57",46.2,47.82,56.8,null,null,81,1.3,11.95,null,3.2,10.5,1,"38°39'35\"",0.3,"45°",11.94,10.95,"38°08'18\"",62.04,0.5,0.5,9.83,9.83,9.08,null,90.1,"DE","g",null,null,null,null,2800,3220,3500,25,3650,8.7799999999999994,9.06,4.5999999999999996,4,360,"C.I.P.","metrique","carabine",null,null,null,null,null,null,null,null,null,null,null,null,null,null,null,null,null,null,null,null,null,null,null,null,null,null,null,null,null,null,null,"320 Rook","320 Long"]
[177,203,"9 x 57 R",46.14,47.76,56.8,null,null,81,1.4,13.4,null,null,null,null,null,0.3,"45°",11.96,10.95,"38°08'17\"",61.98,0.5,0.5,9.83,9.83,9.08,null,90.1,"DE","b",null,null,null,null,2800,3220,3500,25,3260,8.7799999999999994,9.06,3.2,6,360,"C.I.P.","metrique","carabine",null,null,null,null,null,null,null,null,null,null,null,null,null,null,null,null,null,null,null,null,null,null,null,null,null,null,null,null,null,null,null,"320-6-80 REVOLVER","320 Short"]
[178,352,"9 mm FX &CQT",null,null,19.510000000000002,null,null,29.03,1.19,9.9600000000000009,null,3.14,8.7899999999999991,1.1399999999999999,"35°",0.3,"55°",9.93,null,null,null,null,null,null,9.75,7.72,null,22.69,"CA","p /g",null,null,null,null,350,403,455,12.5,null,7.59,7.81,1.02,6,254,"C.I.P.","metrique","revolvers et pistolets",null,null,null,null,null,null,null,null,null,null,null,null,null,null,null,null,null,null,null,null,null,null,null,null,null,null,null,null,null,null,null,"320-8-80 Long","320 Long"]
[179,440,"9 mm Glisenti",null,null,19.059999999999999,null,null,28.99,1.18,9.9600000000000009,null,3.1,8.7899999999999991,1,null,null,null,9.91,null,null,null,null,null,null,9.5399999999999991,8.9700000000000006,null,null,"IT","p /g",null,null,null,null,null,null,null,null,null,null,null,null,null,null,"E.C.R.A.",null,null,null,null,null,null,null,null,null,null,null,null,null,null,null,null,null,null,null,null,null,null,null,null,null,null,null,null,null,null,null,null,null,"32-20 Hi-Power","32-20 Win."]
[180,439,"9 mm Bergmann-Bayard (9 Largo)",null,null,23,null,null,33,1.4,10,null,3.75,7.73,1,null,null,null,9.8800000000000008,null,null,null,null,null,null,9.58,9.09,null,null,null,"g",null,null,0,"35",2400,null,null,null,null,null,null,null,null,null,"MALFATI",null,null,null,null,null,null,null,null,null,null,null,null,null,null,null,null,null,null,null,null,null,null,null,null,null,null,null,null,null,null,null,null,null,"32-20 Marlin","32-20 Win."]
[181,354,"9 mm Steyr",null,null,23.2,null,null,33.1,1.25,9.6999999999999993,null,3.5,8.6999999999999993,1.3,"27°45'29\"",0.3,"45°",9.6999999999999993,null,null,null,null,null,null,9.6199999999999992,9.0299999999999994,null,27.55,"AT","p /g",null,null,null,null,1350,1553,1755,12.5,null,8.8000000000000007,9.02,3,6,250,"C.I.P.","metrique","revolvers et pistolets",null,null,null,null,null,null,null,null,null,null,null,null,null,null,null,null,null,null,null,null,null,null,null,null,null,null,null,null,null,null,null,"32-20 W.C.F.","32-20 Win."]
[182,441,"9 mm Mauser",null,null,25,null,null,35,1.27,9.98,null,3,8.73,0.9,"35°",0.3,"45°",9.89,null,null,null,null,null,null,9.6300000000000008,9.0299999999999994,null,33.5,"DE","p /g",null,null,null,null,2600,2990,3380,12.5,null,8.82,9.02,2.4900000000000002,6,250,"C.I.P.","metrique","revolvers et pistolets",null,null,null,null,null,null,null,null,null,null,null,null,null,null,null,null,null,null,null,null,null,null,null,null,null,null,null,null,null,null,null,"32-20-100 Marlin Safety","32-20 Win."]
[183,351,"9 mm FAR",null,null,24.15,null,null,32.6,1.27,9.9600000000000009,null,2.97,8.7899999999999991,0.89,"35°",0.3,"45°",9.93,null,null,null,null,null,null,9.65,9.0299999999999994,null,27.5,"IT","p /g",null,null,null,null,2600,2990,3380,12.5,null,8.82,9.02,2.4900000000000002,6,250,"C.I.P.","metrique","revolvers et pistolets",null,null,null,null,null,null,null,null,null,null,null,null,null,null,null,null,null,null,null,null,null,null,null,null,null,null,null,null,null,null,null,"32-40 Ballard","32-40 Win."]
[184,353,"9 mm Luger",null,null,19.149999999999999,null,null,29.69,1.27,9.9600000000000009,null,2.98,8.7899999999999991,0.9,"35°",0.3,"45°",9.93,null,null,null,null,null,null,9.65,9.0299999999999994,null,22.5,"DE","p /g",null,null,null,null,2350,2703,3055,12.5,null,8.82,9.02,2.4900000000000002,6,250,"C.I.P.","metrique","revolvers et pistolets",null,null,null,null,null,null,null,null,null,null,null,null,null,null,null,null,null,null,null,null,null,null,null,null,null,null,null,null,null,null,null,"32-40 Marlin","32-40 Win."]
[185,350,"9 mm Browning long",null,null,20.2,null,null,28,1.25,10.199999999999999,null,2.96,8.5,1.1000000000000001,"45°",0.3,"45°",9.7200000000000006,null,null,null,null,null,null,9.68,9.09,null,25.2,"BE","p /g",null,null,null,null,1650,1898,2145,10.5,null,8.92,9.1199999999999992,3.76,6,400,"C.I.P.","metrique","revolvers et pistolets",null,null,null,null,null,null,null,null,null,null,null,null,null,null,null,null,null,null,null,null,null,null,null,null,null,null,null,null,null,null,null,"32-6-85 Smith & Wesson","32 S&W"]
[186,349,"9 mm Browning cour",null,null,17.329999999999998,null,null,25,1.3,9.5299999999999994,null,2.84,8.25,0.8,"40°",0.5,"45°",9.5299999999999994,null,null,null,null,null,null,9.5299999999999994,9.0399999999999991,null,19.93,"BE","p /g",null,null,null,null,1350,1553,1755,9,null,8.84,9.0399999999999991,3.07,6,250,"C.I.P.","metrique","revolvers et pistolets",null,null,null,null,null,null,null,null,null,null,null,null,null,null,null,null,null,null,null,null,null,null,null,null,null,null,null,null,null,null,null,"33 W.C.F.","33 Win."]
[187,348,"9 mm Makarov",null,null,18.100000000000001,null,null,25,1.25,9.9499999999999993,null,3.5,8.5500000000000007,1,"29°15'",0.6,"45°",9.9499999999999993,null,null,null,null,null,null,9.91,9.27,null,26.4,"SU","p /g",null,null,null,null,1600,1840,2080,10.5,null,9,9.27,4.5,4,240,"C.I.P.","metrique","revolvers et pistolets",null,null,null,null,null,null,null,null,null,null,null,null,null,null,null,null,null,null,null,null,null,null,null,null,null,null,null,null,null,null,null,"34 W.C.F.","348 Win."]
[188,204,"9,3 x 53 R Finnish",39.61,41.94,53.3,null,null,76,1.6,14.4,null,null,null,null,null,0.6,"70°",12.42,11.61,"38°59'44\"",56,null,null,9.9600000000000009,9.9,9.3000000000000007,null,76.08,"FI","b",null,null,null,null,3400,3910,4250,25,4300,9.0500000000000007,9.2799999999999994,3.1,6,380,"C.I.P.","metrique","carabine",null,null,null,null,null,null,null,null,null,null,null,null,null,null,null,null,null,null,null,null,null,null,null,null,null,null,null,null,null,null,null,"34 Winchester","348 Win."]
[189,68,"9,3 x 57",45.86,47.36,56.5,null,null,82,1.3,11.95,null,3.2,10.5,1,"38°39'36\"",0.3,"45°",11.94,10.95,"35°",63.15,0.5,0.5,10,10,9.3000000000000007,null,84.5,"DE","g",null,null,null,null,3000,3450,3750,25,4250,9,9.2799999999999994,4.5999999999999996,4,360,"C.I.P.","metrique","carabine",null,null,null,null,null,null,null,null,null,null,null,null,null,null,null,null,null,null,null,null,null,null,null,null,null,null,null,null,null,null,null,"348 W.C.F.","348 Win."]
[190,69,"9,3 x 62",51.79,54.22,62,null,65.099999999999994,83.6,1.3,11.95,null,3.2,10.5,1,"41°37'48\"",0.3,"45°",12.1,11.45,"34°56'58\"",69.98,0.5,0.5,9.92,9.92,9.3000000000000007,9.3000000000000007,90,"DE","g",null,null,null,null,3900,4485,4875,25,5335,9,9.2799999999999994,4.5999999999999996,4,360,"C.I.P.","metrique","carabine",null,null,null,null,null,null,null,null,null,null,null,null,null,null,null,null,null,null,null,null,null,null,null,null,null,null,null,null,null,null,null,"35 Remington Auto","35 Rem."]
[191,70,"9,3 x 64 Brenneke",52.09,55.28,64,null,70,85.6,1.3,12.6,null,3.2,11.2,1,"43°",0.3,"45°",12.88,12.05,"34°58'26\"",71.209999999999994,0.5,0.5,10.039999999999999,10.039999999999999,9.3000000000000007,9.25,92,"DE","g",null,null,null,null,4400,5060,5500,25,5335,9,9.2799999999999994,4.5999999999999996,4,360,"C.I.P.","metrique","carabine",null,null,null,null,null,null,null,null,null,null,null,null,null,null,null,null,null,null,null,null,null,null,null,null,null,null,null,null,null,null,null,"35 Win.Model 1895","35 Win."]
[192,71,"9,3 x 66 Sako",55.8,58.2,66,null,null,85,1.3,11.95,null,3.24,10.5,1,"41°",0.3,"45°",12.13,11.43,"34°55'31\"",73.97,0.5,0.5,9.92,9.92,9.3000000000000007,null,83.01,"FI","g",null,null,null,null,4150,4773,5188,25,6000,9,9.2799999999999994,3.14,6,360,"C.I.P.","metrique","carabine",null,null,null,null,null,null,null,null,null,null,null,null,null,null,null,null,null,null,null,null,null,null,null,null,null,null,null,null,null,null,null,"350 Rigby","350 Mag. Rigby"]
[193,205,"9,3 x 72 R",null,50,72,null,null,86,1.3,12.35,null,null,null,null,null,0.3,"45°",10.91,null,null,null,null,null,9.82,9.82,9.57,null,99,"DE","b",null,null,null,null,2000,2300,2500,25,2325,8.75,9.25,4.5999999999999996,4,420,"C.I.P.","metrique","carabine",null,null,null,null,null,null,null,null,null,null,null,null,null,null,null,null,null,null,null,null,null,null,null,null,null,null,null,null,null,null,null,"350 Rigby Magnum","350 Mag. Rigby"]
[194,206,"9,3 x 74 R",59,61.5,74.7,null,null,94.5,1.4,13.35,null,null,null,null,null,0.3,"45°",11.9,10.4,"10°58'",113.17,0.5,0.5,9.92,9.92,9.3000000000000007,null,101.1,"DE","b",null,null,null,null,3400,3910,4250,25,5045,9,9.2799999999999994,4.5999999999999996,4,360,"C.I.P.","metrique","carabine",null,null,null,null,null,null,null,null,null,null,null,null,null,null,null,null,null,null,null,null,null,null,null,null,null,null,null,null,null,null,null,"350 Rimless Magnum","350 Mag. Rigby"]
[195,478,"9,3 RSM",42.24,44.88,53.32,null,null,75,1.37,13.59,null,3.36,12.19,1.02,"45°",0.36,"45°",14.12,13.67,"70°",52,0.8,2.54,9.98,9.98,9.3000000000000007,null,59.66,"DE","g",null,null,null,null,4400,5060,5720,25,5250,9,9.2799999999999994,4.5999999999999996,6,406.4,"C.I.P.","metrique","carabine",null,null,null,null,null,null,null,null,null,null,null,null,null,null,null,null,null,null,null,null,null,null,null,null,null,null,null,null,null,null,null,"351 SL","351 Win. SL"]
[196,72,"9,5 x 57 M.-Sch.",46.5,48.02,57,null,null,75,1.2,11.9,null,3.2,10.3,1,"38°39'35\"",0.3,"45°",11.9,11.4,"42°06'01\"",61.31,0.5,0.5,10.23,10.18,9.5500000000000007,null,68.400000000000006,"AT","g",null,null,null,null,3050,3508,3810,25,6065,9.27,9.6199999999999992,4.5999999999999996,4,300,"C.I.P.","metrique","carabine",null,null,null,null,null,null,null,null,null,null,null,null,null,null,null,null,null,null,null,null,null,null,null,null,null,null,null,null,null,null,null,"351 WSL","351 Win. SL"]
[197,73,"9,5 x 66 SE v. H.",55,57,66,null,null,85,1.3,13,null,3.7,11.5,1,"40°",0.3,"45°",13.85,13.7,"81°23'28\"",62.97,0.5,1,10.26,10.26,9.5500000000000007,null,74.92,"DE","g",null,null,null,null,4400,5060,5500,25,6080,9.3000000000000007,9.5500000000000007,2.92,6,305,"C.I.P.","metrique","carabine",null,null,null,null,null,null,null,null,null,null,null,null,null,null,null,null,null,null,null,null,null,null,null,null,null,null,null,null,null,null,null,"355-9x56 MS","9 x 56 M.-Sch."]
[198,355,"10 x 22 T",null,22,22.5,null,null,null,1.25,9.5,null,2.97,8.3000000000000007,1,"40°",0.4,"45°",9.75,null,null,null,null,null,9.75,8.1999999999999993,10,null,42.5,"IT","p /g",null,null,null,null,450,518,585,12.5,null,6.3,null,null,null,null,"C.I.P.","metrique","revolvers et pistolets",null,null,null,null,null,null,null,null,null,null,null,null,null,null,null,null,null,null,null,null,null,null,null,null,null,null,null,null,null,null,null,"356 Magnum","357 Magnum"]
[199,356,"10 mm Auto",null,null,25.2,null,null,32,1.4,10.85,null,3.63,8.85,1.25,"45°",null,"45°",10.81,null,null,null,null,null,null,10.7,10.16,null,30.3,"SE","p /g",null,null,null,null,2300,2645,2990,12.5,null,9.91,10.16,4.47,5,381,"C.I.P.","metrique","revolvers et pistolets",null,null,null,null,null,null,null,null,null,null,null,null,null,null,null,null,null,null,null,null,null,null,null,null,null,null,null,null,null,null,null,"357 A.M.P.","357 Auto Mag."]
[200,357,"10 mm FAR",null,null,24.15,null,null,32.200000000000003,1.4,10.85,null,3.64,8.85,1.25,"45°",null,"45°",10.83,null,null,null,null,null,null,10.7,10.17,null,32.979999999999997,"IT","p /g",null,null,null,null,2250,2590,2925,12.5,null,9.91,10.17,3.05,6,406,"C.I.P.","metrique","revolvers et pistolets",null,null,null,null,null,null,null,null,null,null,null,null,null,null,null,null,null,null,null,null,null,null,null,null,null,null,null,null,null,null,null,"357 Auto Mag. Pistole","357 Auto Mag."]
[201,491,"10,3 x 68 Mag.",55,56.33,68,null,null,91.44,1.27,13.51,13.51,5.59,12.07,0.94,"35°",0.41,"35°",13.03,12.42,"50°",68.319999999999993,1,2,11.18,11.18,10.51,null,76.86,"CH","m",null,null,null,null,4400,5060,5500,25,6700,10.25,10.49,3.6,6,450,"C.I.P.","metrique","carabine",null,null,null,null,null,null,null,null,null,null,null,null,null,null,null,null,null,null,null,null,null,null,null,null,null,null,null,null,null,null,null,"357 Rem. Max.","357 Maximum"]
[202,207,"10,3 x 60 R",40.799999999999997,46.8,60.8,null,null,78.900000000000006,1.1000000000000001,15.7,null,null,null,null,null,0.3,"45°",13.85,12.5,"10°28'30\"",108.98,null,null,11.4,11.26,10.54,null,77.3,"CH","b",null,null,null,null,2700,3105,3375,25,4620,10.25,10.49,3.6,6,450,"C.I.P.","metrique","carabine",null,null,null,null,null,null,null,null,null,null,null,null,null,null,null,null,null,null,null,null,null,null,null,null,null,null,null,null,null,null,null,"357 S & W","357 Magnum"]
[203,443,"10,3 CSP",42.27,43.89,52.5,null,null,72.7,1.37,13.59,null,3.36,12.19,1.02,"45°",0.36,"35°",14.12,13.67,"70°",52.03,1.27,1.27,11.4,11.34,10.54,null,59.95,"CH","g",null,null,null,null,4400,5060,5500,25,6200,10.25,10.49,3.6,6,450,"C.I.P.","metrique","carabine",null,null,null,null,null,null,null,null,null,null,null,null,null,null,null,null,null,null,null,null,null,null,null,null,null,null,null,null,null,null,null,"357 S.& W. Magnum","357 Magnum"]
[204,358,"10,4 Ord. It.",13,14.22,19.8,20.9,null,30.2,1.65,13.2,null,null,null,null,null,0.8,"27°",11.8,11.23,"17°14'43\"",50.03,null,null,10.86,10.86,11.1,10.55,21.91,"IT","p /b",null,null,null,null,630,725,819,10.5,null,10.35,10.75,4,4,250,"C.I.P.","metrique","revolvers et pistolets",null,null,null,null,null,null,null,null,null,null,null,null,null,null,null,null,null,null,null,null,null,null,null,null,null,null,null,null,null,null,null,"357 Super Magnum","357 Maximum"]
[205,74,"10,75 x 68",53.35,54,68,null,68.5,81,1.3,12.57,null,3.6,10.6,1,"37°06'36\"",0.3,"45°",12.57,12.2,"55°54'58\"",64.84,0.5,0.5,11.51,11.51,10.78,10.78,98,"DE","g",null,null,null,null,3300,3795,4125,25,5040,10.45,10.75,3.6,6,420,"C.I.P.","metrique","carabine",null,null,null,null,null,null,null,null,null,null,null,null,null,null,null,null,null,null,null,null,null,null,null,null,null,null,null,null,null,null,null,"357 Super Maximum","357 Maximum"]
[206,208,"11,15 x 60 R",36.4,40.049999999999997,60.35,null,null,78,2.4,15,null,null,null,null,null,1.05,"45°",13.1,13,"17°54'18\"",77.66,null,null,11.85,11.85,11.4,null,87.85,"DE","b",null,null,null,null,2800,3220,3500,25,2730,10.95,11.5,5.6,4,550,"C.I.P.","metrique","carabine",null,null,null,null,null,null,null,null,null,null,null,null,null,null,null,null,null,null,null,null,null,null,null,null,null,null,null,null,null,null,null,"360 x 72","8 x 72 R"]
[207,294,"11,5 x 51",null,null,51.2,null,null,62,1.27,13.51,13.51,5.59,12.07,0.94,"35°",0.41,"35°",13.03,null,null,null,null,null,null,12.25,11.49,null,62.48,"DE","m",null,null,null,null,4000,4600,5000,25,5800,11.23,11.43,4.0599999999999996,6,508,"C.I.P.","metrique","carabine magnum",null,null,null,null,null,null,null,null,null,null,null,null,null,null,null,null,null,null,null,null,null,null,null,null,null,null,null,null,null,null,null,"375 SM","375 Super Mag.","N"]
[208,359,"11 mm 73",null,null,17.649999999999999,null,null,29.65,1,12.7,null,null,null,null,null,0.4,"45°",11.85,null,null,null,null,null,null,11.65,11.6,null,39.83,"FR","p /b",null,null,null,null,1150,1323,1495,19.5,null,10.8,11.2,4.3,4,350,"C.I.P.","metrique","revolvers et pistolets",null,null,null,null,null,null,null,null,null,null,null,null,null,null,null,null,null,null,null,null,null,null,null,null,null,null,null,null,null,null,null,"38 ACP (Super)","38 Super Auto"]
[209,412,"11 mm Gras M 79/83",38.65,0,59.8,null,null,76.5,null,16.899999999999999,null,null,null,null,null,null,null,13.8,13.5,null,null,null,null,0,11.9,11.21,null,null,"FR","b",null,null,null,null,1800,null,null,null,null,11,11.5,null,null,null,"MALFATI",null,null,null,null,null,null,null,null,null,null,null,null,null,null,null,null,null,null,null,null,null,null,null,null,null,null,null,null,null,null,null,null,null,"38 Automatic Super Speed","38 Super Auto"]
[210,75,"12,7 x 70 (500 Schüler)",59,61.3,70,null,null,88,1.3,14.65,null,3.61,13.1,1,"45°",0.3,"45°",15.73,15.32,"39°54'22\"",80.099999999999994,3,4,13.65,13.65,12.96,null,77.22,"DE","g",null,null,null,null,3300,3795,4125,25,9240,12.6,12.94,3.58,8,450,"C.I.P.","metrique","carabine",null,null,null,null,null,null,null,null,null,null,null,null,null,null,null,null,null,null,null,null,null,null,null,null,null,null,null,null,null,null,null,"38 Automatik Super-X","38 Super Auto"]
[211,444,"12,7 x 108",84.8,92.6,108,null,null,147,2,21.8,null,6.3,18,1.9,"38°44'",0.8,"45°",21.85,19.05,"35°32'34\"",114.52,null,null,14.05,13.9,13.01,null,138,"RUS","g",null,null,null,null,3050,3508,3813,25,19200,12.66,13,2.8,8,380,"C.I.P.","metrique","carabine",null,null,null,null,null,null,null,null,null,null,null,null,null,null,null,null,null,null,null,null,null,null,null,null,null,null,null,null,null,null,null,"38 Colt Army","38 Long Colt"]
[212,76,"17 Libra",21.78,25.01,30.1,null,null,41,1.24,7.65,null,3.5,6.4,0.75,"20°",0.3,"45°",7.56,6.88,"34°04'50\"",33,0.64,2.54,4.9000000000000004,4.9000000000000004,4.28,null,32.869999999999997,"CZ","g",null,null,null,null,4300,4945,5375,17.5,1500,4.2699999999999996,4.4000000000000004,1.57,6,229,"C.I.P.","pouce","carabine",null,null,null,null,null,null,null,null,null,null,null,null,null,null,null,null,null,null,null,null,null,null,null,null,null,null,null,null,null,null,null,"38 Colt Auto.-Hammerless","9 mm Browning cour"]
[213,479,"17 Hornet",26.6,29.32,34.29,null,null,43.69,1.65,8.89,null,null,null,null,null,0.38,"35°",7.59,7.47,"50°",34.61,0.64,1.91,4.93,4.93,4.38,null,37.950000000000003,"USA","b",null,null,null,null,3700,4255,4625,17.5,820,4.2699999999999996,4.37,1.57,6,228,"C.I.P.","pouce","carabine",null,null,null,null,null,null,null,null,null,null,null,null,null,null,null,null,null,null,null,null,null,null,null,null,null,null,null,null,null,null,null,"38 Colt Super Automatic","38 Super Auto"]
[214,413,"17 Mach IV",26.7,30.59,34.89,null,null,45.45,1.1499999999999999,9.58,null,3,8.15,0.85,"25°",0.45,"35°",9.42,9.1,"060°",null,null,null,5.07,4.95,4.3499999999999996,null,null,"US","g",null,10,1,"17",null,null,null,null,null,null,null,null,null,null,"E.C.R.A.",null,null,null,null,null,null,null,null,null,null,null,null,null,null,null,null,null,null,null,null,null,null,null,null,null,null,null,null,null,null,null,null,null,"38 L.C.F","38 Long Colt"]
[215,77,"17 Rem.",34.31,39.01,45.62,null,null,54.61,1.1399999999999999,9.6,null,3.13,8.43,0.76,"25°",0.45,"35°",9.58,9.0399999999999991,"46°",44.96,0.64,2.54,5.05,5.05,4.38,null,47.74,"US","g",null,null,null,null,4250,4888,5310,25,1290,4.2699999999999996,4.37,1.57,6,229,"C.I.P.","pouce","carabine",null,null,null,null,null,null,null,null,null,null,null,null,null,null,null,null,null,null,null,null,null,null,null,null,null,null,null,null,null,null,null,"38 Long Colt D.A.","38 Long Colt"]
[216,78,"17 Rem. Fireball",27.05,30.6,35.81,null,null,46.48,1.1399999999999999,9.6,null,3.12,8.43,0.76,"25°",0.45,"35°",9.57,9.2799999999999994,"60°",35.08,0.64,2.54,5.18,5.18,4.38,null,40.200000000000003,"US","g",null,null,null,null,3800,4370,4750,17.5,980,4.2699999999999996,4.37,1.57,6,228.6,"C.I.P.","pouce","carabine",null,null,null,null,null,null,null,null,null,null,null,null,null,null,null,null,null,null,null,null,null,null,null,null,null,null,null,null,null,null,null,"38 Long Colt Double Act.","38 Long Colt"]
[null,null,"20 Nosler",37.479999999999997,41.1,46.99,null,null,57.3,1.1399999999999999,9.6,null,4.12,8.43,0.76,"27°",0.45,"45°",10.69,10.119999999999999,"30°",46.24,null,null,5.94,5.94,5.19,null,null,null,"g",null,null,null,null,null,null,null,null,null,null,null,null,null,null,"SAAMI","pouce","carabine",null,null,null,null,null,null,null,null,null,null,null,null,null,null,null,null,null,null,null,null,null,null,null,null,null,null,null,null,null,null,null,"38 S&W. Special","38 Special"]
[null,null,"22 Nosler",35.29,38.479999999999997,44.7,null,null,57.3,1.1399999999999999,9.6,null,4.12,8.43,0.76,"27°",0.45,"45°",10.69,10.16,"30°",44.09,null,null,6.48,6.48,5.7,null,null,null,"g",null,null,null,null,null,null,null,null,null,null,null,null,null,null,"SAAMI","pouce","carabine",null,null,null,null,null,null,null,null,null,null,null,null,null,null,null,null,null,null,null,null,null,null,null,null,null,null,null,null,null,null,null,"38 Special","38 Spl. Wad Cut."]
[217,211,"22 Hornet",21.64,25.8,35.64,null,null,43.76,1.65,8.89,null,null,null,null,null,0.38,"35°",7.59,7.04,"11°16'",57.33,12.7,22.23,6.22,6.16,5.7,null,38.78,"US","b",null,null,null,null,3000,3450,3750,17.5,1055,5.51,5.64,1.73,6,406,"C.I.P.","pouce","carabine",null,null,null,null,null,null,null,null,null,null,null,null,null,null,null,null,null,null,null,null,null,null,null,null,null,null,null,null,null,null,null,"38 Special (38-44)","38 Special"]
[218,415,"22 K Hornet",25.7,26.37,35.18,null,null,43.76,1.65,8.89,null,null,null,null,null,null,null,7.54,7.26,"080°",null,null,null,6.14,6.16,5.69,null,null,"US","b","sr",12,2,2,null,null,null,null,null,null,null,null,null,null,"SPEER",null,null,null,null,null,null,null,null,null,null,null,null,null,null,null,null,null,null,null,null,null,null,null,null,null,null,null,null,null,null,null,null,null,"38 Special Semi-rim","38 Spl. AMU"]
[219,360,"22 PICRA",30.09,30.64,35.64,null,null,48,1.65,8.89,null,null,null,null,null,0.38,"35°",7.59,7.29,"90°",33.729999999999997,null,null,6.19,6.19,5.7,null,38.770000000000003,"CZ","p /b",null,null,null,null,3200,3680,4160,17.5,null,5.51,5.64,1.73,6,406,"C.I.P.","pouce","revolvers et pistolets",null,null,null,null,null,null,null,null,null,null,null,null,null,null,null,null,null,null,null,null,null,null,null,null,null,null,null,null,null,null,null,"38 SPL","38 Special"]
[220,81,"22 PPC-USA",27.3,31.28,38.479999999999997,null,null,55.7,1.5,11.3,null,3.5,9.6,1.1000000000000001,"42°40'48\"",0.4,"45°",11.26,10.95,"60°02'47\"",36.770000000000003,1,3,6.35,6.35,5.7,null,43.96,"FI","g",null,null,null,null,4050,4658,5060,17.5,1935,5.53,5.66,2.04,6,355,"C.I.P.","pouce","carabine",null,null,null,null,null,null,null,null,null,null,null,null,null,null,null,null,null,null,null,null,null,null,null,null,null,null,null,null,null,null,null,"38 Spl. AMU","38 Spl. AMU"]
[221,361,"22 Rem.Jet Mag.",15.19,27.62,32.72,null,null,42.14,1.5,11.18,null,null,null,null,null,0.38,"35°",9.65,9.2899999999999991,"13°21'",54.88,0.76,2.54,6.38,6.38,5.65,null,43.03,"US","p /b",null,null,null,null,2550,2933,3315,10.5,null,5.56,5.65,1.8,6,381,"C.I.P.","pouce","revolvers et pistolets",null,null,null,null,null,null,null,null,null,null,null,null,null,null,null,null,null,null,null,null,null,null,null,null,null,null,null,null,null,null,null,"38 W.C.F.","38-40 Win."]
[222,212,"22 Savage",35.520000000000003,41.04,52.07,null,null,63.75,1.6,12.85,null,null,null,null,null,null,null,10.74,9.1999999999999993,"28°",53.97,3.81,3.81,6.45,6.45,5.79,null,55.22,"US","b",null,null,null,null,3300,3795,4125,25,1990,5.61,5.74,1.65,6,305,"C.I.P.","pouce","carabine",null,null,null,null,null,null,null,null,null,null,null,null,null,null,null,null,null,null,null,null,null,null,null,null,null,null,null,null,null,null,null,"38 Wadcutter","38 Spl. Wad Cut."]
[223,82,"22-250 Rem.",38.479999999999997,42.26,48.46,null,null,59.69,1.24,12.01,null,3.22,10.39,0.84,"34°",0.38,"35°",11.93,10.52,"56°",48.37,2.54,2.54,6.5,6.45,5.7,null,52.39,"US","g",null,null,null,null,4050,4658,5060,25,2370,5.56,5.69,2.0299999999999998,6,356,"C.I.P.","pouce","carabine",null,null,null,null,null,null,null,null,null,null,null,null,null,null,null,null,null,null,null,null,null,null,null,null,null,null,null,null,null,null,null,"38 Win. HV","38-40 Win."]
[null,null,"24 Nosler",30.13,33.090000000000003,40.64,null,null,57.3,1.1399999999999999,9.6,null,4.12,8.43,0.76,"27°",0.45,"45°",10.69,10.25,"30°",39.01,null,null,6.83,6.83,6.18,null,null,null,"g",null,null,null,null,null,null,null,null,null,null,null,null,null,null,"SAAMI","pouce","carabine",null,null,null,null,null,null,null,null,null,null,null,null,null,null,null,null,null,null,null,null,null,null,null,null,null,null,null,null,null,null,null,"380 (9 mm) Auto","9 mm Browning cour"]
[224,90,"25 Rem.",38.049999999999997,41.42,52.07,null,null,64.14,1.24,10.72,null,3.2,9.09,0.84,"36°",0.33,"35°",10.72,10.19,"46°",50.05,0.64,2.54,7.33,7.26,6.58,null,56.07,"US","g",null,null,null,null,2450,2817,3063,25,1995,6.35,6.5,2.41,6,254,"C.I.P.","pouce","carabine",null,null,null,null,null,null,null,null,null,null,null,null,null,null,null,null,null,null,null,null,null,null,null,null,null,null,null,null,null,null,null,"380 ACP","9 mm Browning cour"]
[225,91,"25 Win. SSM",29.4,34.79,42.42,null,null,59.94,1.37,13.59,null,3.36,12.19,1.02,"45°",0.35,"35°",14.12,13.83,"60°",41.36,1.27,3.3,7.6,7.6,6.54,null,51.76,"US","g",null,null,null,null,4400,5060,5500,17.5,3500,6.35,6.53,2.44,6,254,"C.I.P.","pouce","carabine",null,null,null,null,null,null,null,null,null,null,null,null,null,null,null,null,null,null,null,null,null,null,null,null,null,null,null,null,null,null,null,"380 Auto Webley","9 mm Browning cour"]
[226,92,"25-06 Rem.",49.48,55.52,63.35,null,null,82.55,1.24,12.01,null,3.16,10.39,0.84,"36°",0.38,"35°",11.96,11.2,"35°",67.239999999999995,1.27,2.54,7.39,7.37,6.54,null,68.42,"US","g",null,null,null,null,4400,5060,5500,25,3340,6.35,6.53,2.44,6,254,"C.I.P.","pouce","carabine",null,null,null,null,null,null,null,null,null,null,null,null,null,null,null,null,null,null,null,null,null,null,null,null,null,null,null,null,null,null,null,"380 C.A.P.H.","9 mm Browning cour"]
[227,215,"25-20 Win.",21.77,24.19,33.78,null,null,40.44,1.65,10.36,null,null,null,null,null,0.38,"35°",8.8699999999999992,8.4600000000000009,"33°07'59\"",35.99,2.54,4.7,7.02,6.95,6.55,null,35.130000000000003,"US","b",null,null,null,null,2700,3105,3375,17.5,1090,6.35,6.5,1.98,6,356,"C.I.P.","pouce","carabine",null,null,null,null,null,null,null,null,null,null,null,null,null,null,null,null,null,null,null,null,null,null,null,null,null,null,null,null,null,null,null,"380 L","7 x 57"]
[228,216,"25-35 Win.",35.06,39.78,51.89,null,null,64.77,1.6,13.35,null,null,null,null,null,0.38,"35°",10.73,9.25,"23°07'59\"",57.66,18.8,12.7,7.32,7.15,6.55,null,55.68,"US","b",null,null,null,null,3050,3508,3810,25,1750,6.35,6.5,2,6,203,"C.I.P.","pouce","carabine",null,null,null,null,null,null,null,null,null,null,null,null,null,null,null,null,null,null,null,null,null,null,null,null,null,null,null,null,null,null,null,"380 Long (Rifle)","380 Long"]
[229,453,"30-06 Ackley Improved",51.58,53.3,63.35,null,null,84.84,1.24,12.01,null,3.16,10.39,0.84,"36°",0.38,"35°",11.96,11.52,"80°",58.44,null,null,8.6300000000000008,8.6300000000000008,7.85,null,69.55,"USA","g",null,null,null,null,4300,4945,5375,25,4400,7.62,7.82,4.49,4,254,"C.I.P.","pouce","carabine",null,null,null,null,null,null,null,null,null,null,null,null,null,null,null,null,null,null,null,null,null,null,null,null,null,null,null,null,null,null,null,"380 Long Rifle (L.Colt)","380 Long"]
[230,110,"30-06 Court Cartry",49.49,53.56,60.8,null,null,82.3,1.24,12.01,null,3.16,10.39,0.84,"36°",0.38,"35°",11.96,11.2,"35°02'39\"",67.23,1.27,2.54,8.6300000000000008,8.6300000000000008,7.85,null,66.97,"FR","g",null,null,null,null,3500,4025,4375,25,3800,7.62,7.82,4.49,4,254,"C.I.P.","pouce","carabine",null,null,null,null,null,null,null,null,null,null,null,null,null,null,null,null,null,null,null,null,null,null,null,null,null,null,null,null,null,null,null,"380 Long. C.F.","380 Long"]
[231,481,"30-06 R Stief",49.27,53.35,63.35,null,null,84.84,1.4,13.32,null,null,null,null,null,null,null,11.99,11.2,"35°",67.03,1.27,2.54,8.6300000000000008,8.6300000000000008,7.85,null,69.55,"DE","b",null,null,null,null,4050,4658,5060,25,4335,7.62,7.82,4.49,4,254,"C.I.P.","pouce","carabine",null,null,null,null,null,null,null,null,null,null,null,null,null,null,null,null,null,null,null,null,null,null,null,null,null,null,null,null,null,null,null,"380 Rook Rifle","380 Long"]
[232,111,"30-06 Spring.",49.49,53.56,63.35,null,null,84.84,1.24,12.01,null,3.16,10.39,0.84,"36°",0.38,"35°",11.96,11.2,"35°",67.25,1.27,2.54,8.6300000000000008,8.6300000000000008,7.85,null,69.540000000000006,"US","g",null,null,null,null,4050,4658,5060,25,4335,7.62,7.82,4.49,4,254,"C.I.P.","pouce","carabine",null,null,null,null,null,null,null,null,null,null,null,null,null,null,null,null,null,null,null,null,null,null,null,null,null,null,null,null,null,null,null,"38-44 S.W. Special","38 Special"]
[233,224,"30-06 Stief",49.27,53.35,63.35,null,null,84.84,1.4,13.32,null,null,null,null,null,null,null,11.99,11.2,"35°",67.03,1.27,2.54,8.6300000000000008,8.6300000000000008,7.85,null,69.55,"DE","b",null,null,null,null,4050,4658,5060,25,4335,7.62,7.82,4.49,4,254,"C.I.P.","pouce","carabine",null,null,null,null,null,null,null,null,null,null,null,null,null,null,null,null,null,null,null,null,null,null,null,null,null,null,null,null,null,null,null,"38-44 Special","38 Special"]
[234,225,"30-30 Win.",36.6,39.69,51.8,null,null,64.77,1.6,12.85,null,null,null,null,null,0.38,"35°",10.71,10.19,"31°18'",54.79,4.57,11.68,8.4600000000000009,8.3800000000000008,7.85,null,53.25,"US","b",null,null,null,null,3200,3680,4000,25,2445,7.62,7.82,2.39,6,305,"C.I.P.","pouce","carabine",null,null,null,null,null,null,null,null,null,null,null,null,null,null,null,null,null,null,null,null,null,null,null,null,null,null,null,null,null,null,null,"38-55 Ballard","38-55 Win."]
[235,226,"30-40 Krag",43.82,46.45,58.78,null,null,78.459999999999994,1.63,13.84,null,null,null,null,null,0.39,"40°",11.71,10.64,"42°12'",57.61,3.94,4.0599999999999996,8.61,8.59,7.85,null,65.41,"US","b",null,null,null,null,3250,3738,4060,25,3750,7.62,7.82,2.39,6,254,"C.I.P.","pouce","carabine",null,null,null,null,null,null,null,null,null,null,null,null,null,null,null,null,null,null,null,null,null,null,null,null,null,null,null,null,null,null,null,"38-55 Marlin","38-55 Win."]
[236,455,"30-47 GS",35.68,38.5,47,null,null,66.599999999999994,1.37,12.01,null,3.84,10.39,1.4,"36°",0.38,"45°",11.95,11.59,"60°03'26\"",45.71,1,1.5,8.33,8.33,7.82,null,51.28,"ITA","g",null,null,null,null,4350,5003,5438,25,4300,7.62,7.82,2.5,6,355.6,"C.I.P.","pouce","carabine",null,null,null,null,null,null,null,null,null,null,null,null,null,null,null,null,null,null,null,null,null,null,null,null,null,null,null,null,null,null,null,"38-55 Marlin Et Ballard","38-55 Win."]
[237,112,"30-284 NOLASCO",44.98,47.36,55.1,null,null,76,1.02,12.01,null,3.78,10.39,1.37,"40°",0.38,"35°",12.72,12.06,"70°",53.59,0.8,3.2,8.7200000000000006,8.67,7.85,null,65.760000000000005,"FR","g",null,null,null,null,3800,4370,4750,25,2750,7.62,7.82,4.47,4,305,"C.I.P.","pouce","carabine",null,null,null,null,null,null,null,null,null,null,null,null,null,null,null,null,null,null,null,null,null,null,null,null,null,null,null,null,null,null,null,"4,53 x 45,5","17 Rem."]
[238,113,"30-284 Win.",44.98,47.36,55.1,null,null,72,1.02,12.01,null,3.78,10.39,1.37,"40°",0.38,"35°",12.72,12.06,"70°",53.59,0.8,3.2,8.7200000000000006,8.67,7.85,null,62.08,"US","g",null,null,null,null,3800,4370,4750,25,4300,7.62,7.82,4.47,4,305,"C.I.P.","pouce","carabine",null,null,null,null,null,null,null,null,null,null,null,null,null,null,null,null,null,null,null,null,null,null,null,null,null,null,null,null,null,null,null,"400 Jeffery","400 Purdey 3‘‘"]
[239,454,"30-338 Prechtl Mag.",54.86,61.78,69.2,null,null,93.2,1.52,14.93,null,3.11,13.24,0.9,"50°18'",0.5,"45°",14.91,13.82,"40°",73.84,null,2,8.7799999999999994,8.73,7.85,null,76.97,"DE","g",null,null,null,null,4200,4830,5250,25,5200,7.62,7.82,4.47,4,254,"C.I.P.","pouce","carabine",null,null,null,null,null,null,null,null,null,null,null,null,null,null,null,null,null,null,null,null,null,null,null,null,null,null,null,null,null,null,null,"400 N.E. Black Powder 3\"P","400 Purdey 3‘‘"]
[240,365,"30-357 AeT",24.98,26.9,32.770000000000003,null,null,47.8,1.52,11.18,null,2.74,9,0.84,"40°",0.4,"35°",9.6300000000000008,9.58,"32°31'13\"",41.4,null,null,8.4600000000000009,8.4600000000000009,7.85,null,35.840000000000003,"IT","p /g",null,null,null,null,3000,3450,3900,17.5,null,7.62,7.82,4.24,4,304.8,"C.I.P.","pouce","revolvers et pistolets",null,null,null,null,null,null,null,null,null,null,null,null,null,null,null,null,null,null,null,null,null,null,null,null,null,null,null,null,null,null,null,"400 N.E.B.P. 3 Purdey","400 Purdey 3‘‘"]
[241,304,"30-378 Weath. Mag.",61.2,63.33,73.989999999999995,null,null,95.25,1.6,14.71,15.33,6.4,12.57,1.24,"45°",0.3,"45°",14.78,14.23,"105°57'54\"",66.56,3.3,3.82,8.56,8.56,7.83,null,88.42,"US","m",null,null,null,null,4400,5060,5500,25,6720,7.63,7.82,3,6,254,"C.I.P.","pouce","carabine magnum",null,null,null,null,null,null,null,null,null,null,null,null,null,null,null,null,null,null,null,null,null,null,null,null,null,null,null,null,null,null,null,"400 Nitro For Black Powder (3\")","400 Purdey 3‘‘"]
[242,416,"30 Herret",31.7,33.4,40.76,null,null,55.9,1.6,12.85,null,2.1,10.15,0.61,null,null,"30°",10.69,10.29,null,null,null,null,8.33,8.33,7.82,null,null,"US","b",null,2,2,30,null,null,null,null,null,null,null,null,null,null,"SIERRA",null,null,null,null,null,null,null,null,null,null,null,null,null,null,null,null,null,null,null,null,null,null,null,null,null,null,null,null,null,null,null,null,null,"401 Win.","401 Win. SL"]
[243,106,"30 Carbine",null,null,32.770000000000003,null,null,42.67,1.27,9.14,null,2.9,7.87,0.84,"37°",0.38,"35°",9.06,null,null,null,null,null,null,8.5299999999999994,7.85,null,36.68,"US","g",null,null,null,null,3200,3680,4000,17.5,1375,7.62,7.82,4.24,4,508,"C.I.P.","pouce","carabine",null,null,null,null,null,null,null,null,null,null,null,null,null,null,null,null,null,null,null,null,null,null,null,null,null,null,null,null,null,null,null,"401 WSL","401 Win. SL"]
[244,107,"30 Court",null,null,31.45,null,null,41.35,1.27,9.14,null,2.9,7.87,0.84,"37°",0.38,"45°",9.06,null,null,null,null,null,null,8.5500000000000007,7.85,null,35.36,"DE","g",null,null,null,null,3650,4198,4560,17.5,1470,7.62,7.82,4.24,4,508,"C.I.P.","pouce","carabine",null,null,null,null,null,null,null,null,null,null,null,null,null,null,null,null,null,null,null,null,null,null,null,null,null,null,null,null,null,null,null,"404 Eley","404 Riml. N.E."]
[245,448,"30 BR",27.17,30.05,38.409999999999997,null,null,58,1.37,12.01,null,3.83,10.4,1.4,"36°",0.4,"45°",11.94,11.66,"60°",37.25,0.64,1.5,8.33,8.33,7.82,null,42.69,"USA","g",null,null,null,null,4050,4658,5063,17.5,3200,7.62,7.82,2.5,6,431.8,"C.I.P.","pouce","carabine",null,null,null,null,null,null,null,null,null,null,null,null,null,null,null,null,null,null,null,null,null,null,null,null,null,null,null,null,null,null,null,"404 Jeffery","404 Riml. N.E."]
[246,222,"30 FI. N.E. Purdey",43.03,47.09,58.78,null,null,75.69,1.63,13.84,null,null,null,null,null,null,null,11.73,10.69,"29°00'01\"",63.7,3.81,3.81,8.59,8.51,7.82,null,65.73,"GB","b",null,null,null,null,3200,3680,4000,25,3455,7.62,7.82,null,null,255,"C.I.P.","pouce","carabine",null,null,null,null,null,null,null,null,null,null,null,null,null,null,null,null,null,null,null,null,null,null,null,null,null,null,null,null,null,null,null,"404 Jeffery Nitro Express","404 Riml. N.E."]
[247,364,"30 PICRA",25.72,27.03,32.799999999999997,null,null,56,1.5,11.18,null,null,null,null,null,0.38,"45°",9.6,9.57,"45°33'",37.119999999999997,0.76,2.54,8.4700000000000006,8.4700000000000006,7.82,null,40.99,"CZ","p /b",null,null,null,null,2800,3220,3640,17.5,null,7.62,7.82,4.49,4,254,"C.I.P.","pouce","revolvers et pistolets",null,null,null,null,null,null,null,null,null,null,null,null,null,null,null,null,null,null,null,null,null,null,null,null,null,null,null,null,null,null,null,"404 Jeffery Rimless","404 Riml. N.E."]
[248,108,"30 Rem.",38.049999999999997,40.1,52.07,null,null,64.14,1.24,10.72,null,3.19,9.09,0.84,"36°",0.38,"35°",10.71,10.19,"46°",50.05,0.64,2.54,8.4499999999999993,8.43,7.8,null,55.29,"US","g",null,null,null,null,2800,3220,3500,25,2745,7.62,7.77,2.67,7,305,"C.I.P.","pouce","carabine",null,null,null,null,null,null,null,null,null,null,null,null,null,null,null,null,null,null,null,null,null,null,null,null,null,null,null,null,null,null,null,"404 Magn.","404 Riml. N.E."]
[249,303,"30 Super BI Riml. H&H",53.34,62.87,72.39,null,null,91.44,1.27,13.51,13.56,5.56,11.94,1.02,"45°",0.3,"45°",13.03,11.43,"16°56'59\"",91.69,null,null,8.59,8.59,7.82,null,null,"GB","m",null,null,null,null,3650,4198,4563,25,4305,7.61,7.82,2.72,6,254,"C.I.P.","pouce","carabine magnum",null,null,null,null,null,null,null,null,null,null,null,null,null,null,null,null,null,null,null,null,null,null,null,null,null,null,null,null,null,null,null,"404 Riml.N.E. 27/8\"","404 Riml. N.E."]
[250,223,"30 Super FI H&H",55.63,65.150000000000006,74.680000000000007,null,null,93.73,1.52,14.53,null,null,null,null,null,null,null,13.13,11.43,"16°58'03\"",93.94,null,null,8.59,8.59,7.82,null,81.67,"GB","b",null,null,null,null,3200,3680,4000,25,3520,7.62,7.82,null,null,255,"C.I.P.","pouce","carabine",null,null,null,null,null,null,null,null,null,null,null,null,null,null,null,null,null,null,null,null,null,null,null,null,null,null,null,null,null,null,null,"404 Riml.Nitro Express","404 Riml. N.E."]
[251,109,"30 TC",38.4,41.19,48.77,null,null,67.56,1.37,12.01,null,3.88,10.39,1.4,"35°",0.38,"36°",11.95,11.78,"60°",48.61,1.93,3.17,8.56,8.56,7.85,null,58.42,"US","g",null,null,null,null,4250,4888,5300,25,4000,7.62,7.82,4.47,4,305,"C.I.P.","pouce","carabine",null,null,null,null,null,null,null,null,null,null,null,null,null,null,null,null,null,null,null,null,null,null,null,null,null,null,null,null,null,null,null,"404 x 73","404 Riml. N.E."]
[252,221,"30 R Blaser",57.77,61.16,68,null,null,95,1.4,13.5,null,null,null,null,null,null,null,12.2,11.2,"40°02'02\"",73.14,null,null,8.73,8.73,7.85,null,76.39,"DE","b",null,null,null,null,4050,4658,5060,25,4500,7.62,7.82,4.47,4,305,"C.I.P.","pouce","carabine",null,null,null,null,null,null,null,null,null,null,null,null,null,null,null,null,null,null,null,null,null,null,null,null,null,null,null,null,null,null,null,"405 W.C.F","405 Win."]
[253,236,"32-20 Win.",22.35,23.85,33.4,null,null,40.44,1.65,10.36,null,null,null,null,null,0.38,"35°",8.98,8.6999999999999993,"11°24'",65.930000000000007,0.76,2.54,8.4,8.3000000000000007,7.94,null,34,"US","b",null,null,null,null,2100,2415,2625,17.5,1560,7.75,7.9,2.4300000000000002,6,508,"C.I.P.","pouce","carabine",null,null,null,null,null,null,null,null,null,null,null,null,null,null,null,null,null,null,null,null,null,null,null,null,null,null,null,null,null,null,null,"405 Win. CFM 1895","405 Win."]
[254,237,"32-40 Win.",null,43.38,54.1,null,null,63.5,1.6,12.85,null,null,null,null,null,0.38,"35°",10.77,null,null,null,null,null,8.7799999999999994,8.61,8.15,null,54.89,"US","b",null,null,null,null,2350,2703,2940,25,1105,8,8.1300000000000008,2.5099999999999998,6,406,"C.I.P.","pouce","carabine",null,null,null,null,null,null,null,null,null,null,null,null,null,null,null,null,null,null,null,null,null,null,null,null,null,null,null,null,null,null,null,"41 Express","41 ACT EXP"]
[255,367,"32 Long Colt",null,null,23.27,null,null,30.89,1.35,9.68,null,null,null,null,null,0.36,"35°",8.08,null,null,null,null,null,null,8.08,7.97,null,25.84,"US","p /b",null,null,null,null,1000,1150,1300,12.5,null,7.75,7.9,2.69,6,406,"C.I.P.","pouce","revolvers et pistolets",null,null,null,null,null,null,null,null,null,null,null,null,null,null,null,null,null,null,null,null,null,null,null,null,null,null,null,null,null,null,null,"41 L.D.A.","41 Long Colt"]
[256,368,"32 Short Colt",null,null,16.510000000000002,null,null,25.78,1.35,9.5299999999999994,null,null,null,null,null,0.38,"35°",8.08,null,null,null,null,null,null,8.08,7.98,null,19.079999999999998,"US","p /b",null,null,null,null,1000,1150,1300,9.5,null,7.75,7.9,2.69,6,406,"C.I.P.","pouce","revolvers et pistolets",null,null,null,null,null,null,null,null,null,null,null,null,null,null,null,null,null,null,null,null,null,null,null,null,null,null,null,null,null,null,null,"41 long D.A","41 Long Colt"]
[257,366,"32 H&R Mag.",null,null,27.31,null,null,34.29,1.4,9.5299999999999994,null,null,null,null,null,0.38,"35°",8.56,null,null,null,null,null,null,8.56,8,null,38.450000000000003,"US","p /b",null,null,null,null,1400,1610,1820,12.5,null,7.7,7.92,2.41,5,406,"C.I.P.","pouce","revolvers et pistolets",null,null,null,null,null,null,null,null,null,null,null,null,null,null,null,null,null,null,null,null,null,null,null,null,null,null,null,null,null,null,null,"41 Magnum","41 Rem. Mag."]
[258,370,"32 S&W Long",null,null,23.37,null,null,32.51,1.4,9.5299999999999994,null,null,null,null,null,0.38,"35°",8.56,null,null,null,null,null,null,8.56,8,null,34.81,"US","p /b",null,null,null,null,1000,1150,1300,12.5,null,7.7,7.92,2.41,5,476,"C.I.P.","pouce","revolvers et pistolets",null,null,null,null,null,null,null,null,null,null,null,null,null,null,null,null,null,null,null,null,null,null,null,null,null,null,null,null,null,null,null,"41 Remington","41 Rem. Mag."]
[259,371,"32 S&W Long Wad C",null,null,23.27,null,null,25.4,1.4,9.5299999999999994,null,null,null,null,null,0.38,"45°",8.56,null,null,null,null,null,null,8.56,8,null,26.31,"DE/FI","p /b",null,null,null,null,1550,1783,2015,8,null,7.66,7.92,2.41,5,476,"C.I.P.","pouce","revolvers et pistolets",null,null,null,null,null,null,null,null,null,null,null,null,null,null,null,null,null,null,null,null,null,null,null,null,null,null,null,null,null,null,null,"41 S & W Magnum","41 Rem. Mag."]
[260,369,"32 S&W",null,null,15.37,null,null,23.62,1.37,9.6,null,null,null,null,null,0.38,"35°",8.61,null,null,null,null,null,null,8.61,8,null,34.880000000000003,"US","p /b",null,null,null,null,900,1035,1170,8,null,7.7,7.92,2.41,5,476,"C.I.P.","pouce","revolvers et pistolets",null,null,null,null,null,null,null,null,null,null,null,null,null,null,null,null,null,null,null,null,null,null,null,null,null,null,null,null,null,null,null,"423 Mauser","10,75 x 68"]
[261,127,"32 Rem.",38.049999999999997,39.67,52.07,null,null,64.14,1.24,10.72,null,3.19,9.09,0.84,"36°",null,"35°",10.71,10.19,"46°",50.05,0.64,2.54,8.81,8.73,8.15,null,55.33,"US","g",null,null,null,null,2950,3393,3690,25,2435,7.92,8.1,2.79,7,356,"C.I.P.","pouce","carabine",null,null,null,null,null,null,null,null,null,null,null,null,null,null,null,null,null,null,null,null,null,null,null,null,null,null,null,null,null,null,null,"43 Mauser","11,15 x 60 R"]
[262,235,"32 Win. Spec.",36.72,39.47,51.82,null,null,65.150000000000006,1.6,12.85,null,null,null,null,null,0.38,"45°",10.72,10.199999999999999,"29°01'59\"",56.42,3.81,7.62,8.7799999999999994,8.7100000000000009,8.18,null,53.16,"US","b",null,null,null,null,3050,3508,3810,25,2370,8,8.1300000000000008,2.69,6,406,"C.I.P.","pouce","carabine",null,null,null,null,null,null,null,null,null,null,null,null,null,null,null,null,null,null,null,null,null,null,null,null,null,null,null,null,null,null,null,"433 Mauser","11,15 x 60 R"]
[263,234,"32 Win. SL",null,null,32.770000000000003,null,null,47.75,1.27,9.91,null,3.49,8.64,null,"3°44'24",null,null,8.93,null,null,null,null,null,null,8.81,8.18,null,42.22,"US","b",null,null,null,null,1550,1783,1940,17.5,1080,8,8.1300000000000008,2.5099999999999998,6,406,"C.I.P.","pouce","carabine",null,null,null,null,null,null,null,null,null,null,null,null,null,null,null,null,null,null,null,null,null,null,null,null,null,null,null,null,null,null,null,"44 AMP","44 Auto Mag"]
[264,238,"33 Win.",40.96,44.1,53.47,null,null,70.989999999999995,1.78,15.49,null,null,null,null,null,null,null,12.9,11.2,"32°30'",60.17,7.62,5.2,9.3699999999999992,9.2899999999999991,8.6,null,62.97,"US","b",null,null,null,null,3050,3508,3810,25,4015,8.3800000000000008,8.59,2.79,6,305,"C.I.P.","pouce","carabine",null,null,null,null,null,null,null,null,null,null,null,null,null,null,null,null,null,null,null,null,null,null,null,null,null,null,null,null,null,null,null,"44 Auto Mag. Pistole","44 Auto Mag"]
[265,242,"35 Win. SL",null,null,29.31,null,null,41.91,1.27,10.29,null,4.26,9.02,0.64,"8°",null,null,9.68,null,null,null,null,null,null,9.58,8.9499999999999993,null,38.82,"US","b",null,null,null,null,2400,2760,3000,17.5,1150,8.76,8.92,2.75,6,406,"C.I.P.","pouce","carabine",null,null,null,null,null,null,null,null,null,null,null,null,null,null,null,null,null,null,null,null,null,null,null,null,null,null,null,null,null,null,null,"44 C.L.M.R","44-40 Win."]
[266,241,"35 Win.",51.4,53.34,61.34,null,null,80.650000000000006,1.55,13.79,null,null,null,null,null,null,null,11.72,10.86,"30°37'59\"",71.23,3.81,3.81,9.8000000000000007,9.7100000000000009,9.1199999999999992,null,71.33,"US","b",null,null,null,null,3050,3508,3810,25,4145,8.89,9.09,null,null,355,"C.I.P.","pouce","carabine",null,null,null,null,null,null,null,null,null,null,null,null,null,null,null,null,null,null,null,null,null,null,null,null,null,null,null,null,null,null,null,"44 L.M. Rifle","44-40 Win."]
[267,136,"35 Rem.",39.1,40.24,48.77,null,null,64.14,1.24,11.68,null,3.14,10.16,0.76,"34°",0.41,"35°",11.66,10.82,"46°49'59\"",51.59,0.64,1.27,9.83,9.75,9.1199999999999992,null,52.02,"US","g",null,null,null,null,2750,3163,3575,25,2655,8.86,9.07,2.92,7,406,"C.I.P.","pouce","carabine",null,null,null,null,null,null,null,null,null,null,null,null,null,null,null,null,null,null,null,null,null,null,null,null,null,null,null,null,null,null,null,"44 Magnum","44 Rem. Mag."]
[268,137,"35 Whelen",49.48,51.6,63.35,null,null,84.84,1.24,12.01,null,3.16,10.39,0.84,"36°",0.83,"35°",11.96,11.2,"35°",67.239999999999995,1.27,2.54,9.86,9.86,9.1199999999999992,null,73.56,"US","g",null,null,null,null,4000,4600,5000,25,4560,8.86,9.07,3.3,6,406.4,"C.I.P.","pouce","carabine",null,null,null,null,null,null,null,null,null,null,null,null,null,null,null,null,null,null,null,null,null,null,null,null,null,null,null,null,null,null,null,"44 No.3 Russian","44 S&W Russian"]
[269,253,"38-40 Win.",23.42,27.28,33.15,null,null,40.44,1.65,13.34,null,null,null,null,null,0.38,"45°",11.93,11.54,"13°36'",71.81,17.53,13.72,10.62,10.58,10.17,null,34.69,"US","b",null,null,null,null,1150,1323,1440,17.5,1945,10.01,10.16,3.14,6,914,"C.I.P.","pouce","carabine",null,null,null,null,null,null,null,null,null,null,null,null,null,null,null,null,null,null,null,null,null,null,null,null,null,null,null,null,null,null,null,"44 R.-23-225","44 S&W Russian"]
[270,386,"38-45 ACP",16.350000000000001,17.75,22.8,null,null,31.7,1.24,12.19,null,3.01,10.15,0.9,"45°",0.3,"35°",12.1,11.94,"78°30'",23.66,1.2,1.2,9.65,9.65,9.1199999999999992,null,"28.16","US","p /g",null,null,null,null,2350,2703,3055,"12.50",null,8.84,9.09,2.8,6,475,"C.I.P.","pouce","revolvers et pistolets",null,null,null,null,null,null,null,null,null,null,null,null,null,null,null,null,null,null,null,null,null,null,null,null,null,null,null,null,null,null,null,"44 S & W R","44 S&W Russian"]
[271,254,"38-55 Win.",null,null,52.96,null,null,63.75,1.6,12.85,null,null,null,null,null,0.38,"35°",10.69,null,null,null,null,null,null,9.9600000000000009,9.58,null,55.43,"US","b",null,null,null,null,2400,2760,3000,25,1580,9.4700000000000006,9.6300000000000008,2.97,6,457,"C.I.P.","pouce","carabine",null,null,null,null,null,null,null,null,null,null,null,null,null,null,null,null,null,null,null,null,null,null,null,null,null,null,null,null,null,null,null,"44 S.&W. Magnum","44 Rem. Mag."]
[272,385,"38/357 FX",null,null,23.24,null,null,30.99,1.47,11.05,null,null,null,null,null,0.38,"45°",9.6300000000000008,null,null,null,null,null,null,9.6300000000000008,8.94,null,null,"CA","p /b",null,null,null,null,350,403,455,12.5,null,8.7899999999999991,9.02,2.48,6,254,"C.I.P.","pouce","revolvers et pistolets",null,null,null,null,null,null,null,null,null,null,null,null,null,null,null,null,null,null,null,null,null,null,null,null,null,null,null,null,null,null,null,"44 Special","44 S&W Special"]
[273,384,"38 Super Auto",null,null,22.86,null,null,32.51,1.27,10.31,null,3.65,8.76,1.02,"20°",0.41,"35°",9.75,null,null,null,null,null,null,9.75,9.0399999999999991,null,28.01,"US","p /g",null,null,null,null,2300,2645,2990,12.5,null,8.7899999999999991,9.02,3.07,6,406,"C.I.P.","pouce","revolvers et pistolets",null,null,null,null,null,null,null,null,null,null,null,null,null,null,null,null,null,null,null,null,null,null,null,null,null,null,null,null,null,null,null,"44 W.C.F","44-40 Win."]
[274,381,"38 Special",null,null,29.34,null,null,39.369999999999997,1.5,11.18,null,null,null,null,null,0.38,"35°",9.6300000000000008,null,null,null,null,null,null,9.6300000000000008,9.1199999999999992,null,43.06,"US","p /b",null,null,null,null,1500,1725,1950,12.5,null,8.7899999999999991,9.02,2.67,6,476,"C.I.P.","pouce","revolvers et pistolets",null,null,null,null,null,null,null,null,null,null,null,null,null,null,null,null,null,null,null,null,null,null,null,null,null,null,null,null,null,null,null,"44 Webley","442 Webley","N"]
[275,382,"38 Spl. AMU",null,null,29.34,null,null,30.23,1.27,10.31,null,3.2,8.76,null,"12°42'05\"",0.91,"35°",9.6300000000000008,null,null,null,null,null,null,9.6300000000000008,9.11,null,45.76,"US","p /g",null,null,null,null,1250,1438,1625,10.5,null,8.7899999999999991,9.02,3.07,6,356,"C.I.P.","pouce","revolvers et pistolets",null,null,null,null,null,null,null,null,null,null,null,null,null,null,null,null,null,null,null,null,null,null,null,null,null,null,null,null,null,null,null,"44 Winchester M. 1873","44-40 Win."]
[276,378,"38 Long Colt",null,null,26.29,null,null,34.54,1.52,11.18,null,null,null,null,null,0.4,"35°",9.6300000000000008,null,null,null,null,null,null,9.6,9.1199999999999992,null,39.799999999999997,"US","p /b",null,null,null,null,900,1035,1170,10.5,null,8.81,8.9700000000000006,3.05,6,406,"C.I.P.","pouce","revolvers et pistolets",null,null,null,null,null,null,null,null,null,null,null,null,null,null,null,null,null,null,null,null,null,null,null,null,null,null,null,null,null,null,null,"442 British Tranter","442 Webley","N"]
[277,379,"38 Short Colt",null,null,19.43,null,null,30.48,1.52,11.18,null,null,null,null,null,0.38,"35°",9.6300000000000008,null,null,null,null,null,null,9.6300000000000008,9.1199999999999992,null,32.94,"US","p /b",null,null,null,null,900,1035,1170,10.5,null,8.81,8.9700000000000006,3.05,6,406,"C.I.P.","pouce","revolvers et pistolets",null,null,null,null,null,null,null,null,null,null,null,null,null,null,null,null,null,null,null,null,null,null,null,null,null,null,null,null,null,null,null,"442 Revolver C.F.","442 Webley","N"]
[278,383,"38 Spl. Wad Cut.",null,null,29.34,null,null,30.35,1.5,11.18,null,null,null,null,null,0.38,"35°",9.6300000000000008,null,null,null,null,null,null,9.6300000000000008,9.14,null,43.06,"US","p /b",null,null,null,null,1200,1380,1560,10.5,null,8.7899999999999991,9.02,2.67,6,476,"C.I.P.","pouce","revolvers et pistolets",null,null,null,null,null,null,null,null,null,null,null,null,null,null,null,null,null,null,null,null,null,null,null,null,null,null,null,null,null,null,null,"442 Tranter Revolver","442 Webley","N"]
[279,380,"38 S&W, Colt N.P.",null,null,19.690000000000001,null,null,31.5,1.4,11.18,null,null,null,null,null,0.38,"35°",9.82,null,null,null,null,null,null,9.7899999999999991,9.17,null,43.37,"US","p /b",null,null,null,null,1200,1380,1560,9,null,8.89,9.1300000000000008,2.9,5,476,"C.I.P.","pouce","revolvers et pistolets",null,null,null,null,null,null,null,null,null,null,null,null,null,null,null,null,null,null,null,null,null,null,null,null,null,null,null,null,null,null,null,"44-40 Center Fire","44-40 Win."]
[280,256,"40-60 Win.",31.07,36.71,47.5,null,null,57.28,1.63,16,null,null,null,null,null,0.3,"35°",12.85,11.3,"3°57'37\"",194.49,null,null,10.91,10.91,10.31,null,48.79,"US","b",null,null,null,null,1920,2208,2400,25,3200,10.14,10.26,3.19,6,1016,"C.I.P.","pouce","carabine",null,null,null,null,null,null,null,null,null,null,null,null,null,null,null,null,null,null,null,null,null,null,null,null,null,null,null,null,null,null,null,"44-40 Marlin","44-40 Win."]
[281,483,"40-65 Win.",31.07,36.71,53.34,null,null,62.74,1.78,15.44,null,null,null,null,null,0.38,"45°",12.8,11.21,"3°39'21\"",206.69,null,null,10.85,10.83,10.31,null,54.63,"USA","b",null,null,null,null,2100,2415,2625,25,3300,10.14,10.26,3.19,6,457,"C.I.P.","pouce","carabine",null,null,null,null,null,null,null,null,null,null,null,null,null,null,null,null,null,null,null,null,null,null,null,null,null,null,null,null,null,null,null,"44-40-200","44-40 Win."]
[282,257,"40-82 Win.",44.91,49.27,60.71,null,null,70.23,1.78,15.49,null,null,null,null,null,null,"45°",12.92,11.54,"8°55'",118.91,25.4,null,10.86,10.85,10.35,null,61.9,"US","b",null,null,null,null,1650,1898,2060,25,1590,10.210000000000001,10.36,3.19,6,406,"C.I.P.","pouce","carabine",null,null,null,null,null,null,null,null,null,null,null,null,null,null,null,null,null,null,null,null,null,null,null,null,null,null,null,null,null,null,null,"45 A.C. Government Model","45 Auto"]
[283,389,"40 S&W",null,null,21.59,null,null,28.83,1.4,10.77,null,3.52,8.81,1.1399999999999999,"45°",0.51,"35°",10.77,null,null,null,null,null,null,10.74,10.17,null,30.42,"US","p /g",null,null,null,null,2250,2588,2925,10.5,null,9.91,10.17,3.05,6,406,"C.I.P.","pouce","revolvers et pistolets",null,null,null,null,null,null,null,null,null,null,null,null,null,null,null,null,null,null,null,null,null,null,null,null,null,null,null,null,null,null,null,"45 A.C.P.","45 Auto"]
[284,391,"41 Long Colt",null,null,28.7,null,null,36.19,1.45,11.18,null,null,null,null,null,null,null,10.43,null,null,null,null,null,null,10.39,9.86,null,31.29,"US","p /b",null,null,null,null,900,1035,1170,12.5,null,10.029999999999999,10.19,3.61,6,406,"C.I.P.","pouce","revolvers et pistolets",null,null,null,null,null,null,null,null,null,null,null,null,null,null,null,null,null,null,null,null,null,null,null,null,null,null,null,null,null,null,null,"45 A.R.","45 Auto Rim"]
[285,392,"41 Rem. Mag.",null,null,32.770000000000003,null,null,40.39,1.5,12.5,null,null,null,null,null,0.38,"35°",11.05,null,null,null,null,null,null,11.02,10.41,null,46.6,"US","p /b",null,null,null,null,3000,3450,3900,17.5,null,10.130000000000001,10.39,2.68,6,476.3,"C.I.P.","pouce","revolvers et pistolets",null,null,null,null,null,null,null,null,null,null,null,null,null,null,null,null,null,null,null,null,null,null,null,null,null,null,null,null,null,null,null,"45 Auto A.C.P.","45 Auto"]
[286,390,"41 ACT EXP",null,null,22,null,null,29.25,1.27,9.9600000000000009,null,3.77,8.7899999999999991,0.89,"35°",0.38,"45°",11.05,null,null,null,null,null,null,11.03,10.41,null,29.06,"IL","p /g",null,null,null,null,2250,2588,2925,10.5,null,10.130000000000001,10.39,2,6,360,"C.I.P.","pouce","revolvers et pistolets",null,null,null,null,null,null,null,null,null,null,null,null,null,null,null,null,null,null,null,null,null,null,null,null,null,null,null,null,null,null,null,"45 Auto. Colt M. 11","45 Auto"]
[287,420,"43 Spanish Carbine",30,33.659999999999997,48.16,null,null,64.02,2.2000000000000002,16.22,null,null,null,null,null,null,null,13.12,12.75,null,null,null,null,11.72,11.66,11.08,null,null,null,"b",null,22,null,null,null,null,null,null,null,null,null,null,null,null,"E.C.R.A.",null,null,null,null,null,null,null,null,null,null,null,null,null,null,null,null,null,null,null,null,null,null,null,null,null,null,null,null,null,null,null,null,null,"45 Automatic Rim","45 Auto Rim"]
[288,263,"44-40 Win.",23.58,25.79,33.15,null,null,40.44,1.65,13.34,null,null,null,null,null,0.38,"35°",11.97,11.6,"8°",106.52,5.08,5.08,11.29,11.25,10.85,null,37.31,"US","b",null,null,null,null,1100,1265,1375,17.5,890,10.73,10.88,3.37,6,914,"C.I.P.","pouce","carabine",null,null,null,null,null,null,null,null,null,null,null,null,null,null,null,null,null,null,null,null,null,null,null,null,null,null,null,null,null,null,null,"45 Ball M 1911","45 Auto"]
[302,397,"44 Auto Mag",null,null,32.97,null,null,43.1,1.37,12.01,null,3.8,10.4,1.4,null,0.3,"35°",11.94,null,null,null,null,null,null,11.66,10.97,null,null,"US",null,"lp",3,1,432,2800,null,null,null,null,null,null,null,null,null,"HORNADY",null,null,null,null,null,null,null,null,null,null,null,null,null,null,null,null,null,null,null,null,null,null,null,null,null,null,null,null,null,null,null,null,null,"45 Colt Automatic","45 Auto"]
[289,148,"44 Rem. Mag.",null,null,32.64,null,null,40.89,1.52,13.06,null,null,null,null,null,0.4,"35°",11.61,null,null,null,null,null,null,11.58,10.97,null,46.44,"US","p /b",null,null,null,null,2800,3220,3640,17.5,null,10.59,10.9,2.73,6,508,"C.I.P.","pouce","revolvers et pistolets",null,null,null,null,null,null,null,null,null,null,null,null,null,null,null,null,null,null,null,null,null,null,null,null,null,null,null,null,null,null,null,"45 Colt Long","45 Colt"]
[290,399,"44 S&W Russian",null,null,24.64,null,null,36.32,1.52,13.08,null,null,null,null,null,0.5,"35°",11.61,null,null,null,null,null,null,11.59,10.98,null,38.229999999999997,"US","p /b",null,null,null,null,1000,1150,1300,12.5,null,10.59,10.9,3.26,5,508,"C.I.P.","pouce","revolvers et pistolets",null,null,null,null,null,null,null,null,null,null,null,null,null,null,null,null,null,null,null,null,null,null,null,null,null,null,null,null,null,null,null,"45 Colt USA","45 Colt"]
[291,400,"44 S&W Special",null,null,29.46,null,null,41.02,1.52,13.06,null,null,null,null,null,0.4,"35°",11.6,null,null,null,null,null,null,11.6,10.98,null,43.26,"US","p /b",null,null,null,null,1000,1150,1300,17.5,null,10.59,10.9,3.26,5,508,"C.I.P.","pouce","revolvers et pistolets",null,null,null,null,null,null,null,null,null,null,null,null,null,null,null,null,null,null,null,null,null,null,null,null,null,null,null,null,null,null,null,"45 Colt, Army & Double A.","45 Colt"]
[292,398,"44 Colt",null,null,27.94,null,null,38.1,1.52,12.5,null,null,null,null,null,0.5,"35°",11.58,null,null,null,null,null,null,11.55,11.25,null,39.56,"US","p /b",null,null,null,null,1000,1150,1300,12.5,null,10.59,10.9,2.73,6,508,"C.I.P.","pouce","revolvers et pistolets",null,null,null,null,null,null,null,null,null,null,null,null,null,null,null,null,null,null,null,null,null,null,null,null,null,null,null,null,null,null,null,"45 Long Colt","45 Colt"]
[293,265,"45-60 Win.",33.1,36.67,48.01,null,null,57.28,1.63,15.98,null,null,null,null,null,0.3,"35°",12.85,12.41,"1°55'33\"",402.3,null,null,12.29,12.26,11.66,null,49.39,"US","b",null,null,null,null,1920,2208,2400,25,3500,11.43,11.58,3.58,6,508,"C.I.P.","pouce","carabine",null,null,null,null,null,null,null,null,null,null,null,null,null,null,null,null,null,null,null,null,null,null,null,null,null,null,null,null,null,null,null,"45 M 1911","45 Auto"]
[294,268,"45-75 Win.",26,33.700000000000003,47.1,null,null,57.28,1.63,15.98,null,null,null,null,null,0.3,"35°",14.2,14,"11°42'57\"",94.23,null,null,12.42,12.26,11.66,null,48.48,"US","b",null,null,null,null,2050,2358,2563,25,3700,11.43,11.58,3.58,6,508,"C.I.P.","pouce","carabine",null,null,null,null,null,null,null,null,null,null,null,null,null,null,null,null,null,null,null,null,null,null,null,null,null,null,null,null,null,null,null,"45 Springfield","45-70 Govt."]
[295,267,"45-70 Govt.",null,null,53.47,null,null,64.77,1.78,15.44,null,null,null,null,null,0.38,"35°",12.84,null,null,null,null,null,null,12.19,11.63,null,55.22,"US","b",null,null,null,null,2200,2530,2750,25,3414,11.43,11.58,3.58,6,508,"C.I.P.","pouce","carabine",null,null,null,null,null,null,null,null,null,null,null,null,null,null,null,null,null,null,null,null,null,null,null,null,null,null,null,null,null,null,null,"45 Trap Door","45-70 Govt."]
[296,266,"45-70 Elko Mag.",null,null,66,null,null,87.3,1.78,15.44,null,null,null,null,null,0.38,"45°",12.88,null,null,null,null,null,null,12.22,11.66,null,94.15,"BE","b",null,null,null,null,2950,3393,3690,25,6400,11.43,11.58,3.58,6,508,"C.I.P.","pouce","carabine",null,null,null,null,null,null,null,null,null,null,null,null,null,null,null,null,null,null,null,null,null,null,null,null,null,null,null,null,null,null,null,"45 US Army M 73","45-70 Govt."]
[297,269,"45-90 WM",null,null,60.96,null,null,82,1.73,15.44,null,null,null,null,null,null,null,12.82,null,null,null,null,null,null,12.22,11.63,null,70.3,"DE","b",null,null,null,null,2200,2530,2750,25,3650,11.43,11.58,3.58,6,508,"C.I.P.","pouce","carabine",null,null,null,null,null,null,null,null,null,null,null,null,null,null,null,null,null,null,null,null,null,null,null,null,null,null,null,null,null,null,null,"45 US Militärgewehr","45-70 Govt."]
[298,484,"45-110 Sharps 2\"7/8",null,null,73.11,null,null,85.3,1.78,15.44,null,null,null,null,null,0.38,"45°",12.84,null,null,null,null,null,null,12.22,11.63,null,74.86,"USA","b",null,null,null,null,2550,2933,3188,25,5700,11.43,11.58,3.58,6,508,"C.I.P.","pouce","carabine",null,null,null,null,null,null,null,null,null,null,null,null,null,null,null,null,null,null,null,null,null,null,null,null,null,null,null,null,null,null,null,"450 - 13 - 200 Revolver","450 Short"]
[299,485,"45-120 Sharps 3\"1/4",null,null,82.55,null,null,105.66,1.78,15.44,null,null,null,null,null,0.38,"45°",12.84,null,null,null,null,null,null,12.22,11.63,null,84.3,"USA","b",null,null,null,null,2550,2933,3188,25,5700,11.43,11.58,3.58,6,508,"C.I.P.","pouce","carabine",null,null,null,null,null,null,null,null,null,null,null,null,null,null,null,null,null,null,null,null,null,null,null,null,null,null,null,null,null,null,null,"450 (12 mm) Revolver C.F.","450 Short"]
[300,401,"45 Auto",null,null,22.81,null,null,32.39,1.24,12.19,null,4.1100000000000003,10.16,0.89,"26°",0.38,"35°",12.09,null,null,null,null,null,null,12.01,11.48,null,25.58,"US","p /g",null,null,null,null,1300,1495,1690,12.5,null,11.23,11.43,3.73,6,406,"C.I.P.","pouce","revolvers et pistolets",null,null,null,null,null,null,null,null,null,null,null,null,null,null,null,null,null,null,null,null,null,null,null,null,null,null,null,null,null,null,null,"450 Automatic","45 Auto"]
[301,402,"45 Auto Rim",null,null,22.81,null,null,32.39,2.2599999999999998,13.11,null,null,null,null,null,0.38,"35°",12.09,null,null,null,null,null,null,11.99,11.48,null,44.77,"US","p /b",null,null,null,null,1200,1380,1560,12.5,null,11.28,11.46,3.96,6,406,"C.I.P.","pouce","revolvers et pistolets",null,null,null,null,null,null,null,null,null,null,null,null,null,null,null,null,null,null,null,null,null,null,null,null,null,null,null,null,null,null,null,"450 C.F.","450 Short"]
[303,403,"45 Blaser",40.74,42.5,55,null,null,68.5,1.37,12.01,null,4.3899999999999997,10.39,1.2,"36°",0.38,"35°",13.03,12.98,"19°58'44\"",77.59,0.5,0.5,12.36,12.36,11.64,null,59.19,"DE","g",null,null,null,null,3700,4255,4625,25,4650,11.43,11.63,3.81,6,356,"C.I.P.","pouce","carabine",null,null,null,null,null,null,null,null,null,null,null,null,null,null,null,null,null,null,null,null,null,null,null,null,null,null,null,null,null,null,null,"450 Colt","450 Short"]
[304,421,"45 Colt",null,null,32.64,null,null,40.64,1.52,13,null,null,null,null,null,0.4,"35°",12.19,null,null,null,null,null,null,12.19,11.58,null,44.38,"US","p /b",null,null,null,null,1100,1265,1430,12.5,null,11.23,11.43,3.96,6,406,"C.I.P.","pouce","revolvers et pistolets",null,null,null,null,null,null,null,null,null,null,null,null,null,null,null,null,null,null,null,null,null,null,null,null,null,null,null,null,null,null,null,"450 English Revolver","450 Short"]
[305,393,"45 GAP",null,null,19.3,null,null,28.89,1.24,11.94,null,4.1100000000000003,10.16,0.89,"26°",0.38,"35°",12.09,null,null,null,null,null,null,12.01,11.48,null,25.53,"AT","p /g",null,null,null,null,1300,1495,1690,12.5,null,11.23,11.43,3.73,6,406,"C.I.P.","pouce","revolvers et pistolets",null,null,null,null,null,null,null,null,null,null,null,null,null,null,null,null,null,null,null,null,null,null,null,null,null,null,null,null,null,null,null,"450 short Revolver","450 Short"]
[306,394,"45 HP",null,null,21.8,null,null,31.4,1.24,12.05,null,4.1100000000000003,10.16,0.89,"26°",0.44,"45°",12.09,null,null,null,null,null,null,12.01,11.48,null,24.57,"AT","p /g",null,null,null,null,1300,1495,1690,12.5,null,11.23,11.43,3.73,6,406,"C.I.P.","pouce","revolvers et pistolets",null,null,null,null,null,null,null,null,null,null,null,null,null,null,null,null,null,null,null,null,null,null,null,null,null,null,null,null,null,null,null,"455 Colt","455 Eley"]
[307,395,"45 S&W Schofield",null,null,27.69,null,null,36.32,1.52,12.95,null,null,null,null,null,0.4,"35°",12.19,null,null,null,null,null,null,12.19,11.58,null,38.97,"US","p /b",null,null,null,null,1000,1150,1300,12.5,null,11.23,11.43,3.96,6,406,"C.I.P.","pouce","revolvers et pistolets",null,null,null,null,null,null,null,null,null,null,null,null,null,null,null,null,null,null,null,null,null,null,null,null,null,null,null,null,null,null,null,"455 Colt Eley Enfield","455 Eley"]
[308,396,"45 Win. Mag.",null,null,30.43,null,null,40.01,1.24,12.19,null,3.38,10.54,0.9,"32°",0.38,"35°",12.1,null,null,null,null,null,null,12.01,11.48,null,33.200000000000003,"US","p /g",null,null,null,null,2750,3163,3575,17.5,null,11.23,11.43,3.73,6,406,"C.I.P.","pouce","revolvers et pistolets",null,null,null,null,null,null,null,null,null,null,null,null,null,null,null,null,null,null,null,null,null,null,null,null,null,null,null,null,null,null,null,"455 Eley","455 Eley"]
[309,424,"50-70 U.S. Government",null,null,44.52,null,null,57.36,1.32,16.760000000000002,null,null,null,null,null,null,null,14.25,null,null,null,null,null,null,13.54,12.63,null,null,"US","b",null,31,null,null,null,null,null,null,null,null,null,null,null,null,"E.C.R.A.",null,null,null,null,null,null,null,null,null,null,null,null,null,null,null,null,null,null,null,null,null,null,null,null,null,null,null,null,null,null,null,null,null,"455 Enfield MK II","455 Eley"]
[310,277,"50-95 Win.",36.630000000000003,38.549999999999997,49.28,null,null,57.4,1.57,15.93,null,null,null,null,null,0.3,"35°",14.27,14.05,"12°46'43\"",99.36,2.54,2.54,13.62,13.62,13.03,null,51.39,"US","b",null,null,null,null,2100,2415,2625,25,5000,12.52,13.03,3.75,6,508,"C.I.P.","pouce","carabine",null,null,null,null,null,null,null,null,null,null,null,null,null,null,null,null,null,null,null,null,null,null,null,null,null,null,null,null,null,null,null,"455 MK II","455 Eley"]
[311,486,"50-90 Sharps 2\" 1/2",null,44.98,63.63,null,null,81.28,1.8,16.760000000000002,null,null,null,null,null,0.3,"35°",14.43,null,null,null,null,null,13.49,13.49,13.08,null,65.53,"USA","b",null,null,null,null,2100,2415,2625,25,5000,12.52,13.03,3.75,6,508,"C.I.P.","pouce","carabine",null,null,null,null,null,null,null,null,null,null,null,null,null,null,null,null,null,null,null,null,null,null,null,null,null,null,null,null,null,null,null,"455 Revolver MK I","455 Eley"]
[312,410,"50 AE",null,null,32.64,null,null,40.5,1.5,13.06,null,3.94,11.7,0.95,"35°",0.5,"45°",13.79,null,null,null,null,null,null,13.5,12.71,null,36.19,"IL","p /g",null,null,null,null,2300,2645,2990,10.5,null,12.43,12.73,3.43,6,482.6,"C.I.P.","pouce","revolvers et pistolets",null,null,null,null,null,null,null,null,null,null,null,null,null,null,null,null,null,null,null,null,null,null,null,null,null,null,null,null,null,null,null,"455 Revolver MK II","455 Eley"]
[313,152,"50 Browning",76.34,83.3,99.31,null,null,138.43,2.2599999999999998,20.420000000000002,null,6.23,17.27,1.8,"36°",0.84,"45°",20.420000000000002,18.14,"31°28'",108.54,null,null,14.22,14.22,12.98,null,132.5,"US","g",null,null,null,null,3700,4255,4810,25,15000,12.66,12.93,3.43,8,381,"C.I.P.","pouce","carabine",null,null,null,null,null,null,null,null,null,null,null,null,null,null,null,null,null,null,null,null,null,null,null,null,null,null,null,null,null,null,null,"455 Webley MK II","455 MK II"]
[314,281,"56/50 Spencer",28.04,29.44,29.44,null,null,38.56,1.55,16.13,null,null,null,null,null,null,null,14.3,13.75,"10°11'",105.2,0.5,null,13.5,13.5,13,null,39.76,"US","b",null,null,null,null,2050,2358,2560,17.5,1950,12.7,12.95,3.5,6,508,"C.I.P.","pouce","carabine",null,null,null,null,null,null,null,null,null,null,null,null,null,null,null,null,null,null,null,null,null,null,null,null,null,null,null,null,null,null,null,"455 Webley Rev. MK. I","455 MK II"]
[315,79,"204 Ruger",39.08,41.91,46.99,null,null,57.4,1.1399999999999999,9.6,null,3.11,8.43,0.76,"25°",0.48,"35°",9.56,9.14,"60°",46.99,0.64,2.54,5.87,5.87,5.19,null,51.98,"US","g",null,null,null,null,4050,4658,5063,25,1940,5.08,5.18,1.37,6,305,"C.I.P.","pouce","carabine",null,null,null,null,null,null,null,null,null,null,null,null,null,null,null,null,null,null,null,null,null,null,null,null,null,null,null,null,null,null,null,"45-70 Government","45-70 Govt."]
[316,80,215,30,33.97,39.6,null,null,58,1.5,10,null,3.2,8.6,1,"45°",0.5,"45°",10,9.25,"40°30'36\"",42.53,null,null,6.32,6.32,5.64,null,44.72,"DE","g",null,null,null,null,3800,4370,4750,25,1505,5.4,5.6,1.81,6,214,"C.I.P.","pouce","carabine",null,null,null,null,null,null,null,null,null,null,null,null,null,null,null,null,null,null,null,null,null,null,null,null,null,null,null,null,null,null,null,"45-70-405","45-70 Govt."]
[317,209,"218 Bee",23.45,27.67,34.159999999999997,null,null,42.67,1.65,10.36,null,null,null,null,null,0.38,"35°",8.8699999999999992,8.44,"30°",39.200000000000003,1.02,4.7,6.18,6.15,5.7,null,38.75,"US","b",null,null,null,null,3200,3680,4000,17.5,1115,5.56,5.69,1.88,6,406,"C.I.P.","pouce","carabine",null,null,null,null,null,null,null,null,null,null,null,null,null,null,null,null,null,null,null,null,null,null,null,null,null,null,null,null,null,null,null,"45-70-405 Winchester et Marlin","45-70 Govt."]
[318,210,"219 Zipper",34.549999999999997,41.18,49.22,null,null,57.4,1.6,12.85,null,null,null,null,null,null,null,10.72,9.26,"24°",56.33,null,8,6.44,6.4,5.7,null,53.8,"US","b",null,null,null,null,2850,3278,3560,25,1935,5.56,5.69,1.88,6,406,"C.I.P.","pouce","carabine",null,null,null,null,null,null,null,null,null,null,null,null,null,null,null,null,null,null,null,null,null,null,null,null,null,null,null,null,null,null,null,"45-70-500","45-70 Govt."]
[319,414,"219 Donaldson Wasp Rimmed",33.049999999999997,37.049999999999997,44.45,null,null,55,1.6,12.64,null,2.4,10.14,0.8,null,0.3,null,10.51,10.199999999999999,"60°",null,null,null,6.39,6.33,5.69,null,null,"US","b",null,2,2,22,null,null,null,null,null,null,null,null,null,null,"E.C.R.A.",null,null,null,null,null,null,null,null,null,null,null,null,null,null,null,null,null,null,null,null,null,null,null,null,null,null,null,null,null,null,null,null,null,"470 Nato Bochness Rigby","470 N.E."]
[320,83,"220 Swift",43.76,48.41,56.01,null,null,68.069999999999993,1.24,12.01,null,2.89,10.82,0.64,"15°",0.38,"35°",11.36,10.210000000000001,"42°",57.06,0.76,2.54,6.64,6.6,5.7,null,60.22,"US","g",null,null,null,null,4300,4945,5375,25,2380,5.56,5.69,1.88,6,356,"C.I.P.","pouce","carabine",null,null,null,null,null,null,null,null,null,null,null,null,null,null,null,null,null,null,null,null,null,null,null,null,null,null,null,null,null,null,null,"5,5 mm Gew. Pat. 90","223 Rem."]
[321,362,"221 Rem. Fireball",27.2,30.42,35.56,null,null,46.48,1.1399999999999999,9.6,null,3.13,8.43,0.76,"25°",0.45,"35°",9.58,9.1620000000000008,"46°",37.979999999999997,0.64,2.54,6.43,6.43,5.7,null,37.72,"US","p /g",null,null,null,null,3200,3680,4160,17.5,null,5.56,5.69,2.0299999999999998,6,305,"C.I.P.","pouce","revolvers et pistolets",null,null,null,null,null,null,null,null,null,null,null,null,null,null,null,null,null,null,null,null,null,null,null,null,null,null,null,null,null,null,null,"5,56 Mle F","223 Rem."]
[322,480,"222 R Stief",32.04,35.15,43.18,null,null,54.1,1.4,10.9,null,null,null,null,null,0.5,"45°",9.59,9.07,"46°",42.72,0.64,2.54,6.43,6.43,5.7,null,45.37,"DE","b",null,null,null,null,3700,4255,4625,25,1600,5.56,5.69,2.0299999999999998,6,356,"C.I.P.","pouce","carabine",null,null,null,null,null,null,null,null,null,null,null,null,null,null,null,null,null,null,null,null,null,null,null,null,null,null,null,null,null,null,null,"5,56 mm Patrone/StG 77","223 Rem."]
[323,84,"222 Rem.",32.130000000000003,35.24,43.18,null,null,54.1,1.1399999999999999,9.6,null,3.01,8.43,0.64,"25°",0.45,"35°",9.58,9.07,"46°",42.81,0.64,2.54,6.43,6.43,5.7,null,45.37,"US","g",null,null,null,null,3700,4255,4625,25,1810,5.56,5.69,2.0299999999999998,6,356,"C.I.P.","pouce","carabine",null,null,null,null,null,null,null,null,null,null,null,null,null,null,null,null,null,null,null,null,null,null,null,null,null,null,null,null,null,null,null,"5,56 x 43","222 Rem."]
[324,85,"222 Rem. Mag.",37.18,40.29,46.99,null,null,57.91,1.1399999999999999,9.6,null,3.11,8.43,0.76,"25°",0.45,"35°",9.56,9.07,"46°",47.86,0.64,2.54,6.43,6.43,5.7,null,49.18,"US","g",null,null,null,null,4050,4658,5060,25,1820,5.56,5.69,2.0299999999999998,6,356,"C.I.P.","pouce","carabine",null,null,null,null,null,null,null,null,null,null,null,null,null,null,null,null,null,null,null,null,null,null,null,null,null,null,null,null,null,null,null,"5,56 x 45","223 Rem."]
[325,86,"223 Rem.",36.520000000000003,39.549999999999997,44.7,null,null,57.4,1.1399999999999999,9.6,null,3.13,8.43,0.76,"25°",0.45,"35°",9.58,9,"46°",47.12,0.64,2.54,6.43,6.43,5.7,null,46.88,"US","g",null,null,null,null,4300,4945,5375,25,1825,5.56,5.69,1.88,6,305,"C.I.P.","pouce","carabine",null,null,null,null,null,null,null,null,null,null,null,null,null,null,null,null,null,null,null,null,null,null,null,null,null,null,null,null,null,null,null,"5,6 mm Magnum DWM","5,6 x 50 R Mag."]
[326,87,"223 Win. Super Short Mag.",29.2,35.71,42.42,null,null,59.94,1.37,13.59,null,3.35,12.19,1.02,"45°",0.36,"35°",14.12,13.83,"56°",42.21,1.27,3.3,6.91,6.91,5.7,null,45.73,"US","g",null,null,null,null,4400,5060,5500,25,2600,5.56,5.69,2.0299999999999998,6,254,"C.I.P.","pouce","carabine",null,null,null,null,null,null,null,null,null,null,null,null,null,null,null,null,null,null,null,null,null,null,null,null,null,null,null,null,null,null,null,"5,6 mm Nato M 193","223 Rem."]
[null,null,"224 Valkyrie",30.56,33.799999999999997,40.64,null,null,57.3,1.24,10.72,null,3.18,9.09,0.84,"36°",0.38,"35°",10.69,10.24,"30°",null,null,null,6.5,6.5,5.7,null,null,null,"g",null,null,null,null,null,null,null,null,null,null,null,null,null,null,"SAAMI","pouce","carabine",null,null,null,null,null,null,null,null,null,null,null,null,null,null,null,null,null,null,null,null,null,null,null,null,null,null,null,null,null,null,null,"5,6 mm Russisch","5,6 x 39"]
[327,295,"224 Weath. Mag.",39.01,41.03,48.84,null,null,59.18,1.27,10.91,10.91,5.03,9.3699999999999992,1.1399999999999999,"45°",0.31,"45°",10.54,10.01,"83°26'17\"",44.62,3.3,3.83,6.4,6.4,5.7,null,54.48,"US","m",null,null,null,null,4400,5060,5500,25,2310,5.54,5.69,1.8,6,356,"C.I.P.","pouce","carabine magnum",null,null,null,null,null,null,null,null,null,null,null,null,null,null,null,null,null,null,null,null,null,null,null,null,null,null,null,null,null,null,null,"5,6 mm SE v.H.","5,6 x 61 R SE v. H."]
[328,213,"225 Win.",38.86,42.84,49.02,null,null,63.5,1.24,12.01,null,null,null,null,null,0.38,"35°",10.77,10.31,"50°",49.92,0.76,2.54,6.6,6.6,5.7,null,53.23,"US","b",null,null,null,null,3900,4485,4875,25,2195,5.56,5.68,1.88,6,356,"C.I.P.","pouce","carabine",null,null,null,null,null,null,null,null,null,null,null,null,null,null,null,null,null,null,null,null,null,null,null,null,null,null,null,null,null,null,null,"5,6 mm Sportivnyj","5,6 x 39"]
[329,296,"240 Belt. Riml. N.E.",48.26,53.34,63.5,null,null,82.55,1.0900000000000001,11.89,12.12,5.56,10.46,0.81,"26°34'12\"",0.3,"45°",11.56,10.29,"34°45'33\"",64.7,null,null,7.11,7.11,6.22,null,68.709999999999994,"GB","m",null,null,null,null,3300,3795,4125,25,2625,6.02,6.22,3.5,4,203,"C.I.P.","pouce","carabine magnum",null,null,null,null,null,null,null,null,null,null,null,null,null,null,null,null,null,null,null,null,null,null,null,null,null,null,null,null,null,null,null,"5,6 mm Vostock","5,6 x 39"]
[330,214,"240 FI. N.E.",49.53,54.61,63.5,null,null,82.55,1.0900000000000001,12.95,null,null,null,null,null,0.3,"45°",11.68,10.29,"34°45'33\"",65.97,4.57,4.57,7.11,7.11,6.22,null,76.2,"GB","b",null,null,null,null,3200,3680,4000,25,2660,6.02,6.22,3.5,4,203,"C.I.P.","pouce","carabine",null,null,null,null,null,null,null,null,null,null,null,null,null,null,null,null,null,null,null,null,null,null,null,null,null,null,null,null,null,null,null,"5,6 x 14,7-R.N.297/230 ku","297/230 Morris sh"]
[331,297,"240 Weath. Mag.",51.91,53.98,63.5,null,null,78.739999999999995,1.27,11.99,11.99,5.56,10.39,1.24,"45°",0.3,"45°",11.51,10.96,"89°01'48\"",57.48,3.18,3.96,6.88,6.88,6.18,null,72.37,"US","m",null,null,null,null,4400,5060,5500,25,3570,6.02,6.17,3.43,4,254,"C.I.P.","pouce","carabine magnum",null,null,null,null,null,null,null,null,null,null,null,null,null,null,null,null,null,null,null,null,null,null,null,null,null,null,null,null,null,null,null,"5,6 x 20 mm Revolver","297/230 Morris lg"]
[332,88,"243 Win.",39.619999999999997,45.83,51.94,null,null,68.83,1.37,12.01,null,3.85,10.39,1.4,"36°",0.38,"35°",11.96,11.53,"40°",55.46,0.76,3.18,7.01,7.01,6.17,null,57.2,"US","g",null,null,null,null,4150,4773,5190,25,2890,6.02,6.17,1.73,6,254,"C.I.P.","pouce","carabine",null,null,null,null,null,null,null,null,null,null,null,null,null,null,null,null,null,null,null,null,null,null,null,null,null,null,null,null,null,null,null,"5,6 x 20 Morris","297/230 Morris lg"]
[333,89,"243 Win. Super Short Mag.",29.21,35.35,42.42,null,null,59.94,1.37,13.49,null,3.35,12.19,1.02,"45°",0.36,"35°",14.12,13.82,"56°",42.21,1.27,3.3,7.29,7.29,6.17,null,47.16,"US","g",null,null,null,null,4400,5060,5500,25,3150,6.02,6.17,2.54,4,254,"C.I.P.","pouce","carabine",null,null,null,null,null,null,null,null,null,null,null,null,null,null,null,null,null,null,null,null,null,null,null,null,null,null,null,null,null,null,null,"5,6 x 21,0-R.N. 297/230 1a","297/230 Morris lg"]
[334,298,"244 H&H Mag.",59.18,63.87,70.87,null,null,91.44,1.27,13.51,13.56,5.56,11.94,1.02,"45°",0.3,"45°",13.03,11.48,"49°57'37\"",71.5,null,null,7.11,7.11,6.22,null,79.13,"GB","m",null,null,null,null,4350,5003,5438,25,3885,6.02,6.22,null,null,255,"C.I.P.","pouce","carabine magnum",null,null,null,null,null,null,null,null,null,null,null,null,null,null,null,null,null,null,null,null,null,null,null,null,null,null,null,null,null,null,null,"5,6 x 35 Hornet","22 Hornet"]
[335,93,"250 Savage",38.4,41.6,48.56,null,null,63.88,1.24,12.01,null,3.14,10.39,0.84,"36°",0.38,"35°",11.93,10.52,"53°",48.95,2.54,2.54,7.33,7.25,6.55,null,51.55,"US","g",null,null,null,null,3650,4198,4560,25,2900,6.35,6.53,2.2400000000000002,6,356,"C.I.P.","pouce","carabine",null,null,null,null,null,null,null,null,null,null,null,null,null,null,null,null,null,null,null,null,null,null,null,null,null,null,null,null,null,null,null,"5,6 x 39 Russian","5,6 x 39"]
[336,94,"255 GS",44.06,47.06,55,null,null,72.5,1.5,12.2,null,3.25,10.5,0.9,"45°",0.5,"45°",12.2,11.58,"70°",52.33,0.76,3.18,7.38,7.33,6.54,null,64.34,"IT","g",null,null,null,null,4400,5060,5500,25,3700,6.35,6.53,2.44,6,254,"C.I.P.","pouce","carabine",null,null,null,null,null,null,null,null,null,null,null,null,null,null,null,null,null,null,null,null,null,null,null,null,null,null,null,null,null,null,null,"5,6 x 43","222 Rem."]
[337,95,"256 Mag. Gibbs",44.83,49.2,55.25,null,null,77.47,1.02,12.09,null,3.18,10.41,1.02,"35°03'36\"",null,null,12.01,10.82,"40°13'07\"",59.61,7.11,5.08,7.62,7.52,6.73,null,60.23,"GB","g",null,null,null,null,3400,3910,4250,25,2645,6.5,6.72,null,null,null,"C.I.P.","pouce","carabine",null,null,null,null,null,null,null,null,null,null,null,null,null,null,null,null,null,null,null,null,null,null,null,null,null,null,null,null,null,null,null,"5,6 x 45","223 Rem."]
[338,217,"256 Win. Mag.",24.98,27.25,32.54,null,null,40.39,1.52,11.18,null,null,null,null,null,0.4,"35°",9.68,9.35,"50°",35.01,0.76,2.54,7.24,7.24,6.23,null,35.520000000000003,"US","b",null,null,null,null,3500,4025,4375,17.5,1365,6.35,6.5,2.0099999999999998,6,356,"C.I.P.","pouce","carabine",null,null,null,null,null,null,null,null,null,null,null,null,null,null,null,null,null,null,null,null,null,null,null,null,null,null,null,null,null,null,null,"5,6 x 47","222 Rem. Mag."]
[339,96,"257 Roberts",43.88,48.55,56.72,null,null,70.489999999999995,1.24,12.01,null,3.2,10.39,0.84,"36°",0.38,"35°",12.02,10.91,"41°30'",58.28,0.76,2.54,7.37,7.37,6.55,null,59.85,"US","g",null,null,null,null,3550,4083,4440,25,2850,6.35,6.5,2.41,6,254,"C.I.P.","pouce","carabine",null,null,null,null,null,null,null,null,null,null,null,null,null,null,null,null,null,null,null,null,null,null,null,null,null,null,null,null,null,null,null,"5,6 x 48,5","22-250 Rem."]
[340,299,"257 Weath. Mag.",52.68,54.82,64.739999999999995,null,null,80.52,1.3,13.5,13.5,5.56,11.61,1.24,"45°",0.3,"45°",13,12.48,"101°45'19\"",57.76,3.3,3.84,7.24,7.24,6.54,null,79.77,"US","m",null,null,null,null,4400,5060,5500,25,4095,6.36,6.53,2.4900000000000002,6,254,"C.I.P.","pouce","carabine magnum",null,null,null,null,null,null,null,null,null,null,null,null,null,null,null,null,null,null,null,null,null,null,null,null,null,null,null,null,null,null,null,"5,6 x 49 R","225 Win."]
[341,363,"260 PICRA",31,33,38.5,null,null,62,1.5,11.35,null,3.2,9.56,1,"50°21'41\"",0.25,"45°",11.25,10.96,"81°43'09\"",37.340000000000003,null,null,7.5,7.5,6.71,null,49.43,"CZ","p /g",null,null,null,null,3900,4485,5070,17.5,null,6.45,6.7,3.5,4,200,"C.I.P.","pouce","revolvers et pistolets",null,null,null,null,null,null,null,null,null,null,null,null,null,null,null,null,null,null,null,null,null,null,null,null,null,null,null,null,null,null,null,"5,6 x 52 R","22 Savage"]
[342,97,"260 Rem.",39.619999999999997,45.1,51.69,null,null,71.12,1.37,12.01,null,3.85,10.39,1.4,"36°",0.38,"30°",11.96,11.53,"40°",55.46,0.76,3.18,7.54,7.54,6.72,null,57.31,"US","g",null,null,null,null,4150,4773,5190,25,2770,6.5,6.71,2.42,6,229,"C.I.P.","pouce","carabine",null,null,null,null,null,null,null,null,null,null,null,null,null,null,null,null,null,null,null,null,null,null,null,null,null,null,null,null,null,null,null,"5,6 x 56 HV","220 Swift"]
[343,98,"264 Leroy N.E.",40.96,43.45,51.2,null,null,65,1.37,12.01,null,3.8,10.39,0.84,"36°",0.38,"35°",11.97,11.72,"80°01'02\"",47.94,null,null,7.54,7.54,6.7,null,66.16,"DE","g",null,null,null,null,4400,5060,5500,25,3675,6.45,6.7,1.3,4,200,"C.I.P.","pouce","carabine",null,null,null,null,null,null,null,null,null,null,null,null,null,null,null,null,null,null,null,null,null,null,null,null,null,null,null,null,null,null,null,"5,6 x 61 mm vom Hofe Super Express","5,6 x 61 R SE v. H."]
[344,300,"264 Win. Mag.",51.82,57.05,63.5,null,null,84.84,1.27,13.51,13.51,5.59,12.07,0.94,"35°",0.41,"35°",13.03,12.47,"50°",65.19,3.3,3.84,7.59,7.57,6.73,null,68.349999999999994,"US","m",null,null,null,null,4300,4945,5375,25,4095,6.5,6.71,2.29,6,229,"C.I.P.","pouce","carabine magnum",null,null,null,null,null,null,null,null,null,null,null,null,null,null,null,null,null,null,null,null,null,null,null,null,null,null,null,null,null,null,null,"5,6 x 61 R vom Hofe Super Express","5,6 x 61 R SE v. H."]
[345,301,"270 Weath. Mag.",52.57,54.7,64.739999999999995,null,null,83.69,1.3,13.5,13.5,5.56,11.61,1.02,"45°",0.3,"45°",13,12.48,"96°06'27\"",58.18,3.3,3.84,7.75,7.75,7.04,null,79.77,"US","m",null,null,null,null,4400,5060,5500,25,4935,6.87,7.04,2.74,6,254,"C.I.P.","pouce","carabine magnum",null,null,null,null,null,null,null,null,null,null,null,null,null,null,null,null,null,null,null,null,null,null,null,null,null,null,null,null,null,null,null,"5,7 mm Long Morris","297/230 Morris lg"]
[346,99,"270 Win.",49.49,54.77,64.52,null,null,84.84,1.24,12.01,null,3.16,10.39,0.84,"36°",0.38,"35°",11.96,11.2,"35°",67.25,0.76,3.81,7.87,7.82,7.06,null,72.61,"US","g",null,null,null,null,4300,4945,5375,25,3840,6.86,7.04,4.0599999999999996,4,254,"C.I.P.","pouce","carabine",null,null,null,null,null,null,null,null,null,null,null,null,null,null,null,null,null,null,null,null,null,null,null,null,null,null,null,null,null,null,null,"5,7 mm Short Morris","297/230 Morris sh"]
[347,100,"270 Win. Short Mag.",42.25,46.31,53.34,null,null,72.64,1.37,13.59,null,3.35,12.19,1.02,"45°",0.36,"35°",14.12,13.67,"70°",52.01,1.27,2.54,7.98,7.98,7.06,null,57.82,"US","g",null,null,null,null,4400,5060,5500,25,4725,6.86,7.04,4.0599999999999996,4,254,"C.I.P.","pouce","carabine",null,null,null,null,null,null,null,null,null,null,null,null,null,null,null,null,null,null,null,null,null,null,null,null,null,null,null,null,null,null,null,"500 Jeffery Rimmless","12,5 x 70 Schueler","N"]
[348,302,"275 Belt. N.E.",53.34,55.88,63.5,null,null,87.12,1.27,13.51,13.56,5.56,11.94,1.02,"28°21'",0.3,"45°",13.03,11.43,"64°05'30\"",62.47,null,null,8.25,8.25,7.29,null,69.790000000000006,"GB","m",null,null,null,null,4150,4773,5188,25,3990,7.04,7.28,null,null,255,"C.I.P.","pouce","carabine magnum",null,null,null,null,null,null,null,null,null,null,null,null,null,null,null,null,null,null,null,null,null,null,null,null,null,null,null,null,null,null,null,"500 Nitro 3\"","500 N.E. 3‘‘"]
[349,101,"275 H.V. Rigby",43.79,47.35,56.9,null,null,77.98,1.0900000000000001,12.06,null,2.97,10.54,0.81,"35°01'48\"",null,null,12.04,10.87,"40°41'17\"",58.45,null,null,8.23,8.23,7.21,null,62.55,"GB","g",null,null,null,null,3200,3680,4000,25,2720,6.97,7.25,3.62,4,203,"C.I.P.","pouce","carabine",null,null,null,null,null,null,null,null,null,null,null,null,null,null,null,null,null,null,null,null,null,null,null,null,null,null,null,null,null,null,null,"500 Rimless Schueler","12,5 x 70 Schueler","N"]
[350,102,"277 GS",56.5,59.97,67,null,null,87,1.4,13,null,3.5,11.2,1,"43°40'04\"",0.3,"45°",13.3,12.8,"70°",65.64,0.5,0.5,7.94,7.94,7.06,null,73,"IT","g",null,null,null,null,4400,5060,5500,25,4883,6.86,7.04,4.0599999999999996,4,254,"C.I.P.","pouce","carabine",null,null,null,null,null,null,null,null,null,null,null,null,null,null,null,null,null,null,null,null,null,null,null,null,null,null,null,null,null,null,null,"500 Schueler","12,5 x 70 Schueler","N"]
[351,218,"280 FI. N.E.",55.4,57.99,66.319999999999993,null,null,87.88,1.52,15.49,null,null,null,null,null,0.3,"45°",13.69,10.72,"53°07'48\"",66.12,null,null,8.1300000000000008,8.1300000000000008,7.29,null,71.86,"GB","b",null,null,null,null,2950,3393,3690,25,3550,7.05,7.3,null,null,255,"C.I.P.","pouce","carabine",null,null,null,null,null,null,null,null,null,null,null,null,null,null,null,null,null,null,null,null,null,null,null,null,null,null,null,null,null,null,null,"500 Schueler Jumbo","12,5 x 70 Schueler","N"]
[352,103,"280 Rem.",50.78,55.87,64.52,null,null,84.58,1.24,12.01,null,3.17,10.39,0.84,"36°",0.38,"35°",11.97,11.21,"35°",68.56,0.64,2.54,8,8,7.23,null,69.27,"US","g",null,null,null,null,4050,4658,5060,25,3930,7.04,7.21,4.0599999999999996,4,254,"C.I.P.","pouce","carabine",null,null,null,null,null,null,null,null,null,null,null,null,null,null,null,null,null,null,null,null,null,null,null,null,null,null,null,null,null,null,null,"500/450","500/465 N.E."]
[353,104,"280 Riml. N.E. Ross",55.4,57.99,66.319999999999993,null,null,87.88,1.52,14.22,null,3.58,12.45,1.02,"28°43'48\"",null,null,13.59,10.72,"53°07'48\"",66.12,null,null,8.1300000000000008,8.1300000000000008,7.29,null,72.27,"GB","g",null,null,null,null,3250,3738,4060,25,4440,7.05,7.3,null,null,220,"C.I.P.","pouce","carabine",null,null,null,null,null,null,null,null,null,null,null,null,null,null,null,null,null,null,null,null,null,null,null,null,null,null,null,null,null,null,null,511,"7 x 57"]
[354,447,"284 Tony",44.74,47.8,54.87,null,null,78,1.37,12.01,null,3.76,10.39,1.02,"40°",0.38,"35°",12.69,12.29,"70°",53.51,0.76,3.17,8,8,7.21,null,60.58,"ITA","g",null,null,null,null,4400,5060,5500,25,4300,7.01,7.21,2.79,4,228,"C.I.P.","pouce","carabine",null,null,null,null,null,null,null,null,null,null,null,null,null,null,null,null,null,null,null,null,null,null,null,null,null,null,null,null,null,null,null,"505 Gibbs Magnum","505 Mag. Gibbs"]
[355,105,"284 Win.",45.08,47.88,55.12,null,null,71.12,1.37,12.01,null,3.78,10.39,1.02,"40°",0.38,"35°",12.72,12.06,"70°",53.69,0.76,3.18,8.1300000000000008,8.1300000000000008,7.21,null,68.900000000000006,"US","g",null,null,null,null,4400,5060,5500,25,3625,7,7.19,2.79,6,254,"C.I.P.","pouce","carabine",null,null,null,null,null,null,null,null,null,null,null,null,null,null,null,null,null,null,null,null,null,null,null,null,null,null,null,null,null,null,null,"505 Rimless Magnum Gibbs","505 Mag. Gibbs"]
[356,219,"297/230 Morris lg",8.7100000000000009,10.49,20.57,null,null,27.43,1.27,9.02,null,null,null,null,null,null,null,7.59,7.37,"36°23'11\"",19.920000000000002,null,null,6.2,6.1,5.71,null,24.39,"GB","b",null,null,null,null,null,null,null,null,null,5.56,5.69,null,null,255,"C.I.P.","pouce","carabine",null,null,null,null,null,null,null,null,null,null,null,null,null,null,null,null,null,null,null,null,null,null,null,null,null,null,null,null,null,null,null,"57 Snider","577 Sld. Snider"]
[357,220,"297/230 Morris sh",8.7100000000000009,10.49,14.99,null,null,22.61,1.27,9.02,null,null,null,null,null,null,null,7.59,7.37,"36°23'11\"",19.920000000000002,null,null,6.2,6.15,5.71,null,18.809999999999999,"GB","b",null,null,null,null,null,null,null,null,null,5.56,5.69,null,null,255,"C.I.P.","pouce","carabine",null,null,null,null,null,null,null,null,null,null,null,null,null,null,null,null,null,null,null,null,null,null,null,null,null,null,null,null,null,null,null,"57/9 mm","9 x 57"]
[358,227,"300/295 Rook Rifle",null,null,29.27,null,null,36.83,1.1399999999999999,9.52,null,null,null,null,null,null,null,8.1,null,null,null,null,null,null,8.08,7.65,null,34.270000000000003,"GB","b",null,null,null,null,1200,1380,1500,17.5,375,7.4,7.62,null,null,508,"C.I.P.","pouce","carabine",null,null,null,null,null,null,null,null,null,null,null,null,null,null,null,null,null,null,null,null,null,null,null,null,null,null,null,null,null,null,null,"577 MK I","577 Sld. Snider"]
[359,449,"300 AAC Blackout",27.2,28,34.75,null,null,57.4,1.1399999999999999,9.6,null,3.15,8.43,0.76,"25°",0.45,"35°",9.6,9.16,"46°",37.99,1.27,1.28,8.48,8.48,7.85,null,43.89,"USA","g",null,null,null,null,3900,4485,4875,17.5,2000,7.62,7.82,4.5199999999999996,4,203.2,"C.I.P.","pouce","carabine",null,null,null,null,null,null,null,null,null,null,null,null,null,null,null,null,null,null,null,null,null,null,null,null,null,null,null,null,null,null,null,"577 Snider","577 Sld. Snider"]
[360,450,"300 Blacktornado",46.9,50.3,62,null,null,84,1.52,14.85,null,3.1,13.24,0.95,"50°",0.5,"45°",14.74,14.26,"80°",55.41,null,1.52,8.56,8.56,7.83,null,68.11,"USA","g",null,null,null,null,4400,5060,5500,25,5220,7.62,7.82,4.47,4,229,"C.I.P.","pouce","carabine",null,null,null,null,null,null,null,null,null,null,null,null,null,null,null,null,null,null,null,null,null,null,null,null,null,null,null,null,null,null,null,"577 Solid Snider","577 Sld. Snider"]
[361,115,"300 CR",39.590000000000003,41.92,51.06,null,null,71,1.24,12.01,null,3.72,10.39,1.4,"36°",0.26,"35°",11.96,11.34,"60°",49.41,0.74,3.18,8.65,8.61,7.85,null,59.64,"BE","g",null,null,null,null,4300,4945,5375,25,3675,7.62,7.82,2.41,6,305,"C.I.P.","pouce","carabine",null,null,null,null,null,null,null,null,null,null,null,null,null,null,null,null,null,null,null,null,null,null,null,null,null,null,null,null,null,null,null,"577 Solid Snider 2\"","577 Sld. Snider"]
[362,120,"300 Savage",39.590000000000003,41.92,47.52,null,null,66.040000000000006,1.24,12.01,null,3.18,10.39,0.84,"36°",0.38,"35°",11.99,11.34,"60°",49.41,0.76,3.18,8.65,8.61,7.85,null,56.1,"US","g",null,null,null,null,3650,4198,4560,25,3525,7.62,7.82,2.41,6,305,"C.I.P.","pouce","carabine",null,null,null,null,null,null,null,null,null,null,null,null,null,null,null,null,null,null,null,null,null,null,null,null,null,null,null,null,null,null,null,"6 mm / 308 Winch.","243 Win."]
[363,122,"300 Win. Short Mag.",42.25,45.77,53.34,null,null,72.64,1.37,13.59,null,3.35,12.19,1.02,"45°",0.36,"35°",14.12,13.67,"70°",52.01,1.27,2.54,8.74,8.74,7.85,null,58.56,"US","g",null,null,null,null,4400,5060,5500,25,5250,7.62,7.82,4.49,4,254,"C.I.P.","pouce","carabine",null,null,null,null,null,null,null,null,null,null,null,null,null,null,null,null,null,null,null,null,null,null,null,null,null,null,null,null,null,null,null,"6 mm Rem.","244 Rem."]
[364,307,"300 Win. Mag.",55.78,59.85,66.55,null,null,84.84,1.27,13.51,13.51,5.59,12.07,0.94,"35°",0.41,"35°",13.03,12.42,"50°",69.099999999999994,1.02,2.54,8.6300000000000008,8.6300000000000008,7.85,null,74.41,"US","m",null,null,null,null,4300,4945,5375,25,4935,7.62,7.82,2.79,6,254,"C.I.P.","pouce","carabine magnum",null,null,null,null,null,null,null,null,null,null,null,null,null,null,null,null,null,null,null,null,null,null,null,null,null,null,null,null,null,null,null,"6 mm Remington","244 Rem."]
[365,116,"300 Lapua Mag.",54.9,60.31,69.2,null,null,94.5,1.52,14.93,null,3.12,13.24,0.9,"50°",null,"45°",14.91,13.82,"49°57'9\"",69.73,null,null,8.7799999999999994,8.73,7.87,null,75.7,"FI","g",null,null,null,null,4400,5060,5500,25,5220,7.62,7.82,4.47,4,240,"C.I.P.","pouce","carabine",null,null,null,null,null,null,null,null,null,null,null,null,null,null,null,null,null,null,null,null,null,null,null,null,null,null,null,null,null,null,null,"6 x 52","243 Win."]
[366,118,"300 Rem. SA Ultra Mag.",39.07,43.26,51.18,null,null,71.760000000000005,1.27,13.56,null,3.75,12.07,0.94,"32°",0.41,"35°",14,13.58,"60°",50.83,null,3.18,8.74,8.74,7.85,null,61.02,"US","g",null,null,null,null,4400,5060,5500,25,5100,7.62,7.82,2.79,6,254,"C.I.P.","pouce","carabine",null,null,null,null,null,null,null,null,null,null,null,null,null,null,null,null,null,null,null,null,null,null,null,null,null,null,null,null,null,null,null,"6 x 57","6 mm Rem."]
[367,119,"300 Rem. Ultra Mag.",60.64,64.62,72.39,null,null,91.44,1.27,13.56,null,3.75,12.07,0.94,"32°",null,"35°",13.97,13.34,"60°",72.19,null,3.17,8.74,8.74,7.85,null,82.23,"US","g",null,null,null,null,4400,5060,5500,25,5985,7.62,7.82,2.92,6,254,"C.I.P.","pouce","carabine",null,null,null,null,null,null,null,null,null,null,null,null,null,null,null,null,null,null,null,null,null,null,null,null,null,null,null,null,null,null,null,"6 x 57","244 Rem."]
[null,null,"300 PRC",53.89,57.72,65.53,null,null,90.81,1.27,13.51,null,3.24,12.07,0.94,"35°",0.41,"35°",13.51,13.08,"60°",65.22,null,null,8.66,8.66,7.83,null,null,null,"g",null,null,null,null,null,null,null,null,null,null,null,null,null,null,"SAAMI","pouce","carabine",null,null,null,null,null,null,null,null,null,null,null,null,null,null,null,null,null,null,null,null,null,null,null,null,null,null,null,null,null,null,null,"6,35 mm ACP","6,35 Browning"]
[368,117,"300 RCM",41.74,45.58,53.34,null,null,72.14,1.27,13.51,null,3.27,12.07,0.94,"35°",0.86,"35°",13.55,13.08,"60°",53.06,1.27,3.18,8.64,8.64,7.85,null,61.36,"US","g",null,null,null,null,4400,5060,5500,25,4950,7.62,7.82,2.79,6,254,"C.I.P.","pouce","carabine",null,null,null,null,null,null,null,null,null,null,null,null,null,null,null,null,null,null,null,null,null,null,null,null,null,null,null,null,null,null,null,"6,35 mm Browning Beretta","6,35 Browning"]
[369,305,"300 H&H Mag.",53.46,62.96,72.39,null,null,91.44,1.27,13.51,13.56,5.59,12.07,0.94,"35°",0.41,"45°",13.03,11.43,"17°00'09\"",91.69,null,null,8.59,8.59,7.85,null,75.7,"GB","m",null,null,null,null,4300,4945,5375,25,4725,7.61,7.82,2.72,6,254,"C.I.P.","pouce","carabine magnum",null,null,null,null,null,null,null,null,null,null,null,null,null,null,null,null,null,null,null,null,null,null,null,null,null,null,null,null,null,null,null,"6,35 mm Browning Pistole","6,35 Browning"]
[370,114,"300 Blaser Mag.",52.12,55.92,64.2,null,null,84.84,1.37,13.59,null,3.61,12.19,1.42,"45°",0.3,"35°",13.84,13,"60°",63.38,1.5,2,8.61,8.61,7.83,null,69.8,"SE","g",null,null,null,null,4200,4830,5250,25,5545,7.62,7.82,4.49,4,279.39999999999998,"C.I.P.","pouce","carabine",null,null,null,null,null,null,null,null,null,null,null,null,null,null,null,null,null,null,null,null,null,null,null,null,null,null,null,null,null,null,null,"6,35 x 15.5","6,35 Browning"]
[371,451,"300 Norma Mag",48.06,55.52,63.3,null,null,93.5,1.52,14.93,null,3.15,13.24,0.95,"50°",0.5,"45°",14.87,14.29,"41°",67.17,null,2.5,8.7100000000000009,8.68,7.83,null,73.39,"SWE","g",null,null,null,null,4400,5060,5500,25,5485,7.62,7.82,4.47,4,229,"C.I.P.","pouce","carabine",null,null,null,null,null,null,null,null,null,null,null,null,null,null,null,null,null,null,null,null,null,null,null,null,null,null,null,null,null,null,null,"6,5 Japanese","6,5 x 51 R (Arisaka)"]
[372,228,"300 Sherwood",null,null,39.369999999999997,null,null,51.82,1.27,9.52,null,null,null,null,null,null,null,8.1300000000000008,null,null,null,null,null,null,8.08,7.62,null,43.81,"GB","b",null,null,null,null,1400,1610,1750,25,930,7.4,7.62,null,null,508,"C.I.P.","pouce","carabine",null,null,null,null,null,null,null,null,null,null,null,null,null,null,null,null,null,null,null,null,null,null,null,null,null,null,null,null,null,null,null,"6,5 Mannlicher Schönauer","6,5 x 54 Mannl. Sch."]
[373,306,"300 Weath. Mag.",59.62,61.86,71.75,null,null,90.42,1.3,13.5,13.5,5.56,11.61,1.24,"45°",0.3,"45°",13,12.49,"82°38'20\"",66.73,3.3,4.62,8.56,8.56,7.83,null,86.46,"US","m",null,null,null,null,4400,5060,5500,25,5880,7.63,7.82,3,6,254,"C.I.P.","pouce","carabine magnum",null,null,null,null,null,null,null,null,null,null,null,null,null,null,null,null,null,null,null,null,null,null,null,null,null,null,null,null,null,null,null,"6,5 Mle 91","6,5 x 52 Carcano"]
[374,452,"300 Pegasus",62.23,67.66,75.95,null,null,95.25,1.65,14.73,null,3.79,12.7,1.1200000000000001,"45°",0.25,"45°",14.73,14.38,"56°",75.75,1.02,3.18,8.61,8.59,7.82,null,87.65,"USA","g",null,null,null,null,4300,4945,5375,25,6400,7.62,7.82,3,6,254,"C.I.P.","pouce","carabine",null,null,null,null,null,null,null,null,null,null,null,null,null,null,null,null,null,null,null,null,null,null,null,null,null,null,null,null,null,null,null,"6,5 mm Einzelladerbüchse","6,5 x 27 R"]
[375,121,"300 Whisper",27.15,27.94,34.9,null,null,57,1.1399999999999999,9.6,null,3.07,8.43,0.74,"25°",0.45,"45°",9.5399999999999991,9.14,"46°30'",37.78,0.8,0.8,8.4600000000000009,8.4600000000000009,7.84,null,41.88,"US","g",null,null,null,null,3500,4025,4375,17.5,1100,7.62,7.82,2.2000000000000002,8,203,"C.I.P.","pouce","carabine",null,null,null,null,null,null,null,null,null,null,null,null,null,null,null,null,null,null,null,null,null,null,null,null,null,null,null,null,null,null,null,"6,5 mm Griechisch-Mannl.","6,5 x 54 Mannl. Sch."]
[376,230,"303 Savage",34.33,37.54,51.18,null,null,64.010000000000005,1.6,12.83,null,null,null,null,null,0.38,"35°",11.23,10.5,"32°",52.64,0.76,2.54,8.66,8.44,7.9,null,57.94,"US","b",null,null,null,null,2700,3105,3375,25,2455,7.62,7.82,2.54,6,254,"C.I.P.","pouce","carabine",null,null,null,null,null,null,null,null,null,null,null,null,null,null,null,null,null,null,null,null,null,null,null,null,null,null,null,null,null,null,null,"6,5 mm ital. Ordonanz","6,5 x 52 Carcano"]
[377,229,"303 British",45.47,48.01,56.44,null,null,78.11,1.63,13.72,null,null,null,null,null,0.4,"45°",11.68,10.19,"33°56'08\"",62.17,2.29,2.29,8.64,8.59,7.92,null,71.069999999999993,"GB","b",null,null,null,null,3650,4198,4560,25,2910,7.7,7.98,2.12,5,254,"C.I.P.","pouce","carabine",null,null,null,null,null,null,null,null,null,null,null,null,null,null,null,null,null,null,null,null,null,null,null,null,null,null,null,null,null,null,null,"6,5 mm Italien","6,5 x 52 Carcano"]
[378,231,"303 Sporting",41.85,44.39,52.82,null,null,74.489999999999995,1.63,13.92,null,null,null,null,null,0.4,"45°",11.7,10.19,"33°56'08\"",58.55,2.29,2.29,8.64,8.59,7.92,null,67.45,"FR","b",null,null,null,null,3300,3795,4125,25,2800,7.7,7.98,2.12,5,254,"C.I.P.","pouce","carabine",null,null,null,null,null,null,null,null,null,null,null,null,null,null,null,null,null,null,null,null,null,null,null,null,null,null,null,null,null,null,null,"6,5 mm Krag-Jörgensen","6,5 x 55 SE."]
[379,232,"307 Win.",39.619999999999997,43.48,51.18,null,null,65.02,1.6,12.85,null,3.72,10.41,0.46,"25°",0.38,"35°",11.96,11.53,"40°",55.46,0.76,3.18,8.7200000000000006,8.7200000000000006,7.85,null,58.16,"US","b",null,null,null,null,4150,4773,5190,25,2825,7.62,7.82,4.47,4,305,"C.I.P.","pouce","carabine",null,null,null,null,null,null,null,null,null,null,null,null,null,null,null,null,null,null,null,null,null,null,null,null,null,null,null,null,null,null,null,"6,5 mm Luxemburg","6,5 x 55 SE."]
[380,482,"308 Marlin Express",37.08,41.16,48.77,null,null,66.040000000000006,1.6,12.85,null,3.72,10.41,0.46,"25°",0.38,"35°",11.96,11.53,"40°",52.92,0.76,2.54,8.56,8.56,7.84,null,55.89,"USA","b",null,null,null,null,3300,3795,4125,25,3400,7.62,7.82,2.39,6,305,"C.I.P.","pouce","carabine",null,null,null,null,null,null,null,null,null,null,null,null,null,null,null,null,null,null,null,null,null,null,null,null,null,null,null,null,null,null,null,"6,5 mm Mauser Portugal","6,5 x 58 Mauser"]
[381,456,"308 Match",39.619999999999997,43.48,51.18,null,null,71.12,1.37,12.01,null,3.85,10.39,1.4,"36°",0.38,"35°",11.96,11.53,"40°",55.46,0.76,3.18,8.7200000000000006,8.7200000000000006,7.84,null,58.16,"ITA","g",null,null,null,null,4150,4773,5188,25,3600,7.62,7.82,4.47,4,305,"C.I.P.","pouce","carabine",null,null,null,null,null,null,null,null,null,null,null,null,null,null,null,null,null,null,null,null,null,null,null,null,null,null,null,null,null,null,null,"6,5 mm Mauser Vergueiro","6,5 x 58 Mauser"]
[382,308,"308 Norma Mag.",52.94,56.92,65,null,null,85,1.25,13.5,13.5,5.56,11.6,1,"45°",0.4,"45°",13.03,12.45,"51°",65.989999999999995,1,3,8.65,8.65,7.85,null,74.650000000000006,"SE","m",null,null,null,null,4400,5060,5500,25,4935,7.62,7.82,4.47,6,254,"C.I.P.","pouce","carabine magnum",null,null,null,null,null,null,null,null,null,null,null,null,null,null,null,null,null,null,null,null,null,null,null,null,null,null,null,null,null,null,null,"6,5 mm Norwegen Krag","6,5 x 55 SE."]
[383,123,"308 EH",30.45,34.31,41,null,null,57.5,1.37,12.01,null,3.85,10.39,1.4,"36°",0.38,"45°",11.96,11.53,"40°00'06\"",46.29,0.76,3.18,8.7200000000000006,8.7200000000000006,7.85,null,48.04,"FR","g",null,null,null,null,3800,4370,4750,25,3920,7.62,7.82,4.47,4,305,"C.I.P.","pouce","carabine",null,null,null,null,null,null,null,null,null,null,null,null,null,null,null,null,null,null,null,null,null,null,null,null,null,null,null,null,null,null,null,"6,5 mm Norwegen M 1910","6,5 x 55 SE."]
[384,125,"308 Win.",39.619999999999997,43.48,51.18,null,null,71.12,1.37,12.01,null,3.85,10.39,1.4,"36°",0.38,"35°",11.96,11.53,"40°",55.46,0.76,3.18,8.7200000000000006,8.7200000000000006,7.85,null,58.16,"US","g",null,null,null,null,4150,4773,5190,25,3920,7.62,7.82,4.47,4,305,"C.I.P.","pouce","carabine",null,null,null,null,null,null,null,null,null,null,null,null,null,null,null,null,null,null,null,null,null,null,null,null,null,null,null,null,null,null,null,"6,5 mm Paravicino Carc.","6,5 x 52 Carcano"]
[385,373,"320 Short",null,null,16.600000000000001,null,null,26.7,1.32,9.5500000000000007,null,null,null,null,null,0.38,"45°",8.1199999999999992,null,null,null,null,null,null,8.1199999999999992,8,null,18.86,"GB","p /b",null,null,null,null,1200,1380,1560,10.5,null,7.65,7.9,2.7,6,450,"C.I.P.","pouce","revolvers et pistolets",null,null,null,null,null,null,null,null,null,null,null,null,null,null,null,null,null,null,null,null,null,null,null,null,null,null,null,null,null,null,null,"6,5 mm Portug. Mauser","6,5 x 58 Mauser"]
[386,233,"310 Cadet Rifle",null,null,28.45,null,null,40.64,1.0900000000000001,10.41,null,null,null,null,null,null,null,9.02,null,null,null,null,null,null,8.31,8.1999999999999993,null,35.200000000000003,"GB","b",null,null,null,null,1100,1265,1375,17.5,680,7.9,8.18,null,null,508,"C.I.P.","pouce","carabine",null,null,null,null,null,null,null,null,null,null,null,null,null,null,null,null,null,null,null,null,null,null,null,null,null,null,null,null,null,null,null,"6,5 Norwegian","6,5 x 55 SE."]
[387,126,"318 Riml. N.E.",49.63,51.87,60.96,null,null,89.66,1.27,11.89,null,3.51,10.52,0.81,"25°36'",null,null,11.89,11.23,"50°01'10\"",61.67,null,null,9.14,9.1199999999999992,8.3800000000000008,null,67.63,"GB","g",null,null,null,null,3300,3795,4125,25,4550,8.07,8.3800000000000008,null,null,305,"C.I.P.","pouce","carabine",null,null,null,null,null,null,null,null,null,null,null,null,null,null,null,null,null,null,null,null,null,null,null,null,null,null,null,null,null,null,null,"6,5 Stato","6,5 x 52 Carcano"]
[388,372,"320 Long",null,null,20.5,null,null,30,1.32,9.65,null,null,null,null,null,0.38,"45°",8.0500000000000007,null,null,null,null,null,null,8,7.7,null,22.16,"GB","p /b",null,null,null,null,1000,1150,1300,12.5,null,7.65,7.9,2.7,6,450,"C.I.P.","pouce","revolvers et pistolets",null,null,null,null,null,null,null,null,null,null,null,null,null,null,null,null,null,null,null,null,null,null,null,null,null,null,null,null,null,null,null,"6,5 Swedish","6,5 x 55 SE."]
[389,128,"325 WSM",42.25,45.52,53.34,null,null,72.64,1.37,13.59,null,3.35,12.19,1.02,"45°",0.36,"55°",14.12,13.67,"70°",52.01,1.27,2.54,9.09,9.09,8.2200000000000006,null,63.58,"US","g",null,null,null,null,4350,5000,5430,25,5100,8,8.1999999999999993,4.47,4,254,"C.I.P.","pouce","carabine",null,null,null,null,null,null,null,null,null,null,null,null,null,null,null,null,null,null,null,null,null,null,null,null,null,null,null,null,null,null,null,"6,5 Termi","6,5 x 52 Carcano"]
[390,129,"333 Riml. N.E.",44.45,49.2,62.86,null,null,88.9,1.27,13.79,null,3.3,12.37,1.02,"36°02'39\"",null,null,13.84,12.7,"39°42'15\"",62.04,null,null,9.27,9.2200000000000006,8.4600000000000009,null,68.97,"GB","g",null,null,null,null,3300,3795,4125,25,4320,8.1999999999999993,8.4600000000000009,null,null,null,"C.I.P.","pouce","carabine",null,null,null,null,null,null,null,null,null,null,null,null,null,null,null,null,null,null,null,null,null,null,null,null,null,null,null,null,null,null,null,"6,5 x 27 P","6,5 x 27 R"]
[391,311,"340 Weath. Mag.",59.49,61.6,71.760000000000005,null,null,93.35,1.3,13.5,13.5,5.56,11.61,1.24,"45°",0.3,"45°",13,12.49,"74°06'26\"",67.760000000000005,3.3,4.62,9.3000000000000007,9.3000000000000007,8.59,null,87.33,"US","m",null,null,null,null,4400,5060,5500,25,6825,8.3800000000000008,8.59,3.2,6,254,"C.I.P.","pouce","carabine magnum",null,null,null,null,null,null,null,null,null,null,null,null,null,null,null,null,null,null,null,null,null,null,null,null,null,null,null,null,null,null,null,"6,5 x 33 R","25-20 Win."]
[392,417,"338-06",49.28,50.32,63.35,null,null,86,1.24,12.01,null,3.16,10.39,0.84,"36°",0.38,"35°",11.99,11.2,"035°",null,null,null,9.4,9.3699999999999992,8.61,null,null,"US","g","lr",3,1,null,null,null,null,null,null,null,null,null,null,null,"SPEER",null,null,null,null,null,null,null,null,null,null,null,null,null,null,null,null,null,null,null,null,null,null,null,null,null,null,null,null,null,null,null,null,null,"6,5 x 48,5","250 Savage"]
[393,490,"338-378 Weath. Mag",61.05,63.19,73.989999999999995,null,null,95.58,1.6,14.71,15.33,6.4,12.57,1.24,"45°",0.3,"45°",14.78,14.24,"96°54'35\"",67.36,3.3,3.89,9.41,9.3699999999999992,8.6,null,89.56,"USA","m",null,null,null,null,4400,5060,5500,25,7350,8.3800000000000008,8.59,3.2,6,254,"C.I.P.","pouce","carabine magnum",null,null,null,null,null,null,null,null,null,null,null,null,null,null,null,null,null,null,null,null,null,null,null,null,null,null,null,null,null,null,null,"6,5 x 50 Arisaka","6,5 x 51 R (Arisaka)"]
[394,130,"338 Blaser Mag.",51.51,54.68,63.7,null,null,84.84,1.37,13.59,null,3.61,12.19,1.42,"45°",0.3,"35°",13.84,13.02,"60°",62.79,1.5,2,9.36,9.36,8.59,null,74.099999999999994,"SE","g",null,null,null,null,4200,4830,5250,25,6360,8.3800000000000008,8.59,4.2699999999999996,4,304.8,"C.I.P.","pouce","carabine",null,null,null,null,null,null,null,null,null,null,null,null,null,null,null,null,null,null,null,null,null,null,null,null,null,null,null,null,null,null,null,"6,5 x 50 Japanese Arisaka","6,5 x 51 R (Arisaka)"]
[395,239,"338 Marlin Express",37.03,40.43,48.01,null,null,62.23,1.27,14.05,null,3.37,11.2,0.94,"36°",0.86,"35°",12.89,12.52,"50°",50.46,1.02,3.18,9.35,9.35,8.6,null,55.34,"US","b",null,null,null,null,3200,3680,4000,25,4200,8.3800000000000008,8.59,2.79,6,305,"C.I.P.","pouce","carabine",null,null,null,null,null,null,null,null,null,null,null,null,null,null,null,null,null,null,null,null,null,null,null,null,null,null,null,null,null,null,null,"6,5 x 51 (Arisaka)","6,5 x 51 R (Arisaka)"]
[396,133,"338 Norma Mag.",47.78,54.6,63.3,null,null,93.5,1.52,14.93,null,3.15,13.24,0.95,"50°",0.5,"45°",14.87,14.5,"41°",67.17,null,2.5,9.4,9.3800000000000008,8.6,null,73.62,"SE","g",null,null,null,null,4400,5060,5500,25,6170,8.3800000000000008,8.58,2.79,6,235,"C.I.P.","pouce","carabine",null,null,null,null,null,null,null,null,null,null,null,null,null,null,null,null,null,null,null,null,null,null,null,null,null,null,null,null,null,null,null,"6,5 x 52","25 Rem."]
[397,134,"338 Rem. Ultra Mag.",58.32,61.73,70.11,null,null,91.44,1.27,13.57,null,3.75,12.06,0.94,"32°",null,"35°",13.98,13.37,"60°",69.900000000000006,1.52,3.17,9.43,9.43,8.6,null,81.180000000000007,"US","g",null,null,null,null,4400,5060,5500,25,6090,8.3800000000000008,8.59,2.79,6,254,"C.I.P.","pouce","carabine",null,null,null,null,null,null,null,null,null,null,null,null,null,null,null,null,null,null,null,null,null,null,null,null,null,null,null,null,null,null,null,"6,5 x 52 mm Mannl. Carcano (M1891)","6,5 x 52 Carcano"]
[398,457,"338 RCM",39.83,43.04,51.18,null,null,72.14,1.27,13.51,null,3.25,12.07,0.94,"35°",0.41,"45°",13.53,13.11,"60°",51.18,1.27,3.18,9.4,9.3699999999999992,8.61,null,59.33,"USA","g",null,null,null,null,4300,4945,5375,25,4950,8.3800000000000008,8.59,2.79,6,254,"C.I.P.","pouce","carabine",null,null,null,null,null,null,null,null,null,null,null,null,null,null,null,null,null,null,null,null,null,null,null,null,null,null,null,null,null,null,null,"6,5 x 52,5 M.C. M 1910","6,5 x 52 Carcano"]
[399,135,"338 Win. Short Mag.",38.64,41.74,49.78,null,null,69.78,1.37,13.59,null,3.35,12.19,1.02,"45°",0.36,"35°",14.12,13.71,"70°",48.43,1.27,2.54,9.3699999999999992,9.3699999999999992,8.69,null,57.39,"US","g",null,null,null,null,4150,4773,5188,25,4935,8.3800000000000008,8.59,2.79,6,254,"C.I.P.","pouce","carabine",null,null,null,null,null,null,null,null,null,null,null,null,null,null,null,null,null,null,null,null,null,null,null,null,null,null,null,null,null,null,null,"6,5 x 53 Dutch Mannlicher","6,5 x 53 R Mannlicher"]
[400,309,"338 Win. Mag.",51.82,55.11,63.5,null,69.849999999999994,84.84,1.27,13.51,13.51,5.59,12.07,0.94,"35°",0.41,"35°",13.03,12.47,"50°",65.19,1.02,3.18,9.4,9.3699999999999992,8.61,8.3800000000000008,69.27,"US","m",null,null,null,null,4300,4945,5375,25,5460,8.3800000000000008,8.59,2.79,6,254,"C.I.P.","pouce","carabine magnum",null,null,null,null,null,null,null,null,null,null,null,null,null,null,null,null,null,null,null,null,null,null,null,null,null,null,null,null,null,null,null,"6,5 x 53 M.-Sch.","6,5 x 54 Mannl. Sch."]
[401,132,"338 Lapua Mag.",54.9,60.89,69.2,null,null,93.5,1.52,14.93,null,3.12,13.24,0.9,"50°04'48\"",0.5,"45°",14.91,13.82,"39°59'49\"",73.89,null,2.5,9.4600000000000009,9.41,8.61,null,75.28,"FI","g",null,null,null,null,4200,4830,5250,25,6600,8.3800000000000008,8.58,2.79,6,254,"C.I.P.","pouce","carabine",null,null,null,null,null,null,null,null,null,null,null,null,null,null,null,null,null,null,null,null,null,null,null,null,null,null,null,null,null,null,null,"6,5 x 53 R .","6,5 x 53 R Mannlicher"]
[402,131,"338 Federal",39.619999999999997,42.55,51.18,null,null,71.63,1.37,12.01,null,3.85,10.39,1.4,"36°",0.38,"55°",11.96,11.53,"40°",null,0.76,3.18,9.4,9.4,8.61,null,56.95,"US","g",null,null,null,null,4150,4773,5188,25,4150,8.3800000000000008,8.59,2.75,6,254,"C.I.P.","pouce","carabine",null,null,null,null,null,null,null,null,null,null,null,null,null,null,null,null,null,null,null,null,null,null,null,null,null,null,null,null,null,null,null,"6,5 x 53 R Mannlicher M 1895","6,5 x 53 R Mannlicher"]
[403,240,"348 Win.",41.91,45.83,57.28,null,null,70.989999999999995,1.78,15.49,null,null,null,null,null,0.38,"35°",14.05,12.32,"38°07'59\"",59.73,0.76,2.54,9.61,9.5399999999999991,8.8800000000000008,null,60.53,"US","b",null,null,null,null,3200,3680,4000,25,3640,8.64,8.84,3.05,6,305,"C.I.P.","pouce","carabine",null,null,null,null,null,null,null,null,null,null,null,null,null,null,null,null,null,null,null,null,null,null,null,null,null,null,null,null,null,null,null,"6,5 x 58 Mauser V.P.M 1904","6,5 x 58 Mauser"]
[404,244,"351 Win. SL",null,null,35.049999999999997,null,null,48.26,1.27,10.41,null,3.72,9.02,0.64,"10°",0.38,"35°",9.66,null,null,null,null,null,null,9.58,8.94,null,44.73,"US","b",null,null,null,null,3650,4198,4560,17.5,1330,8.76,8.92,2.75,6,406,"C.I.P.","pouce","carabine",null,null,null,null,null,null,null,null,null,null,null,null,null,null,null,null,null,null,null,null,null,null,null,null,null,null,null,null,null,null,null,"6,5 x 58 Portuguese Vergueiro","6,5 x 58 Mauser"]
[405,243,"350 No. 2 Rigby",53.34,57.15,69.88,null,null,93.73,1.27,13.46,null,null,null,null,null,null,null,11.96,10.64,"13°37'13\"",97.89,8.1300000000000008,8.1300000000000008,9.73,9.6999999999999993,9.0399999999999991,null,80.510000000000005,"GB","b",null,null,null,null,3300,3795,4125,25,4900,8.65,9,null,null,304,"C.I.P.","pouce","carabine",null,null,null,null,null,null,null,null,null,null,null,null,null,null,null,null,null,null,null,null,null,null,null,null,null,null,null,null,null,null,null,"6,5 x 58 R Sauer","6,5 x 58 R Krag. Jörgensen","N"]
[406,138,"350 Mag. Rigby",57.15,57.99,69.849999999999994,null,null,90.8,1.52,13.36,null,3.81,11.61,0.76,"26°51'36\"",null,null,13.16,11.43,"90°",62.86,null,null,9.75,9.73,9.07,null,74.75,"GB","g",null,null,null,null,3100,3565,3875,25,4810,8.89,9.06,null,null,305,"C.I.P.","pouce","carabine",null,null,null,null,null,null,null,null,null,null,null,null,null,null,null,null,null,null,null,null,null,null,null,null,null,null,null,null,null,null,null,"6,5 x 58,5 R","6,5 x 58 R Krag. Jörgensen","N"]
[407,312,"350 Rem. Mag.",43.18,46.1,55.12,null,null,71.12,1.27,13.51,13.51,5.59,12.07,0.94,"35°",0.41,"35°",13.03,12.58,"50°",56.67,0.76,2.54,9.86,9.86,9.1199999999999992,null,64.739999999999995,"US","m",null,null,null,null,4300,4945,5375,25,4620,8.86,9.07,3.3,6,406,"C.I.P.","pouce","carabine magnum",null,null,null,null,null,null,null,null,null,null,null,null,null,null,null,null,null,null,null,null,null,null,null,null,null,null,null,null,null,null,null,"6,5 x 63","25-06 Rem."]
[null,null,"356 TSW",null,null,21.59,null,null,29.46,1.27,10.01,null,2.95,8.81,0.89,"35°",0.38,"35°",9.92,null,null,null,null,null,null,9.66,9.0399999999999991,null,null,null,"p /g",null,null,null,null,null,null,null,null,null,null,null,null,null,null,"SAAMI","pouce","revolvers et pistolets",null,null,null,null,null,null,null,null,null,null,null,null,null,null,null,null,null,null,null,null,null,null,null,null,null,null,null,null,null,null,null,"6,6 x 58 1/2 R S & S","6,5 x 58 R Krag. Jörgensen","N"]
[408,245,"356 Win.",39.619999999999997,41.91,51.18,null,null,65.02,1.6,12.85,null,3.72,10.41,0.46,"25°",0.38,"35°",11.96,11.53,"40°",55.46,0.76,2.54,9.86,9.86,9.11,null,57.14,"US","b",null,null,null,null,4150,4773,5190,25,3705,8.89,9.09,2.79,6,305,"C.I.P.","pouce","carabine",null,null,null,null,null,null,null,null,null,null,null,null,null,null,null,null,null,null,null,null,null,null,null,null,null,null,null,null,null,null,null,"6,6 x 58,5 R","6,5 x 58 R Krag. Jörgensen","N"]
[409,419,"357/44 Bain & Davis",23.6,28.7,32.51,null,null,40.130000000000003,1.52,13.06,null,null,null,null,null,null,null,11.61,11.58,"10°",null,null,null,9.75,9.75,9.1199999999999992,null,null,"US","b","lp",18,null,null,null,null,null,null,null,null,null,null,null,null,"HORNADY",null,null,null,null,null,null,null,null,null,null,null,null,null,null,null,null,null,null,null,null,null,null,null,null,null,null,null,null,null,null,null,null,null,"6,6 x 58,5 R S & S","6,5 x 58 R Krag. Jörgensen","N"]
[410,418,"357 Herret",35,36.4,44.36,null,null,54.42,1.5,12.69,null,2.1,10.16,0.6,null,null,null,10.6,10.4,null,null,null,null,9.56,9.4700000000000006,9.1199999999999992,null,null,"US","b",null,2,2,35,null,null,null,null,null,null,null,null,null,null,"E.C.R.A.",null,null,null,null,null,null,null,null,null,null,null,null,null,null,null,null,null,null,null,null,null,null,null,null,null,null,null,null,null,null,null,null,null,"6,6 x 58,5 R Sauer","6,5 x 58 R Krag. Jörgensen","N"]
[411,377,"357 SIG",16.489999999999998,18.16,21.97,null,null,28.96,1.4,10.77,null,3.59,8.81,1.1399999999999999,"43°",0.51,"55°",10.77,10.77,"36°",33.06,1.52,3.81,9.68,9.68,9.0299999999999994,null,28.44,"US","p /g",null,null,null,null,3050,3508,3965,10.5,null,8.7899999999999991,9.02,2.69,6,406.4,"C.I.P.","pouce","revolvers et pistolets",null,null,null,null,null,null,null,null,null,null,null,null,null,null,null,null,null,null,null,null,null,null,null,null,null,null,null,null,null,null,null,"6,7 x 54 M.S.","6,5 x 54 Mannl. Sch."]
[412,375,"357 Magnum",null,null,32.770000000000003,null,null,40.39,1.52,11.18,null,null,null,null,null,0.4,"35°",9.6300000000000008,null,null,null,null,null,null,9.6300000000000008,9.1199999999999992,null,43.27,"US","p /b",null,null,null,null,3000,3450,3900,17.5,null,8.7899999999999991,9.02,2.69,9,476,"C.I.P.","pouce","revolvers et pistolets",null,null,null,null,null,null,null,null,null,null,null,null,null,null,null,null,null,null,null,null,null,null,null,null,null,null,null,null,null,null,null,"600 N.E. 3 \"","600 N.E."]
[413,376,"357 Maximum",null,null,40.770000000000003,null,null,50.55,1.52,11.18,null,null,null,null,null,0.4,"35°",9.6300000000000008,null,null,null,null,null,null,9.6300000000000008,9.1199999999999992,null,52.33,"US","p /b",null,null,null,null,3100,3565,4040,25,null,8.7899999999999991,9.02,2.69,6,476,"C.I.P.","pouce","revolvers et pistolets",null,null,null,null,null,null,null,null,null,null,null,null,null,null,null,null,null,null,null,null,null,null,null,null,null,null,null,null,null,null,null,"7 mm Beretta","7 x 57"]
[414,374,"357 Auto Mag.",24.13,26.83,33,null,null,40.65,1.37,12.01,null,3.56,10.4,1.4,"45°",0.3,"35°",11.97,11.71,"40°",40.22,1,3.2,9.75,9.75,9.1199999999999992,null,38.729999999999997,"US","p /g",null,null,null,null,2550,2933,3315,17.5,"α",8.84,9.09,2.69,6,457,"C.I.P.","pouce","revolvers et pistolets",null,null,null,null,null,null,null,null,null,null,null,null,null,null,null,null,null,null,null,null,null,null,null,null,null,null,null,null,null,null,null,"7 mm Bresèl","7 x 57"]
[415,139,"358 Win.",39.619999999999997,41.91,51.18,null,null,70.61,1.37,12.01,null,3.85,10.39,1.4,"36°",0.38,"35°",11.96,11.53,"40°",55.46,0.76,2.54,9.86,9.86,9.11,null,57.14,"US","g",null,null,null,null,4050,4658,5060,25,4270,8.89,9.09,2.79,6,305,"C.I.P.","pouce","carabine",null,null,null,null,null,null,null,null,null,null,null,null,null,null,null,null,null,null,null,null,null,null,null,null,null,null,null,null,null,null,null,"7 mm Chile Mauser","7 x 57"]
[416,313,"358 Norma Mag.",52.94,55.66,64,null,null,85,1.25,13.5,13.5,5.56,11.6,1,"45°",0.4,"45°",13.03,12.45,"51°",65.989999999999995,1,3,9.85,9.85,9.1199999999999992,null,70.5,"SE","m",null,null,null,null,4400,5060,5500,25,4725,8.89,9.1,3.4,6,305,"C.I.P.","pouce","carabine magnum",null,null,null,null,null,null,null,null,null,null,null,null,null,null,null,null,null,null,null,null,null,null,null,null,null,null,null,null,null,null,null,"7 mm Mauser","7 x 57"]
[417,246,"360 N.E. 2’’1/4",null,null,57.15,null,null,76.2,1.17,12.32,null,null,null,null,null,null,null,10.92,null,null,null,null,null,null,9.8000000000000007,9.32,null,63.83,"GB","b",null,null,null,null,2450,2818,3060,25,2285,8.9,9.3000000000000007,null,null,508,"C.I.P.","pouce","carabine",null,null,null,null,null,null,null,null,null,null,null,null,null,null,null,null,null,null,null,null,null,null,null,null,null,null,null,null,null,null,null,"7 mm Mexican Mauser","7 x 57"]
[418,247,"369 N.E. Purdey",55.88,60.96,68.58,null,null,91.44,1.07,15.85,null,null,null,null,null,null,null,13.74,12.19,"21°11'05\"",88.47,null,null,10.29,10.29,9.52,null,78.12,"GB","b",null,null,null,null,3050,3508,3810,25,4130,9.15,9.5,null,null,406,"C.I.P.","pouce","carabine",null,null,null,null,null,null,null,null,null,null,null,null,null,null,null,null,null,null,null,null,null,null,null,null,null,null,null,null,null,null,null,"7 mm SE. vom Hofe","7 x 75 R SE v. H."]
[419,248,"375 FI. N.E. 2‘‘1/2",null,null,63.5,null,null,82.55,1.65,13.41,null,null,null,null,null,null,"45°",11.68,null,null,null,null,null,null,10.19,9.52,null,71.92,"GB","b",null,null,null,null,2200,2530,2750,25,3220,9.25,9.5,null,null,475,"C.I.P.","pouce","carabine",null,null,null,null,null,null,null,null,null,null,null,null,null,null,null,null,null,null,null,null,null,null,null,null,null,null,null,null,null,null,null,"7 mm Spanish Mauser","7 x 57"]
[420,249,"375 FI Mag. N.E.",60.96,63.5,74.680000000000007,null,null,96.52,1.52,14.35,null,null,null,null,null,null,null,13.13,11.43,"25°17'47\"",86.43,null,null,10.29,10.29,9.52,null,83.15,"GB","b",null,null,null,null,3250,3738,4060,25,5925,9.25,9.5,null,null,406,"C.I.P.","pouce","carabine",null,null,null,null,null,null,null,null,null,null,null,null,null,null,null,null,null,null,null,null,null,null,null,null,null,null,null,null,null,null,null,"7 mm vom Hofe Express","7 mm SE v. H."]
[421,458,"375 Chey Tac",62.28,68.37,76.91,null,null,113.4,1.6,16.25,null,4.47,13.8,2,"53°44'",0.5,"35°19'59\"",16.18,15.22,"43°54'38\"",81.16,null,null,10.31,10.31,9.52,null,84.35,"USA","g",null,null,null,null,4400,5060,5500,25,10000,9.3000000000000007,9.5299999999999994,2.57,8,330.2,"C.I.P.","pouce","carabine",null,null,null,null,null,null,null,null,null,null,null,null,null,null,null,null,null,null,null,null,null,null,null,null,null,null,null,null,null,null,null,"7 x 16 - 320 kurz","320 Short"]
[422,251,"375 R Verney-Carron",60.58,63.5,73,null,null,92.25,1.65,15.9,null,null,null,null,null,0.3,"45°",13.95,13.45,"58°",72.7,0.5,1.7,10.210000000000001,10.210000000000001,9.5299999999999994,null,84.4,"FR","b",null,null,null,null,4100,4715,5125,25,7100,9.3000000000000007,9.5299999999999994,2.92,6,305,"C.I.P.","pouce","carabine",null,null,null,null,null,null,null,null,null,null,null,null,null,null,null,null,null,null,null,null,null,null,null,null,null,null,null,null,null,null,null,"7 x 19 - 320 Lang","320 Long"]
[423,315,"375 Weath. Mag.",61.75,63.65,72.64,null,null,90.5,1.3,13.5,13.5,5.56,11.61,1.24,"45°",0.3,"45°",13,12.49,"61°42'14\"",72.2,3.3,4.62,10.210000000000001,10.210000000000001,9.5299999999999994,null,96.82,"US","m",null,null,null,null,4400,5060,5500,25,7350,9.35,9.5299999999999994,3.25,6,305,"C.I.P.","pouce","carabine magnum",null,null,null,null,null,null,null,null,null,null,null,null,null,null,null,null,null,null,null,null,null,null,null,null,null,null,null,null,null,null,null,"7 x 57 DWM","7 x 57"]
[424,140,"375 Blaser Mag.",59.13,61.37,71.7,null,null,92,1.37,13.59,null,3.61,12.19,1.42,"45°",0.3,"35°",13.84,12.9,"60°",70.3,1.5,2,10.31,10.31,9.5299999999999994,null,84.25,"SE","g",null,null,null,null,4200,4830,5250,25,7370,9.3000000000000007,9.5500000000000007,4.49,4,355.6,"C.I.P.","pouce","carabine",null,null,null,null,null,null,null,null,null,null,null,null,null,null,null,null,null,null,null,null,null,null,null,null,null,null,null,null,null,null,null,"7 x 57 M 93","7 x 57"]
[425,252,"375 Win.",null,45.72,51.31,null,null,65.02,1.6,12.85,null,null,null,null,null,0.38,"35°",10.71,null,null,null,null,null,10.16,10.16,9.5500000000000007,null,58.62,"US","b",null,null,null,null,4400,5060,5500,25,2930,9.3000000000000007,9.5500000000000007,2.92,6,305,"C.I.P.","pouce","carabine",null,null,null,null,null,null,null,null,null,null,null,null,null,null,null,null,null,null,null,null,null,null,null,null,null,null,null,null,null,null,null,"7 x 57 Mauser M/06","7 x 57"]
[426,314,"375 H&H Mag.",61.27,63.44,72.39,null,null,91.44,1.27,13.51,13.56,5.59,12.07,0.94,"35°",0.41,"45°",13.03,11.37,"29°55'43\"",82.54,null,null,10.210000000000001,10.210000000000001,9.5500000000000007,null,81.3,"GB","m",null,null,null,null,4300,4945,5375,25,6090,9.3000000000000007,9.5500000000000007,2.92,6,305,"C.I.P.","pouce","carabine magnum",null,null,null,null,null,null,null,null,null,null,null,null,null,null,null,null,null,null,null,null,null,null,null,null,null,null,null,null,null,null,null,"7 x 64 Brenneke","7 x 64"]
[427,142,"375 Rem. Ultra Mag.",60.64,63.28,72.39,null,null,91.44,1.27,13.56,null,3.75,12.07,0.94,"32°",0.31,"35°",13.99,13.33,"60°",72.180000000000007,0.76,3.18,10.29,10.29,9.5500000000000007,null,84.38,"US","g",null,null,null,null,4400,5060,5500,25,7350,9.3000000000000007,9.5500000000000007,2.92,6,304.8,"C.I.P.","pouce","carabine",null,null,null,null,null,null,null,null,null,null,null,null,null,null,null,null,null,null,null,null,null,null,null,null,null,null,null,null,null,null,null,"7 x 73 Super Express v. Hofe (Vor 1945)","7 mm SE v. H."]
[428,143,"375 Ruger",55.36,57.78,65.53,null,null,84.84,1.27,13.51,null,3.24,12.07,0.94,"35°",0.41,"35°",13.52,13.08,"60°",66.7,0.76,3.18,10.29,10.29,9.5500000000000007,null,74.040000000000006,"US","g",null,null,null,null,4275,4916,5344,25,6350,9.3000000000000007,9.5500000000000007,2.92,6,305,"C.I.P.","pouce","carabine",null,null,null,null,null,null,null,null,null,null,null,null,null,null,null,null,null,null,null,null,null,null,null,null,null,null,null,null,null,null,null,"7 x 75 R vom Hofe Rimmed","7 x 75 R SE v. H."]
[429,141,"375 Hölderlin",53.2,56.57,67.5,null,null,87,1.4,13,null,3.5,11.2,1,"43°40'12\"",0.3,"45°",13.3,12.15,"29°05'34\"",76.599999999999994,0.5,0.5,10.4,10.39,9.5500000000000007,null,74.22,"DE","g",null,null,null,null,3800,4370,4750,25,6800,9.3000000000000007,9.5500000000000007,2.92,6,305,"C.I.P.","pouce","carabine",null,null,null,null,null,null,null,null,null,null,null,null,null,null,null,null,null,null,null,null,null,null,null,null,null,null,null,null,null,null,null,"7 x 75 R vom Hofe Super Express","7 x 75 R SE v. H."]
[430,250,"375 R Hölderlin",53.2,56.57,67.5,null,null,87,1.75,14.95,null,null,null,null,null,0.3,"45°",13.34,12.15,"29°05'34\"",76.61,0.5,0.5,10.4,10.39,9.5500000000000007,null,74.22,"DE","b",null,null,null,null,3600,4140,4500,25,6500,9.3000000000000007,9.5500000000000007,2.92,6,305,"C.I.P.","pouce","carabine",null,null,null,null,null,null,null,null,null,null,null,null,null,null,null,null,null,null,null,null,null,null,null,null,null,null,null,null,null,null,null,"7,2 x 64","7 x 64"]
[431,144,"376 Steyr",48.09,50.97,60,null,null,79,1.3,12.6,null,3.2,11.2,1,"43°",0.3,"45°",12.88,12.05,"35°04'13\"",67.16,null,null,10.23,10.23,9.5500000000000007,null,76.28,"AT","g",null,null,null,null,4300,4945,5375,25,5200,9.3000000000000007,9.5500000000000007,2.92,6,305,"C.I.P.","pouce","carabine",null,null,null,null,null,null,null,null,null,null,null,null,null,null,null,null,null,null,null,null,null,null,null,null,null,null,null,null,null,null,null,"7,2 x 65 R Brenneke","7 x 65 R"]
[432,316,"378 Weath. Mag.",60.9,62.97,73.989999999999995,null,null,92.84,1.6,14.71,15.33,6.4,12.57,1.24,"45°",0.3,"45°",14.78,14.24,"87°53'14\"",68.28,3.3,3.84,10.24,10.24,9.5299999999999994,null,98.98,"US","m",null,null,null,null,4400,5060,5500,25,8085,9.32,9.5299999999999994,3.25,6,305,"C.I.P.","pouce","carabine magnum",null,null,null,null,null,null,null,null,null,null,null,null,null,null,null,null,null,null,null,null,null,null,null,null,null,null,null,null,null,null,null,"7,5 mm Russisch Nagant","7,62 Nagant"]
[433,387,"380 Long",null,null,24.3,null,null,35,1.25,10.85,null,null,null,null,null,0.3,"45°",9.6999999999999993,null,null,null,null,null,null,9.6999999999999993,9.15,null,26.79,"GB","p /b",null,null,null,null,770,886,1001,12.5,null,8.9,9.1300000000000008,2.4,6,500,"C.I.P.","pouce","revolvers et pistolets",null,null,null,null,null,null,null,null,null,null,null,null,null,null,null,null,null,null,null,null,null,null,null,null,null,null,null,null,null,null,null,"7,5 x 16 - 320 kurz","320 Short"]
[434,388,"380 Short",null,null,17.899999999999999,null,null,28,1.25,10.85,null,null,null,null,null,0.3,"45°",9.6999999999999993,null,null,null,null,null,null,9.6999999999999993,9.15,null,19.98,"GB","p /b",null,null,null,null,680,782,884,10.5,null,8.9,9.1300000000000008,1.1000000000000001,7,400,"C.I.P.","pouce","revolvers et pistolets",null,null,null,null,null,null,null,null,null,null,null,null,null,null,null,null,null,null,null,null,null,null,null,null,null,null,null,null,null,null,null,"7,5 x 30.30 Revolver","300/295 Rook Rifle"]
[435,255,"380 Long Rifle",null,null,24,null,null,34.04,1.32,11.05,null,null,null,null,null,null,"45°",9.65,null,null,null,null,null,null,9.6,9.4700000000000006,null,31.23,"GB","b",null,null,null,null,950,1093,1190,17.5,412,9,9.4,null,null,508,"C.I.P.","pouce","carabine",null,null,null,null,null,null,null,null,null,null,null,null,null,null,null,null,null,null,null,null,null,null,null,null,null,null,null,null,null,null,null,"7,55 x 20 - 320 lang","320 Long"]
[436,259,"400/350 N.E.",53.34,57.15,69.849999999999994,null,null,93.73,1.27,13.46,null,null,null,null,null,null,null,11.96,10.64,"13°37'13\"",97.89,8.1300000000000008,8.1300000000000008,9.73,9.6999999999999993,9.0399999999999991,null,80.48,"GB","b",null,null,null,null,2800,3220,3500,25,4292,8.65,9,null,null,406,"C.I.P.","pouce","carabine",null,null,null,null,null,null,null,null,null,null,null,null,null,null,null,null,null,null,null,null,null,null,null,null,null,null,null,null,null,null,null,"7,55 x 29,25 - R.N. 300 1a","300/295 Rook Rifle"]
[null,null,"400 COR-BON",17.66,19.05,22.86,null,null,31.12,1.24,12.19,null,4.1100000000000003,10.16,0.89,"26°",0.38,"35°",12.09,12.03,"50°",30.56,null,null,10.74,10.74,10.17,null,null,null,"p /g",null,null,null,null,null,null,null,null,null,null,null,null,null,null,"SAAMI","pouce","revolvers et pistolets",null,null,null,null,null,null,null,null,null,null,null,null,null,null,null,null,null,null,null,null,null,null,null,null,null,null,null,null,null,null,null,"7,6 x 66 mm vom Hofe Super","7 mm SE v. H."]
[437,258,"400 Purdey 3‘‘",null,null,76.2,null,null,91.44,1.32,13.26,null,null,null,null,null,null,null,11.99,null,null,null,null,null,null,10.85,10.29,null,null,"GB","b",null,null,null,null,null,null,null,null,null,null,null,null,null,null,"C.I.P.","pouce","carabine",null,null,null,null,null,null,null,null,null,null,null,null,null,null,null,null,null,null,null,null,null,null,null,null,null,null,null,null,null,null,null,"7,62 K","30 Carbine"]
[438,317,"400 H&H Belt. Mag.",50.4,55.02,72.3,null,null,90,1.27,13.51,13.56,5.59,12.07,0.94,"35°",0.41,"45°",13.03,12.5,"16°01'01\"",94.82,0.5,0.5,11.2,11.2,10.44,null,82.26,"GB","m",null,null,null,null,4400,5060,5500,25,6800,10.24,10.44,3.33,6,305,"C.I.P.","pouce","carabine magnum",null,null,null,null,null,null,null,null,null,null,null,null,null,null,null,null,null,null,null,null,null,null,null,null,null,null,null,null,null,null,null,"7,62 Kalashnikov","7,62 x 39"]
[439,260,"401 Win. SL",null,null,38.1,null,null,50.93,1.52,11.68,null,4.3,10.31,null,"7°",0.38,"35°",11,null,null,null,null,null,null,10.99,10.34,null,48.8,"US","b",null,null,null,null,"2450 b","2818 b","3060 b",25,"2655 J",10.16,10.33,3.19,6,406,"C.I.P.","pouce","carabine",null,null,null,null,null,null,null,null,null,null,null,null,null,null,null,null,null,null,null,null,null,null,null,null,null,null,null,null,null,null,null,"7,62 largo","30-06 Spring."]
[440,145,"404 Riml. N.E.",50.82,57.18,73.02,null,null,89.66,1.27,13.79,null,3.3,12.37,1.02,"36°02'39\"",null,null,13.84,13.46,"16°59'27\"",95.88,null,null,11.56,11.48,10.72,null,80.64,"GB","g",null,null,null,null,3650,4198,4560,25,6815,10.46,10.77,3.5,6,420,"C.I.P.","pouce","carabine",null,null,null,null,null,null,null,null,null,null,null,null,null,null,null,null,null,null,null,null,null,null,null,null,null,null,null,null,null,null,null,"7,62 mm Griechisch N. 95","7,62 Nagant"]
[441,261,"405 Win.",null,null,65.61,null,null,80.64,1.85,13.79,null,null,null,null,null,0.4,"35°",11.73,null,null,null,null,null,null,11.07,10.45,null,68.319999999999993,"US","b",null,null,null,null,2450,2818,3060,25,4490,10.29,10.49,3.23,6,356,"C.I.P.","pouce","carabine",null,null,null,null,null,null,null,null,null,null,null,null,null,null,null,null,null,null,null,null,null,null,null,null,null,null,null,null,null,null,null,"7,62 mm Griechisch N.1912","7,62 Nagant"]
[442,460,"408 Chey Tac",62.23,67.31,77.209999999999994,null,null,115.5,1.6,16.25,null,4.47,13.8,2,"53°44'",0.5,"35°19'59\"",16.18,15.24,"44°08'46\"",81.02,null,null,11.12,11.12,10.36,null,83.8,"USA","g",null,null,null,null,4400,5060,5500,25,10500,10.16,10.36,2.57,8,330.2,"C.I.P.","pouce","carabine",null,null,null,null,null,null,null,null,null,null,null,null,null,null,null,null,null,null,null,null,null,null,null,null,null,null,null,null,null,null,null,"7,62 mm long","30-06 Spring."]
[443,262,"408 Win.",null,43.18,51.56,null,null,65.53,1.6,12.85,null,2.36,10.67,0.43,"45°",null,null,11.33,null,null,null,null,null,10.92,10.92,10.31,null,58.14,"US","b",null,null,null,null,4100,4715,5125,25,4190,10.15,10.33,3.19,6,356,"C.I.P.","pouce","carabine",null,null,null,null,null,null,null,null,null,null,null,null,null,null,null,null,null,null,null,null,null,null,null,null,null,null,null,null,null,null,null,"7,62 mm M 43","7,62 x 39"]
[444,318,"416 Rem. Mag.",60.68,61.74,72.39,null,null,91.44,1.27,13.51,13.51,5.59,12.06,0.94,"35°",0.41,"35°",13.02,12.36,"50°",73.94,1.02,2.54,11.38,11.35,10.57,null,80.33,"US","m",null,null,null,null,4300,4945,5375,25,7245,10.36,10.57,3.25,6,356,"C.I.P.","pouce","carabine magnum",null,null,null,null,null,null,null,null,null,null,null,null,null,null,null,null,null,null,null,null,null,null,null,null,null,null,null,null,null,null,null,"7,62 mm M 57","7,62 x 39"]
[445,463,"416 TYR",64.06,69,80.3,null,null,118.5,2,17.78,null,5.31,15,1.92,"45°",0.3,"45°",17.78,16.8,"56°",79.86,1,3.2,11.55,11.55,10.57,null,92.39,"TUR","g",null,null,null,null,4400,5060,5500,25,10500,10.36,10.57,3.25,6,330.2,"C.I.P.","pouce","carabine",null,null,null,null,null,null,null,null,null,null,null,null,null,null,null,null,null,null,null,null,null,null,null,null,null,null,null,null,null,null,null,"7,62 mm Mle 54","308 Win."]
[446,462,"416 Barrett",63.74,71.150000000000006,83.06,null,null,118.11,2.11,20.420000000000002,null,6.22,17.27,1.96,"36°",0.69,"45°",20.399999999999999,18.54,"50°",83.62,null,null,11.63,11.63,10.57,null,92.15,"USA","g",null,null,null,null,4400,5060,5500,25,14250,10.36,10.57,4.1100000000000003,6,304.8,"C.I.P.","pouce","carabine",null,null,null,null,null,null,null,null,null,null,null,null,null,null,null,null,null,null,null,null,null,null,null,null,null,null,null,null,null,null,null,"7,62 mm Modell 60","7,62 x 39"]
[447,147,"416 Ruger",55.37,56.93,65.53,null,null,84.84,1.27,13.51,null,3.25,12.07,0.94,"35°",0.38,"45°",13.52,13.08,"60°",66.69,0.76,3.18,11.28,11.25,10.58,null,75.38,"US","g",null,null,null,null,4300,4945,5375,25,7275,10.36,10.57,3.25,6,356,"C.I.P.","pouce","carabine",null,null,null,null,null,null,null,null,null,null,null,null,null,null,null,null,null,null,null,null,null,null,null,null,null,null,null,null,null,null,null,"7,62 mm Nato","308 Win."]
[448,461,"416 A-TEC",35,36.44,45,null,null,71,1.2,11.9,null,2.97,10.39,1,"45°",0.3,"35°",11.92,11.77,"25°",61.54,2,0.5,11.13,11.13,10.57,null,52.79,"NOR","g",null,null,null,null,4150,4773,5188,25,3000,10.36,10.57,3.25,6,356,"C.I.P.","pouce","carabine",null,null,null,null,null,null,null,null,null,null,null,null,null,null,null,null,null,null,null,null,null,null,null,null,null,null,null,null,null,null,null,"7,62 mm P. (Tokarev)","7,62 x 25 Tokarev"]
[449,319,"416 Taylor Mag.",53.86,54.73,63.5,null,null,84.84,1.27,13.51,13.51,5.59,12.06,0.94,"35°",0.41,"35°",13.03,12.42,"72°",62.4,0.5,0.5,11.15,11.15,10.57,null,73.92,"US","m",null,null,null,null,4400,5060,5500,25,7400,10.36,10.57,3.25,6,356,"C.I.P.","pouce","carabine magnum",null,null,null,null,null,null,null,null,null,null,null,null,null,null,null,null,null,null,null,null,null,null,null,null,null,null,null,null,null,null,null,"7,62 mm Pist.Patr.2601 (r)","7,62 x 25 Tokarev"]
[450,320,"416 Weath. Mag.",60.66,62.64,73.989999999999995,null,null,95.25,1.6,15.33,15.33,6.4,12.57,1.24,"45°",0.3,"45°",14.78,14.24,"73°32'42\"",70.19,3.3,4.17,11.28,11.28,10.57,null,84.26,"US","m",null,null,null,null,4400,5060,5500,25,9030,10.36,10.57,3.23,6,356,"C.I.P.","pouce","carabine magnum",null,null,null,null,null,null,null,null,null,null,null,null,null,null,null,null,null,null,null,null,null,null,null,null,null,null,null,null,null,null,null,"7,62 mm Polnisch Nagant","7,62 Nagant"]
[451,146,"416 Rigby",59.77,60.96,73.66,null,null,95.25,1.65,14.99,null,3.81,12.7,0.81,"39°55'48\"",null,null,14.96,13.72,"89°45'32\"",66.66,null,null,11.35,11.33,10.57,null,81.28,"GB","g",null,null,null,null,3250,3738,4060,25,7270,10.36,10.57,3.6,6,420,"C.I.P.","pouce","carabine",null,null,null,null,null,null,null,null,null,null,null,null,null,null,null,null,null,null,null,null,null,null,null,null,null,null,null,null,null,null,null,"7,62 mm Rev. Patr. 2602 (r)","7,62 Nagant"]
[452,264,"444 Marlin",null,null,56.52,null,null,65.28,1.6,13.06,null,2.5,11.43,0.64,"45°",0.38,"35°",11.95,null,null,null,null,null,null,11.51,10.93,null,58.1,"US","b",null,null,null,null,3550,4083,4440,25,3287,10.77,10.92,1.57,12,965,"C.I.P.","pouce","carabine",null,null,null,null,null,null,null,null,null,null,null,null,null,null,null,null,null,null,null,null,null,null,null,null,null,null,null,null,null,null,null,"7,62 mm russ. kurz","7,62 x 39"]
[453,422,"445 Super Mag",null,null,40.89,null,null,49.91,1.52,12.95,null,null,null,null,null,null,null,11.56,null,null,null,null,null,null,11.53,11.3,null,null,"US",null,"LR",null,null,null,null,null,null,null,null,null,null,null,null,null,"SIERRA",null,null,null,null,null,null,null,null,null,null,null,null,null,null,null,null,null,null,null,null,null,null,null,null,null,null,null,null,null,null,null,null,null,"7,62 mm Russ. Tokarev A.P.","7,62 x 25 Tokarev"]
[454,273,"450/400 Mag. N.E. 3‘‘1/4",50.8,58.42,82.55,null,null,100.33,1.07,15.85,null,null,null,null,null,null,null,13.84,12.65,"11°14'33\"",115.06,19.559999999999999,19.559999999999999,11.15,11.05,10.41,null,92.87,"GB","b",null,null,null,null,2950,3393,3690,25,6993,10.16,10.41,3.56,7,381,"C.I.P.","pouce","carabine",null,null,null,null,null,null,null,null,null,null,null,null,null,null,null,null,null,null,null,null,null,null,null,null,null,null,null,null,null,null,null,"7,62 mm Russisch lang","7,62 x 53 R"]
[455,272,"450/400 N.E. 3‘‘",53.34,60.96,76.2,null,null,95.25,1.65,15.87,null,null,null,null,null,null,null,13.92,13.23,"15°10'27\"",103,14.48,14.48,11.2,11.18,10.41,null,86.58,"GB","b",null,null,null,null,2800,3220,3500,25,5310,10.16,10.41,3.56,7,381,"C.I.P.","pouce","carabine",null,null,null,null,null,null,null,null,null,null,null,null,null,null,null,null,null,null,null,null,null,null,null,null,null,null,null,null,null,null,null,"7,62 mm Russisch Nagant","7,62 Nagant"]
[456,270,"450 N.E. 3‘‘1/4",null,null,82.55,null,null,100.33,1.07,15.85,null,null,null,null,null,null,null,13.84,null,null,null,null,null,null,12.22,11.63,null,87.32,"GB","b",null,null,null,null,3050,3508,3810,25,3070,11.43,11.61,3.56,7,381,"C.I.P.","pouce","carabine",null,null,null,null,null,null,null,null,null,null,null,null,null,null,null,null,null,null,null,null,null,null,null,null,null,null,null,null,null,null,null,"7,62 mm Tokarev M 40","7,62 x 25 Tokarev"]
[457,493,"450 SCH",null,null,23.81,null,null,32.39,1.27,12.11,null,3.38,10.16,1.1399999999999999,"45°",0.38,"35°",12.09,null,null,null,null,null,null,12.04,11.48,null,27.9,"CH","p /g",null,null,null,null,2250,2588,2925,12.5,null,11.23,11.43,3.73,6,406,"C.I.P.","metrique","revolvers et pistolets",null,null,null,null,null,null,null,null,null,null,null,null,null,null,null,null,null,null,null,null,null,null,null,null,null,null,null,null,null,null,null,"7,62 mm Tokarev M.30","7,62 x 25 Tokarev"]
[458,149,"450 Bushmaster",null,null,43.18,null,null,57.4,1.37,12.01,null,3.77,10.39,1.02,"40°",0.86,"45°",12.7,null,null,null,null,null,null,12.19,11.49,null,51.47,"US","g",null,null,null,null,2700,3105,3375,25,3950,11.23,11.43,3.76,6,609.6,"C.I.P.","pouce","carabine",null,null,null,null,null,null,null,null,null,null,null,null,null,null,null,null,null,null,null,null,null,null,null,null,null,null,null,null,null,null,null,"7,62 mm Typ 50","7,62 x 25 Tokarev"]
[459,405,"454 Casull",null,null,35.5,null,null,44.83,1.52,13.1,null,2.4,11.65,null,"15°15'18\"",0.4,null,12.13,null,null,null,null,null,null,12.12,11.49,null,47.7,"US","p /b",null,null,null,null,3900,4485,5070,17.5,null,11.23,11.43,4.0599999999999996,6,508,"C.I.P.","pouce","revolvers et pistolets",null,null,null,null,null,null,null,null,null,null,null,null,null,null,null,null,null,null,null,null,null,null,null,null,null,null,null,null,null,null,null,"7,62 mm Typ 56","7,62 x 39"]
[460,423,"455 Eley",null,null,22.5,null,null,37,1,13.45,null,null,null,null,null,null,null,12.2,null,null,null,null,null,null,12.08,11.58,null,null,"GB",null,null,null,1,"455",1200,null,null,null,null,11.3,11.55,null,null,null,"MALFATI",null,null,null,null,null,null,null,null,null,null,null,null,null,null,null,null,null,null,null,null,null,null,null,null,null,null,null,null,null,null,null,null,null,"7,62 mm Typ P","7,62 x 25 Tokarev"]
[461,406,"455 MK II",null,null,19.5,null,null,32,1,13.5,null,null,null,null,null,0.38,"45°",12.15,null,null,null,null,null,null,12.14,11.57,null,23.15,"GB","p /g",null,null,null,null,900,1035,1170,7.5,null,11.3,11.55,1,7,500,"C.I.P.","pouce","revolvers et pistolets",null,null,null,null,null,null,null,null,null,null,null,null,null,null,null,null,null,null,null,null,null,null,null,null,null,null,null,null,null,null,null,"7,62 mm-S-Patrone/StG 58","308 Win."]
[462,150,"450 Rigby",59.5,60.69,73.5,null,null,95.25,1.65,14.99,null,3.81,12.7,0.81,"39°55'50\"",null,null,14.96,14.5,"80°04'59\"",68.13,null,null,12.5,12.38,11.66,null,81.89,"GB","g",null,null,null,null,4000,4600,5200,25,8715,11.43,11.63,3.6,6,420,"C.I.P.","pouce","carabine",null,null,null,null,null,null,null,null,null,null,null,null,null,null,null,null,null,null,null,null,null,null,null,null,null,null,null,null,null,null,null,"7,62 Moisin Nagant M 91","7,62 x 53 R"]
[463,404,"450 Short",null,null,17.600000000000001,null,null,28.5,1.1000000000000001,12.95,null,null,null,null,null,0.3,"45°",12.18,null,null,null,null,null,null,12.17,11.58,null,20.27,"GB","p /b",null,null,null,null,720,828,936,8,null,11.25,11.48,3.78,5,500,"C.I.P.","pouce","revolvers et pistolets",null,null,null,null,null,null,null,null,null,null,null,null,null,null,null,null,null,null,null,null,null,null,null,null,null,null,null,null,null,null,null,"7,62 Nato","308 Win."]
[464,271,"450 N° 2 N.E. 3‘‘1/2 Eley",72.39,77.47,88.9,null,null,109.98,2.0299999999999998,16.760000000000002,null,null,null,null,null,null,null,14.35,13.97,"19°19'36\"",113.41,null,null,12.24,12.24,11.63,null,93.67,"GB","b",null,null,null,null,2800,3220,3500,25,7140,11.43,11.61,3.56,7,381,"C.I.P.","pouce","carabine",null,null,null,null,null,null,null,null,null,null,null,null,null,null,null,null,null,null,null,null,null,null,null,null,null,null,null,null,null,null,null,"7,62 russ. kurz","7,62 x 39"]
[465,321,"450 Marlin",null,null,53.34,null,null,64.760000000000005,1.27,13.51,13.51,6.4,12.07,0.94,"35°",0.41,"35°",13.03,null,null,null,null,null,null,12.21,11.64,null,58.69,"US","m",null,null,null,null,3300,3795,4125,25,4850,11.43,11.58,3.58,6,508,"C.I.P.","pouce","carabine magnum",null,null,null,null,null,null,null,null,null,null,null,null,null,null,null,null,null,null,null,null,null,null,null,null,null,null,null,null,null,null,null,"7,62 Russian short","7,62 x 39"]
[466,322,"458 Lott",null,null,71.12,null,null,91.44,1.27,13.51,13.51,5.59,12.07,0.94,"35°",0.41,"35°",13.03,null,null,null,null,null,null,12.22,11.66,null,99.27,"US","m",null,null,null,null,4300,4945,5375,25,7140,11.43,11.63,3.81,6,356,"C.I.P.","pouce","carabine magnum",null,null,null,null,null,null,null,null,null,null,null,null,null,null,null,null,null,null,null,null,null,null,null,null,null,null,null,null,null,null,null,"7,62 Schrot","30 Carbine"]
[467,323,"458 Win. Mag.",null,null,63.5,null,null,84.84,1.27,13.51,13.51,5.59,12.07,0.94,"35°",0.41,"35°",13.03,null,null,null,null,null,null,12.22,11.66,null,91.65,"US","m",null,null,null,null,4300,4945,5375,25,6615,11.43,11.63,3.81,6,356,"C.I.P.","pouce","carabine magnum",null,null,null,null,null,null,null,null,null,null,null,null,null,null,null,null,null,null,null,null,null,null,null,null,null,null,null,null,null,null,null,"7,62 Tokarev M 34/38","7,62 x 25 Tokarev"]
[468,407,"460 S&W Mag.",null,null,45.72,null,null,58.12,1.5,13.21,null,2.68,11.56,0.89,"45°",0.41,"35°",12.14,null,null,null,null,null,null,12.14,11.49,null,61.24,"US","p /g",null,null,null,null,3950,4543,5135,25,null,11.28,11.46,3.66,5,508,"C.I.P.","pouce","revolvers et pistolets",null,null,null,null,null,null,null,null,null,null,null,null,null,null,null,null,null,null,null,null,null,null,null,null,null,null,null,null,null,null,null,"7,62 x 24,6","7,62 x 25 Tokarev"]
[469,324,"460 Weath. Mag.",60.39,62.17,73.989999999999995,null,null,95.25,1.6,14.71,15.33,6.4,12.57,1.24,"45°",0.3,"45°",14.78,14.24,"56°15'56\"",73.709999999999994,3.3,4.72,12.34,12.34,11.64,null,98.71,"US","m",null,null,null,null,4400,5060,5500,25,10605,11.43,11.63,4.45,6,406,"C.I.P.","pouce","carabine magnum",null,null,null,null,null,null,null,null,null,null,null,null,null,null,null,null,null,null,null,null,null,null,null,null,null,null,null,null,null,null,null,"7,62 x 26 R","7,62 x 26 S.W.C.","N"]
[470,151,"460 Steyr",71.400000000000006,76.53,90,null,null,140,2.2599999999999998,20.420000000000002,null,6.23,17.27,1.8,"36°",0.84,"45°",20.420000000000002,18.25,"56°38'53\"",88.33,1,3,12.72,12.72,11.65,null,105.3,"AT","g",null,null,null,null,3700,4255,4625,40,15000,11.43,11.63,3.81,6,356,"C.I.P.","pouce","carabine",null,null,null,null,null,null,null,null,null,null,null,null,null,null,null,null,null,null,null,null,null,null,null,null,null,null,null,null,null,null,null,"7,62 x 26 R Russian Targ.","7,62 x 26 S.W.C.","N"]
[471,325,"465 H&H Belt. Mag.",53.5,58.93,73.5,null,null,90,1.6,14.71,15.33,6.4,12.57,1.24,"45°",0.3,"45°",14.78,13.5,"9°59'55\"",130.66,0.5,0.5,12.55,12.55,11.89,null,83.27,"GB","m",null,null,null,null,4300,4945,5375,25,8300,11.66,11.89,3.25,8,356,"C.I.P.","pouce","carabine magnum",null,null,null,null,null,null,null,null,null,null,null,null,null,null,null,null,null,null,null,null,null,null,null,null,null,null,null,null,null,null,null,"7,62 x 26 R Target","7,62 x 26 S.W.C.","N"]
[472,274,"470 N.E.",60.96,63.5,82.55,null,null,101.09,1.02,16.64,null,null,null,null,null,0.3,"45°",14.55,13.49,"14°21'40\"",114.5,6.35,6.35,12.85,12.8,12.04,null,91.51,"GB","b",null,null,null,null,2700,3105,3375,25,6957,11.85,12.05,3.84,7,533,"C.I.P.","pouce","carabine",null,null,null,null,null,null,null,null,null,null,null,null,null,null,null,null,null,null,null,null,null,null,null,null,null,null,null,null,null,null,null,"7,62 x 33","30 Carbine"]
[473,408,"475 Linebaugh",null,null,35.159999999999997,null,null,44.43,1.78,13.77,null,null,11.65,null,null,0.38,"45°",12.8,null,null,null,null,null,null,12.8,12.08,null,46.58,"US","p /b",null,null,null,null,3450,3968,4485,17.5,null,11.81,12.07,4.0599999999999996,6,457,"C.I.P.","pouce","revolvers et pistolets",null,null,null,null,null,null,null,null,null,null,null,null,null,null,null,null,null,null,null,null,null,null,null,null,null,null,null,null,null,null,null,"7,62 x 38","7,62 x 39"]
[474,275,"475 N° 2 N.E. 3‘‘1/2",69.209999999999994,74.290000000000006,88.9,null,null,109.98,2.0299999999999998,17.14,null,null,null,null,null,null,null,14.73,13.97,"12°14'48\"",134.32,null,null,12.88,12.88,12.27,null,96.54,"GB","b",null,null,null,null,2750,3163,3440,25,6957,12.06,12.37,2.67,7,457,"C.I.P.","pouce","carabine",null,null,null,null,null,null,null,null,null,null,null,null,null,null,null,null,null,null,null,null,null,null,null,null,null,null,null,null,null,null,null,"7,62 x 39 Court Mle. 43 R","7,62 x 39"]
[475,276,"475 N° 2 N.E. 3‘‘1/2 Jeffery",69.209999999999994,74.290000000000006,88.9,null,null,109.98,2.0299999999999998,17.14,null,null,null,null,null,null,null,14.73,13.97,"10°20'53\"",146.35,null,null,13.05,13.05,12.39,null,96.54,"GB","b",null,null,null,null,2750,3163,3440,25,6957,12.11,12.42,2.67,7,457,"C.I.P.","pouce","carabine",null,null,null,null,null,null,null,null,null,null,null,null,null,null,null,null,null,null,null,null,null,null,null,null,null,null,null,null,null,null,null,"7,62 x 39 Kalashnikov","7,62 x 39"]
[476,409,"480 Ruger",null,null,32.64,null,null,41.91,1.78,13.77,null,null,null,null,null,0.38,"45°",12.8,null,null,null,null,null,null,12.8,12.08,null,44.06,"US","p /b",null,null,null,null,3300,3795,4290,17.5,null,11.81,12.07,4.0599999999999996,6,457,"C.I.P.","pouce","revolvers et pistolets",null,null,null,null,null,null,null,null,null,null,null,null,null,null,null,null,null,null,null,null,null,null,null,null,null,null,null,null,null,null,null,"7,62 x 39/M 43/Russian","7,62 x 39"]
[null,null,"500 S&W Special",null,null,32.64,null,null,44.83,1.5,14.22,null,3.28,12.19,1.1399999999999999,"45°",0.26,"35°",13.46,null,null,null,null,null,null,13.46,12.7,null,null,null,"p /g",null,null,null,null,null,null,null,null,null,null,null,null,null,null,"SAAMI","pouce","revolvers et pistolets",null,null,null,null,null,null,null,null,null,null,null,null,null,null,null,null,null,null,null,null,null,null,null,null,null,null,null,null,null,null,null,"7,62 x 47,5","300 Savage"]
[477,411,"500 S&W Mag.",null,null,41.28,null,null,58.42,1.5,14.22,null,3.28,12.19,1.1399999999999999,"45°",0.26,"35°",13.46,null,null,null,null,null,null,13.46,12.7,null,59.98,"US","p /g",null,null,null,null,4270,4911,5551,23,null,12.4,12.66,3.3,6,476.3,"C.I.P.","pouce","revolvers et pistolets",null,null,null,null,null,null,null,null,null,null,null,null,null,null,null,null,null,null,null,null,null,null,null,null,null,null,null,null,null,null,null,"7,62 x 51","308 Win."]
[478,279,"500/416 N.E. 3‘‘1/4",60.96,65,82.55,null,null,101.09,1.02,16.64,null,null,null,null,null,0.3,"45°",14.55,13.49,"29°40'07\"",86.43,null,null,11.35,11.33,10.57,null,90.17,"DE","b",null,null,null,null,3150,3625,3940,25,6720,10.35,10.57,3.6,6,420,"C.I.P.","pouce","carabine",null,null,null,null,null,null,null,null,null,null,null,null,null,null,null,null,null,null,null,null,null,null,null,null,null,null,null,null,null,null,null,"7,62 x 51 R","30-30 Win."]
[479,282,"577/450 Sld. Mart.H",35.71,41.17,59.08,null,null,81.28,1.27,19.3,null,null,null,null,null,null,null,17.07,16.149999999999999,"31°35'57\"",64.25,null,9.14,13.06,12.83,11.81,null,74.739999999999995,"GB","b",null,null,null,null,1750,2013,2190,25,2532,11.35,11.8,null,null,508,"C.I.P.","pouce","carabine",null,null,null,null,null,null,null,null,null,null,null,null,null,null,null,null,null,null,null,null,null,null,null,null,null,null,null,null,null,null,null,"7,62 x 51 R","303 Savage"]
[480,280,"500/465 N.E.",55.88,66.040000000000006,82.55,null,null,99.06,1.02,16.64,null,null,null,null,null,null,null,14.58,13.56,"5°41'28\"",192.29,null,null,12.55,12.47,11.89,null,93.15,"GB","b",null,null,null,null,2450,2818,3060,25,6372,11.65,11.87,2.54,7,711,"C.I.P.","pouce","carabine",null,null,null,null,null,null,null,null,null,null,null,null,null,null,null,null,null,null,null,null,null,null,null,null,null,null,null,null,null,null,null,"7,62 x 51 R M 94","30-30 Win."]
[481,154,"505 Mag. Gibbs",62.43,63.45,80.010000000000005,null,null,97.79,1.65,16.260000000000002,null,4.0599999999999996,14.22,1.02,"36°18'36\"",null,null,16.260000000000002,15.24,"75°09'51\"",72.33,null,null,13.67,13.59,12.83,null,88.98,"GB","g",null,null,null,null,2700,3105,3375,25,7040,12.55,12.8,5.33,5,406,"C.I.P.","pouce","carabine",null,null,null,null,null,null,null,null,null,null,null,null,null,null,null,null,null,null,null,null,null,null,null,null,null,null,null,null,null,null,null,"7,62 x 52","30 Rem."]
[482,278,"500 N.E. 3‘‘",null,null,76.2,null,null,95.25,1.02,16.64,null,null,null,null,null,null,null,14.85,null,null,null,null,null,null,13.51,12.95,null,86.02,"GB","b",null,null,null,null,2800,3220,3500,25,8400,12.7,13,3.61,7,381,"C.I.P.","pouce","carabine",null,null,null,null,null,null,null,null,null,null,null,null,null,null,null,null,null,null,null,null,null,null,null,null,null,null,null,null,null,null,null,"7,62 x 52 R","30-30 Win."]
[483,153,"500 Jeffery",57.61,61.52,69.849999999999994,null,null,88.09,1.32,14.61,null,3.73,13.77,1,"34°39'36\"",0.3,"45°",15.72,15.42,"25°13'41\"",92.06,null,null,13.67,13.61,12.95,null,80.260000000000005,"GB","g",null,null,null,null,3300,3795,4125,25,9660,12.7,12.97,4.45,6,508,"C.I.P.","pouce","carabine",null,null,null,null,null,null,null,null,null,null,null,null,null,null,null,null,null,null,null,null,null,null,null,null,null,null,null,null,null,null,null,"7,62 x 54 R Mosin-Nagant","7,62 x 53 R"]
[484,155,"510 DTC",72.040000000000006,79.48,96.14,null,null,137.47,2.2599999999999998,20.420000000000002,null,6.2,17.27,1.8,"36°",0.84,"45°",20.38,19.28,"37°33'42\"",100.39,3.18,5.08,14.22,14.22,12.98,null,108.53,"GB","g",null,null,null,null,3600,4140,4500,25,14870,12.66,12.93,3.43,8,381,"C.I.P.","pouce","carabine",null,null,null,null,null,null,null,null,null,null,null,null,null,null,null,null,null,null,null,null,null,null,null,null,null,null,null,null,null,null,null,"7,62 x 54 R Russian","7,62 x 53 R"]
[485,284,"577 Sld. Snider",34.57,37.11,50.8,null,null,62.74,1.27,19.05,null,null,null,null,null,null,null,16.89,16,"15°14'53\"",94.33,null,null,15.32,15.32,14.58,null,58.23,"GB","b",null,null,null,null,1500,1725,1875,25,2290,14.23,14.58,null,null,508,"C.I.P.","pouce","carabine",null,null,null,null,null,null,null,null,null,null,null,null,null,null,null,null,null,null,null,null,null,null,null,null,null,null,null,null,null,null,null,"7,62 x 56 R","303 British"]
[486,283,"577 N.E. 3‘‘",null,null,76.2,null,null,93.98,1.27,19.05,null,null,null,null,null,null,null,16.809999999999999,null,null,null,null,null,null,15.37,14.83,null,85.06,"GB","b",null,null,null,null,2450,2818,3060,25,9975,14.55,14.78,4.09,7,762,"C.I.P.","pouce","carabine",null,null,null,null,null,null,null,null,null,null,null,null,null,null,null,null,null,null,null,null,null,null,null,null,null,null,null,null,null,null,null,"7,62 x 59 R","30-40 Krag"]
[487,285,"600 N.E.",null,null,76.2,null,null,93.98,1.65,20.57,null,null,null,null,null,null,null,17.78,null,null,null,null,null,null,16.510000000000002,15.75,null,86.89,"GB","b",null,null,null,null,2450,2818,3060,25,10323,15.39,15.7,4.09,7,762,"C.I.P.","pouce","carabine",null,null,null,null,null,null,null,null,null,null,null,null,null,null,null,null,null,null,null,null,null,null,null,null,null,null,null,null,null,null,null,"7,62 x 63","30-06 Spring."]
[488,286,"700 H&H Nitro Exp.",null,null,88.9,null,null,106.68,2.16,22.6,null,null,null,null,null,0.6,"45°",19.86,null,null,null,null,null,null,18.54,17.78,null,99.06,"GB","b",null,null,null,null,2750,3163,3440,25,14325,17.48,17.78,5.23,8,737,"C.I.P.","pouce","carabine",null,null,null,null,null,null,null,null,null,null,null,null,null,null,null,null,null,null,null,null,null,null,null,null,null,null,null,null,null,null,null,"7,62x 38 (G.R.684)","7,62 Nagant"]
[null,null,null,null,null,null,null,null,null,null,null,null,null,null,null,null,null,null,null,null,null,null,null,null,null,null,null,null,null,null,null,null,null,null,null,null,null,null,null,null,null,null,null,null,null,null,null,null,null,null,null,null,null,null,null,null,null,null,null,null,null,null,null,null,null,null,null,null,null,null,null,null,null,null,null,null,null,null,null,"7,63 mm (30) Maus.Pistol","7,63 Mauser"]
[null,null,null,null,null,null,null,null,null,null,null,null,null,null,null,null,null,null,null,null,null,null,null,null,null,null,null,null,null,null,null,null,null,null,null,null,null,null,null,null,null,null,null,null,null,null,null,null,null,null,null,null,null,null,null,null,null,null,null,null,null,null,null,null,null,null,null,null,null,null,null,null,null,null,null,null,null,null,null,"7,63 mm Mauser M. 1896","7,63 Mauser"]
[null,null,null,null,null,null,null,null,null,null,null,null,null,null,null,null,null,null,null,null,null,null,null,null,null,null,null,null,null,null,null,null,null,null,null,null,null,null,null,null,null,null,null,null,null,null,null,null,null,null,null,null,null,null,null,null,null,null,null,null,null,null,null,null,null,null,null,null,null,null,null,null,null,null,null,null,null,null,null,"7,63 mm Mauser Pistole","7,63 Mauser"]
[null,null,null,null,null,null,null,null,null,null,null,null,null,null,null,null,null,null,null,null,null,null,null,null,null,null,null,null,null,null,null,null,null,null,null,null,null,null,null,null,null,null,null,null,null,null,null,null,null,null,null,null,null,null,null,null,null,null,null,null,null,null,null,null,null,null,null,null,null,null,null,null,null,null,null,null,null,null,null,"7,63 x 24.6","7,63 Mauser"]
[null,null,null,null,null,null,null,null,null,null,null,null,null,null,null,null,null,null,null,null,null,null,null,null,null,null,null,null,null,null,null,null,null,null,null,null,null,null,null,null,null,null,null,null,null,null,null,null,null,null,null,null,null,null,null,null,null,null,null,null,null,null,null,null,null,null,null,null,null,null,null,null,null,null,null,null,null,null,null,"7,65 Frankreich long","7,65 Long"]
[null,null,null,null,null,null,null,null,null,null,null,null,null,null,null,null,null,null,null,null,null,null,null,null,null,null,null,null,null,null,null,null,null,null,null,null,null,null,null,null,null,null,null,null,null,null,null,null,null,null,null,null,null,null,null,null,null,null,null,null,null,null,null,null,null,null,null,null,null,null,null,null,null,null,null,null,null,null,null,"7,65 Frankreich Pistole","7,65 Long"]
[null,null,null,null,null,null,null,null,null,null,null,null,null,null,null,null,null,null,null,null,null,null,null,null,null,null,null,null,null,null,null,null,null,null,null,null,null,null,null,null,null,null,null,null,null,null,null,null,null,null,null,null,null,null,null,null,null,null,null,null,null,null,null,null,null,null,null,null,null,null,null,null,null,null,null,null,null,null,null,"7,65 L pour Pistolet","7,65 Long"]
[null,null,null,null,null,null,null,null,null,null,null,null,null,null,null,null,null,null,null,null,null,null,null,null,null,null,null,null,null,null,null,null,null,null,null,null,null,null,null,null,null,null,null,null,null,null,null,null,null,null,null,null,null,null,null,null,null,null,null,null,null,null,null,null,null,null,null,null,null,null,null,null,null,null,null,null,null,null,null,"7,65 long","7,65 Long"]
[null,null,null,null,null,null,null,null,null,null,null,null,null,null,null,null,null,null,null,null,null,null,null,null,null,null,null,null,null,null,null,null,null,null,null,null,null,null,null,null,null,null,null,null,null,null,null,null,null,null,null,null,null,null,null,null,null,null,null,null,null,null,null,null,null,null,null,null,null,null,null,null,null,null,null,null,null,null,null,"7,65 mm ACP","7,65 Browning"]
[null,null,null,null,null,null,null,null,null,null,null,null,null,null,null,null,null,null,null,null,null,null,null,null,null,null,null,null,null,null,null,null,null,null,null,null,null,null,null,null,null,null,null,null,null,null,null,null,null,null,null,null,null,null,null,null,null,null,null,null,null,null,null,null,null,null,null,null,null,null,null,null,null,null,null,null,null,null,null,"7,65 mm Argentinien Mauser","7,65 x 53 Arg."]
[null,null,null,null,null,null,null,null,null,null,null,null,null,null,null,null,null,null,null,null,null,null,null,null,null,null,null,null,null,null,null,null,null,null,null,null,null,null,null,null,null,null,null,null,null,null,null,null,null,null,null,null,null,null,null,null,null,null,null,null,null,null,null,null,null,null,null,null,null,null,null,null,null,null,null,null,null,null,null,"7,65 mm Browning M 1897","7,65 Browning"]
[null,null,null,null,null,null,null,null,null,null,null,null,null,null,null,null,null,null,null,null,null,null,null,null,null,null,null,null,null,null,null,null,null,null,null,null,null,null,null,null,null,null,null,null,null,null,null,null,null,null,null,null,null,null,null,null,null,null,null,null,null,null,null,null,null,null,null,null,null,null,null,null,null,null,null,null,null,null,null,"7,65 mm French long","7,65 Long"]
[null,null,null,null,null,null,null,null,null,null,null,null,null,null,null,null,null,null,null,null,null,null,null,null,null,null,null,null,null,null,null,null,null,null,null,null,null,null,null,null,null,null,null,null,null,null,null,null,null,null,null,null,null,null,null,null,null,null,null,null,null,null,null,null,null,null,null,null,null,null,null,null,null,null,null,null,null,null,null,"7,65 mm Holland P.S. No19","7,65 Browning"]
[null,null,null,null,null,null,null,null,null,null,null,null,null,null,null,null,null,null,null,null,null,null,null,null,null,null,null,null,null,null,null,null,null,null,null,null,null,null,null,null,null,null,null,null,null,null,null,null,null,null,null,null,null,null,null,null,null,null,null,null,null,null,null,null,null,null,null,null,null,null,null,null,null,null,null,null,null,null,null,"7,65 mm long Auto Pistol","7,65 Long"]
[null,null,null,null,null,null,null,null,null,null,null,null,null,null,null,null,null,null,null,null,null,null,null,null,null,null,null,null,null,null,null,null,null,null,null,null,null,null,null,null,null,null,null,null,null,null,null,null,null,null,null,null,null,null,null,null,null,null,null,null,null,null,null,null,null,null,null,null,null,null,null,null,null,null,null,null,null,null,null,"7,65 mm Patr.260 (b)","7,65 x 53 Arg."]
[null,null,null,null,null,null,null,null,null,null,null,null,null,null,null,null,null,null,null,null,null,null,null,null,null,null,null,null,null,null,null,null,null,null,null,null,null,null,null,null,null,null,null,null,null,null,null,null,null,null,null,null,null,null,null,null,null,null,null,null,null,null,null,null,null,null,null,null,null,null,null,null,null,null,null,null,null,null,null,"7,65 x 19,7","7,65 Long"]
[null,null,null,null,null,null,null,null,null,null,null,null,null,null,null,null,null,null,null,null,null,null,null,null,null,null,null,null,null,null,null,null,null,null,null,null,null,null,null,null,null,null,null,null,null,null,null,null,null,null,null,null,null,null,null,null,null,null,null,null,null,null,null,null,null,null,null,null,null,null,null,null,null,null,null,null,null,null,null,"7,65 x 52","32 Rem."]
[null,null,null,null,null,null,null,null,null,null,null,null,null,null,null,null,null,null,null,null,null,null,null,null,null,null,null,null,null,null,null,null,null,null,null,null,null,null,null,null,null,null,null,null,null,null,null,null,null,null,null,null,null,null,null,null,null,null,null,null,null,null,null,null,null,null,null,null,null,null,null,null,null,null,null,null,null,null,null,"7,65 x 52 R","32 Win. Spec."]
[null,null,null,null,null,null,null,null,null,null,null,null,null,null,null,null,null,null,null,null,null,null,null,null,null,null,null,null,null,null,null,null,null,null,null,null,null,null,null,null,null,null,null,null,null,null,null,null,null,null,null,null,null,null,null,null,null,null,null,null,null,null,null,null,null,null,null,null,null,null,null,null,null,null,null,null,null,null,null,"7,65 x 53 Belgien Mauser","7,65 x 53 Arg."]
[null,null,null,null,null,null,null,null,null,null,null,null,null,null,null,null,null,null,null,null,null,null,null,null,null,null,null,null,null,null,null,null,null,null,null,null,null,null,null,null,null,null,null,null,null,null,null,null,null,null,null,null,null,null,null,null,null,null,null,null,null,null,null,null,null,null,null,null,null,null,null,null,null,null,null,null,null,null,null,"7,65 x 54 R","32-40 Win."]
[null,null,null,null,null,null,null,null,null,null,null,null,null,null,null,null,null,null,null,null,null,null,null,null,null,null,null,null,null,null,null,null,null,null,null,null,null,null,null,null,null,null,null,null,null,null,null,null,null,null,null,null,null,null,null,null,null,null,null,null,null,null,null,null,null,null,null,null,null,null,null,null,null,null,null,null,null,null,null,"7,67 x 48","300 Savage"]
[null,null,null,null,null,null,null,null,null,null,null,null,null,null,null,null,null,null,null,null,null,null,null,null,null,null,null,null,null,null,null,null,null,null,null,null,null,null,null,null,null,null,null,null,null,null,null,null,null,null,null,null,null,null,null,null,null,null,null,null,null,null,null,null,null,null,null,null,null,null,null,null,null,null,null,null,null,null,null,"7,7 mm Breda","303 British"]
[null,null,null,null,null,null,null,null,null,null,null,null,null,null,null,null,null,null,null,null,null,null,null,null,null,null,null,null,null,null,null,null,null,null,null,null,null,null,null,null,null,null,null,null,null,null,null,null,null,null,null,null,null,null,null,null,null,null,null,null,null,null,null,null,null,null,null,null,null,null,null,null,null,null,null,null,null,null,null,"7,7 mm Jap. T-99","7,7 x 58 Japanese Arisaka"]
[null,null,null,null,null,null,null,null,null,null,null,null,null,null,null,null,null,null,null,null,null,null,null,null,null,null,null,null,null,null,null,null,null,null,null,null,null,null,null,null,null,null,null,null,null,null,null,null,null,null,null,null,null,null,null,null,null,null,null,null,null,null,null,null,null,null,null,null,null,null,null,null,null,null,null,null,null,null,null,"7,7 mm Japan Typ 92","303 British"]
[null,null,null,null,null,null,null,null,null,null,null,null,null,null,null,null,null,null,null,null,null,null,null,null,null,null,null,null,null,null,null,null,null,null,null,null,null,null,null,null,null,null,null,null,null,null,null,null,null,null,null,null,null,null,null,null,null,null,null,null,null,null,null,null,null,null,null,null,null,null,null,null,null,null,null,null,null,null,null,"7,7 mm Patrone S 272","303 British"]
[null,null,null,null,null,null,null,null,null,null,null,null,null,null,null,null,null,null,null,null,null,null,null,null,null,null,null,null,null,null,null,null,null,null,null,null,null,null,null,null,null,null,null,null,null,null,null,null,null,null,null,null,null,null,null,null,null,null,null,null,null,null,null,null,null,null,null,null,null,null,null,null,null,null,null,null,null,null,null,"7,7 mm prooved Japanese","7,7 x 58 Japanese Arisaka"]
[null,null,null,null,null,null,null,null,null,null,null,null,null,null,null,null,null,null,null,null,null,null,null,null,null,null,null,null,null,null,null,null,null,null,null,null,null,null,null,null,null,null,null,null,null,null,null,null,null,null,null,null,null,null,null,null,null,null,null,null,null,null,null,null,null,null,null,null,null,null,null,null,null,null,null,null,null,null,null,"7,7 x 56 mm Enfield","303 British"]
[null,null,null,null,null,null,null,null,null,null,null,null,null,null,null,null,null,null,null,null,null,null,null,null,null,null,null,null,null,null,null,null,null,null,null,null,null,null,null,null,null,null,null,null,null,null,null,null,null,null,null,null,null,null,null,null,null,null,null,null,null,null,null,null,null,null,null,null,null,null,null,null,null,null,null,null,null,null,null,"7,7 x 56 R","303 British"]
[null,null,null,null,null,null,null,null,null,null,null,null,null,null,null,null,null,null,null,null,null,null,null,null,null,null,null,null,null,null,null,null,null,null,null,null,null,null,null,null,null,null,null,null,null,null,null,null,null,null,null,null,null,null,null,null,null,null,null,null,null,null,null,null,null,null,null,null,null,null,null,null,null,null,null,null,null,null,null,"7,7 x 58 Arisaka Rimless","7,7 x 58 Japanese Arisaka"]
[null,null,null,null,null,null,null,null,null,null,null,null,null,null,null,null,null,null,null,null,null,null,null,null,null,null,null,null,null,null,null,null,null,null,null,null,null,null,null,null,null,null,null,null,null,null,null,null,null,null,null,null,null,null,null,null,null,null,null,null,null,null,null,null,null,null,null,null,null,null,null,null,null,null,null,null,null,null,null,"7,8 x 17.5","7,65 Browning"]
[null,null,null,null,null,null,null,null,null,null,null,null,null,null,null,null,null,null,null,null,null,null,null,null,null,null,null,null,null,null,null,null,null,null,null,null,null,null,null,null,null,null,null,null,null,null,null,null,null,null,null,null,null,null,null,null,null,null,null,null,null,null,null,null,null,null,null,null,null,null,null,null,null,null,null,null,null,null,null,"7,8 x 53-301","7,65 x 53 Arg."]
[null,null,null,null,null,null,null,null,null,null,null,null,null,null,null,null,null,null,null,null,null,null,null,null,null,null,null,null,null,null,null,null,null,null,null,null,null,null,null,null,null,null,null,null,null,null,null,null,null,null,null,null,null,null,null,null,null,null,null,null,null,null,null,null,null,null,null,null,null,null,null,null,null,null,null,null,null,null,null,"7,8 x 58,5 R","30-40 Krag"]
[null,null,null,null,null,null,null,null,null,null,null,null,null,null,null,null,null,null,null,null,null,null,null,null,null,null,null,null,null,null,null,null,null,null,null,null,null,null,null,null,null,null,null,null,null,null,null,null,null,null,null,null,null,null,null,null,null,null,null,null,null,null,null,null,null,null,null,null,null,null,null,null,null,null,null,null,null,null,null,"7,9 mm Mkb Patrone S","7,92 x 33 kurz"]
[null,null,null,null,null,null,null,null,null,null,null,null,null,null,null,null,null,null,null,null,null,null,null,null,null,null,null,null,null,null,null,null,null,null,null,null,null,null,null,null,null,null,null,null,null,null,null,null,null,null,null,null,null,null,null,null,null,null,null,null,null,null,null,null,null,null,null,null,null,null,null,null,null,null,null,null,null,null,null,"7,9 x 15,0 - S&W.32","32 S&W"]
[null,null,null,null,null,null,null,null,null,null,null,null,null,null,null,null,null,null,null,null,null,null,null,null,null,null,null,null,null,null,null,null,null,null,null,null,null,null,null,null,null,null,null,null,null,null,null,null,null,null,null,null,null,null,null,null,null,null,null,null,null,null,null,null,null,null,null,null,null,null,null,null,null,null,null,null,null,null,null,"7,9 x 56 R","303 British"]
[null,null,null,null,null,null,null,null,null,null,null,null,null,null,null,null,null,null,null,null,null,null,null,null,null,null,null,null,null,null,null,null,null,null,null,null,null,null,null,null,null,null,null,null,null,null,null,null,null,null,null,null,null,null,null,null,null,null,null,null,null,null,null,null,null,null,null,null,null,null,null,null,null,null,null,null,null,null,null,"7,9 x 57 R Nederland (Mitrailleur)","8 x 57 JRS"]
[null,null,null,null,null,null,null,null,null,null,null,null,null,null,null,null,null,null,null,null,null,null,null,null,null,null,null,null,null,null,null,null,null,null,null,null,null,null,null,null,null,null,null,null,null,null,null,null,null,null,null,null,null,null,null,null,null,null,null,null,null,null,null,null,null,null,null,null,null,null,null,null,null,null,null,null,null,null,null,"7,92 mm Holland","8 x 57 JRS"]
[null,null,null,null,null,null,null,null,null,null,null,null,null,null,null,null,null,null,null,null,null,null,null,null,null,null,null,null,null,null,null,null,null,null,null,null,null,null,null,null,null,null,null,null,null,null,null,null,null,null,null,null,null,null,null,null,null,null,null,null,null,null,null,null,null,null,null,null,null,null,null,null,null,null,null,null,null,null,null,"7,92 mm Holland Rand","8 x 57 JRS"]
[null,null,null,null,null,null,null,null,null,null,null,null,null,null,null,null,null,null,null,null,null,null,null,null,null,null,null,null,null,null,null,null,null,null,null,null,null,null,null,null,null,null,null,null,null,null,null,null,null,null,null,null,null,null,null,null,null,null,null,null,null,null,null,null,null,null,null,null,null,null,null,null,null,null,null,null,null,null,null,"7,92 mm Pistolen Patrone","7,92 x 33 kurz"]
[null,null,null,null,null,null,null,null,null,null,null,null,null,null,null,null,null,null,null,null,null,null,null,null,null,null,null,null,null,null,null,null,null,null,null,null,null,null,null,null,null,null,null,null,null,null,null,null,null,null,null,null,null,null,null,null,null,null,null,null,null,null,null,null,null,null,null,null,null,null,null,null,null,null,null,null,null,null,null,"7,92 MP 44","7,92 x 33 kurz"]
[null,null,null,null,null,null,null,null,null,null,null,null,null,null,null,null,null,null,null,null,null,null,null,null,null,null,null,null,null,null,null,null,null,null,null,null,null,null,null,null,null,null,null,null,null,null,null,null,null,null,null,null,null,null,null,null,null,null,null,null,null,null,null,null,null,null,null,null,null,null,null,null,null,null,null,null,null,null,null,"7,92 x 33 court","7,92 x 33 kurz"]
[null,null,null,null,null,null,null,null,null,null,null,null,null,null,null,null,null,null,null,null,null,null,null,null,null,null,null,null,null,null,null,null,null,null,null,null,null,null,null,null,null,null,null,null,null,null,null,null,null,null,null,null,null,null,null,null,null,null,null,null,null,null,null,null,null,null,null,null,null,null,null,null,null,null,null,null,null,null,null,"7,92 x 57 R","8 x 57 JRS"]
[null,null,null,null,null,null,null,null,null,null,null,null,null,null,null,null,null,null,null,null,null,null,null,null,null,null,null,null,null,null,null,null,null,null,null,null,null,null,null,null,null,null,null,null,null,null,null,null,null,null,null,null,null,null,null,null,null,null,null,null,null,null,null,null,null,null,null,null,null,null,null,null,null,null,null,null,null,null,null,"7.65 Luger","7,65 Parabellum"]
[null,null,null,null,null,null,null,null,null,null,null,null,null,null,null,null,null,null,null,null,null,null,null,null,null,null,null,null,null,null,null,null,null,null,null,null,null,null,null,null,null,null,null,null,null,null,null,null,null,null,null,null,null,null,null,null,null,null,null,null,null,null,null,null,null,null,null,null,null,null,null,null,null,null,null,null,null,null,null,"75 Nitro Express No. 2","475 N° 2 N.E. 3‘‘1/2"]
[null,null,null,null,null,null,null,null,null,null,null,null,null,null,null,null,null,null,null,null,null,null,null,null,null,null,null,null,null,null,null,null,null,null,null,null,null,null,null,null,null,null,null,null,null,null,null,null,null,null,null,null,null,null,null,null,null,null,null,null,null,null,null,null,null,null,null,null,null,null,null,null,null,null,null,null,null,null,null,"76/12,9 mm","500 N.E. 3‘‘"]
[null,null,null,null,null,null,null,null,null,null,null,null,null,null,null,null,null,null,null,null,null,null,null,null,null,null,null,null,null,null,null,null,null,null,null,null,null,null,null,null,null,null,null,null,null,null,null,null,null,null,null,null,null,null,null,null,null,null,null,null,null,null,null,null,null,null,null,null,null,null,null,null,null,null,null,null,null,null,null,"8 mm (7.92) Mauser","8 x 57 J"]
[null,null,null,null,null,null,null,null,null,null,null,null,null,null,null,null,null,null,null,null,null,null,null,null,null,null,null,null,null,null,null,null,null,null,null,null,null,null,null,null,null,null,null,null,null,null,null,null,null,null,null,null,null,null,null,null,null,null,null,null,null,null,null,null,null,null,null,null,null,null,null,null,null,null,null,null,null,null,null,"8 mm Bulgarian Mannlicher","8 x 50 R"]
[null,null,null,null,null,null,null,null,null,null,null,null,null,null,null,null,null,null,null,null,null,null,null,null,null,null,null,null,null,null,null,null,null,null,null,null,null,null,null,null,null,null,null,null,null,null,null,null,null,null,null,null,null,null,null,null,null,null,null,null,null,null,null,null,null,null,null,null,null,null,null,null,null,null,null,null,null,null,null,"8 mm French M 86","8 x 51 R Lebel"]
[null,null,null,null,null,null,null,null,null,null,null,null,null,null,null,null,null,null,null,null,null,null,null,null,null,null,null,null,null,null,null,null,null,null,null,null,null,null,null,null,null,null,null,null,null,null,null,null,null,null,null,null,null,null,null,null,null,null,null,null,null,null,null,null,null,null,null,null,null,null,null,null,null,null,null,null,null,null,null,"8 mm Grec.","8 x 50 R"]
[null,null,null,null,null,null,null,null,null,null,null,null,null,null,null,null,null,null,null,null,null,null,null,null,null,null,null,null,null,null,null,null,null,null,null,null,null,null,null,null,null,null,null,null,null,null,null,null,null,null,null,null,null,null,null,null,null,null,null,null,null,null,null,null,null,null,null,null,null,null,null,null,null,null,null,null,null,null,null,"8 mm Hongrois","8 x 50 R"]
[null,null,null,null,null,null,null,null,null,null,null,null,null,null,null,null,null,null,null,null,null,null,null,null,null,null,null,null,null,null,null,null,null,null,null,null,null,null,null,null,null,null,null,null,null,null,null,null,null,null,null,null,null,null,null,null,null,null,null,null,null,null,null,null,null,null,null,null,null,null,null,null,null,null,null,null,null,null,null,"8 mm Hungarian Mannlicher","8 x 56 R M30S"]
[null,null,null,null,null,null,null,null,null,null,null,null,null,null,null,null,null,null,null,null,null,null,null,null,null,null,null,null,null,null,null,null,null,null,null,null,null,null,null,null,null,null,null,null,null,null,null,null,null,null,null,null,null,null,null,null,null,null,null,null,null,null,null,null,null,null,null,null,null,null,null,null,null,null,null,null,null,null,null,"8 mm Krag Dänemark","8 x 58 R"]
[null,null,null,null,null,null,null,null,null,null,null,null,null,null,null,null,null,null,null,null,null,null,null,null,null,null,null,null,null,null,null,null,null,null,null,null,null,null,null,null,null,null,null,null,null,null,null,null,null,null,null,null,null,null,null,null,null,null,null,null,null,null,null,null,null,null,null,null,null,null,null,null,null,null,null,null,null,null,null,"8 mm Krag M 1908","8 x 58 R"]
[null,null,null,null,null,null,null,null,null,null,null,null,null,null,null,null,null,null,null,null,null,null,null,null,null,null,null,null,null,null,null,null,null,null,null,null,null,null,null,null,null,null,null,null,null,null,null,null,null,null,null,null,null,null,null,null,null,null,null,null,null,null,null,null,null,null,null,null,null,null,null,null,null,null,null,null,null,null,null,"8 mm Krag-Jörgensen","8 x 58 R"]
[null,null,null,null,null,null,null,null,null,null,null,null,null,null,null,null,null,null,null,null,null,null,null,null,null,null,null,null,null,null,null,null,null,null,null,null,null,null,null,null,null,null,null,null,null,null,null,null,null,null,null,null,null,null,null,null,null,null,null,null,null,null,null,null,null,null,null,null,null,null,null,null,null,null,null,null,null,null,null,"8 mm Lebel (M/93)","8 x 51 R Lebel"]
[null,null,null,null,null,null,null,null,null,null,null,null,null,null,null,null,null,null,null,null,null,null,null,null,null,null,null,null,null,null,null,null,null,null,null,null,null,null,null,null,null,null,null,null,null,null,null,null,null,null,null,null,null,null,null,null,null,null,null,null,null,null,null,null,null,null,null,null,null,null,null,null,null,null,null,null,null,null,null,"8 mm M 30 Austrian","8 x 56 R M30S"]
[null,null,null,null,null,null,null,null,null,null,null,null,null,null,null,null,null,null,null,null,null,null,null,null,null,null,null,null,null,null,null,null,null,null,null,null,null,null,null,null,null,null,null,null,null,null,null,null,null,null,null,null,null,null,null,null,null,null,null,null,null,null,null,null,null,null,null,null,null,null,null,null,null,null,null,null,null,null,null,"8 mm M 31 Hungarian Mle 35","8 x 56 R M30S"]
[null,null,null,null,null,null,null,null,null,null,null,null,null,null,null,null,null,null,null,null,null,null,null,null,null,null,null,null,null,null,null,null,null,null,null,null,null,null,null,null,null,null,null,null,null,null,null,null,null,null,null,null,null,null,null,null,null,null,null,null,null,null,null,null,null,null,null,null,null,null,null,null,null,null,null,null,null,null,null,"8 mm M7 Schf.R.P.","8 mm Steyr"]
[null,null,null,null,null,null,null,null,null,null,null,null,null,null,null,null,null,null,null,null,null,null,null,null,null,null,null,null,null,null,null,null,null,null,null,null,null,null,null,null,null,null,null,null,null,null,null,null,null,null,null,null,null,null,null,null,null,null,null,null,null,null,null,null,null,null,null,null,null,null,null,null,null,null,null,null,null,null,null,"8 mm Mle 1886 M","8 x 51 R Lebel"]
[null,null,null,null,null,null,null,null,null,null,null,null,null,null,null,null,null,null,null,null,null,null,null,null,null,null,null,null,null,null,null,null,null,null,null,null,null,null,null,null,null,null,null,null,null,null,null,null,null,null,null,null,null,null,null,null,null,null,null,null,null,null,null,null,null,null,null,null,null,null,null,null,null,null,null,null,null,null,null,"8 mm Norwegian Remington","8 x 58 R"]
[null,null,null,null,null,null,null,null,null,null,null,null,null,null,null,null,null,null,null,null,null,null,null,null,null,null,null,null,null,null,null,null,null,null,null,null,null,null,null,null,null,null,null,null,null,null,null,null,null,null,null,null,null,null,null,null,null,null,null,null,null,null,null,null,null,null,null,null,null,null,null,null,null,null,null,null,null,null,null,"8 mm Österreich Modell 30 S","8 x 56 R M30S"]
[null,null,null,null,null,null,null,null,null,null,null,null,null,null,null,null,null,null,null,null,null,null,null,null,null,null,null,null,null,null,null,null,null,null,null,null,null,null,null,null,null,null,null,null,null,null,null,null,null,null,null,null,null,null,null,null,null,null,null,null,null,null,null,null,null,null,null,null,null,null,null,null,null,null,null,null,null,null,null,"8 mm Roth M7 Steyr","8 mm Steyr"]
[null,null,null,null,null,null,null,null,null,null,null,null,null,null,null,null,null,null,null,null,null,null,null,null,null,null,null,null,null,null,null,null,null,null,null,null,null,null,null,null,null,null,null,null,null,null,null,null,null,null,null,null,null,null,null,null,null,null,null,null,null,null,null,null,null,null,null,null,null,null,null,null,null,null,null,null,null,null,null,"8 mm Roth Steyr Mod. 1907","8 mm Steyr"]
[null,null,null,null,null,null,null,null,null,null,null,null,null,null,null,null,null,null,null,null,null,null,null,null,null,null,null,null,null,null,null,null,null,null,null,null,null,null,null,null,null,null,null,null,null,null,null,null,null,null,null,null,null,null,null,null,null,null,null,null,null,null,null,null,null,null,null,null,null,null,null,null,null,null,null,null,null,null,null,"8 mm Russisch Nagant","7,62 Nagant"]
[null,null,null,null,null,null,null,null,null,null,null,null,null,null,null,null,null,null,null,null,null,null,null,null,null,null,null,null,null,null,null,null,null,null,null,null,null,null,null,null,null,null,null,null,null,null,null,null,null,null,null,null,null,null,null,null,null,null,null,null,null,null,null,null,null,null,null,null,null,null,null,null,null,null,null,null,null,null,null,"8 mm Steyr","8 x 50 R"]
[null,null,null,null,null,null,null,null,null,null,null,null,null,null,null,null,null,null,null,null,null,null,null,null,null,null,null,null,null,null,null,null,null,null,null,null,null,null,null,null,null,null,null,null,null,null,null,null,null,null,null,null,null,null,null,null,null,null,null,null,null,null,null,null,null,null,null,null,null,null,null,null,null,null,null,null,null,null,null,"8 mm Steyr M 7","8 mm Steyr"]
[null,null,null,null,null,null,null,null,null,null,null,null,null,null,null,null,null,null,null,null,null,null,null,null,null,null,null,null,null,null,null,null,null,null,null,null,null,null,null,null,null,null,null,null,null,null,null,null,null,null,null,null,null,null,null,null,null,null,null,null,null,null,null,null,null,null,null,null,null,null,null,null,null,null,null,null,null,null,null,"8 mm Swedish Remington","8 x 58 R"]
[null,null,null,null,null,null,null,null,null,null,null,null,null,null,null,null,null,null,null,null,null,null,null,null,null,null,null,null,null,null,null,null,null,null,null,null,null,null,null,null,null,null,null,null,null,null,null,null,null,null,null,null,null,null,null,null,null,null,null,null,null,null,null,null,null,null,null,null,null,null,null,null,null,null,null,null,null,null,null,"8 mm Ungarn Modell 31","8 x 56 R M30S"]
[null,null,null,null,null,null,null,null,null,null,null,null,null,null,null,null,null,null,null,null,null,null,null,null,null,null,null,null,null,null,null,null,null,null,null,null,null,null,null,null,null,null,null,null,null,null,null,null,null,null,null,null,null,null,null,null,null,null,null,null,null,null,null,null,null,null,null,null,null,null,null,null,null,null,null,null,null,null,null,"8 Roth-Steyr","8 mm Steyr"]
[null,null,null,null,null,null,null,null,null,null,null,null,null,null,null,null,null,null,null,null,null,null,null,null,null,null,null,null,null,null,null,null,null,null,null,null,null,null,null,null,null,null,null,null,null,null,null,null,null,null,null,null,null,null,null,null,null,null,null,null,null,null,null,null,null,null,null,null,null,null,null,null,null,null,null,null,null,null,null,"8 x 16.5 mm - English","320 Short"]
[null,null,null,null,null,null,null,null,null,null,null,null,null,null,null,null,null,null,null,null,null,null,null,null,null,null,null,null,null,null,null,null,null,null,null,null,null,null,null,null,null,null,null,null,null,null,null,null,null,null,null,null,null,null,null,null,null,null,null,null,null,null,null,null,null,null,null,null,null,null,null,null,null,null,null,null,null,null,null,"8 x 19.5 mm English Kal. 320","320 Long"]
[null,null,null,null,null,null,null,null,null,null,null,null,null,null,null,null,null,null,null,null,null,null,null,null,null,null,null,null,null,null,null,null,null,null,null,null,null,null,null,null,null,null,null,null,null,null,null,null,null,null,null,null,null,null,null,null,null,null,null,null,null,null,null,null,null,null,null,null,null,null,null,null,null,null,null,null,null,null,null,"8 x 27 HR","32 H&R Mag."]
[null,null,null,null,null,null,null,null,null,null,null,null,null,null,null,null,null,null,null,null,null,null,null,null,null,null,null,null,null,null,null,null,null,null,null,null,null,null,null,null,null,null,null,null,null,null,null,null,null,null,null,null,null,null,null,null,null,null,null,null,null,null,null,null,null,null,null,null,null,null,null,null,null,null,null,null,null,null,null,"8 x 33 Winchester","32-20 Win."]
[null,null,null,null,null,null,null,null,null,null,null,null,null,null,null,null,null,null,null,null,null,null,null,null,null,null,null,null,null,null,null,null,null,null,null,null,null,null,null,null,null,null,null,null,null,null,null,null,null,null,null,null,null,null,null,null,null,null,null,null,null,null,null,null,null,null,null,null,null,null,null,null,null,null,null,null,null,null,null,"8 x 48 R Sauer","8 x 48 R","N"]
[null,null,null,null,null,null,null,null,null,null,null,null,null,null,null,null,null,null,null,null,null,null,null,null,null,null,null,null,null,null,null,null,null,null,null,null,null,null,null,null,null,null,null,null,null,null,null,null,null,null,null,null,null,null,null,null,null,null,null,null,null,null,null,null,null,null,null,null,null,null,null,null,null,null,null,null,null,null,null,"8 x 50 R Austrian Mannlicher M 93","8 x 50 R"]
[null,null,null,null,null,null,null,null,null,null,null,null,null,null,null,null,null,null,null,null,null,null,null,null,null,null,null,null,null,null,null,null,null,null,null,null,null,null,null,null,null,null,null,null,null,null,null,null,null,null,null,null,null,null,null,null,null,null,null,null,null,null,null,null,null,null,null,null,null,null,null,null,null,null,null,null,null,null,null,"8 x 50 R Lebel","8 x 51 R Lebel"]
[null,null,null,null,null,null,null,null,null,null,null,null,null,null,null,null,null,null,null,null,null,null,null,null,null,null,null,null,null,null,null,null,null,null,null,null,null,null,null,null,null,null,null,null,null,null,null,null,null,null,null,null,null,null,null,null,null,null,null,null,null,null,null,null,null,null,null,null,null,null,null,null,null,null,null,null,null,null,null,"8 x 51 kurz","8 x 51 (Mauser K)"]
[null,null,null,null,null,null,null,null,null,null,null,null,null,null,null,null,null,null,null,null,null,null,null,null,null,null,null,null,null,null,null,null,null,null,null,null,null,null,null,null,null,null,null,null,null,null,null,null,null,null,null,null,null,null,null,null,null,null,null,null,null,null,null,null,null,null,null,null,null,null,null,null,null,null,null,null,null,null,null,"8 x 51 R","8 x 51 R Lebel"]
[null,null,null,null,null,null,null,null,null,null,null,null,null,null,null,null,null,null,null,null,null,null,null,null,null,null,null,null,null,null,null,null,null,null,null,null,null,null,null,null,null,null,null,null,null,null,null,null,null,null,null,null,null,null,null,null,null,null,null,null,null,null,null,null,null,null,null,null,null,null,null,null,null,null,null,null,null,null,null,"8 x 52","32 Rem."]
[null,null,null,null,null,null,null,null,null,null,null,null,null,null,null,null,null,null,null,null,null,null,null,null,null,null,null,null,null,null,null,null,null,null,null,null,null,null,null,null,null,null,null,null,null,null,null,null,null,null,null,null,null,null,null,null,null,null,null,null,null,null,null,null,null,null,null,null,null,null,null,null,null,null,null,null,null,null,null,"8 x 52 R","32-40 Win."]
[null,null,null,null,null,null,null,null,null,null,null,null,null,null,null,null,null,null,null,null,null,null,null,null,null,null,null,null,null,null,null,null,null,null,null,null,null,null,null,null,null,null,null,null,null,null,null,null,null,null,null,null,null,null,null,null,null,null,null,null,null,null,null,null,null,null,null,null,null,null,null,null,null,null,null,null,null,null,null,"8 x 53,5 R","33 Win."]
[null,null,null,null,null,null,null,null,null,null,null,null,null,null,null,null,null,null,null,null,null,null,null,null,null,null,null,null,null,null,null,null,null,null,null,null,null,null,null,null,null,null,null,null,null,null,null,null,null,null,null,null,null,null,null,null,null,null,null,null,null,null,null,null,null,null,null,null,null,null,null,null,null,null,null,null,null,null,null,"8 x 57 (I) Mauser","8 x 57 J"]
[null,null,null,null,null,null,null,null,null,null,null,null,null,null,null,null,null,null,null,null,null,null,null,null,null,null,null,null,null,null,null,null,null,null,null,null,null,null,null,null,null,null,null,null,null,null,null,null,null,null,null,null,null,null,null,null,null,null,null,null,null,null,null,null,null,null,null,null,null,null,null,null,null,null,null,null,null,null,null,"8 x 57 IRS","8 x 57 JRS"]
[null,null,null,null,null,null,null,null,null,null,null,null,null,null,null,null,null,null,null,null,null,null,null,null,null,null,null,null,null,null,null,null,null,null,null,null,null,null,null,null,null,null,null,null,null,null,null,null,null,null,null,null,null,null,null,null,null,null,null,null,null,null,null,null,null,null,null,null,null,null,null,null,null,null,null,null,null,null,null,"8 x 58 R Sauer & Sohn","8 x 58 R"]
[null,null,null,null,null,null,null,null,null,null,null,null,null,null,null,null,null,null,null,null,null,null,null,null,null,null,null,null,null,null,null,null,null,null,null,null,null,null,null,null,null,null,null,null,null,null,null,null,null,null,null,null,null,null,null,null,null,null,null,null,null,null,null,null,null,null,null,null,null,null,null,null,null,null,null,null,null,null,null,"8 x 60 (S)","8 x 60 S"]
[null,null,null,null,null,null,null,null,null,null,null,null,null,null,null,null,null,null,null,null,null,null,null,null,null,null,null,null,null,null,null,null,null,null,null,null,null,null,null,null,null,null,null,null,null,null,null,null,null,null,null,null,null,null,null,null,null,null,null,null,null,null,null,null,null,null,null,null,null,null,null,null,null,null,null,null,null,null,null,"8 x 60 Magnum","8 x 60"]
[null,null,null,null,null,null,null,null,null,null,null,null,null,null,null,null,null,null,null,null,null,null,null,null,null,null,null,null,null,null,null,null,null,null,null,null,null,null,null,null,null,null,null,null,null,null,null,null,null,null,null,null,null,null,null,null,null,null,null,null,null,null,null,null,null,null,null,null,null,null,null,null,null,null,null,null,null,null,null,"8 x 60 S Magnum","8 x 60 S"]
[null,null,null,null,null,null,null,null,null,null,null,null,null,null,null,null,null,null,null,null,null,null,null,null,null,null,null,null,null,null,null,null,null,null,null,null,null,null,null,null,null,null,null,null,null,null,null,null,null,null,null,null,null,null,null,null,null,null,null,null,null,null,null,null,null,null,null,null,null,null,null,null,null,null,null,null,null,null,null,"8 x 60 S Magnum Bombe","8 x 60 S"]
[null,null,null,null,null,null,null,null,null,null,null,null,null,null,null,null,null,null,null,null,null,null,null,null,null,null,null,null,null,null,null,null,null,null,null,null,null,null,null,null,null,null,null,null,null,null,null,null,null,null,null,null,null,null,null,null,null,null,null,null,null,null,null,null,null,null,null,null,null,null,null,null,null,null,null,null,null,null,null,"8 x 64 Brenneke","8 x 64"]
[null,null,null,null,null,null,null,null,null,null,null,null,null,null,null,null,null,null,null,null,null,null,null,null,null,null,null,null,null,null,null,null,null,null,null,null,null,null,null,null,null,null,null,null,null,null,null,null,null,null,null,null,null,null,null,null,null,null,null,null,null,null,null,null,null,null,null,null,null,null,null,null,null,null,null,null,null,null,null,"8 x 65 R Brenneke","8 x 65 R"]
[null,null,null,null,null,null,null,null,null,null,null,null,null,null,null,null,null,null,null,null,null,null,null,null,null,null,null,null,null,null,null,null,null,null,null,null,null,null,null,null,null,null,null,null,null,null,null,null,null,null,null,null,null,null,null,null,null,null,null,null,null,null,null,null,null,null,null,null,null,null,null,null,null,null,null,null,null,null,null,"8 x 65 RS Brenneke","8 x 65 RS"]
[null,null,null,null,null,null,null,null,null,null,null,null,null,null,null,null,null,null,null,null,null,null,null,null,null,null,null,null,null,null,null,null,null,null,null,null,null,null,null,null,null,null,null,null,null,null,null,null,null,null,null,null,null,null,null,null,null,null,null,null,null,null,null,null,null,null,null,null,null,null,null,null,null,null,null,null,null,null,null,"8 x 68 (S) Magnum","8 x 68 S"]
[null,null,null,null,null,null,null,null,null,null,null,null,null,null,null,null,null,null,null,null,null,null,null,null,null,null,null,null,null,null,null,null,null,null,null,null,null,null,null,null,null,null,null,null,null,null,null,null,null,null,null,null,null,null,null,null,null,null,null,null,null,null,null,null,null,null,null,null,null,null,null,null,null,null,null,null,null,null,null,"8 x 72 R Brenneke","8 x 72 R"]
[null,null,null,null,null,null,null,null,null,null,null,null,null,null,null,null,null,null,null,null,null,null,null,null,null,null,null,null,null,null,null,null,null,null,null,null,null,null,null,null,null,null,null,null,null,null,null,null,null,null,null,null,null,null,null,null,null,null,null,null,null,null,null,null,null,null,null,null,null,null,null,null,null,null,null,null,null,null,null,"8 x 72 R S & S","8 x 72 R"]
[null,null,null,null,null,null,null,null,null,null,null,null,null,null,null,null,null,null,null,null,null,null,null,null,null,null,null,null,null,null,null,null,null,null,null,null,null,null,null,null,null,null,null,null,null,null,null,null,null,null,null,null,null,null,null,null,null,null,null,null,null,null,null,null,null,null,null,null,null,null,null,null,null,null,null,null,null,null,null,"8 x 72 R Sauer","8 x 72 R"]
[null,null,null,null,null,null,null,null,null,null,null,null,null,null,null,null,null,null,null,null,null,null,null,null,null,null,null,null,null,null,null,null,null,null,null,null,null,null,null,null,null,null,null,null,null,null,null,null,null,null,null,null,null,null,null,null,null,null,null,null,null,null,null,null,null,null,null,null,null,null,null,null,null,null,null,null,null,null,null,"8 x 72 R Sauer & Sohn","8 x 72 R"]
[null,null,null,null,null,null,null,null,null,null,null,null,null,null,null,null,null,null,null,null,null,null,null,null,null,null,null,null,null,null,null,null,null,null,null,null,null,null,null,null,null,null,null,null,null,null,null,null,null,null,null,null,null,null,null,null,null,null,null,null,null,null,null,null,null,null,null,null,null,null,null,null,null,null,null,null,null,null,null,"8 x 72 R/360","8 x 72 R"]
[null,null,null,null,null,null,null,null,null,null,null,null,null,null,null,null,null,null,null,null,null,null,null,null,null,null,null,null,null,null,null,null,null,null,null,null,null,null,null,null,null,null,null,null,null,null,null,null,null,null,null,null,null,null,null,null,null,null,null,null,null,null,null,null,null,null,null,null,null,null,null,null,null,null,null,null,null,null,null,"8,1 x 72 R","8 x 72 R"]
[null,null,null,null,null,null,null,null,null,null,null,null,null,null,null,null,null,null,null,null,null,null,null,null,null,null,null,null,null,null,null,null,null,null,null,null,null,null,null,null,null,null,null,null,null,null,null,null,null,null,null,null,null,null,null,null,null,null,null,null,null,null,null,null,null,null,null,null,null,null,null,null,null,null,null,null,null,null,null,"8,15 mm Frohn lang","8,15 x 52 R","N"]
[null,null,null,null,null,null,null,null,null,null,null,null,null,null,null,null,null,null,null,null,null,null,null,null,null,null,null,null,null,null,null,null,null,null,null,null,null,null,null,null,null,null,null,null,null,null,null,null,null,null,null,null,null,null,null,null,null,null,null,null,null,null,null,null,null,null,null,null,null,null,null,null,null,null,null,null,null,null,null,"8,15 x 15,30 S&W","32 S&W"]
[null,null,null,null,null,null,null,null,null,null,null,null,null,null,null,null,null,null,null,null,null,null,null,null,null,null,null,null,null,null,null,null,null,null,null,null,null,null,null,null,null,null,null,null,null,null,null,null,null,null,null,null,null,null,null,null,null,null,null,null,null,null,null,null,null,null,null,null,null,null,null,null,null,null,null,null,null,null,null,"8,15 x 15,8 S&W","32 S&W"]
[null,null,null,null,null,null,null,null,null,null,null,null,null,null,null,null,null,null,null,null,null,null,null,null,null,null,null,null,null,null,null,null,null,null,null,null,null,null,null,null,null,null,null,null,null,null,null,null,null,null,null,null,null,null,null,null,null,null,null,null,null,null,null,null,null,null,null,null,null,null,null,null,null,null,null,null,null,null,null,"8,15 x 46 mm","8,15 x 46 R"]
[null,null,null,null,null,null,null,null,null,null,null,null,null,null,null,null,null,null,null,null,null,null,null,null,null,null,null,null,null,null,null,null,null,null,null,null,null,null,null,null,null,null,null,null,null,null,null,null,null,null,null,null,null,null,null,null,null,null,null,null,null,null,null,null,null,null,null,null,null,null,null,null,null,null,null,null,null,null,null,"8,15 x 46 R Normal","8,15 x 46 R"]
[null,null,null,null,null,null,null,null,null,null,null,null,null,null,null,null,null,null,null,null,null,null,null,null,null,null,null,null,null,null,null,null,null,null,null,null,null,null,null,null,null,null,null,null,null,null,null,null,null,null,null,null,null,null,null,null,null,null,null,null,null,null,null,null,null,null,null,null,null,null,null,null,null,null,null,null,null,null,null,"8,15 x 46,5 Normal","8,15 x 46 R"]
[null,null,null,null,null,null,null,null,null,null,null,null,null,null,null,null,null,null,null,null,null,null,null,null,null,null,null,null,null,null,null,null,null,null,null,null,null,null,null,null,null,null,null,null,null,null,null,null,null,null,null,null,null,null,null,null,null,null,null,null,null,null,null,null,null,null,null,null,null,null,null,null,null,null,null,null,null,null,null,"8,2 x 18,8 Roth","8 mm Steyr"]
[null,null,null,null,null,null,null,null,null,null,null,null,null,null,null,null,null,null,null,null,null,null,null,null,null,null,null,null,null,null,null,null,null,null,null,null,null,null,null,null,null,null,null,null,null,null,null,null,null,null,null,null,null,null,null,null,null,null,null,null,null,null,null,null,null,null,null,null,null,null,null,null,null,null,null,null,null,null,null,"8,2 x 20,7 mm autom.Pist.","8 mm Steyr"]
[null,null,null,null,null,null,null,null,null,null,null,null,null,null,null,null,null,null,null,null,null,null,null,null,null,null,null,null,null,null,null,null,null,null,null,null,null,null,null,null,null,null,null,null,null,null,null,null,null,null,null,null,null,null,null,null,null,null,null,null,null,null,null,null,null,null,null,null,null,null,null,null,null,null,null,null,null,null,null,"8,2 x 46 R Normal","8,15 x 46 R"]
[null,null,null,null,null,null,null,null,null,null,null,null,null,null,null,null,null,null,null,null,null,null,null,null,null,null,null,null,null,null,null,null,null,null,null,null,null,null,null,null,null,null,null,null,null,null,null,null,null,null,null,null,null,null,null,null,null,null,null,null,null,null,null,null,null,null,null,null,null,null,null,null,null,null,null,null,null,null,null,"8,2 x 46 R Österreich?","8,15 x 46 R"]
[null,null,null,null,null,null,null,null,null,null,null,null,null,null,null,null,null,null,null,null,null,null,null,null,null,null,null,null,null,null,null,null,null,null,null,null,null,null,null,null,null,null,null,null,null,null,null,null,null,null,null,null,null,null,null,null,null,null,null,null,null,null,null,null,null,null,null,null,null,null,null,null,null,null,null,null,null,null,null,"8,2 x 56 M-Sch","8 x 56 M.-Sch."]
[null,null,null,null,null,null,null,null,null,null,null,null,null,null,null,null,null,null,null,null,null,null,null,null,null,null,null,null,null,null,null,null,null,null,null,null,null,null,null,null,null,null,null,null,null,null,null,null,null,null,null,null,null,null,null,null,null,null,null,null,null,null,null,null,null,null,null,null,null,null,null,null,null,null,null,null,null,null,null,"8,2 x 56 P","8 x 56 R M30S"]
[null,null,null,null,null,null,null,null,null,null,null,null,null,null,null,null,null,null,null,null,null,null,null,null,null,null,null,null,null,null,null,null,null,null,null,null,null,null,null,null,null,null,null,null,null,null,null,null,null,null,null,null,null,null,null,null,null,null,null,null,null,null,null,null,null,null,null,null,null,null,null,null,null,null,null,null,null,null,null,"8,2 x 64 Brenneke","8 x 64 S"]
[null,null,null,null,null,null,null,null,null,null,null,null,null,null,null,null,null,null,null,null,null,null,null,null,null,null,null,null,null,null,null,null,null,null,null,null,null,null,null,null,null,null,null,null,null,null,null,null,null,null,null,null,null,null,null,null,null,null,null,null,null,null,null,null,null,null,null,null,null,null,null,null,null,null,null,null,null,null,null,"8,5 x 29","35 Win. SL"]
[null,null,null,null,null,null,null,null,null,null,null,null,null,null,null,null,null,null,null,null,null,null,null,null,null,null,null,null,null,null,null,null,null,null,null,null,null,null,null,null,null,null,null,null,null,null,null,null,null,null,null,null,null,null,null,null,null,null,null,null,null,null,null,null,null,null,null,null,null,null,null,null,null,null,null,null,null,null,null,"8,5 x 35 HR","351 Win. SL"]
[null,null,null,null,null,null,null,null,null,null,null,null,null,null,null,null,null,null,null,null,null,null,null,null,null,null,null,null,null,null,null,null,null,null,null,null,null,null,null,null,null,null,null,null,null,null,null,null,null,null,null,null,null,null,null,null,null,null,null,null,null,null,null,null,null,null,null,null,null,null,null,null,null,null,null,null,null,null,null,"8,5 x 48,5","35 Rem."]
[null,null,null,null,null,null,null,null,null,null,null,null,null,null,null,null,null,null,null,null,null,null,null,null,null,null,null,null,null,null,null,null,null,null,null,null,null,null,null,null,null,null,null,null,null,null,null,null,null,null,null,null,null,null,null,null,null,null,null,null,null,null,null,null,null,null,null,null,null,null,null,null,null,null,null,null,null,null,null,"8,5 x 58 R","348 Win."]
[null,null,null,null,null,null,null,null,null,null,null,null,null,null,null,null,null,null,null,null,null,null,null,null,null,null,null,null,null,null,null,null,null,null,null,null,null,null,null,null,null,null,null,null,null,null,null,null,null,null,null,null,null,null,null,null,null,null,null,null,null,null,null,null,null,null,null,null,null,null,null,null,null,null,null,null,null,null,null,"8,5 x 61 R","35 Win."]
[null,null,null,null,null,null,null,null,null,null,null,null,null,null,null,null,null,null,null,null,null,null,null,null,null,null,null,null,null,null,null,null,null,null,null,null,null,null,null,null,null,null,null,null,null,null,null,null,null,null,null,null,null,null,null,null,null,null,null,null,null,null,null,null,null,null,null,null,null,null,null,null,null,null,null,null,null,null,null,"8,5 x 69,5","350 Mag. Rigby"]
[null,null,null,null,null,null,null,null,null,null,null,null,null,null,null,null,null,null,null,null,null,null,null,null,null,null,null,null,null,null,null,null,null,null,null,null,null,null,null,null,null,null,null,null,null,null,null,null,null,null,null,null,null,null,null,null,null,null,null,null,null,null,null,null,null,null,null,null,null,null,null,null,null,null,null,null,null,null,null,"8,8 Win.","358 Win."]
[null,null,null,null,null,null,null,null,null,null,null,null,null,null,null,null,null,null,null,null,null,null,null,null,null,null,null,null,null,null,null,null,null,null,null,null,null,null,null,null,null,null,null,null,null,null,null,null,null,null,null,null,null,null,null,null,null,null,null,null,null,null,null,null,null,null,null,null,null,null,null,null,null,null,null,null,null,null,null,"8,8 x 35","351 Win. SL"]
[null,null,null,null,null,null,null,null,null,null,null,null,null,null,null,null,null,null,null,null,null,null,null,null,null,null,null,null,null,null,null,null,null,null,null,null,null,null,null,null,null,null,null,null,null,null,null,null,null,null,null,null,null,null,null,null,null,null,null,null,null,null,null,null,null,null,null,null,null,null,null,null,null,null,null,null,null,null,null,"8,8 x 51","358 Win."]
[null,null,null,null,null,null,null,null,null,null,null,null,null,null,null,null,null,null,null,null,null,null,null,null,null,null,null,null,null,null,null,null,null,null,null,null,null,null,null,null,null,null,null,null,null,null,null,null,null,null,null,null,null,null,null,null,null,null,null,null,null,null,null,null,null,null,null,null,null,null,null,null,null,null,null,null,null,null,null,"82,5/11,5 mm","450 N.E. 3‘‘1/4"]
[null,null,null,null,null,null,null,null,null,null,null,null,null,null,null,null,null,null,null,null,null,null,null,null,null,null,null,null,null,null,null,null,null,null,null,null,null,null,null,null,null,null,null,null,null,null,null,null,null,null,null,null,null,null,null,null,null,null,null,null,null,null,null,null,null,null,null,null,null,null,null,null,null,null,null,null,null,null,null,"9 M 12","9 mm Steyr"]
[null,null,null,null,null,null,null,null,null,null,null,null,null,null,null,null,null,null,null,null,null,null,null,null,null,null,null,null,null,null,null,null,null,null,null,null,null,null,null,null,null,null,null,null,null,null,null,null,null,null,null,null,null,null,null,null,null,null,null,null,null,null,null,null,null,null,null,null,null,null,null,null,null,null,null,null,null,null,null,"9 mm Armee - Browning","9 mm Browning long"]
[null,null,null,null,null,null,null,null,null,null,null,null,null,null,null,null,null,null,null,null,null,null,null,null,null,null,null,null,null,null,null,null,null,null,null,null,null,null,null,null,null,null,null,null,null,null,null,null,null,null,null,null,null,null,null,null,null,null,null,null,null,null,null,null,null,null,null,null,null,null,null,null,null,null,null,null,null,null,null,"9 mm Astra M. 1921","9 mm Bergmann-Bayard (9 Largo)"]
[null,null,null,null,null,null,null,null,null,null,null,null,null,null,null,null,null,null,null,null,null,null,null,null,null,null,null,null,null,null,null,null,null,null,null,null,null,null,null,null,null,null,null,null,null,null,null,null,null,null,null,null,null,null,null,null,null,null,null,null,null,null,null,null,null,null,null,null,null,null,null,null,null,null,null,null,null,null,null,"9 mm Bayard","9 mm Bergmann-Bayard (9 Largo)"]
[null,null,null,null,null,null,null,null,null,null,null,null,null,null,null,null,null,null,null,null,null,null,null,null,null,null,null,null,null,null,null,null,null,null,null,null,null,null,null,null,null,null,null,null,null,null,null,null,null,null,null,null,null,null,null,null,null,null,null,null,null,null,null,null,null,null,null,null,null,null,null,null,null,null,null,null,null,null,null,"9 mm Beretta (1915)","9 mm Luger"]
[null,null,null,null,null,null,null,null,null,null,null,null,null,null,null,null,null,null,null,null,null,null,null,null,null,null,null,null,null,null,null,null,null,null,null,null,null,null,null,null,null,null,null,null,null,null,null,null,null,null,null,null,null,null,null,null,null,null,null,null,null,null,null,null,null,null,null,null,null,null,null,null,null,null,null,null,null,null,null,"9 mm Bergmann 1910/21","9 mm Bergmann-Bayard (9 Largo)"]
[null,null,null,null,null,null,null,null,null,null,null,null,null,null,null,null,null,null,null,null,null,null,null,null,null,null,null,null,null,null,null,null,null,null,null,null,null,null,null,null,null,null,null,null,null,null,null,null,null,null,null,null,null,null,null,null,null,null,null,null,null,null,null,null,null,null,null,null,null,null,null,null,null,null,null,null,null,null,null,"9 mm Browning kurz","9 mm Browning cour"]
[null,null,null,null,null,null,null,null,null,null,null,null,null,null,null,null,null,null,null,null,null,null,null,null,null,null,null,null,null,null,null,null,null,null,null,null,null,null,null,null,null,null,null,null,null,null,null,null,null,null,null,null,null,null,null,null,null,null,null,null,null,null,null,null,null,null,null,null,null,null,null,null,null,null,null,null,null,null,null,"9 mm Campo Giro","9 mm Bergmann-Bayard (9 Largo)"]
[null,null,null,null,null,null,null,null,null,null,null,null,null,null,null,null,null,null,null,null,null,null,null,null,null,null,null,null,null,null,null,null,null,null,null,null,null,null,null,null,null,null,null,null,null,null,null,null,null,null,null,null,null,null,null,null,null,null,null,null,null,null,null,null,null,null,null,null,null,null,null,null,null,null,null,null,null,null,null,"9 mm dänische Pistolenp.","9 mm Bergmann-Bayard (9 Largo)"]
[null,null,null,null,null,null,null,null,null,null,null,null,null,null,null,null,null,null,null,null,null,null,null,null,null,null,null,null,null,null,null,null,null,null,null,null,null,null,null,null,null,null,null,null,null,null,null,null,null,null,null,null,null,null,null,null,null,null,null,null,null,null,null,null,null,null,null,null,null,null,null,null,null,null,null,null,null,null,null,"9 mm IMI","9 x 21"]
[null,null,null,null,null,null,null,null,null,null,null,null,null,null,null,null,null,null,null,null,null,null,null,null,null,null,null,null,null,null,null,null,null,null,null,null,null,null,null,null,null,null,null,null,null,null,null,null,null,null,null,null,null,null,null,null,null,null,null,null,null,null,null,null,null,null,null,null,null,null,null,null,null,null,null,null,null,null,null,"9 mm IMI/Jaeger","9 x 21"]
[null,null,null,null,null,null,null,null,null,null,null,null,null,null,null,null,null,null,null,null,null,null,null,null,null,null,null,null,null,null,null,null,null,null,null,null,null,null,null,null,null,null,null,null,null,null,null,null,null,null,null,null,null,null,null,null,null,null,null,null,null,null,null,null,null,null,null,null,null,null,null,null,null,null,null,null,null,null,null,"9 mm kurz","9 mm Browning cour"]
[null,null,null,null,null,null,null,null,null,null,null,null,null,null,null,null,null,null,null,null,null,null,null,null,null,null,null,null,null,null,null,null,null,null,null,null,null,null,null,null,null,null,null,null,null,null,null,null,null,null,null,null,null,null,null,null,null,null,null,null,null,null,null,null,null,null,null,null,null,null,null,null,null,null,null,null,null,null,null,"9 mm lang","9 mm Browning long"]
[null,null,null,null,null,null,null,null,null,null,null,null,null,null,null,null,null,null,null,null,null,null,null,null,null,null,null,null,null,null,null,null,null,null,null,null,null,null,null,null,null,null,null,null,null,null,null,null,null,null,null,null,null,null,null,null,null,null,null,null,null,null,null,null,null,null,null,null,null,null,null,null,null,null,null,null,null,null,null,"9 mm lang","9 mm Luger"]
[null,null,null,null,null,null,null,null,null,null,null,null,null,null,null,null,null,null,null,null,null,null,null,null,null,null,null,null,null,null,null,null,null,null,null,null,null,null,null,null,null,null,null,null,null,null,null,null,null,null,null,null,null,null,null,null,null,null,null,null,null,null,null,null,null,null,null,null,null,null,null,null,null,null,null,null,null,null,null,"9 mm lang Browning","9 mm Browning long"]
[null,null,null,null,null,null,null,null,null,null,null,null,null,null,null,null,null,null,null,null,null,null,null,null,null,null,null,null,null,null,null,null,null,null,null,null,null,null,null,null,null,null,null,null,null,null,null,null,null,null,null,null,null,null,null,null,null,null,null,null,null,null,null,null,null,null,null,null,null,null,null,null,null,null,null,null,null,null,null,"9 mm Largo","9 mm Bergmann-Bayard (9 Largo)"]
[null,null,null,null,null,null,null,null,null,null,null,null,null,null,null,null,null,null,null,null,null,null,null,null,null,null,null,null,null,null,null,null,null,null,null,null,null,null,null,null,null,null,null,null,null,null,null,null,null,null,null,null,null,null,null,null,null,null,null,null,null,null,null,null,null,null,null,null,null,null,null,null,null,null,null,null,null,null,null,"9 mm Largo","9 mm Bergmann-Bayard (9 Largo)"]
[null,null,null,null,null,null,null,null,null,null,null,null,null,null,null,null,null,null,null,null,null,null,null,null,null,null,null,null,null,null,null,null,null,null,null,null,null,null,null,null,null,null,null,null,null,null,null,null,null,null,null,null,null,null,null,null,null,null,null,null,null,null,null,null,null,null,null,null,null,null,null,null,null,null,null,null,null,null,null,"9 mm Long Remington","9 mm Browning long"]
[null,null,null,null,null,null,null,null,null,null,null,null,null,null,null,null,null,null,null,null,null,null,null,null,null,null,null,null,null,null,null,null,null,null,null,null,null,null,null,null,null,null,null,null,null,null,null,null,null,null,null,null,null,null,null,null,null,null,null,null,null,null,null,null,null,null,null,null,null,null,null,null,null,null,null,null,null,null,null,"9 mm M 38","9 mm Luger"]
[null,null,null,null,null,null,null,null,null,null,null,null,null,null,null,null,null,null,null,null,null,null,null,null,null,null,null,null,null,null,null,null,null,null,null,null,null,null,null,null,null,null,null,null,null,null,null,null,null,null,null,null,null,null,null,null,null,null,null,null,null,null,null,null,null,null,null,null,null,null,null,null,null,null,null,null,null,null,null,"9 mm M.34","9 mm Browning cour"]
[null,null,null,null,null,null,null,null,null,null,null,null,null,null,null,null,null,null,null,null,null,null,null,null,null,null,null,null,null,null,null,null,null,null,null,null,null,null,null,null,null,null,null,null,null,null,null,null,null,null,null,null,null,null,null,null,null,null,null,null,null,null,null,null,null,null,null,null,null,null,null,null,null,null,null,null,null,null,null,"9 mm Mannlicher","9 mm Steyr"]
[null,null,null,null,null,null,null,null,null,null,null,null,null,null,null,null,null,null,null,null,null,null,null,null,null,null,null,null,null,null,null,null,null,null,null,null,null,null,null,null,null,null,null,null,null,null,null,null,null,null,null,null,null,null,null,null,null,null,null,null,null,null,null,null,null,null,null,null,null,null,null,null,null,null,null,null,null,null,null,"9 mm Mauser Export","9 mm Mauser Exp."]
[null,null,null,null,null,null,null,null,null,null,null,null,null,null,null,null,null,null,null,null,null,null,null,null,null,null,null,null,null,null,null,null,null,null,null,null,null,null,null,null,null,null,null,null,null,null,null,null,null,null,null,null,null,null,null,null,null,null,null,null,null,null,null,null,null,null,null,null,null,null,null,null,null,null,null,null,null,null,null,"9 mm Mauser Export Modell","9 mm Mauser Exp."]
[null,null,null,null,null,null,null,null,null,null,null,null,null,null,null,null,null,null,null,null,null,null,null,null,null,null,null,null,null,null,null,null,null,null,null,null,null,null,null,null,null,null,null,null,null,null,null,null,null,null,null,null,null,null,null,null,null,null,null,null,null,null,null,null,null,null,null,null,null,null,null,null,null,null,null,null,null,null,null,"9 mm Mauser Selbstladedep.","9 mm Mauser Exp."]
[null,null,null,null,null,null,null,null,null,null,null,null,null,null,null,null,null,null,null,null,null,null,null,null,null,null,null,null,null,null,null,null,null,null,null,null,null,null,null,null,null,null,null,null,null,null,null,null,null,null,null,null,null,null,null,null,null,null,null,null,null,null,null,null,null,null,null,null,null,null,null,null,null,null,null,null,null,null,null,"9 mm Nato (Parabellum)","9 mm Luger"]
[null,null,null,null,null,null,null,null,null,null,null,null,null,null,null,null,null,null,null,null,null,null,null,null,null,null,null,null,null,null,null,null,null,null,null,null,null,null,null,null,null,null,null,null,null,null,null,null,null,null,null,null,null,null,null,null,null,null,null,null,null,null,null,null,null,null,null,null,null,null,null,null,null,null,null,null,null,null,null,"9 mm Parabellum","9 mm Luger"]
[null,null,null,null,null,null,null,null,null,null,null,null,null,null,null,null,null,null,null,null,null,null,null,null,null,null,null,null,null,null,null,null,null,null,null,null,null,null,null,null,null,null,null,null,null,null,null,null,null,null,null,null,null,null,null,null,null,null,null,null,null,null,null,null,null,null,null,null,null,null,null,null,null,null,null,null,null,null,null,"9 mm Pist. Patrone 400(h)","9 mm Browning cour"]
[null,null,null,null,null,null,null,null,null,null,null,null,null,null,null,null,null,null,null,null,null,null,null,null,null,null,null,null,null,null,null,null,null,null,null,null,null,null,null,null,null,null,null,null,null,null,null,null,null,null,null,null,null,null,null,null,null,null,null,null,null,null,null,null,null,null,null,null,null,null,null,null,null,null,null,null,null,null,null,"9 mm Pistolenpatrone 08","9 mm Luger"]
[null,null,null,null,null,null,null,null,null,null,null,null,null,null,null,null,null,null,null,null,null,null,null,null,null,null,null,null,null,null,null,null,null,null,null,null,null,null,null,null,null,null,null,null,null,null,null,null,null,null,null,null,null,null,null,null,null,null,null,null,null,null,null,null,null,null,null,null,null,null,null,null,null,null,null,null,null,null,null,"9 mm Police","9 x 18"]
[null,null,null,null,null,null,null,null,null,null,null,null,null,null,null,null,null,null,null,null,null,null,null,null,null,null,null,null,null,null,null,null,null,null,null,null,null,null,null,null,null,null,null,null,null,null,null,null,null,null,null,null,null,null,null,null,null,null,null,null,null,null,null,null,null,null,null,null,null,null,null,null,null,null,null,null,null,null,null,"9 mm schwedisch m/07","9 mm Browning long"]
[null,null,null,null,null,null,null,null,null,null,null,null,null,null,null,null,null,null,null,null,null,null,null,null,null,null,null,null,null,null,null,null,null,null,null,null,null,null,null,null,null,null,null,null,null,null,null,null,null,null,null,null,null,null,null,null,null,null,null,null,null,null,null,null,null,null,null,null,null,null,null,null,null,null,null,null,null,null,null,"9 mm schwedish m/34","9 mm Luger"]
[null,null,null,null,null,null,null,null,null,null,null,null,null,null,null,null,null,null,null,null,null,null,null,null,null,null,null,null,null,null,null,null,null,null,null,null,null,null,null,null,null,null,null,null,null,null,null,null,null,null,null,null,null,null,null,null,null,null,null,null,null,null,null,null,null,null,null,null,null,null,null,null,null,null,null,null,null,null,null,"9 mm Selbstlade-Pistole","9 mm Browning long"]
[null,null,null,null,null,null,null,null,null,null,null,null,null,null,null,null,null,null,null,null,null,null,null,null,null,null,null,null,null,null,null,null,null,null,null,null,null,null,null,null,null,null,null,null,null,null,null,null,null,null,null,null,null,null,null,null,null,null,null,null,null,null,null,null,null,null,null,null,null,null,null,null,null,null,null,null,null,null,null,"9 mm sk ptr m/39 B","9 mm Luger"]
[null,null,null,null,null,null,null,null,null,null,null,null,null,null,null,null,null,null,null,null,null,null,null,null,null,null,null,null,null,null,null,null,null,null,null,null,null,null,null,null,null,null,null,null,null,null,null,null,null,null,null,null,null,null,null,null,null,null,null,null,null,null,null,null,null,null,null,null,null,null,null,null,null,null,null,null,null,null,null,"9 mm Star Auto-Pistol","9 mm Bergmann-Bayard (9 Largo)"]
[null,null,null,null,null,null,null,null,null,null,null,null,null,null,null,null,null,null,null,null,null,null,null,null,null,null,null,null,null,null,null,null,null,null,null,null,null,null,null,null,null,null,null,null,null,null,null,null,null,null,null,null,null,null,null,null,null,null,null,null,null,null,null,null,null,null,null,null,null,null,null,null,null,null,null,null,null,null,null,"9 mm Steyr Modell 12","9 mm Steyr"]
[null,null,null,null,null,null,null,null,null,null,null,null,null,null,null,null,null,null,null,null,null,null,null,null,null,null,null,null,null,null,null,null,null,null,null,null,null,null,null,null,null,null,null,null,null,null,null,null,null,null,null,null,null,null,null,null,null,null,null,null,null,null,null,null,null,null,null,null,null,null,null,null,null,null,null,null,null,null,null,"9 mm Steyr Selbstladep.","9 mm Steyr"]
[null,null,null,null,null,null,null,null,null,null,null,null,null,null,null,null,null,null,null,null,null,null,null,null,null,null,null,null,null,null,null,null,null,null,null,null,null,null,null,null,null,null,null,null,null,null,null,null,null,null,null,null,null,null,null,null,null,null,null,null,null,null,null,null,null,null,null,null,null,null,null,null,null,null,null,null,null,null,null,"9 mm Steyr, M. 1911","9 mm Steyr"]
[null,null,null,null,null,null,null,null,null,null,null,null,null,null,null,null,null,null,null,null,null,null,null,null,null,null,null,null,null,null,null,null,null,null,null,null,null,null,null,null,null,null,null,null,null,null,null,null,null,null,null,null,null,null,null,null,null,null,null,null,null,null,null,null,null,null,null,null,null,null,null,null,null,null,null,null,null,null,null,"9 mm Steyr-Hahn","9 mm Steyr"]
[null,null,null,null,null,null,null,null,null,null,null,null,null,null,null,null,null,null,null,null,null,null,null,null,null,null,null,null,null,null,null,null,null,null,null,null,null,null,null,null,null,null,null,null,null,null,null,null,null,null,null,null,null,null,null,null,null,null,null,null,null,null,null,null,null,null,null,null,null,null,null,null,null,null,null,null,null,null,null,"9 mm Super","9 x 18"]
[null,null,null,null,null,null,null,null,null,null,null,null,null,null,null,null,null,null,null,null,null,null,null,null,null,null,null,null,null,null,null,null,null,null,null,null,null,null,null,null,null,null,null,null,null,null,null,null,null,null,null,null,null,null,null,null,null,null,null,null,null,null,null,null,null,null,null,null,null,null,null,null,null,null,null,null,null,null,null,"9 mm Ultra","9 x 18"]
[null,null,null,null,null,null,null,null,null,null,null,null,null,null,null,null,null,null,null,null,null,null,null,null,null,null,null,null,null,null,null,null,null,null,null,null,null,null,null,null,null,null,null,null,null,null,null,null,null,null,null,null,null,null,null,null,null,null,null,null,null,null,null,null,null,null,null,null,null,null,null,null,null,null,null,null,null,null,null,"9 mm x 21","9 x 21"]
[null,null,null,null,null,null,null,null,null,null,null,null,null,null,null,null,null,null,null,null,null,null,null,null,null,null,null,null,null,null,null,null,null,null,null,null,null,null,null,null,null,null,null,null,null,null,null,null,null,null,null,null,null,null,null,null,null,null,null,null,null,null,null,null,null,null,null,null,null,null,null,null,null,null,null,null,null,null,null,"9 x 18 Ultra","9 x 18"]
[null,null,null,null,null,null,null,null,null,null,null,null,null,null,null,null,null,null,null,null,null,null,null,null,null,null,null,null,null,null,null,null,null,null,null,null,null,null,null,null,null,null,null,null,null,null,null,null,null,null,null,null,null,null,null,null,null,null,null,null,null,null,null,null,null,null,null,null,null,null,null,null,null,null,null,null,null,null,null,"9 x 19","9 mm Luger"]
[null,null,null,null,null,null,null,null,null,null,null,null,null,null,null,null,null,null,null,null,null,null,null,null,null,null,null,null,null,null,null,null,null,null,null,null,null,null,null,null,null,null,null,null,null,null,null,null,null,null,null,null,null,null,null,null,null,null,null,null,null,null,null,null,null,null,null,null,null,null,null,null,null,null,null,null,null,null,null,"9 x 19 R","9 mm Federal","N"]
[null,null,null,null,null,null,null,null,null,null,null,null,null,null,null,null,null,null,null,null,null,null,null,null,null,null,null,null,null,null,null,null,null,null,null,null,null,null,null,null,null,null,null,null,null,null,null,null,null,null,null,null,null,null,null,null,null,null,null,null,null,null,null,null,null,null,null,null,null,null,null,null,null,null,null,null,null,null,null,"9 x 21 mm IMI","9 x 21"]
[null,null,null,null,null,null,null,null,null,null,null,null,null,null,null,null,null,null,null,null,null,null,null,null,null,null,null,null,null,null,null,null,null,null,null,null,null,null,null,null,null,null,null,null,null,null,null,null,null,null,null,null,null,null,null,null,null,null,null,null,null,null,null,null,null,null,null,null,null,null,null,null,null,null,null,null,null,null,null,"9 x 23","9 mm Steyr"]
[null,null,null,null,null,null,null,null,null,null,null,null,null,null,null,null,null,null,null,null,null,null,null,null,null,null,null,null,null,null,null,null,null,null,null,null,null,null,null,null,null,null,null,null,null,null,null,null,null,null,null,null,null,null,null,null,null,null,null,null,null,null,null,null,null,null,null,null,null,null,null,null,null,null,null,null,null,null,null,"9 x 29","35 Win. SL"]
[null,null,null,null,null,null,null,null,null,null,null,null,null,null,null,null,null,null,null,null,null,null,null,null,null,null,null,null,null,null,null,null,null,null,null,null,null,null,null,null,null,null,null,null,null,null,null,null,null,null,null,null,null,null,null,null,null,null,null,null,null,null,null,null,null,null,null,null,null,null,null,null,null,null,null,null,null,null,null,"9 x 29.5 mm Revolver","38 Special"]
[null,null,null,null,null,null,null,null,null,null,null,null,null,null,null,null,null,null,null,null,null,null,null,null,null,null,null,null,null,null,null,null,null,null,null,null,null,null,null,null,null,null,null,null,null,null,null,null,null,null,null,null,null,null,null,null,null,null,null,null,null,null,null,null,null,null,null,null,null,null,null,null,null,null,null,null,null,null,null,"9 x 35","351 Win. SL"]
[null,null,null,null,null,null,null,null,null,null,null,null,null,null,null,null,null,null,null,null,null,null,null,null,null,null,null,null,null,null,null,null,null,null,null,null,null,null,null,null,null,null,null,null,null,null,null,null,null,null,null,null,null,null,null,null,null,null,null,null,null,null,null,null,null,null,null,null,null,null,null,null,null,null,null,null,null,null,null,"9 x 40,5 R","357 Maximum"]
[null,null,null,null,null,null,null,null,null,null,null,null,null,null,null,null,null,null,null,null,null,null,null,null,null,null,null,null,null,null,null,null,null,null,null,null,null,null,null,null,null,null,null,null,null,null,null,null,null,null,null,null,null,null,null,null,null,null,null,null,null,null,null,null,null,null,null,null,null,null,null,null,null,null,null,null,null,null,null,"9 x 51","358 Win."]
[null,null,null,null,null,null,null,null,null,null,null,null,null,null,null,null,null,null,null,null,null,null,null,null,null,null,null,null,null,null,null,null,null,null,null,null,null,null,null,null,null,null,null,null,null,null,null,null,null,null,null,null,null,null,null,null,null,null,null,null,null,null,null,null,null,null,null,null,null,null,null,null,null,null,null,null,null,null,null,"9 x 56 Mannlicher-Schoenauer","9 x 56 M.-Sch."]
[null,null,null,null,null,null,null,null,null,null,null,null,null,null,null,null,null,null,null,null,null,null,null,null,null,null,null,null,null,null,null,null,null,null,null,null,null,null,null,null,null,null,null,null,null,null,null,null,null,null,null,null,null,null,null,null,null,null,null,null,null,null,null,null,null,null,null,null,null,null,null,null,null,null,null,null,null,null,null,"9 x 57 R Mauser (M88/9R)","9 x 57 R"]
[null,null,null,null,null,null,null,null,null,null,null,null,null,null,null,null,null,null,null,null,null,null,null,null,null,null,null,null,null,null,null,null,null,null,null,null,null,null,null,null,null,null,null,null,null,null,null,null,null,null,null,null,null,null,null,null,null,null,null,null,null,null,null,null,null,null,null,null,null,null,null,null,null,null,null,null,null,null,null,"9 x 62 R","35 Win."]
[null,null,null,null,null,null,null,null,null,null,null,null,null,null,null,null,null,null,null,null,null,null,null,null,null,null,null,null,null,null,null,null,null,null,null,null,null,null,null,null,null,null,null,null,null,null,null,null,null,null,null,null,null,null,null,null,null,null,null,null,null,null,null,null,null,null,null,null,null,null,null,null,null,null,null,null,null,null,null,"9 x 70","350 Mag. Rigby"]
[null,null,null,null,null,null,null,null,null,null,null,null,null,null,null,null,null,null,null,null,null,null,null,null,null,null,null,null,null,null,null,null,null,null,null,null,null,null,null,null,null,null,null,null,null,null,null,null,null,null,null,null,null,null,null,null,null,null,null,null,null,null,null,null,null,null,null,null,null,null,null,null,null,null,null,null,null,null,null,"9,2 mm Mauser","9,3 x 57"]
[null,null,null,null,null,null,null,null,null,null,null,null,null,null,null,null,null,null,null,null,null,null,null,null,null,null,null,null,null,null,null,null,null,null,null,null,null,null,null,null,null,null,null,null,null,null,null,null,null,null,null,null,null,null,null,null,null,null,null,null,null,null,null,null,null,null,null,null,null,null,null,null,null,null,null,null,null,null,null,"9,2 x 57 Mauser","9 x 57"]
[null,null,null,null,null,null,null,null,null,null,null,null,null,null,null,null,null,null,null,null,null,null,null,null,null,null,null,null,null,null,null,null,null,null,null,null,null,null,null,null,null,null,null,null,null,null,null,null,null,null,null,null,null,null,null,null,null,null,null,null,null,null,null,null,null,null,null,null,null,null,null,null,null,null,null,null,null,null,null,"9,2 x 57 Mauser","9,3 x 57"]
[null,null,null,null,null,null,null,null,null,null,null,null,null,null,null,null,null,null,null,null,null,null,null,null,null,null,null,null,null,null,null,null,null,null,null,null,null,null,null,null,null,null,null,null,null,null,null,null,null,null,null,null,null,null,null,null,null,null,null,null,null,null,null,null,null,null,null,null,null,null,null,null,null,null,null,null,null,null,null,"9,3 / 474 C","9,3 x 62"]
[null,null,null,null,null,null,null,null,null,null,null,null,null,null,null,null,null,null,null,null,null,null,null,null,null,null,null,null,null,null,null,null,null,null,null,null,null,null,null,null,null,null,null,null,null,null,null,null,null,null,null,null,null,null,null,null,null,null,null,null,null,null,null,null,null,null,null,null,null,null,null,null,null,null,null,null,null,null,null,"9,3 Mauser 366","9,3 x 62"]
[null,null,null,null,null,null,null,null,null,null,null,null,null,null,null,null,null,null,null,null,null,null,null,null,null,null,null,null,null,null,null,null,null,null,null,null,null,null,null,null,null,null,null,null,null,null,null,null,null,null,null,null,null,null,null,null,null,null,null,null,null,null,null,null,null,null,null,null,null,null,null,null,null,null,null,null,null,null,null,"9,3 mm R Schweiz M 26","9,3 x 53 R (Schweiz)","N"]
[null,null,null,null,null,null,null,null,null,null,null,null,null,null,null,null,null,null,null,null,null,null,null,null,null,null,null,null,null,null,null,null,null,null,null,null,null,null,null,null,null,null,null,null,null,null,null,null,null,null,null,null,null,null,null,null,null,null,null,null,null,null,null,null,null,null,null,null,null,null,null,null,null,null,null,null,null,null,null,"9,3 Rubin Schmitt","9,3 x 53 (Schweiz)","N"]
[null,null,null,null,null,null,null,null,null,null,null,null,null,null,null,null,null,null,null,null,null,null,null,null,null,null,null,null,null,null,null,null,null,null,null,null,null,null,null,null,null,null,null,null,null,null,null,null,null,null,null,null,null,null,null,null,null,null,null,null,null,null,null,null,null,null,null,null,null,null,null,null,null,null,null,null,null,null,null,"9,3 x 53 - Mod. 25","9,3 x 53 (Schweiz)","N"]
[null,null,null,null,null,null,null,null,null,null,null,null,null,null,null,null,null,null,null,null,null,null,null,null,null,null,null,null,null,null,null,null,null,null,null,null,null,null,null,null,null,null,null,null,null,null,null,null,null,null,null,null,null,null,null,null,null,null,null,null,null,null,null,null,null,null,null,null,null,null,null,null,null,null,null,null,null,null,null,"9,3 x 53 R Swiss M 26","9,3 x 53 R (Schweiz)","N"]
[null,null,null,null,null,null,null,null,null,null,null,null,null,null,null,null,null,null,null,null,null,null,null,null,null,null,null,null,null,null,null,null,null,null,null,null,null,null,null,null,null,null,null,null,null,null,null,null,null,null,null,null,null,null,null,null,null,null,null,null,null,null,null,null,null,null,null,null,null,null,null,null,null,null,null,null,null,null,null,"9,3 x 64","9,3 x 64 Brenneke"]
[null,null,null,null,null,null,null,null,null,null,null,null,null,null,null,null,null,null,null,null,null,null,null,null,null,null,null,null,null,null,null,null,null,null,null,null,null,null,null,null,null,null,null,null,null,null,null,null,null,null,null,null,null,null,null,null,null,null,null,null,null,null,null,null,null,null,null,null,null,null,null,null,null,null,null,null,null,null,null,"9,3 x 65 R Brenneke","9,3 x 65 R","N"]
[null,null,null,null,null,null,null,null,null,null,null,null,null,null,null,null,null,null,null,null,null,null,null,null,null,null,null,null,null,null,null,null,null,null,null,null,null,null,null,null,null,null,null,null,null,null,null,null,null,null,null,null,null,null,null,null,null,null,null,null,null,null,null,null,null,null,null,null,null,null,null,null,null,null,null,null,null,null,null,"9,3 x 65 R Collath ) pas identique au","9,3 x 65 R","N"]
[null,null,null,null,null,null,null,null,null,null,null,null,null,null,null,null,null,null,null,null,null,null,null,null,null,null,null,null,null,null,null,null,null,null,null,null,null,null,null,null,null,null,null,null,null,null,null,null,null,null,null,null,null,null,null,null,null,null,null,null,null,null,null,null,null,null,null,null,null,null,null,null,null,null,null,null,null,null,null,"9,3 x 65 R.Teschner-Collath) 9,3 x 65 R","9,3 x 65 R","N"]
[null,null,null,null,null,null,null,null,null,null,null,null,null,null,null,null,null,null,null,null,null,null,null,null,null,null,null,null,null,null,null,null,null,null,null,null,null,null,null,null,null,null,null,null,null,null,null,null,null,null,null,null,null,null,null,null,null,null,null,null,null,null,null,null,null,null,null,null,null,null,null,null,null,null,null,null,null,null,null,"9,3 x 72 R Sauer & Sohn","9,3 x 72 R"]
[null,null,null,null,null,null,null,null,null,null,null,null,null,null,null,null,null,null,null,null,null,null,null,null,null,null,null,null,null,null,null,null,null,null,null,null,null,null,null,null,null,null,null,null,null,null,null,null,null,null,null,null,null,null,null,null,null,null,null,null,null,null,null,null,null,null,null,null,null,null,null,null,null,null,null,null,null,null,null,"9,3/72 Normal","9,3 x 72 R"]
[null,null,null,null,null,null,null,null,null,null,null,null,null,null,null,null,null,null,null,null,null,null,null,null,null,null,null,null,null,null,null,null,null,null,null,null,null,null,null,null,null,null,null,null,null,null,null,null,null,null,null,null,null,null,null,null,null,null,null,null,null,null,null,null,null,null,null,null,null,null,null,null,null,null,null,null,null,null,null,"9,3/8 x 57 Mauser","9,3 x 57"]
[null,null,null,null,null,null,null,null,null,null,null,null,null,null,null,null,null,null,null,null,null,null,null,null,null,null,null,null,null,null,null,null,null,null,null,null,null,null,null,null,null,null,null,null,null,null,null,null,null,null,null,null,null,null,null,null,null,null,null,null,null,null,null,null,null,null,null,null,null,null,null,null,null,null,null,null,null,null,null,"9,5 x 42 R","375 Super Mag.","N"]
[null,null,null,null,null,null,null,null,null,null,null,null,null,null,null,null,null,null,null,null,null,null,null,null,null,null,null,null,null,null,null,null,null,null,null,null,null,null,null,null,null,null,null,null,null,null,null,null,null,null,null,null,null,null,null,null,null,null,null,null,null,null,null,null,null,null,null,null,null,null,null,null,null,null,null,null,null,null,null,"9,65 x 46 R","38-40 Win."]
[null,null,null,null,null,null,null,null,null,null,null,null,null,null,null,null,null,null,null,null,null,null,null,null,null,null,null,null,null,null,null,null,null,null,null,null,null,null,null,null,null,null,null,null,null,null,null,null,null,null,null,null,null,null,null,null,null,null,null,null,null,null,null,null,null,null,null,null,null,null,null,null,null,null,null,null,null,null,null,"Cal.450 - 12 mm","450 Short"]
[null,null,null,null,null,null,null,null,null,null,null,null,null,null,null,null,null,null,null,null,null,null,null,null,null,null,null,null,null,null,null,null,null,null,null,null,null,null,null,null,null,null,null,null,null,null,null,null,null,null,null,null,null,null,null,null,null,null,null,null,null,null,null,null,null,null,null,null,null,null,null,null,null,null,null,null,null,null,null,"DM 202","32 S&W"]
[null,null,null,null,null,null,null,null,null,null,null,null,null,null,null,null,null,null,null,null,null,null,null,null,null,null,null,null,null,null,null,null,null,null,null,null,null,null,null,null,null,null,null,null,null,null,null,null,null,null,null,null,null,null,null,null,null,null,null,null,null,null,null,null,null,null,null,null,null,null,null,null,null,null,null,null,null,null,null,"DWB 294 B","9,3 x 65 R","N"]
[null,null,null,null,null,null,null,null,null,null,null,null,null,null,null,null,null,null,null,null,null,null,null,null,null,null,null,null,null,null,null,null,null,null,null,null,null,null,null,null,null,null,null,null,null,null,null,null,null,null,null,null,null,null,null,null,null,null,null,null,null,null,null,null,null,null,null,null,null,null,null,null,null,null,null,null,null,null,null,"DWM","455 Eley"]
[null,null,null,null,null,null,null,null,null,null,null,null,null,null,null,null,null,null,null,null,null,null,null,null,null,null,null,null,null,null,null,null,null,null,null,null,null,null,null,null,null,null,null,null,null,null,null,null,null,null,null,null,null,null,null,null,null,null,null,null,null,null,null,null,null,null,null,null,null,null,null,null,null,null,null,null,null,null,null,"DWM 149 (Winchester)","44-40 Win."]
[null,null,null,null,null,null,null,null,null,null,null,null,null,null,null,null,null,null,null,null,null,null,null,null,null,null,null,null,null,null,null,null,null,null,null,null,null,null,null,null,null,null,null,null,null,null,null,null,null,null,null,null,null,null,null,null,null,null,null,null,null,null,null,null,null,null,null,null,null,null,null,null,null,null,null,null,null,null,null,"DWM 167","577/450 Sld. Mart.H"]
[null,null,null,null,null,null,null,null,null,null,null,null,null,null,null,null,null,null,null,null,null,null,null,null,null,null,null,null,null,null,null,null,null,null,null,null,null,null,null,null,null,null,null,null,null,null,null,null,null,null,null,null,null,null,null,null,null,null,null,null,null,null,null,null,null,null,null,null,null,null,null,null,null,null,null,null,null,null,null,"DWM 192","450 Short"]
[null,null,null,null,null,null,null,null,null,null,null,null,null,null,null,null,null,null,null,null,null,null,null,null,null,null,null,null,null,null,null,null,null,null,null,null,null,null,null,null,null,null,null,null,null,null,null,null,null,null,null,null,null,null,null,null,null,null,null,null,null,null,null,null,null,null,null,null,null,null,null,null,null,null,null,null,null,null,null,"DWM 194","320 Short"]
[null,null,null,null,null,null,null,null,null,null,null,null,null,null,null,null,null,null,null,null,null,null,null,null,null,null,null,null,null,null,null,null,null,null,null,null,null,null,null,null,null,null,null,null,null,null,null,null,null,null,null,null,null,null,null,null,null,null,null,null,null,null,null,null,null,null,null,null,null,null,null,null,null,null,null,null,null,null,null,"DWM 219","320 Long"]
[null,null,null,null,null,null,null,null,null,null,null,null,null,null,null,null,null,null,null,null,null,null,null,null,null,null,null,null,null,null,null,null,null,null,null,null,null,null,null,null,null,null,null,null,null,null,null,null,null,null,null,null,null,null,null,null,null,null,null,null,null,null,null,null,null,null,null,null,null,null,null,null,null,null,null,null,null,null,null,"DWM 219 A","320 Long"]
[null,null,null,null,null,null,null,null,null,null,null,null,null,null,null,null,null,null,null,null,null,null,null,null,null,null,null,null,null,null,null,null,null,null,null,null,null,null,null,null,null,null,null,null,null,null,null,null,null,null,null,null,null,null,null,null,null,null,null,null,null,null,null,null,null,null,null,null,null,null,null,null,null,null,null,null,null,null,null,"DWM 221","442 Webley","N"]
[null,null,null,null,null,null,null,null,null,null,null,null,null,null,null,null,null,null,null,null,null,null,null,null,null,null,null,null,null,null,null,null,null,null,null,null,null,null,null,null,null,null,null,null,null,null,null,null,null,null,null,null,null,null,null,null,null,null,null,null,null,null,null,null,null,null,null,null,null,null,null,null,null,null,null,null,null,null,null,"DWM 233","320 Short"]
[null,null,null,null,null,null,null,null,null,null,null,null,null,null,null,null,null,null,null,null,null,null,null,null,null,null,null,null,null,null,null,null,null,null,null,null,null,null,null,null,null,null,null,null,null,null,null,null,null,null,null,null,null,null,null,null,null,null,null,null,null,null,null,null,null,null,null,null,null,null,null,null,null,null,null,null,null,null,null,"DWM 242","44 S&W Russian"]
[null,null,null,null,null,null,null,null,null,null,null,null,null,null,null,null,null,null,null,null,null,null,null,null,null,null,null,null,null,null,null,null,null,null,null,null,null,null,null,null,null,null,null,null,null,null,null,null,null,null,null,null,null,null,null,null,null,null,null,null,null,null,null,null,null,null,null,null,null,null,null,null,null,null,null,null,null,null,null,"DWM 260","32 S&W"]
[null,null,null,null,null,null,null,null,null,null,null,null,null,null,null,null,null,null,null,null,null,null,null,null,null,null,null,null,null,null,null,null,null,null,null,null,null,null,null,null,null,null,null,null,null,null,null,null,null,null,null,null,null,null,null,null,null,null,null,null,null,null,null,null,null,null,null,null,null,null,null,null,null,null,null,null,null,null,null,"DWM 298","577 Sld. Snider"]
[null,null,null,null,null,null,null,null,null,null,null,null,null,null,null,null,null,null,null,null,null,null,null,null,null,null,null,null,null,null,null,null,null,null,null,null,null,null,null,null,null,null,null,null,null,null,null,null,null,null,null,null,null,null,null,null,null,null,null,null,null,null,null,null,null,null,null,null,null,null,null,null,null,null,null,null,null,null,null,"DWM 329 (Colt)","44-40 Win."]
[null,null,null,null,null,null,null,null,null,null,null,null,null,null,null,null,null,null,null,null,null,null,null,null,null,null,null,null,null,null,null,null,null,null,null,null,null,null,null,null,null,null,null,null,null,null,null,null,null,null,null,null,null,null,null,null,null,null,null,null,null,null,null,null,null,null,null,null,null,null,null,null,null,null,null,null,null,null,null,"DWM 358 C","8 x 50 R"]
[null,null,null,null,null,null,null,null,null,null,null,null,null,null,null,null,null,null,null,null,null,null,null,null,null,null,null,null,null,null,null,null,null,null,null,null,null,null,null,null,null,null,null,null,null,null,null,null,null,null,null,null,null,null,null,null,null,null,null,null,null,null,null,null,null,null,null,null,null,null,null,null,null,null,null,null,null,null,null,"DWM 366","8 x 57 JS"]
[null,null,null,null,null,null,null,null,null,null,null,null,null,null,null,null,null,null,null,null,null,null,null,null,null,null,null,null,null,null,null,null,null,null,null,null,null,null,null,null,null,null,null,null,null,null,null,null,null,null,null,null,null,null,null,null,null,null,null,null,null,null,null,null,null,null,null,null,null,null,null,null,null,null,null,null,null,null,null,"DWM 366 B","8 x 57 JR Mle 88 A","N"]
[null,null,null,null,null,null,null,null,null,null,null,null,null,null,null,null,null,null,null,null,null,null,null,null,null,null,null,null,null,null,null,null,null,null,null,null,null,null,null,null,null,null,null,null,null,null,null,null,null,null,null,null,null,null,null,null,null,null,null,null,null,null,null,null,null,null,null,null,null,null,null,null,null,null,null,null,null,null,null,"DWM 366 D 1","8 x 57 JR Mle 88 B","N"]
[null,null,null,null,null,null,null,null,null,null,null,null,null,null,null,null,null,null,null,null,null,null,null,null,null,null,null,null,null,null,null,null,null,null,null,null,null,null,null,null,null,null,null,null,null,null,null,null,null,null,null,null,null,null,null,null,null,null,null,null,null,null,null,null,null,null,null,null,null,null,null,null,null,null,null,null,null,null,null,"DWM 366 L M 88 H","8 x 51 (Mauser K)"]
[null,null,null,null,null,null,null,null,null,null,null,null,null,null,null,null,null,null,null,null,null,null,null,null,null,null,null,null,null,null,null,null,null,null,null,null,null,null,null,null,null,null,null,null,null,null,null,null,null,null,null,null,null,null,null,null,null,null,null,null,null,null,null,null,null,null,null,null,null,null,null,null,null,null,null,null,null,null,null,"DWM 367, GR 412","7,65 x 53 Arg."]
[null,null,null,null,null,null,null,null,null,null,null,null,null,null,null,null,null,null,null,null,null,null,null,null,null,null,null,null,null,null,null,null,null,null,null,null,null,null,null,null,null,null,null,null,null,null,null,null,null,null,null,null,null,null,null,null,null,null,null,null,null,null,null,null,null,null,null,null,null,null,null,null,null,null,null,null,null,null,null,"DWM 378","7,62 x 53 R"]
[null,null,null,null,null,null,null,null,null,null,null,null,null,null,null,null,null,null,null,null,null,null,null,null,null,null,null,null,null,null,null,null,null,null,null,null,null,null,null,null,null,null,null,null,null,null,null,null,null,null,null,null,null,null,null,null,null,null,null,null,null,null,null,null,null,null,null,null,null,null,null,null,null,null,null,null,null,null,null,"DWM 379","30-40 Krag"]
[null,null,null,null,null,null,null,null,null,null,null,null,null,null,null,null,null,null,null,null,null,null,null,null,null,null,null,null,null,null,null,null,null,null,null,null,null,null,null,null,null,null,null,null,null,null,null,null,null,null,null,null,null,null,null,null,null,null,null,null,null,null,null,null,null,null,null,null,null,null,null,null,null,null,null,null,null,null,null,"DWM 379 E","30-06 Spring."]
[null,null,null,null,null,null,null,null,null,null,null,null,null,null,null,null,null,null,null,null,null,null,null,null,null,null,null,null,null,null,null,null,null,null,null,null,null,null,null,null,null,null,null,null,null,null,null,null,null,null,null,null,null,null,null,null,null,null,null,null,null,null,null,null,null,null,null,null,null,null,null,null,null,null,null,null,null,null,null,"DWM 380 M 527 A","7 x 57"]
[null,null,null,null,null,null,null,null,null,null,null,null,null,null,null,null,null,null,null,null,null,null,null,null,null,null,null,null,null,null,null,null,null,null,null,null,null,null,null,null,null,null,null,null,null,null,null,null,null,null,null,null,null,null,null,null,null,null,null,null,null,null,null,null,null,null,null,null,null,null,null,null,null,null,null,null,null,null,null,"DWM 385","8 x 58 R"]
[null,null,null,null,null,null,null,null,null,null,null,null,null,null,null,null,null,null,null,null,null,null,null,null,null,null,null,null,null,null,null,null,null,null,null,null,null,null,null,null,null,null,null,null,null,null,null,null,null,null,null,null,null,null,null,null,null,null,null,null,null,null,null,null,null,null,null,null,null,null,null,null,null,null,null,null,null,null,null,"DWM 394, 395 C","6,5 x 53 R Mannlicher"]
[null,null,null,null,null,null,null,null,null,null,null,null,null,null,null,null,null,null,null,null,null,null,null,null,null,null,null,null,null,null,null,null,null,null,null,null,null,null,null,null,null,null,null,null,null,null,null,null,null,null,null,null,null,null,null,null,null,null,null,null,null,null,null,null,null,null,null,null,null,null,null,null,null,null,null,null,null,null,null,"DWM 403","7,63 Mauser"]
[null,null,null,null,null,null,null,null,null,null,null,null,null,null,null,null,null,null,null,null,null,null,null,null,null,null,null,null,null,null,null,null,null,null,null,null,null,null,null,null,null,null,null,null,null,null,null,null,null,null,null,null,null,null,null,null,null,null,null,null,null,null,null,null,null,null,null,null,null,null,null,null,null,null,null,null,null,null,null,"DWM 41","11,15 x 60 R"]
[null,null,null,null,null,null,null,null,null,null,null,null,null,null,null,null,null,null,null,null,null,null,null,null,null,null,null,null,null,null,null,null,null,null,null,null,null,null,null,null,null,null,null,null,null,null,null,null,null,null,null,null,null,null,null,null,null,null,null,null,null,null,null,null,null,null,null,null,null,null,null,null,null,null,null,null,null,null,null,"DWM 431 C","6,5 x 55 SE."]
[null,null,null,null,null,null,null,null,null,null,null,null,null,null,null,null,null,null,null,null,null,null,null,null,null,null,null,null,null,null,null,null,null,null,null,null,null,null,null,null,null,null,null,null,null,null,null,null,null,null,null,null,null,null,null,null,null,null,null,null,null,null,null,null,null,null,null,null,null,null,null,null,null,null,null,null,null,null,null,"DWM 431 M","5,6 x 61 R SE v. H."]
[null,null,null,null,null,null,null,null,null,null,null,null,null,null,null,null,null,null,null,null,null,null,null,null,null,null,null,null,null,null,null,null,null,null,null,null,null,null,null,null,null,null,null,null,null,null,null,null,null,null,null,null,null,null,null,null,null,null,null,null,null,null,null,null,null,null,null,null,null,null,null,null,null,null,null,null,null,null,null,"DWM 431 P","5,6 x 61 R SE v. H."]
[null,null,null,null,null,null,null,null,null,null,null,null,null,null,null,null,null,null,null,null,null,null,null,null,null,null,null,null,null,null,null,null,null,null,null,null,null,null,null,null,null,null,null,null,null,null,null,null,null,null,null,null,null,null,null,null,null,null,null,null,null,null,null,null,null,null,null,null,null,null,null,null,null,null,null,null,null,null,null,"DWM 453","303 British"]
[null,null,null,null,null,null,null,null,null,null,null,null,null,null,null,null,null,null,null,null,null,null,null,null,null,null,null,null,null,null,null,null,null,null,null,null,null,null,null,null,null,null,null,null,null,null,null,null,null,null,null,null,null,null,null,null,null,null,null,null,null,null,null,null,null,null,null,null,null,null,null,null,null,null,null,null,null,null,null,"DWM 455, GR 553","8,15 x 46 R"]
[null,null,null,null,null,null,null,null,null,null,null,null,null,null,null,null,null,null,null,null,null,null,null,null,null,null,null,null,null,null,null,null,null,null,null,null,null,null,null,null,null,null,null,null,null,null,null,null,null,null,null,null,null,null,null,null,null,null,null,null,null,null,null,null,null,null,null,null,null,null,null,null,null,null,null,null,null,null,null,"DWM 456 B","9 mm Bergmann-Bayard (9 Largo)"]
[null,null,null,null,null,null,null,null,null,null,null,null,null,null,null,null,null,null,null,null,null,null,null,null,null,null,null,null,null,null,null,null,null,null,null,null,null,null,null,null,null,null,null,null,null,null,null,null,null,null,null,null,null,null,null,null,null,null,null,null,null,null,null,null,null,null,null,null,null,null,null,null,null,null,null,null,null,null,null,"DWM 456 C","9 mm Bergmann-Bayard (9 Largo)"]
[null,null,null,null,null,null,null,null,null,null,null,null,null,null,null,null,null,null,null,null,null,null,null,null,null,null,null,null,null,null,null,null,null,null,null,null,null,null,null,null,null,null,null,null,null,null,null,null,null,null,null,null,null,null,null,null,null,null,null,null,null,null,null,null,null,null,null,null,null,null,null,null,null,null,null,null,null,null,null,"DWM 457","6,5 x 58 Mauser"]
[null,null,null,null,null,null,null,null,null,null,null,null,null,null,null,null,null,null,null,null,null,null,null,null,null,null,null,null,null,null,null,null,null,null,null,null,null,null,null,null,null,null,null,null,null,null,null,null,null,null,null,null,null,null,null,null,null,null,null,null,null,null,null,null,null,null,null,null,null,null,null,null,null,null,null,null,null,null,null,"DWM 462","8 x 58 R"]
[null,null,null,null,null,null,null,null,null,null,null,null,null,null,null,null,null,null,null,null,null,null,null,null,null,null,null,null,null,null,null,null,null,null,null,null,null,null,null,null,null,null,null,null,null,null,null,null,null,null,null,null,null,null,null,null,null,null,null,null,null,null,null,null,null,null,null,null,null,null,null,null,null,null,null,null,null,null,null,"DWM 462 A","8 x 48 R","N"]
[null,null,null,null,null,null,null,null,null,null,null,null,null,null,null,null,null,null,null,null,null,null,null,null,null,null,null,null,null,null,null,null,null,null,null,null,null,null,null,null,null,null,null,null,null,null,null,null,null,null,null,null,null,null,null,null,null,null,null,null,null,null,null,null,null,null,null,null,null,null,null,null,null,null,null,null,null,null,null,"DWM 463","6,5 x 58 R Krag. Jörgensen","N"]
[null,null,null,null,null,null,null,null,null,null,null,null,null,null,null,null,null,null,null,null,null,null,null,null,null,null,null,null,null,null,null,null,null,null,null,null,null,null,null,null,null,null,null,null,null,null,null,null,null,null,null,null,null,null,null,null,null,null,null,null,null,null,null,null,null,null,null,null,null,null,null,null,null,null,null,null,null,null,null,"DWM 463 A","6,5 x 27 R"]
[null,null,null,null,null,null,null,null,null,null,null,null,null,null,null,null,null,null,null,null,null,null,null,null,null,null,null,null,null,null,null,null,null,null,null,null,null,null,null,null,null,null,null,null,null,null,null,null,null,null,null,null,null,null,null,null,null,null,null,null,null,null,null,null,null,null,null,null,null,null,null,null,null,null,null,null,null,null,null,"DWM 471","7,65 Parabellum"]
[null,null,null,null,null,null,null,null,null,null,null,null,null,null,null,null,null,null,null,null,null,null,null,null,null,null,null,null,null,null,null,null,null,null,null,null,null,null,null,null,null,null,null,null,null,null,null,null,null,null,null,null,null,null,null,null,null,null,null,null,null,null,null,null,null,null,null,null,null,null,null,null,null,null,null,null,null,null,null,"DWM 472","8 x 51 R Lebel"]
[null,null,null,null,null,null,null,null,null,null,null,null,null,null,null,null,null,null,null,null,null,null,null,null,null,null,null,null,null,null,null,null,null,null,null,null,null,null,null,null,null,null,null,null,null,null,null,null,null,null,null,null,null,null,null,null,null,null,null,null,null,null,null,null,null,null,null,null,null,null,null,null,null,null,null,null,null,null,null,"DWM 473","6,5 x 52 Carcano"]
[null,null,null,null,null,null,null,null,null,null,null,null,null,null,null,null,null,null,null,null,null,null,null,null,null,null,null,null,null,null,null,null,null,null,null,null,null,null,null,null,null,null,null,null,null,null,null,null,null,null,null,null,null,null,null,null,null,null,null,null,null,null,null,null,null,null,null,null,null,null,null,null,null,null,null,null,null,null,null,"DWM 476","6,5 x 27 R"]
[null,null,null,null,null,null,null,null,null,null,null,null,null,null,null,null,null,null,null,null,null,null,null,null,null,null,null,null,null,null,null,null,null,null,null,null,null,null,null,null,null,null,null,null,null,null,null,null,null,null,null,null,null,null,null,null,null,null,null,null,null,null,null,null,null,null,null,null,null,null,null,null,null,null,null,null,null,null,null,"DWM 477","6,5 x 54 Mannl. Sch."]
[null,null,null,null,null,null,null,null,null,null,null,null,null,null,null,null,null,null,null,null,null,null,null,null,null,null,null,null,null,null,null,null,null,null,null,null,null,null,null,null,null,null,null,null,null,null,null,null,null,null,null,null,null,null,null,null,null,null,null,null,null,null,null,null,null,null,null,null,null,null,null,null,null,null,null,null,null,null,null,"DWM 479 A","7,65 Browning"]
[null,null,null,null,null,null,null,null,null,null,null,null,null,null,null,null,null,null,null,null,null,null,null,null,null,null,null,null,null,null,null,null,null,null,null,null,null,null,null,null,null,null,null,null,null,null,null,null,null,null,null,null,null,null,null,null,null,null,null,null,null,null,null,null,null,null,null,null,null,null,null,null,null,null,null,null,null,null,null,"DWM 480 C-D-487 C","9 mm Luger"]
[null,null,null,null,null,null,null,null,null,null,null,null,null,null,null,null,null,null,null,null,null,null,null,null,null,null,null,null,null,null,null,null,null,null,null,null,null,null,null,null,null,null,null,null,null,null,null,null,null,null,null,null,null,null,null,null,null,null,null,null,null,null,null,null,null,null,null,null,null,null,null,null,null,null,null,null,null,null,null,"DWM 481","6,5 x 51 R (Arisaka)"]
[null,null,null,null,null,null,null,null,null,null,null,null,null,null,null,null,null,null,null,null,null,null,null,null,null,null,null,null,null,null,null,null,null,null,null,null,null,null,null,null,null,null,null,null,null,null,null,null,null,null,null,null,null,null,null,null,null,null,null,null,null,null,null,null,null,null,null,null,null,null,null,null,null,null,null,null,null,null,null,"DWM 487","9 mm Mauser Exp."]
[null,null,null,null,null,null,null,null,null,null,null,null,null,null,null,null,null,null,null,null,null,null,null,null,null,null,null,null,null,null,null,null,null,null,null,null,null,null,null,null,null,null,null,null,null,null,null,null,null,null,null,null,null,null,null,null,null,null,null,null,null,null,null,null,null,null,null,null,null,null,null,null,null,null,null,null,null,null,null,"DWM 491 (E)","9 x 56 M.-Sch."]
[null,null,null,null,null,null,null,null,null,null,null,null,null,null,null,null,null,null,null,null,null,null,null,null,null,null,null,null,null,null,null,null,null,null,null,null,null,null,null,null,null,null,null,null,null,null,null,null,null,null,null,null,null,null,null,null,null,null,null,null,null,null,null,null,null,null,null,null,null,null,null,null,null,null,null,null,null,null,null,"DWM 491 B","9 x 57 R"]
[null,null,null,null,null,null,null,null,null,null,null,null,null,null,null,null,null,null,null,null,null,null,null,null,null,null,null,null,null,null,null,null,null,null,null,null,null,null,null,null,null,null,null,null,null,null,null,null,null,null,null,null,null,null,null,null,null,null,null,null,null,null,null,null,null,null,null,null,null,null,null,null,null,null,null,null,null,null,null,"DWM 491 E","9 x 56 M.-Sch."]
[null,null,null,null,null,null,null,null,null,null,null,null,null,null,null,null,null,null,null,null,null,null,null,null,null,null,null,null,null,null,null,null,null,null,null,null,null,null,null,null,null,null,null,null,null,null,null,null,null,null,null,null,null,null,null,null,null,null,null,null,null,null,null,null,null,null,null,null,null,null,null,null,null,null,null,null,null,null,null,"DWM 491-A","9 x 57"]
[null,null,null,null,null,null,null,null,null,null,null,null,null,null,null,null,null,null,null,null,null,null,null,null,null,null,null,null,null,null,null,null,null,null,null,null,null,null,null,null,null,null,null,null,null,null,null,null,null,null,null,null,null,null,null,null,null,null,null,null,null,null,null,null,null,null,null,null,null,null,null,null,null,null,null,null,null,null,null,"DWM 504","9,3 x 65 R","N"]
[null,null,null,null,null,null,null,null,null,null,null,null,null,null,null,null,null,null,null,null,null,null,null,null,null,null,null,null,null,null,null,null,null,null,null,null,null,null,null,null,null,null,null,null,null,null,null,null,null,null,null,null,null,null,null,null,null,null,null,null,null,null,null,null,null,null,null,null,null,null,null,null,null,null,null,null,null,null,null,"DWM 508 A","6,35 Browning"]
[null,null,null,null,null,null,null,null,null,null,null,null,null,null,null,null,null,null,null,null,null,null,null,null,null,null,null,null,null,null,null,null,null,null,null,null,null,null,null,null,null,null,null,null,null,null,null,null,null,null,null,null,null,null,null,null,null,null,null,null,null,null,null,null,null,null,null,null,null,null,null,null,null,null,null,null,null,null,null,"DWM 513 A","45 Auto"]
[null,null,null,null,null,null,null,null,null,null,null,null,null,null,null,null,null,null,null,null,null,null,null,null,null,null,null,null,null,null,null,null,null,null,null,null,null,null,null,null,null,null,null,null,null,null,null,null,null,null,null,null,null,null,null,null,null,null,null,null,null,null,null,null,null,null,null,null,null,null,null,null,null,null,null,null,null,null,null,"DWM 519 A","25 Rem."]
[null,null,null,null,null,null,null,null,null,null,null,null,null,null,null,null,null,null,null,null,null,null,null,null,null,null,null,null,null,null,null,null,null,null,null,null,null,null,null,null,null,null,null,null,null,null,null,null,null,null,null,null,null,null,null,null,null,null,null,null,null,null,null,null,null,null,null,null,null,null,null,null,null,null,null,null,null,null,null,"DWM 528","8 x 56 M.-Sch."]
[null,null,null,null,null,null,null,null,null,null,null,null,null,null,null,null,null,null,null,null,null,null,null,null,null,null,null,null,null,null,null,null,null,null,null,null,null,null,null,null,null,null,null,null,null,null,null,null,null,null,null,null,null,null,null,null,null,null,null,null,null,null,null,null,null,null,null,null,null,null,null,null,null,null,null,null,null,null,null,"DWM 538","9 mm Browning long"]
[null,null,null,null,null,null,null,null,null,null,null,null,null,null,null,null,null,null,null,null,null,null,null,null,null,null,null,null,null,null,null,null,null,null,null,null,null,null,null,null,null,null,null,null,null,null,null,null,null,null,null,null,null,null,null,null,null,null,null,null,null,null,null,null,null,null,null,null,null,null,null,null,null,null,null,null,null,null,null,"DWM 539","5,6 x 35 R"]
[null,null,null,null,null,null,null,null,null,null,null,null,null,null,null,null,null,null,null,null,null,null,null,null,null,null,null,null,null,null,null,null,null,null,null,null,null,null,null,null,null,null,null,null,null,null,null,null,null,null,null,null,null,null,null,null,null,null,null,null,null,null,null,null,null,null,null,null,null,null,null,null,null,null,null,null,null,null,null,"DWM 540","9 mm Browning cour"]
[null,null,null,null,null,null,null,null,null,null,null,null,null,null,null,null,null,null,null,null,null,null,null,null,null,null,null,null,null,null,null,null,null,null,null,null,null,null,null,null,null,null,null,null,null,null,null,null,null,null,null,null,null,null,null,null,null,null,null,null,null,null,null,null,null,null,null,null,null,null,null,null,null,null,null,null,null,null,null,"DWM 542","8 x 60"]
[null,null,null,null,null,null,null,null,null,null,null,null,null,null,null,null,null,null,null,null,null,null,null,null,null,null,null,null,null,null,null,null,null,null,null,null,null,null,null,null,null,null,null,null,null,null,null,null,null,null,null,null,null,null,null,null,null,null,null,null,null,null,null,null,null,null,null,null,null,null,null,null,null,null,null,null,null,null,null,"DWM 542 MB","8 x 60 S"]
[null,null,null,null,null,null,null,null,null,null,null,null,null,null,null,null,null,null,null,null,null,null,null,null,null,null,null,null,null,null,null,null,null,null,null,null,null,null,null,null,null,null,null,null,null,null,null,null,null,null,null,null,null,null,null,null,null,null,null,null,null,null,null,null,null,null,null,null,null,null,null,null,null,null,null,null,null,null,null,"DWM 542 MB","8 x 60"]
[null,null,null,null,null,null,null,null,null,null,null,null,null,null,null,null,null,null,null,null,null,null,null,null,null,null,null,null,null,null,null,null,null,null,null,null,null,null,null,null,null,null,null,null,null,null,null,null,null,null,null,null,null,null,null,null,null,null,null,null,null,null,null,null,null,null,null,null,null,null,null,null,null,null,null,null,null,null,null,"DWM 543","30-30 Win."]
[null,null,null,null,null,null,null,null,null,null,null,null,null,null,null,null,null,null,null,null,null,null,null,null,null,null,null,null,null,null,null,null,null,null,null,null,null,null,null,null,null,null,null,null,null,null,null,null,null,null,null,null,null,null,null,null,null,null,null,null,null,null,null,null,null,null,null,null,null,null,null,null,null,null,null,null,null,null,null,"DWM 555","404 Riml. N.E."]
[null,null,null,null,null,null,null,null,null,null,null,null,null,null,null,null,null,null,null,null,null,null,null,null,null,null,null,null,null,null,null,null,null,null,null,null,null,null,null,null,null,null,null,null,null,null,null,null,null,null,null,null,null,null,null,null,null,null,null,null,null,null,null,null,null,null,null,null,null,null,null,null,null,null,null,null,null,null,null,"DWM 557","7 x 64"]
[null,null,null,null,null,null,null,null,null,null,null,null,null,null,null,null,null,null,null,null,null,null,null,null,null,null,null,null,null,null,null,null,null,null,null,null,null,null,null,null,null,null,null,null,null,null,null,null,null,null,null,null,null,null,null,null,null,null,null,null,null,null,null,null,null,null,null,null,null,null,null,null,null,null,null,null,null,null,null,"DWM 557 A","7 x 65 R"]
[null,null,null,null,null,null,null,null,null,null,null,null,null,null,null,null,null,null,null,null,null,null,null,null,null,null,null,null,null,null,null,null,null,null,null,null,null,null,null,null,null,null,null,null,null,null,null,null,null,null,null,null,null,null,null,null,null,null,null,null,null,null,null,null,null,null,null,null,null,null,null,null,null,null,null,null,null,null,null,"DWM 558","8 x 64 S"]
[null,null,null,null,null,null,null,null,null,null,null,null,null,null,null,null,null,null,null,null,null,null,null,null,null,null,null,null,null,null,null,null,null,null,null,null,null,null,null,null,null,null,null,null,null,null,null,null,null,null,null,null,null,null,null,null,null,null,null,null,null,null,null,null,null,null,null,null,null,null,null,null,null,null,null,null,null,null,null,"DWM 558 A","8 x 65 RS"]
[null,null,null,null,null,null,null,null,null,null,null,null,null,null,null,null,null,null,null,null,null,null,null,null,null,null,null,null,null,null,null,null,null,null,null,null,null,null,null,null,null,null,null,null,null,null,null,null,null,null,null,null,null,null,null,null,null,null,null,null,null,null,null,null,null,null,null,null,null,null,null,null,null,null,null,null,null,null,null,"DWM 560","8 x 57 J"]
[null,null,null,null,null,null,null,null,null,null,null,null,null,null,null,null,null,null,null,null,null,null,null,null,null,null,null,null,null,null,null,null,null,null,null,null,null,null,null,null,null,null,null,null,null,null,null,null,null,null,null,null,null,null,null,null,null,null,null,null,null,null,null,null,null,null,null,null,null,null,null,null,null,null,null,null,null,null,null,"DWM 561","8 x 57 JS"]
[null,null,null,null,null,null,null,null,null,null,null,null,null,null,null,null,null,null,null,null,null,null,null,null,null,null,null,null,null,null,null,null,null,null,null,null,null,null,null,null,null,null,null,null,null,null,null,null,null,null,null,null,null,null,null,null,null,null,null,null,null,null,null,null,null,null,null,null,null,null,null,null,null,null,null,null,null,null,null,"DWM 562","8 x 58 R"]
[null,null,null,null,null,null,null,null,null,null,null,null,null,null,null,null,null,null,null,null,null,null,null,null,null,null,null,null,null,null,null,null,null,null,null,null,null,null,null,null,null,null,null,null,null,null,null,null,null,null,null,null,null,null,null,null,null,null,null,null,null,null,null,null,null,null,null,null,null,null,null,null,null,null,null,null,null,null,null,"DWM 573","7 x 72 R"]
[null,null,null,null,null,null,null,null,null,null,null,null,null,null,null,null,null,null,null,null,null,null,null,null,null,null,null,null,null,null,null,null,null,null,null,null,null,null,null,null,null,null,null,null,null,null,null,null,null,null,null,null,null,null,null,null,null,null,null,null,null,null,null,null,null,null,null,null,null,null,null,null,null,null,null,null,null,null,null,"DWM 574, GR 755","8 x 72 R"]
[null,null,null,null,null,null,null,null,null,null,null,null,null,null,null,null,null,null,null,null,null,null,null,null,null,null,null,null,null,null,null,null,null,null,null,null,null,null,null,null,null,null,null,null,null,null,null,null,null,null,null,null,null,null,null,null,null,null,null,null,null,null,null,null,null,null,null,null,null,null,null,null,null,null,null,null,null,null,null,"DWM 575 A","10,75 x 68"]
[null,null,null,null,null,null,null,null,null,null,null,null,null,null,null,null,null,null,null,null,null,null,null,null,null,null,null,null,null,null,null,null,null,null,null,null,null,null,null,null,null,null,null,null,null,null,null,null,null,null,null,null,null,null,null,null,null,null,null,null,null,null,null,null,null,null,null,null,null,null,null,null,null,null,null,null,null,null,null,"DWM 577","9 mm Steyr"]
[null,null,null,null,null,null,null,null,null,null,null,null,null,null,null,null,null,null,null,null,null,null,null,null,null,null,null,null,null,null,null,null,null,null,null,null,null,null,null,null,null,null,null,null,null,null,null,null,null,null,null,null,null,null,null,null,null,null,null,null,null,null,null,null,null,null,null,null,null,null,null,null,null,null,null,null,null,null,null,"DWM 578","22 Hornet"]
[null,null,null,null,null,null,null,null,null,null,null,null,null,null,null,null,null,null,null,null,null,null,null,null,null,null,null,null,null,null,null,null,null,null,null,null,null,null,null,null,null,null,null,null,null,null,null,null,null,null,null,null,null,null,null,null,null,null,null,null,null,null,null,null,null,null,null,null,null,null,null,null,null,null,null,null,null,null,null,"DWM 587-588-589","8 x 56 R M30S"]
[null,null,null,null,null,null,null,null,null,null,null,null,null,null,null,null,null,null,null,null,null,null,null,null,null,null,null,null,null,null,null,null,null,null,null,null,null,null,null,null,null,null,null,null,null,null,null,null,null,null,null,null,null,null,null,null,null,null,null,null,null,null,null,null,null,null,null,null,null,null,null,null,null,null,null,null,null,null,null,"DWM 72","500 N.E. 3‘‘"]
[null,null,null,null,null,null,null,null,null,null,null,null,null,null,null,null,null,null,null,null,null,null,null,null,null,null,null,null,null,null,null,null,null,null,null,null,null,null,null,null,null,null,null,null,null,null,null,null,null,null,null,null,null,null,null,null,null,null,null,null,null,null,null,null,null,null,null,null,null,null,null,null,null,null,null,null,null,null,null,"DWM 72 D","9,3 x 65 R","N"]
[null,null,null,null,null,null,null,null,null,null,null,null,null,null,null,null,null,null,null,null,null,null,null,null,null,null,null,null,null,null,null,null,null,null,null,null,null,null,null,null,null,null,null,null,null,null,null,null,null,null,null,null,null,null,null,null,null,null,null,null,null,null,null,null,null,null,null,null,null,null,null,null,null,null,null,null,null,null,null,"DWM 77 D","9,3 x 72 R"]
[null,null,null,null,null,null,null,null,null,null,null,null,null,null,null,null,null,null,null,null,null,null,null,null,null,null,null,null,null,null,null,null,null,null,null,null,null,null,null,null,null,null,null,null,null,null,null,null,null,null,null,null,null,null,null,null,null,null,null,null,null,null,null,null,null,null,null,null,null,null,null,null,null,null,null,null,null,null,null,"GR 101","320 Long"]
[null,null,null,null,null,null,null,null,null,null,null,null,null,null,null,null,null,null,null,null,null,null,null,null,null,null,null,null,null,null,null,null,null,null,null,null,null,null,null,null,null,null,null,null,null,null,null,null,null,null,null,null,null,null,null,null,null,null,null,null,null,null,null,null,null,null,null,null,null,null,null,null,null,null,null,null,null,null,null,"GR 139","500 N.E. 3‘‘"]
[null,null,null,null,null,null,null,null,null,null,null,null,null,null,null,null,null,null,null,null,null,null,null,null,null,null,null,null,null,null,null,null,null,null,null,null,null,null,null,null,null,null,null,null,null,null,null,null,null,null,null,null,null,null,null,null,null,null,null,null,null,null,null,null,null,null,null,null,null,null,null,null,null,null,null,null,null,null,null,"GR 191","44-40 Win."]
[null,null,null,null,null,null,null,null,null,null,null,null,null,null,null,null,null,null,null,null,null,null,null,null,null,null,null,null,null,null,null,null,null,null,null,null,null,null,null,null,null,null,null,null,null,null,null,null,null,null,null,null,null,null,null,null,null,null,null,null,null,null,null,null,null,null,null,null,null,null,null,null,null,null,null,null,null,null,null,"GR 203? (758?)","6,5 x 58 Mauser"]
[null,null,null,null,null,null,null,null,null,null,null,null,null,null,null,null,null,null,null,null,null,null,null,null,null,null,null,null,null,null,null,null,null,null,null,null,null,null,null,null,null,null,null,null,null,null,null,null,null,null,null,null,null,null,null,null,null,null,null,null,null,null,null,null,null,null,null,null,null,null,null,null,null,null,null,null,null,null,null,"GR 259","577/450 Sld. Mart.H"]
[null,null,null,null,null,null,null,null,null,null,null,null,null,null,null,null,null,null,null,null,null,null,null,null,null,null,null,null,null,null,null,null,null,null,null,null,null,null,null,null,null,null,null,null,null,null,null,null,null,null,null,null,null,null,null,null,null,null,null,null,null,null,null,null,null,null,null,null,null,null,null,null,null,null,null,null,null,null,null,"Gr 362?","8 x 57 JS"]
[null,null,null,null,null,null,null,null,null,null,null,null,null,null,null,null,null,null,null,null,null,null,null,null,null,null,null,null,null,null,null,null,null,null,null,null,null,null,null,null,null,null,null,null,null,null,null,null,null,null,null,null,null,null,null,null,null,null,null,null,null,null,null,null,null,null,null,null,null,null,null,null,null,null,null,null,null,null,null,"GR 392/GR 362?","8 x 57 J"]
[null,null,null,null,null,null,null,null,null,null,null,null,null,null,null,null,null,null,null,null,null,null,null,null,null,null,null,null,null,null,null,null,null,null,null,null,null,null,null,null,null,null,null,null,null,null,null,null,null,null,null,null,null,null,null,null,null,null,null,null,null,null,null,null,null,null,null,null,null,null,null,null,null,null,null,null,null,null,null,"GR 393, 394","6,5 x 53 R Mannlicher"]
[null,null,null,null,null,null,null,null,null,null,null,null,null,null,null,null,null,null,null,null,null,null,null,null,null,null,null,null,null,null,null,null,null,null,null,null,null,null,null,null,null,null,null,null,null,null,null,null,null,null,null,null,null,null,null,null,null,null,null,null,null,null,null,null,null,null,null,null,null,null,null,null,null,null,null,null,null,null,null,"GR 400","297/230 Morris lg"]
[null,null,null,null,null,null,null,null,null,null,null,null,null,null,null,null,null,null,null,null,null,null,null,null,null,null,null,null,null,null,null,null,null,null,null,null,null,null,null,null,null,null,null,null,null,null,null,null,null,null,null,null,null,null,null,null,null,null,null,null,null,null,null,null,null,null,null,null,null,null,null,null,null,null,null,null,null,null,null,"GR 460/474?","8 x 50 R"]
[null,null,null,null,null,null,null,null,null,null,null,null,null,null,null,null,null,null,null,null,null,null,null,null,null,null,null,null,null,null,null,null,null,null,null,null,null,null,null,null,null,null,null,null,null,null,null,null,null,null,null,null,null,null,null,null,null,null,null,null,null,null,null,null,null,null,null,null,null,null,null,null,null,null,null,null,null,null,null,"GR 502","6,5 x 55 SE."]
[null,null,null,null,null,null,null,null,null,null,null,null,null,null,null,null,null,null,null,null,null,null,null,null,null,null,null,null,null,null,null,null,null,null,null,null,null,null,null,null,null,null,null,null,null,null,null,null,null,null,null,null,null,null,null,null,null,null,null,null,null,null,null,null,null,null,null,null,null,null,null,null,null,null,null,null,null,null,null,"GR 574, 649, 664","7 x 57"]
[null,null,null,null,null,null,null,null,null,null,null,null,null,null,null,null,null,null,null,null,null,null,null,null,null,null,null,null,null,null,null,null,null,null,null,null,null,null,null,null,null,null,null,null,null,null,null,null,null,null,null,null,null,null,null,null,null,null,null,null,null,null,null,null,null,null,null,null,null,null,null,null,null,null,null,null,null,null,null,"GR 592","8 mm Steyr"]
[null,null,null,null,null,null,null,null,null,null,null,null,null,null,null,null,null,null,null,null,null,null,null,null,null,null,null,null,null,null,null,null,null,null,null,null,null,null,null,null,null,null,null,null,null,null,null,null,null,null,null,null,null,null,null,null,null,null,null,null,null,null,null,null,null,null,null,null,null,null,null,null,null,null,null,null,null,null,null,"GR 619","7,65 Browning"]
[null,null,null,null,null,null,null,null,null,null,null,null,null,null,null,null,null,null,null,null,null,null,null,null,null,null,null,null,null,null,null,null,null,null,null,null,null,null,null,null,null,null,null,null,null,null,null,null,null,null,null,null,null,null,null,null,null,null,null,null,null,null,null,null,null,null,null,null,null,null,null,null,null,null,null,null,null,null,null,"GR 635","9,3 x 72 R"]
[null,null,null,null,null,null,null,null,null,null,null,null,null,null,null,null,null,null,null,null,null,null,null,null,null,null,null,null,null,null,null,null,null,null,null,null,null,null,null,null,null,null,null,null,null,null,null,null,null,null,null,null,null,null,null,null,null,null,null,null,null,null,null,null,null,null,null,null,null,null,null,null,null,null,null,null,null,null,null,"GR 681","8 x 51 (Mauser K)"]
[null,null,null,null,null,null,null,null,null,null,null,null,null,null,null,null,null,null,null,null,null,null,null,null,null,null,null,null,null,null,null,null,null,null,null,null,null,null,null,null,null,null,null,null,null,null,null,null,null,null,null,null,null,null,null,null,null,null,null,null,null,null,null,null,null,null,null,null,null,null,null,null,null,null,null,null,null,null,null,"GR 682","38 Special"]
[null,null,null,null,null,null,null,null,null,null,null,null,null,null,null,null,null,null,null,null,null,null,null,null,null,null,null,null,null,null,null,null,null,null,null,null,null,null,null,null,null,null,null,null,null,null,null,null,null,null,null,null,null,null,null,null,null,null,null,null,null,null,null,null,null,null,null,null,null,null,null,null,null,null,null,null,null,null,null,"GR 683","7,62 x 53 R"]
[null,null,null,null,null,null,null,null,null,null,null,null,null,null,null,null,null,null,null,null,null,null,null,null,null,null,null,null,null,null,null,null,null,null,null,null,null,null,null,null,null,null,null,null,null,null,null,null,null,null,null,null,null,null,null,null,null,null,null,null,null,null,null,null,null,null,null,null,null,null,null,null,null,null,null,null,null,null,null,"GR 684","7,62 Nagant"]
[null,null,null,null,null,null,null,null,null,null,null,null,null,null,null,null,null,null,null,null,null,null,null,null,null,null,null,null,null,null,null,null,null,null,null,null,null,null,null,null,null,null,null,null,null,null,null,null,null,null,null,null,null,null,null,null,null,null,null,null,null,null,null,null,null,null,null,null,null,null,null,null,null,null,null,null,null,null,null,"GR 696","8 mm Steyr"]
[null,null,null,null,null,null,null,null,null,null,null,null,null,null,null,null,null,null,null,null,null,null,null,null,null,null,null,null,null,null,null,null,null,null,null,null,null,null,null,null,null,null,null,null,null,null,null,null,null,null,null,null,null,null,null,null,null,null,null,null,null,null,null,null,null,null,null,null,null,null,null,null,null,null,null,null,null,null,null,"GR 728, DWM 41.A","11,2 x 60","N"]
[null,null,null,null,null,null,null,null,null,null,null,null,null,null,null,null,null,null,null,null,null,null,null,null,null,null,null,null,null,null,null,null,null,null,null,null,null,null,null,null,null,null,null,null,null,null,null,null,null,null,null,null,null,null,null,null,null,null,null,null,null,null,null,null,null,null,null,null,null,null,null,null,null,null,null,null,null,null,null,"GR 746","6,5 x 27 R"]
[null,null,null,null,null,null,null,null,null,null,null,null,null,null,null,null,null,null,null,null,null,null,null,null,null,null,null,null,null,null,null,null,null,null,null,null,null,null,null,null,null,null,null,null,null,null,null,null,null,null,null,null,null,null,null,null,null,null,null,null,null,null,null,null,null,null,null,null,null,null,null,null,null,null,null,null,null,null,null,"GR 78","450 Short"]
[null,null,null,null,null,null,null,null,null,null,null,null,null,null,null,null,null,null,null,null,null,null,null,null,null,null,null,null,null,null,null,null,null,null,null,null,null,null,null,null,null,null,null,null,null,null,null,null,null,null,null,null,null,null,null,null,null,null,null,null,null,null,null,null,null,null,null,null,null,null,null,null,null,null,null,null,null,null,null,"GR 780","11,2 x 72 Schueler","N"]
[null,null,null,null,null,null,null,null,null,null,null,null,null,null,null,null,null,null,null,null,null,null,null,null,null,null,null,null,null,null,null,null,null,null,null,null,null,null,null,null,null,null,null,null,null,null,null,null,null,null,null,null,null,null,null,null,null,null,null,null,null,null,null,null,null,null,null,null,null,null,null,null,null,null,null,null,null,null,null,"GR 785","351 Win. SL"]
[null,null,null,null,null,null,null,null,null,null,null,null,null,null,null,null,null,null,null,null,null,null,null,null,null,null,null,null,null,null,null,null,null,null,null,null,null,null,null,null,null,null,null,null,null,null,null,null,null,null,null,null,null,null,null,null,null,null,null,null,null,null,null,null,null,null,null,null,null,null,null,null,null,null,null,null,null,null,null,"GR 787","8 x 56 M.-Sch."]
[null,null,null,null,null,null,null,null,null,null,null,null,null,null,null,null,null,null,null,null,null,null,null,null,null,null,null,null,null,null,null,null,null,null,null,null,null,null,null,null,null,null,null,null,null,null,null,null,null,null,null,null,null,null,null,null,null,null,null,null,null,null,null,null,null,null,null,null,null,null,null,null,null,null,null,null,null,null,null,"GR 829","7,63 Mauser"]
[null,null,null,null,null,null,null,null,null,null,null,null,null,null,null,null,null,null,null,null,null,null,null,null,null,null,null,null,null,null,null,null,null,null,null,null,null,null,null,null,null,null,null,null,null,null,null,null,null,null,null,null,null,null,null,null,null,null,null,null,null,null,null,null,null,null,null,null,null,null,null,null,null,null,null,null,null,null,null,"GR 892","9 mm Steyr"]
[null,null,null,null,null,null,null,null,null,null,null,null,null,null,null,null,null,null,null,null,null,null,null,null,null,null,null,null,null,null,null,null,null,null,null,null,null,null,null,null,null,null,null,null,null,null,null,null,null,null,null,null,null,null,null,null,null,null,null,null,null,null,null,null,null,null,null,null,null,null,null,null,null,null,null,null,null,null,null,"GR 909","442 Webley","N"]
[null,null,null,null,null,null,null,null,null,null,null,null,null,null,null,null,null,null,null,null,null,null,null,null,null,null,null,null,null,null,null,null,null,null,null,null,null,null,null,null,null,null,null,null,null,null,null,null,null,null,null,null,null,null,null,null,null,null,null,null,null,null,null,null,null,null,null,null,null,null,null,null,null,null,null,null,null,null,null,"GR 930 GR 971","32 S&W"]
[null,null,null,null,null,null,null,null,null,null,null,null,null,null,null,null,null,null,null,null,null,null,null,null,null,null,null,null,null,null,null,null,null,null,null,null,null,null,null,null,null,null,null,null,null,null,null,null,null,null,null,null,null,null,null,null,null,null,null,null,null,null,null,null,null,null,null,null,null,null,null,null,null,null,null,null,null,null,null,"GR 933","38 Special"]
[null,null,null,null,null,null,null,null,null,null,null,null,null,null,null,null,null,null,null,null,null,null,null,null,null,null,null,null,null,null,null,null,null,null,null,null,null,null,null,null,null,null,null,null,null,null,null,null,null,null,null,null,null,null,null,null,null,null,null,null,null,null,null,null,null,null,null,null,null,null,null,null,null,null,null,null,null,null,null,"GR 960","44 S&W Russian"]
[null,null,null,null,null,null,null,null,null,null,null,null,null,null,null,null,null,null,null,null,null,null,null,null,null,null,null,null,null,null,null,null,null,null,null,null,null,null,null,null,null,null,null,null,null,null,null,null,null,null,null,null,null,null,null,null,null,null,null,null,null,null,null,null,null,null,null,null,null,null,null,null,null,null,null,null,null,null,null,"GR 964","44 S&W Special"]
[null,null,null,null,null,null,null,null,null,null,null,null,null,null,null,null,null,null,null,null,null,null,null,null,null,null,null,null,null,null,null,null,null,null,null,null,null,null,null,null,null,null,null,null,null,null,null,null,null,null,null,null,null,null,null,null,null,null,null,null,null,null,null,null,null,null,null,null,null,null,null,null,null,null,null,null,null,null,null,"GR 97","320 Short"]
[null,null,null,null,null,null,null,null,null,null,null,null,null,null,null,null,null,null,null,null,null,null,null,null,null,null,null,null,null,null,null,null,null,null,null,null,null,null,null,null,null,null,null,null,null,null,null,null,null,null,null,null,null,null,null,null,null,null,null,null,null,null,null,null,null,null,null,null,null,null,null,null,null,null,null,null,null,null,null,"GR 974","38 Special"]
[null,null,null,null,null,null,null,null,null,null,null,null,null,null,null,null,null,null,null,null,null,null,null,null,null,null,null,null,null,null,null,null,null,null,null,null,null,null,null,null,null,null,null,null,null,null,null,null,null,null,null,null,null,null,null,null,null,null,null,null,null,null,null,null,null,null,null,null,null,null,null,null,null,null,null,null,null,null,null,"GR 984","30-06 Spring."]
[null,null,null,null,null,null,null,null,null,null,null,null,null,null,null,null,null,null,null,null,null,null,null,null,null,null,null,null,null,null,null,null,null,null,null,null,null,null,null,null,null,null,null,null,null,null,null,null,null,null,null,null,null,null,null,null,null,null,null,null,null,null,null,null,null,null,null,null,null,null,null,null,null,null,null,null,null,null,null,"GRG 32","6,5 x 54 Mannl. Sch."]
[null,null,null,null,null,null,null,null,null,null,null,null,null,null,null,null,null,null,null,null,null,null,null,null,null,null,null,null,null,null,null,null,null,null,null,null,null,null,null,null,null,null,null,null,null,null,null,null,null,null,null,null,null,null,null,null,null,null,null,null,null,null,null,null,null,null,null,null,null,null,null,null,null,null,null,null,null,null,null,"Hirtenberg 581 H","8,15 x 46 R"]
[null,null,null,null,null,null,null,null,null,null,null,null,null,null,null,null,null,null,null,null,null,null,null,null,null,null,null,null,null,null,null,null,null,null,null,null,null,null,null,null,null,null,null,null,null,null,null,null,null,null,null,null,null,null,null,null,null,null,null,null,null,null,null,null,null,null,null,null,null,null,null,null,null,null,null,null,null,null,null,"Kynoch 10,75 mm M","10,75 x 68"]
[null,null,null,null,null,null,null,null,null,null,null,null,null,null,null,null,null,null,null,null,null,null,null,null,null,null,null,null,null,null,null,null,null,null,null,null,null,null,null,null,null,null,null,null,null,null,null,null,null,null,null,null,null,null,null,null,null,null,null,null,null,null,null,null,null,null,null,null,null,null,null,null,null,null,null,null,null,null,null,"LK 65/11,15","11,15 x 65 R Express","N"]
[null,null,null,null,null,null,null,null,null,null,null,null,null,null,null,null,null,null,null,null,null,null,null,null,null,null,null,null,null,null,null,null,null,null,null,null,null,null,null,null,null,null,null,null,null,null,null,null,null,null,null,null,null,null,null,null,null,null,null,null,null,null,null,null,null,null,null,null,null,null,null,null,null,null,null,null,null,null,null,"M 60 x 11,15","11,15 x 60 R"]
[null,null,null,null,null,null,null,null,null,null,null,null,null,null,null,null,null,null,null,null,null,null,null,null,null,null,null,null,null,null,null,null,null,null,null,null,null,null,null,null,null,null,null,null,null,null,null,null,null,null,null,null,null,null,null,null,null,null,null,null,null,null,null,null,null,null,null,null,null,null,null,null,null,null,null,null,null,null,null,"M 68/10,75 mm","10,75 x 68"]
[null,null,null,null,null,null,null,null,null,null,null,null,null,null,null,null,null,null,null,null,null,null,null,null,null,null,null,null,null,null,null,null,null,null,null,null,null,null,null,null,null,null,null,null,null,null,null,null,null,null,null,null,null,null,null,null,null,null,null,null,null,null,null,null,null,null,null,null,null,null,null,null,null,null,null,null,null,null,null,"M 88/8 mm","8 x 57 J"]
[null,null,null,null,null,null,null,null,null,null,null,null,null,null,null,null,null,null,null,null,null,null,null,null,null,null,null,null,null,null,null,null,null,null,null,null,null,null,null,null,null,null,null,null,null,null,null,null,null,null,null,null,null,null,null,null,null,null,null,null,null,null,null,null,null,null,null,null,null,null,null,null,null,null,null,null,null,null,null,"M. 1871","577/450 Sld. Mart.H"]
[null,null,null,null,null,null,null,null,null,null,null,null,null,null,null,null,null,null,null,null,null,null,null,null,null,null,null,null,null,null,null,null,null,null,null,null,null,null,null,null,null,null,null,null,null,null,null,null,null,null,null,null,null,null,null,null,null,null,null,null,null,null,null,null,null,null,null,null,null,null,null,null,null,null,null,null,null,null,null,"M/88/9 mm","9 x 57"]
[null,null,null,null,null,null,null,null,null,null,null,null,null,null,null,null,null,null,null,null,null,null,null,null,null,null,null,null,null,null,null,null,null,null,null,null,null,null,null,null,null,null,null,null,null,null,null,null,null,null,null,null,null,null,null,null,null,null,null,null,null,null,null,null,null,null,null,null,null,null,null,null,null,null,null,null,null,null,null,"Mannlicher Schönauer 6,5 mm","6,5 x 54 Mannl. Sch."]
[null,null,null,null,null,null,null,null,null,null,null,null,null,null,null,null,null,null,null,null,null,null,null,null,null,null,null,null,null,null,null,null,null,null,null,null,null,null,null,null,null,null,null,null,null,null,null,null,null,null,null,null,null,null,null,null,null,null,null,null,null,null,null,null,null,null,null,null,null,null,null,null,null,null,null,null,null,null,null,"Mle Colt","44-40 Win."]
[null,null,null,null,null,null,null,null,null,null,null,null,null,null,null,null,null,null,null,null,null,null,null,null,null,null,null,null,null,null,null,null,null,null,null,null,null,null,null,null,null,null,null,null,null,null,null,null,null,null,null,null,null,null,null,null,null,null,null,null,null,null,null,null,null,null,null,null,null,null,null,null,null,null,null,null,null,null,null,"Modell 88/8 mm kurz","8 x 51 (Mauser K)"]
[null,null,null,null,null,null,null,null,null,null,null,null,null,null,null,null,null,null,null,null,null,null,null,null,null,null,null,null,null,null,null,null,null,null,null,null,null,null,null,null,null,null,null,null,null,null,null,null,null,null,null,null,null,null,null,null,null,null,null,null,null,null,null,null,null,null,null,null,null,null,null,null,null,null,null,null,null,null,null,"P 27/6,5 mm","6,5 x 27 R"]
[null,null,null,null,null,null,null,null,null,null,null,null,null,null,null,null,null,null,null,null,null,null,null,null,null,null,null,null,null,null,null,null,null,null,null,null,null,null,null,null,null,null,null,null,null,null,null,null,null,null,null,null,null,null,null,null,null,null,null,null,null,null,null,null,null,null,null,null,null,null,null,null,null,null,null,null,null,null,null,"Patr. Nr. 160","9,3 x 53 (Schweiz)","N"]
[null,null,null,null,null,null,null,null,null,null,null,null,null,null,null,null,null,null,null,null,null,null,null,null,null,null,null,null,null,null,null,null,null,null,null,null,null,null,null,null,null,null,null,null,null,null,null,null,null,null,null,null,null,null,null,null,null,null,null,null,null,null,null,null,null,null,null,null,null,null,null,null,null,null,null,null,null,null,null,"Patrone S 262 (r)","7,62 x 53 R"]
[null,null,null,null,null,null,null,null,null,null,null,null,null,null,null,null,null,null,null,null,null,null,null,null,null,null,null,null,null,null,null,null,null,null,null,null,null,null,null,null,null,null,null,null,null,null,null,null,null,null,null,null,null,null,null,null,null,null,null,null,null,null,null,null,null,null,null,null,null,null,null,null,null,null,null,null,null,null,null,"Patrone S 304 (f)","8 x 51 R Lebel"]
[null,null,null,null,null,null,null,null,null,null,null,null,null,null,null,null,null,null,null,null,null,null,null,null,null,null,null,null,null,null,null,null,null,null,null,null,null,null,null,null,null,null,null,null,null,null,null,null,null,null,null,null,null,null,null,null,null,null,null,null,null,null,null,null,null,null,null,null,null,null,null,null,null,null,null,null,null,null,null,"Revolver Cal. 442","442 Webley","N"]
[null,null,null,null,null,null,null,null,null,null,null,null,null,null,null,null,null,null,null,null,null,null,null,null,null,null,null,null,null,null,null,null,null,null,null,null,null,null,null,null,null,null,null,null,null,null,null,null,null,null,null,null,null,null,null,null,null,null,null,null,null,null,null,null,null,null,null,null,null,null,null,null,null,null,null,null,null,null,null,"Revolver Kal. 32 lg.","32 Long Colt"]
[null,null,null,null,null,null,null,null,null,null,null,null,null,null,null,null,null,null,null,null,null,null,null,null,null,null,null,null,null,null,null,null,null,null,null,null,null,null,null,null,null,null,null,null,null,null,null,null,null,null,null,null,null,null,null,null,null,null,null,null,null,null,null,null,null,null,null,null,null,null,null,null,null,null,null,null,null,null,null,"Roth Nr. 700","9 x 56 M.-Sch."]
[null,null,null,null,null,null,null,null,null,null,null,null,null,null,null,null,null,null,null,null,null,null,null,null,null,null,null,null,null,null,null,null,null,null,null,null,null,null,null,null,null,null,null,null,null,null,null,null,null,null,null,null,null,null,null,null,null,null,null,null,null,null,null,null,null,null,null,null,null,null,null,null,null,null,null,null,null,null,null,"Roth-Nr. 56","11,15 x 60 R"]
[null,null,null,null,null,null,null,null,null,null,null,null,null,null,null,null,null,null,null,null,null,null,null,null,null,null,null,null,null,null,null,null,null,null,null,null,null,null,null,null,null,null,null,null,null,null,null,null,null,null,null,null,null,null,null,null,null,null,null,null,null,null,null,null,null,null,null,null,null,null,null,null,null,null,null,null,null,null,null,"Roth-Nr. 77","450 N.E. 3‘‘1/4"]
[null,null,null,null,null,null,null,null,null,null,null,null,null,null,null,null,null,null,null,null,null,null,null,null,null,null,null,null,null,null,null,null,null,null,null,null,null,null,null,null,null,null,null,null,null,null,null,null,null,null,null,null,null,null,null,null,null,null,null,null,null,null,null,null,null,null,null,null,null,null,null,null,null,null,null,null,null,null,null,"S&W. Cal.32 kurz","32 S&W"]
[null,null,null,null,null,null,null,null,null,null,null,null,null,null,null,null,null,null,null,null,null,null,null,null,null,null,null,null,null,null,null,null,null,null,null,null,null,null,null,null,null,null,null,null,null,null,null,null,null,null,null,null,null,null,null,null,null,null,null,null,null,null,null,null,null,null,null,null,null,null,null,null,null,null,null,null,null,null,null,"S. & W. Cal. 32 lang","32 S&W Long"]
[null,null,null,null,null,null,null,null,null,null,null,null,null,null,null,null,null,null,null,null,null,null,null,null,null,null,null,null,null,null,null,null,null,null,null,null,null,null,null,null,null,null,null,null,null,null,null,null,null,null,null,null,null,null,null,null,null,null,null,null,null,null,null,null,null,null,null,null,null,null,null,null,null,null,null,null,null,null,null,"S.&W. Cal. 38 Special","38 Special"]
[null,null,null,null,null,null,null,null,null,null,null,null,null,null,null,null,null,null,null,null,null,null,null,null,null,null,null,null,null,null,null,null,null,null,null,null,null,null,null,null,null,null,null,null,null,null,null,null,null,null,null,null,null,null,null,null,null,null,null,null,null,null,null,null,null,null,null,null,null,null,null,null,null,null,null,null,null,null,null,"S.&W. Cal. 44 russisch","44 S&W Russian"]
[null,null,null,null,null,null,null,null,null,null,null,null,null,null,null,null,null,null,null,null,null,null,null,null,null,null,null,null,null,null,null,null,null,null,null,null,null,null,null,null,null,null,null,null,null,null,null,null,null,null,null,null,null,null,null,null,null,null,null,null,null,null,null,null,null,null,null,null,null,null,null,null,null,null,null,null,null,null,null,"S.&W. Cal. 44 Spezial","44 S&W Special"]
[null,null,null,null,null,null,null,null,null,null,null,null,null,null,null,null,null,null,null,null,null,null,null,null,null,null,null,null,null,null,null,null,null,null,null,null,null,null,null,null,null,null,null,null,null,null,null,null,null,null,null,null,null,null,null,null,null,null,null,null,null,null,null,null,null,null,null,null,null,null,null,null,null,null,null,null,null,null,null,"Schweizer Nr. 282","8 x 60"]
[null,null,null,null,null,null,null,null,null,null,null,null,null,null,null,null,null,null,null,null,null,null,null,null,null,null,null,null,null,null,null,null,null,null,null,null,null,null,null,null,null,null,null,null,null,null,null,null,null,null,null,null,null,null,null,null,null,null,null,null,null,null,null,null,null,null,null,null,null,null,null,null,null,null,null,null,null,null,null,"Schweizer Nr. 282 a","8 x 60 S"]
[null,null,null,null,null,null,null,null,null,null,null,null,null,null,null,null,null,null,null,null,null,null,null,null,null,null,null,null,null,null,null,null,null,null,null,null,null,null,null,null,null,null,null,null,null,null,null,null,null,null,null,null,null,null,null,null,null,null,null,null,null,null,null,null,null,null,null,null,null,null,null,null,null,null,null,null,null,null,null,"sowj. Patrone 43","7,62 x 39"]
[null,null,null,null,null,null,null,null,null,null,null,null,null,null,null,null,null,null,null,null,null,null,null,null,null,null,null,null,null,null,null,null,null,null,null,null,null,null,null,null,null,null,null,null,null,null,null,null,null,null,null,null,null,null,null,null,null,null,null,null,null,null,null,null,null,null,null,null,null,null,null,null,null,null,null,null,null,null,null,"SS 48/8 mm","8 x 48 R","N"]
[null,null,null,null,null,null,null,null,null,null,null,null,null,null,null,null,null,null,null,null,null,null,null,null,null,null,null,null,null,null,null,null,null,null,null,null,null,null,null,null,null,null,null,null,null,null,null,null,null,null,null,null,null,null,null,null,null,null,null,null,null,null,null,null,null,null,null,null,null,null,null,null,null,null,null,null,null,null,null,"SS 58 1/2/6,6","6,5 x 58 R Krag. Jörgensen","N"]
[null,null,null,null,null,null,null,null,null,null,null,null,null,null,null,null,null,null,null,null,null,null,null,null,null,null,null,null,null,null,null,null,null,null,null,null,null,null,null,null,null,null,null,null,null,null,null,null,null,null,null,null,null,null,null,null,null,null,null,null,null,null,null,null,null,null,null,null,null,null,null,null,null,null,null,null,null,null,null,"Suisse 3 types de cartouches No.102, 170 et 270 (Modèle 30) pas interchangeable","10,3 x 60 R"]
[null,null,null,null,null,null,null,null,null,null,null,null,null,null,null,null,null,null,null,null,null,null,null,null,null,null,null,null,null,null,null,null,null,null,null,null,null,null,null,null,null,null,null,null,null,null,null,null,null,null,null,null,null,null,null,null,null,null,null,null,null,null,null,null,null,null,null,null,null,null,null,null,null,null,null,null,null,null,null,"Super .38 SPL","357 Magnum"]
[null,null,null,null,null,null,null,null,null,null,null,null,null,null,null,null,null,null,null,null,null,null,null,null,null,null,null,null,null,null,null,null,null,null,null,null,null,null,null,null,null,null,null,null,null,null,null,null,null,null,null,null,null,null,null,null,null,null,null,null,null,null,null,null,null,null,null,null,null,null,null,null,null,null,null,null,null,null,null,"US-Caliber .45","45 Auto"]
[null,null,null,null,null,null,null,null,null,null,null,null,null,null,null,null,null,null,null,null,null,null,null,null,null,null,null,null,null,null,null,null,null,null,null,null,null,null,null,null,null,null,null,null,null,null,null,null,null,null,null,null,null,null,null,null,null,null,null,null,null,null,null,null,null,null,null,null,null,null,null,null,null,null,null,null,null,null,null,"Vierling 5,6 mm","5,6 x 35 R"]
[null,null,null,null,null,null,null,null,null,null,null,null,null,null,null,null,null,null,null,null,null,null,null,null,null,null,null,null,null,null,null,null,null,null,null,null,null,null,null,null,null,null,null,null,null,null,null,null,null,null,null,null,null,null,null,null,null,null,null,null,null,null,null,null,null,null,null,null,null,null,null,null,null,null,null,null,null,null,null,"Vierling rasant","22 Hornet"]
[]
[]
[]
[]
[]
[]
[]
[]
[]
[]
[]
[]
[]
[]
[]
[]
[]
[]
[]
[]
[]
[]
[]
[]
[]
[]
[]
[]
[]
[]
[]
[]
[]
[]
[]
[]
[]
[]
[]
[]
[]
[]
[]
[]
[]
[]
[]
[]
[]
[]
[]
[]
[]
[]
[]
[]
[]
[]
[]
[]
[]
[]
[]
[]
[]
[]
[]
[]
[]
[]
[]
[]
[]
[]
[]
[]
[]
[]
[]
[]
[]
[]
[]
[]
[]
[]
[]
[]
[]
[]
[]
[]
[]
[]
[]
[]
[]
[]
[]
[]
[]
[]
[]
[]
[]
[]
[]
[]
[]
[]
[]
[]
[]
[]
[]
[]
[]
[]
[]
[]
[]
[]
[]
[]
[]
[]
[]
[]
[]
[]
[]
[]
[]
[]
[]
[]
[]
[]
[]
[]
[]
[]
[]
[]
[]
[]
[]
[]
[]
[]
[]
[]
[]
[]
["Francis HERMAND"]

{"sheet":"Plan","index":2,"n_rows":66,"n_cols":31,"rows_kept":66,"cut":false,"hidden":false,"merged":[[11,16,12,20],[9,16,10,16],[14,16,15,22],[2,15,3,16]]}
[null,{"$f":"MATCH(D4, LISTE, 0)","v":409},"Rang dans la liste déroulante ci-dessous",null,null,null,null,null,null,null,null,null,null,null,null,null,null,null,null,null,null,null,null,null,null,null,null,null,null,null,"a"]
[null,null,null,null,null,null,null,null,null,null,null,null,null,null,null,null,null,null,null,null,null,null,null,null,null,null,null,null,null,null,"a"]
[null,null,null,null,null,null,null,null,null,null,null,null,null,null,null,"Press ENTER pour renseigner le schéma type.",null,null,"g","à gorge"]
[null,null,null,"338 Win. Mag.",null,null,null,null,null,null,null,null,null,null,null,null,null,null,"b","à bourrelet"]
[null,null,null,null,null,null,null,null,null,null,null,null,null,null,null,null,null,null,"m","magnum"]
[null,null,null,"Schema Type",null,null,null,null,null,null,null,null,null,null,null,null,null,null,"p /g","arme de poing / à gorge"]
[null,null,null,null,null,"Valeur en m/m",null,null,null,null,null,null,null,null,{"$f":"D4","v":"338 Win. Mag."},null,null,null,"p /b","arme de poing / à bourrelet"]
[null,"F",null,null,null,null,null,null,null,null,null,null,"L1",{"$f":"VLOOKUP($D$4,TABLE,2,FALSE)","v":51.82},"Distance entre la face arrière du culot et diamètre P2"]
[null,null,null,null,null,null,null,null,null,null,null,null,"L2",{"$f":"VLOOKUP($D$4,TABLE,3,FALSE)","v":55.11},"Distance entre la face arrière et le diamètre H1 du collet"]
[null,null,null,null,null,null,null,null,null,null,null,null,"L3",{"$f":"VLOOKUP($D$4,TABLE,4,FALSE)","v":63.5},"Longueur totale de la douille",null,"RESULTAT"]
[null,"G2",{"$f":"N32","v":8.3800000000000008},null,null,null,null,null,null,null,null,null,"L4",{"$f":"VLOOKUP($D$4,TABLE,5,FALSE)","v":0},"Distance entre la face arrière du culot et le diamètre G2"]
[null,null,null,null,null,null,null,null,null,null,null,null,"L5",{"$f":"VLOOKUP($D$4,TABLE,6,FALSE)","v":69.849999999999994},"Distance entre la face arrière du culot et le diamètre F",null,"223 Rem."]
[null,null,null,null,null,null,null,null,null,null,null,null,"L6",{"$f":"VLOOKUP($D$4,TABLE,7,FALSE)","v":84.84},"Longueur totale de la cartouche"]
[null,"G1",{"$f":"N31","v":8.61},null,null,null,null,null,null,null,null,null,"R",{"$f":"VLOOKUP($D$4,TABLE,8,FALSE)","v":1.27},"Epaisseur du bourrelet"]
[null,null,null,null,null,null,null,null,null,null,null,null,"R1",{"$f":"VLOOKUP($D$4,TABLE,9,FALSE)","v":13.51},"Diamètre du bourrelet",null,"5,56 Mle F"]
[null,"H2",{"$f":"N30","v":9.3699999999999992},null,null,null,null,null,null,null,null,null,"R3",{"$f":"VLOOKUP($D$4,TABLE,10,FALSE)","v":13.51},"Diamètre du culot magnum"]
[null,null,null,null,null,null,null,null,null,null,null,null,"E",{"$f":"VLOOKUP($D$4,TABLE,11,FALSE)","v":5.59},"Hauteur du culot"]
[null,null,null,null,null,null,null,null,null,null,null,null,"E1",{"$f":"VLOOKUP($D$4,TABLE,12,FALSE)","v":12.07},"Diamètre de la gorge"]
[null,null,null,null,null,null,null,null,null,null,null,null,"Emin",{"$f":"VLOOKUP($D$4,TABLE,13,FALSE)","v":0.94},"Largeur de la gorge"]
[null,null,null,null,null,null,null,null,null,null,null,null,"DELTA",{"$f":"VLOOKUP($D$4,TABLE,14,FALSE)","v":"35°"},"Demi angle de la gorge (entre E1 et P1)"]
[null,null,null,null,null,null,null,null,null,null,null,null,"f",{"$f":"VLOOKUP($D$4,TABLE,15,FALSE)","v":0.41},"Largeur du chanfrein du bourrelet",null,"Press ENTER pour voir le résultat."]
[null,null,null,null,null,null,null,null,null,null,null,null,"BETA",{"$f":"VLOOKUP($D$4,TABLE,16,FALSE)","v":"35°"},"Angle du chanfrein du bourrelet"]
[null,"H1",{"$f":"N29","v":9.4},null,null,null,null,null,null,null,null,null,"P1",{"$f":"VLOOKUP($D$4,TABLE,17,FALSE)","v":13.03},"Diamétre sous bourrelet ou à l'avant de la gorge"]
[null,null,null,null,null,null,null,null,null,null,null,null,"P2",{"$f":"VLOOKUP($D$4,TABLE,18,FALSE)","v":12.47},"Diamétre de la douille à la distance L1"]
[null,null,null,null,null,null,null,null,null,null,null,null,"ALPHA",{"$f":"VLOOKUP($D$4,TABLE,19,FALSE)","v":"50°"},"Angle du cône de raccordement"]
[null,"P2",{"$f":"N24","v":12.47},null,null,null,null,null,null,null,null,null,"S",{"$f":"VLOOKUP($D$4,TABLE,20,FALSE)","v":65.19},"Distance du sommet du cône de raccordement"]
[null,null,null,null,null,null,null,null,null,null,null,null,"R1min",{"$f":"VLOOKUP($D$4,TABLE,21,FALSE)","v":1.02},"Rayon de raccordement à l'extremité de P2"]
[null,null,null,null,null,null,null,null,null,null,null,null,"R2",{"$f":"VLOOKUP($D$4,TABLE,22,FALSE)","v":3.18},"Rayon de raccordement entre cône de raccordement et collet"]
[null,null,null,null,null,null,null,null,null,null,null,null,"H1",{"$f":"VLOOKUP($D$4,TABLE,23,FALSE)","v":9.4},"Diamètre au collet à la distance L2"]
[null,null,null,null,null,null,null,null,null,null,null,null,"H2",{"$f":"VLOOKUP($D$4,TABLE,24,FALSE)","v":9.3699999999999992},"Diamètre à la bouche de la douille à la distance L3",null,""]
[null,null,null,null,null,null,null,null,null,null,null,null,"G1",{"$f":"VLOOKUP($D$4,TABLE,25,FALSE)","v":8.61},"Diamètre maximum du projectile à la bouche de la douille"]
[null,"Alpha (Angle)",null,null,null,null,null,null,null,null,null,null,"G2",{"$f":"VLOOKUP($D$4,TABLE,26,FALSE)","v":8.3800000000000008},"Diamètre du projectile à la distance L4"]
[null,{"$f":"N25","v":"50°"},null,null,null,null,null,"S",null,null,null,null,"L3PG",{"$f":"VLOOKUP($D$4,TABLE,27,FALSE)","v":69.27},"Distance entre la face arrière et la prise de rayures"]
[null,null,null,null,null,null,null,{"$f":"N26","v":65.19},null,null,null,"L6","Pmax",{"$f":"VLOOKUP($D$4,TABLE,34,FALSE)","v":4300},"Pression maximale moyenne (bar) (méthode crusher)"]
[null,null,null,null,null,null,null,null,null,null,null,{"$f":"N13","v":84.84},"FC",{"$f":"VLOOKUP($D$4,TABLE,39,FALSE)","v":8.3800000000000008},"Diamètre minimum d'alésage du canon"]
[null,null,null,null,null,null,null,null,null,null,"L5",null,"ZC",{"$f":"VLOOKUP($D$4,TABLE,40,FALSE)","v":8.59},"Diamètre minimum du canon à fond de rayures"]
[null,null,null,null,null,null,null,null,null,null,{"$f":"N12","v":69.849999999999994},null,"PO",{"$f":"VLOOKUP($D$4,TABLE,28,FALSE)","v":"US"},"Pays d'origine"]
[null,null,null,null,null,null,null,null,null,"L4",null,null,"TYPE",{"$f":"VLOOKUP($D$4,TABLE,29,FALSE)","v":"m"},"g gorge, b bourrelet, m magnum, p arme de poing (suivant CIP)"]
[null,null,null,null,null,null,null,null,null,{"$f":"N11","v":0},null,null,"AM",{"$f":"VLOOKUP($D$4,TABLE,30,FALSE)","v":0},"Type d'amorce si Boxer"]
[null,null,null,null,null,null,null,null,"L3",null,null,null,"SH",{"$f":"VLOOKUP($D$4,TABLE,31,FALSE)","v":0},"Préconisation numéro de shell holder RCBS"]
[null,"Delta (Angle)",null,null,null,null,null,null,{"$f":"N10","v":63.5},null,null,null,"PIL",{"$f":"VLOOKUP($D$4,TABLE,32,FALSE)","v":0},"Préconisation pilote du case trimer Forster"]
[null,{"$f":"N20","v":"35°"},null,null,null,null,"L2",null,null,null,null,null,"COL",{"$f":"VLOOKUP($D$4,TABLE,33,FALSE)","v":0},"Préconisation collet du case trimer Forster"]
[null,null,null,null,null,null,{"$f":"N9","v":55.11},null,null,null,null,null,"u",{"$f":"VLOOKUP($D$4,TABLE,43,FALSE)","v":254},"Pas des rayures (mm)"]
[null,null,null,null,null,"L1",null,null,null,null,null,null,"N",{"$f":"VLOOKUP($D$4,TABLE,42,FALSE)","v":6},"Nombre de rayures"]
[null,"P1",{"$f":"N23","v":13.03},null,null,{"$f":"N8","v":51.82},null,null,null,null,null,null,"b",{"$f":"VLOOKUP($D$4,TABLE,41,FALSE)","v":2.79},"Largeur des rayures (mm)"]
[null,null,null,null,null,null,null,null,null,null,null,null,"ORIG",{"$f":"VLOOKUP($D$4,TABLE,44,FALSE)","v":"C.I.P."},"Origine des informations pour le calibre"]
[null,"E1",{"$f":"N18","v":12.07}]
[null,"R1",{"$f":"N15","v":13.51}]
[]
[]
[null,"Beta (Angle)"]
[null,{"$f":"N22","v":"35°"},null,null,null,"E",{"$f":"N17","v":5.59}]
[null,null,null,"TYPE DE CULOT",null,"E min",{"$f":"N19","v":0.94}]
[null,null,null,{"$f":"IF(N38=0,\"\",VLOOKUP(N38,S3:T7,2,FALSE))","v":"magnum"},null,"R",{"$f":"N14","v":1.27}]
[null,null,null,null,null,"f",{"$f":"N21","v":0.41}]
[]
[]
[]
[]
[]
[]
[]
[]
[]
[]
[11111]

{"sheet":"Dynamique","index":3,"n_rows":56,"n_cols":29,"rows_kept":56,"cut":false,"hidden":false,"merged":[[6,8,6,11],[22,8,22,11]]}
[{"$f":"VLOOKUP($D5,TABLE,2,FALSE)","v":55.78},{"$f":"VLOOKUP($D5,TABLE,3,FALSE)","v":59.85},{"$f":"VLOOKUP($D5,TABLE,4,FALSE)","v":66.55},{"$f":"VLOOKUP($D5,TABLE,5,FALSE)","v":0},{"$f":"VLOOKUP($D5,TABLE,6,FALSE)","v":0},{"$f":"VLOOKUP($D5,TABLE,7,FALSE)","v":84.84},{"$f":"VLOOKUP($D5,TABLE,8,FALSE)","v":1.27},{"$f":"VLOOKUP($D5,TABLE,9,FALSE)","v":13.51},{"$f":"VLOOKUP($D5,TABLE,10,FALSE)","v":13.51},{"$f":"VLOOKUP($D5,TABLE,11,FALSE)","v":5.59},{"$f":"VLOOKUP($D5,TABLE,12,FALSE)","v":12.07},{"$f":"VLOOKUP($D5,TABLE,13,FALSE)","v":0.94},{"$f":"VLOOKUP($D5,TABLE,14,FALSE)","v":"35°"},{"$f":"VLOOKUP($D5,TABLE,15,FALSE)","v":0.41},{"$f":"VLOOKUP($D5,TABLE,16,FALSE)","v":"35°"},{"$f":"VLOOKUP($D5,TABLE,17,FALSE)","v":13.03},{"$f":"VLOOKUP($D5,TABLE,18,FALSE)","v":12.42},{"$f":"VLOOKUP($D5,TABLE,19,FALSE)","v":"50°"},{"$f":"VLOOKUP($D5,TABLE,20,FALSE)","v":69.099999999999994},{"$f":"VLOOKUP($D5,TABLE,21,FALSE)","v":1.02},{"$f":"VLOOKUP($D5,TABLE,22,FALSE)","v":2.54},{"$f":"VLOOKUP($D5,TABLE,23,FALSE)","v":8.6300000000000008},{"$f":"VLOOKUP($D5,TABLE,24,FALSE)","v":8.6300000000000008},{"$f":"VLOOKUP($D5,TABLE,25,FALSE)","v":7.85},{"$f":"VLOOKUP($D5,TABLE,26,FALSE)","v":0},{"$f":"VLOOKUP($D5,TABLE,29,FALSE)","v":"m"},{"$f":"MATCH(D5, LISTE, 0)","v":372},{"$f":"MATCH(LOOKUP(\"z\",CIP!C:C),CIP!C:C,0)","v":501},6]
[{"$f":"VLOOKUP($P5,TABLE,2,FALSE)","v":27.51},{"$f":"VLOOKUP($P5,TABLE,3,FALSE)","v":31.72},{"$f":"VLOOKUP($P5,TABLE,4,FALSE)","v":39.520000000000003},{"$f":"VLOOKUP($P5,TABLE,5,FALSE)","v":0},{"$f":"VLOOKUP($P5,TABLE,6,FALSE)","v":0},{"$f":"VLOOKUP($P5,TABLE,7,FALSE)","v":53.34},{"$f":"VLOOKUP($P5,TABLE,8,FALSE)","v":1.37},{"$f":"VLOOKUP($P5,TABLE,9,FALSE)","v":12.01},{"$f":"VLOOKUP($P5,TABLE,10,FALSE)","v":0},{"$f":"VLOOKUP($P5,TABLE,11,FALSE)","v":3.85},{"$f":"VLOOKUP($P5,TABLE,12,FALSE)","v":10.39},{"$f":"VLOOKUP($P5,TABLE,13,FALSE)","v":1.4},{"$f":"VLOOKUP($P5,TABLE,14,FALSE)","v":"36°"},{"$f":"VLOOKUP($P5,TABLE,15,FALSE)","v":0.4},{"$f":"VLOOKUP($P5,TABLE,16,FALSE)","v":"45°"},{"$f":"VLOOKUP($P5,TABLE,17,FALSE)","v":11.96},{"$f":"VLOOKUP($P5,TABLE,18,FALSE)","v":11.6},{"$f":"VLOOKUP($P5,TABLE,19,FALSE)","v":0},{"$f":"VLOOKUP($P5,TABLE,20,FALSE)","v":0},{"$f":"VLOOKUP($P5,TABLE,21,FALSE)","v":0},{"$f":"VLOOKUP($P5,TABLE,22,FALSE)","v":0.32},{"$f":"VLOOKUP($P5,TABLE,23,FALSE)","v":5.95},{"$f":"VLOOKUP($P5,TABLE,24,FALSE)","v":5.94},{"$f":"VLOOKUP($P5,TABLE,25,FALSE)","v":5.18},{"$f":"VLOOKUP($P5,TABLE,26,FALSE)","v":0},{"$f":"VLOOKUP($P5,TABLE,29,FALSE)","v":"g"},{"$f":"MATCH(P5, LISTE, 0)","v":3}]
["L1","L2","L3","L4","L5","L6","R","R1","R3","E","E1","EMIN","DELTA","F","BETA","P1","P2","ALPHA","S","R1MIN","R2","H1","H2","G1","G2","TYPE"]
[null,null,null,{"$f":"IF(VLOOKUP($D5,TABLE,44,FALSE)=0,\"Non renseigné\",VLOOKUP($D5,TABLE,44,FALSE))","v":"C.I.P."},null,null,null,null,null,null,null,null,null,null,null,{"$f":"IF(VLOOKUP($P5,TABLE,44,FALSE)=0,\"Non renseigné\",VLOOKUP($P5,TABLE,44,FALSE))","v":"C.I.P."}]
[null,null,null,"300 Win. Mag.",null,null,null,null,null,"ZOOM",5,null,null,null,null,"5 mm /35 SMc"]
[]
[]
[]
[]
[]
[]
[]
[]
[]
[]
[]
[]
[]
[]
[]
[null,null,null,null,null,null,null,null,"Zoom 5"]
[]
[]
[]
[]
[]
[]
[]
[]
[]
[]
[]
[]
[]
[]
[]
[null,null,null,null,null,null,null,null,null,null,null,"Zoom 5"]
[]
[]
[]
[]
[]
[]
[]
[]
[]
[]
[]
[]
[]
[]
[]
[]
[]
[]
[111]

{"sheet":"Inser","index":4,"n_rows":53,"n_cols":52,"rows_kept":53,"cut":false,"hidden":false,"merged":[[1,2,2,10],[18,17,19,23],[22,26,22,31],[25,17,26,23],[41,7,41,9],[41,4,41,6],[39,3,39,15],[39,46,39,48],[52,9,52,10],[51,9,51,10],[47,6,47,7],[47,10,47,11],[46,10,46,11],[51,4,51,6],[52,4,52,6],[43,4,43,6],[42,7,42,9],[43,7,43,9],[46,6,46,7],[44,4,44,6]]}
[]
[null,null,"MISE EN PLACE D'UN NOUVEAU CALIBRE (Dans l'onglet CIP)",null,null,null,null,null,null,null,null,null,null,null,null,null,null,null,null,null,"Format Texte"]
[null,null,null,null,null,null,null,null,null,null,null,null,null,null,null,null,null,null,null,null,"xx°xx'xx\" ou xx°"]
[null,null,"Calibre","L1","L2","L3","L4","L5","L6","R","R1","R3","E","E1","EMIN","DELTA","F","BETA","P1","P2","ALPHA","S","R1MIN","R2","H1","H2","G1","G2","L3PG","PO","TYPE","AM","SH","COL","PIL","PMAX","PK","PE","M","EE","FC","ZC","B","N","U","ORIG","MS","ARME"]
[null,null,"356 TSW",null,null,21.59,null,null,29.46,1.27,10.01,null,2.95,8.81,0.89,"35°",0.38,"35°",9.92,null,null,null,null,null,null,9.66,9.0399999999999991,null,null,null,"p /g",null,null,null,null,null,null,null,null,null,null,null,null,null,null,"SAAMI","pouce","revolvers et pistolets"]
[null,null,"Remplire les cases ci-dessus"]
[]
[]
[]
[]
[null,null,null,null,null,null,null,null,null,null,null,null,null,null,null,null,null,null,null,null,null,null,null,null,null,null,null,null,null,null,null,null,null,null,null,null,null,null,null,null,null,null,null,null,null,null,null,null,null,null,"Calcul de E"]
[null,null,null,null,null,null,null,null,null,null,null,null,null,null,null,null,null,null,null,null,null,null,null,null,null,null,null,null,null,null,null,null,null,null,null,null,null,null,null,null,null,null,null,null,null,null,null,null,null,null,{"$f":"(E48-F48)/2","v":0.55499999999999972}]
[null,null,null,null,null,null,null,null,null,null,null,null,null,null,null,null,null,null,null,null,null,null,null,null,null,null,null,null,null,null,null,null,null,null,null,null,null,null,null,null,null,null,null,null,null,null,null,null,null,null,{"$f":"MID(G48,1,2)*1","v":35}]
[null,null,null,null,null,null,null,null,null,null,null,null,null,null,null,null,null,null,null,null,null,null,null,null,null,null,null,null,null,null,null,null,null,null,null,null,null,null,null,null,null,null,null,null,null,null,null,null,null,null,{"$f":"IF(ISERROR((MID(G48,4,2))/60),\"\",MID(G48,4,2)/60)","v":""}]
[null,null,null,null,null,null,null,null,null,null,null,null,null,null,null,null,null,null,null,null,null,null,null,null,null,null,null,null,null,"Etui à bourlet :","g",null,null,null,null,null,null,null,null,null,null,null,null,null,null,null,null,null,null,null,{"$f":"IF(ISERROR((MID(G48,7,2))/60),\"\",MID(G48,7,2)/3600)","v":""}]
[null,null,null,null,"COMMENT OBTENIR LE DESSIN DE L'ETUI",null,null,null,null,null,null,null,null,null,null,null,null,"PLACER LA LIGNE AVANT / SUPPRIMER CETTE LIGNE",null,null,null,null,null,null,null,null,null,null,null,"Etui à gorge :","b",null,null,null,null,null,null,null,null,null,null,null,null,null,null,null,null,null,null,null,{"$f":"SUM(AY13:AY15)","v":35}]
[null,null,null,null,null,null,null,null,null,null,null,null,null,null,null,null,null,null,null,null,null,null,null,null,null,null,null,null,null,"Arme de poing à bourlet :","p /b",null,null,null,null,null,null,null,null,null,null,null,null,null,null,null,null,null,null,null,{"$f":"90-AY16","v":55}]
[null,null,null,null,null," Valeur indispensable pour un étui droit à bourlet (Dessin de base).",null,null,null,null,null,null,null,null,null,null,null,null,null,null,null,null,null,null,null,null,null,null,null,"Arme de poing à gorge :","p /g",null,null,null,null,null,null,null,null,null,null,null,null,null,null,null,null,null,null,null,{"$f":"PI()*AY17/180","v":0.95993108859688125}]
[null,null,null,null,null,null,null,null,null,null,null,null,null,null,null,null,null,null,null,null,null,null,null,null,null,null,null,null,null,"Magnum :","m",null,null,null,null,null,null,null,null,null,null,null,null,null,null,null,null,null,null,null,{"$f":"TAN(AY18)","v":1.4281480067421144}]
[null,null,null,null,null,"Valeur indispensable pour un étui droit à gorge.",null,null,null,null,null,null,null,null,null,null,null,null,null,null,null,null,null,null,null,null,null,null,null,null,null,null,null,null,null,null,null,null,null,null,null,null,null,null,null,null,null,null,null,null,{"$f":"AY19*AY12","v":0.79262214374187312}]
[null,null,null,null,null,null,null,null,null,null,null,null,null,null,null,null,null,null,null,null,null,null,null,null,null,null,null,null,null,null,null,null,null,null,null,null,null,null,null,null,null,null,null,null,null,null,null,null,null,null,{"$f":"O5","v":0.89}]
[null,null,null,null,null,"Valeur indispensable pour un étui à cone et à bourlet",null,null,null,null,null,null,null,null,null,null,null,null,null,null,null,null,null,null,null,null,null,null,null,null,null,null,null,null,null,null,null,null,null,null,null,null,null,null,null,null,null,null,null,null,{"$f":"J5","v":1.27}]
[null,null,null,null,null,null,null,null,null,null,null,null,null,null,null,null,null,null,null,null,null,null,null,null,null,null,"356 Win.",null,null,null,null,null,null,null,null,null,null,null,null,null,null,null,null,null,null,null,null,null,null,null,{"$f":"SUM(AY20:AY22)","v":2.9526221437418734}]
[null,null,null,null,null,"Valeur indispensable pour un étui à cone et à gorge.",null,null,null,null,null,null,null,null,null,null,null,null,null,null,null,null,null,null,null,null,416,0]
[null,null,null,null,null,null,null,null,null,null,null,null,null,null,null,null,null,null,null,null,null,null,null,null,null,null,null,null,null,null,null,null,null,null,null,null,null,null,null,null,null,null,null,null,null,null,null,null,null,null,"Calcul de S","SAAMI"]
[null,null,null,null,null,"Valeur indispensable pour un étui Magnum à cone et à gorge.",null,null,null,null,null,null,null,null,null,null,null,"Double-cliquer pour faire un choix.",null,null,null,null,null,null,null,null,null,null,null,null,null,null,null,null,null,null,null,null,null,null,null,null,null,null,null,null,null,null,null,null,{"$f":"T5/2","v":0}," Coté Adjacent"]
[null,null,null,null,null,null,null,null,null,null,null,null,null,null,null,null,null,null,null,null,null,null,null,null,null,null,null,null,null,null,null,null,null,null,null,null,null,null,null,null,null,null,null,null,null,null,null,null,null,null,{"$f":"MID(U5,1,2)*1","v":{"$error":"#VALUE!"}},"degre"]
[null,null,null,null,null,null,null,null,null,null,null,null,null,null,null,null,null,null,null,null,null,null,null,null,null,null,null,null,null,null,null,null,null,null,null,null,null,null,null,null,null,null,null,null,null,null,null,null,null,null,{"$f":"IF(ISERROR((MID(U5,4,2))/60),\"\",MID(U5,4,2)/60)","v":""},"minute"]
[null,null,null,null,null,null,null,null,null,null,null,null,null,null,null,null,null,null,null,null,null,null,null,null,null,null,null,null,null,null,null,null,null,null,null,null,null,null,null,null,null,null,null,null,null,null,null,null,null,null,{"$f":"IF(ISERROR((MID(U5,7,2))/60),\"\",MID(U5,7,2)/3600)","v":""},"seconde"]
[null,null,null,null,null,null,null,null,null,null,null,null,null,null,null,null,null,null,null,null,null,null,null,null,null,null,null,null,null,null,null,null,null,null,null,null,null,null,null,null,null,null,null,null,null,null,null,null,null,null,{"$f":"SUM(AY27:AY29)","v":{"$error":"#VALUE!"}},"degre,degre"]
[null,null,null,null,null,null,null,null,null,null,null,null,null,null,null,null,null,null,null,null,null,null,null,null,null,null,null,null,null,null,null,null,null,null,null,null,null,null,null,null,null,null,null,null,null,null,null,null,null,null,{"$f":"90-AY30","v":{"$error":"#VALUE!"}},"90° - angle"]
[null,null,null,null,null,null,null,null,null,null,null,null,null,null,null,null,null,null,null,null,null,null,null,null,null,null,null,null,null,null,null,null,null,null,null,null,null,null,null,null,null,null,null,null,null,null,null,null,null,null,{"$f":"PI()*AY31/180","v":{"$error":"#VALUE!"}},"Radian"]
[null,null,null,null,null,null,null,null,null,null,null,null,null,null,null,null,null,null,null,null,null,null,null,null,null,null,null,null,null,null,null,null,null,null,null,null,null,null,null,null,null,null,null,null,null,null,null,null,null,null,{"$f":"TAN(AY32)","v":{"$error":"#VALUE!"}},"tang"]
[null,null,null,null,null,null,null,null,null,null,null,null,null,null,null,null,null,null,null,null,null,null,null,null,null,null,null,null,null,null,null,null,null,null,null,null,null,null,null,null,null,null,null,null,null,null,null,null,null,null,{"$f":"AY26*AY33","v":{"$error":"#VALUE!"}},"Coté Opposé"]
[null,null,null,null,null,null,null,null,null,null,null,null,null,null,null,null,null,null,null,null,null,null,null,null,null,null,null,null,null,null,null,null,null,null,null,null,null,null,null,null,null,null,null,null,null,null,null,null,null,null,{"$f":"D5","v":0},"L1"]
[null,null,null,null,null,null,null,null,null,null,null,null,null,null,null,null,null,null,null,null,null,null,null,null,null,null,null,null,null,null,null,null,null,null,null,null,null,null,null,null,null,null,null,null,null,null,null,null,null,null,{"$f":"AY35+AY34","v":{"$error":"#VALUE!"}}]
[]
[null,null,null,null,null,null,null,null,null,null,null,null,null,null,null,null,null,null,null,null,null,null,null,null,null,null,null,null,null,null,null,null,null,null,null,null,null,null,null,null,null,null,null,null,null,null,null,null,null,null,"Calcul de S","CIP"]
[null,null,null,null,null,null,null,null,null,null,null,null,null,null,null,null,null,null,null,null,null,null,null,null,null,null,null,null,null,null,null,null,null,null,null,null,null,null,null,null,null,null,null,null,null,null,null,null,null,null,{"$f":"T5/2","v":0}," Coté Adjacent"]
[null,null,null,"SAAMI  (AIDE au calcul des valeurs CIP - Alpha - E - S )",null,null,null,null,null,null,null,null,null,null,null,null,null,null,null,null,null,null,null,null,null,null,null,null,null,null,null,null,null,null,null,null,null,null,null,null,null,null,null,null,null,null,1.6881481481481482,null,null,null,{"$f":"MID(U5,1,2)*1","v":{"$error":"#VALUE!"}},"degre"]
[null,null,null,null,"Degré","Minute","Seconde",null,null,null,null,null,null,null,null,null,null,null,null,null,null,null,null,null,null,null,null,null,null,null,null,null,null,null,null,null,null,null,null,null,null,null,null,null,null,null,null,null,null,null,{"$f":"IF(ISERROR((MID(U5,4,2))/60),\"\",MID(U5,4,2)/60)","v":""},"minute"]
[null,null,null,null,"ANGLE SAAMI",null,null,"ANGLE CIP",null,null,null,null,null,null,null,null,null,null,null,null,null,null,null,null,null,null,null,null,null,null,null,null,null,null,null,null,null,null,null,null,null,null,null,null,null,null,null,null,null,null,{"$f":"IF(ISERROR((MID(U5,7,2))/60),\"\",MID(U5,7,2)/3600)","v":""},"seconde"]
[null,null,null,null,null,"Format (dd:mm:ss)",null,"ALPHA",null,null,null,null,null,null,null,null,null,null,null,null,null,null,null,null,null,null,null,null,null,null,null,null,null,null,null,null,null,null,null,null,null,null,null,null,null,null,null,{"$f":"INT(AU40*24)","v":40},null,null,{"$f":"(E53*24)/2","v":25},"degre,degre"]
[null,null,null,null,1.0416666666666667,null,null,{"$f":"E44*2","v":2.0833333333333335},null,null,null,null,null,null,null,null,null,null,null,null,null,null,null,null,null,null,null,null,null,null,null,null,null,null,null,null,null,null,null,null,null,null,null,null,null,null,null,{"$f":"E53*24","v":50},null,null,{"$f":"90-AY43","v":65},"90° - angle"]
[null,null,null,null,"(Ex  xx:xx:xx)",null,null,null,null,null,null,null,null,null,null,null,null,null,null,null,null,null,null,null,null,null,null,null,null,null,null,null,null,null,null,null,null,null,null,null,null,null,null,null,null,null,null,null,null,null,{"$f":"PI()*AY44/180","v":1.1344640137963142},"Radian"]
[null,null,null,null,"Calcule de la hauteur du culot : E (Sauf Magnum)",null,null,null,null,null,null,null,null,null,null,null,null,null,null,null,null,null,null,null,null,null,null,null,null,null,null,null,null,null,null,null,null,null,null,null,null,null,null,null,null,null,null,null,null,null,{"$f":"TAN(AY45)","v":2.1445069205095586},"tang"]
[null,null,null,null,"P1","E1","DELTA",null,"EMIN","R","E",null,null,null,null,null,null,null,null,null,null,null,null,null,null,null,null,null,null,null,null,null,null,null,null,null,null,null,null,null,null,null,null,null,null,null,null,null,null,null,{"$f":"(H53/2)*AY46","v":0},"Coté Opposé"]
[null,null,null,null,{"$f":"S5","v":9.92},{"$f":"N5","v":8.81},{"$f":"P5","v":"35°"},null,{"$f":"O5","v":0.89},1.27,{"$f":"IF(AY23<0,\"P1\",ROUND(AY23,2))","v":2.95},null,null,null,null,null,null,null,null,null,null,null,null,null,null,null,null,null,null,null,null,null,null,null,null,null,null,null,null,null,null,null,null,null,null,null,null,null,null,null,{"$f":"I53","v":0},"L1"]
[null,null,null,null,"Report automatique avec la ligne du haut",null,null,null,null,null,null,null,null,null,null,null,null,null,null,null,null,null,null,null,null,null,null,null,null,null,null,null,null,null,null,null,null,null,null,null,null,null,null,null,null,null,null,null,null,null,{"$f":"AY48+AY47","v":0}]
[]
[null,null,null,null,"Calcul de la distance du sommet du cône de raccordement : S  (Sur angle CIP)"]
[null,null,null,null,"ALPHA (CIP)",null,null,"P2","L1","S"]
[null,null,null,null,{"$f":"H44","v":2.0833333333333335},null,null,{"$f":"T5","v":0},{"$f":"D5","v":0},{"$f":"ROUND(AY49,2)","v":0}]